{"text_format":"1","workbook":"xlsx","n_sheets":11,"sheets":["Usmernenie","Príklady","Príjmy","Spolu","Doklady","Adr","FP","Cis","Avízo - výnosy","Avízo - vratka","Skratky"],"not_rendered":{"charts":0,"images":0,"macros":0,"external_links":0,"defined_names":11,"comments":3,"pivot_tables":0},"unopened":[],"bounds":{"document_bytes":16777216,"sheet_cells":100000,"rows_first":2000,"rows_last":500,"rows_between":2000,"halvings":0,"cell_chars":16384,"cell_head_chars":4096},"cells_cut":0,"cells_raw":0,"read":"whole","date_system":"1900"}

{"sheet":"Usmernenie","index":0,"n_rows":139,"n_cols":4,"rows_kept":139,"cut":false,"hidden":false,"merged":[[21,2,21,3],[0,2,0,3],[18,2,18,3],[19,2,19,3]]}
["Usmernenie k priebežnému čerpaniu a vyúčtovaniu finančných prostriedkov poskytnutých v roku 2024"]
[]
["ZÁKLADNÉ POKYNY"]
["1. Vložiť údaje do hárkov \"Príjmy\" a \"Doklady\"."]
["2. Skontrolovať hárky \"Doklady\" a \"Spolu\"."]
["3. Po kontrole odoslať elektronickú verziu formuláru na adresu ziadosti.sport@minedu.sk."]
["4. Vyplniť hárok  \"Avízo - vratka\" (len Prijímatelia, ktorí nevyčerpali celú sumu)."]
["5. Vytlačiť hárky \"Spolu\", \"Doklady\", \"Avízo - vratka\"."]
["6. Dopísať do hárku \"Spolu\" dátum a čas odoslania elektronickej verzie formuláru vyúčtovania."]
["7. Podpísať všetky hárky štatutárnym zástupcom/zástupcami. "]
["8. Odoslať formulár vyúčtovania hárky \"Doklady\", \"Spolu\" a \"Avízo - vratka\" - len v prípade vrátenia nevyčerpaných finančných prostriedkov v listinnej podobe na adresu: Ministerstvo školstva, vedy, výskumu a športu SR, sekcia športu, Stromová 1, 813 30  Bratislava.  "]
["Pri vypĺňaní odporúčame použiť hárok „Príklady“, v ktorom sú vysvetlené najčastejšie druhy výdavkov. Pomôže v prípade, ak si nie ste istí, ako uviesť určitý typ výdavku."]
[]
["INFORMÁCIA – PRIEBEŽNÉ ZVEREJŇOVANIE A VYÚČTOVANIE PRÍSPEVKOV PRE KLUBY\n\nV prípade poskytnutia finančných prostriedkov z príspevku uznanému športu klubom podľa § 69 ods. (4) bod a) zákona č. 440/2015 Z.z. o športe a o zmene a dplnení nietorých zákonov v znení neskorších predpisov (ďalej len \"zákon o športe\") má prijímateľ finančných prostriedkov zo štátneho rozpočtu (ďalej len „Prijímateľ“) dve možnosti:\n\n1. Príspevok poskytne priamym poukázaním na samostatný bankový účet klubu. V tomto prípade:\na) KLUB je povinný zriadiť pre príjem prostriedkov zo štátneho rozpočtu samostatný bankový účet,\nb) KLUB zverejňuje použitie príspevku v rovnakej forme a štruktúre ako Prijímateľ, nakoľko v tomto prípade vystupuje klub ako prijímateľ,\nc) Prijímateľ zverejňuje v hárku „Doklady“ poskytnutú sumu klubu ako samostatnú položku s Popisom úhrady „príspevok klubu“, pričom v Dodávateľovi plnenia uvedie názov klubu,\nd) Prijímateľ uvádza vo formulári vyúčtovania finančných prostriedkov za aktuálny rok prostriedky poskytnuté klubom v rovnakej forme a štruktúre, ako ostatné účely uvedené v zmluve (viď hárok \"Príklady\"). Neuvádzať jednou sumou, ale rozpísať jednotlivé výdavky.  \n\n2. Príspevok poskytne formou refundácie výdavkov klubu na bankový účet klubu. V tomto prípade:\na) KLUB nie je povinný zverejniť priebežné prijatie a čerpanie poskytnutých prostriedkov z príspevku uznanému športu, nakoľko tieto položky sú priebežne zverejňované prijímateľom,\nb) Prijímateľ zverejňuje v hárku „Doklady“ refundované sumy klubu ako samostatné položky podľa konkrétneho účelu, pričom okrem sumy, účelu a dodávateľa plnenia uvedie aj názov KLUBU, ktorému výdavky refunduje,  \nc) Prijímateľ vo formulári vyúčtovania finančných prostriedkov uvádza výdavky refundované klubom v rovnakej forme a štruktúre ako ostatné účely uvedené v zmluve, vrátane názvu KLUBU, ktorému výdavok refunduje. \n"]
[]
["INFORMÁCIA - PRIEBEŽNÉ ZVEREJŇOVANIE A VYÚČTOVANIE PRÍSPEVKU SLOVENSKÉMU PARALYMPIJSKÉMU VÝBORU\n\nV prípade poskytnutia finančných prostriedkov z príspevku na národný športový projekt podľa § 75 ods. (6) zákona o športe Slovenskému paralympijskému výboru (ďalej len „SPV“)  sa príspevok poskytne priamym poukázaním na samostatné bankové účty jednotlivých subjektov uvedených v zmluve (nie vo forme refundácie výdavkov). V tomto prípade:\na) je každý subjekt povinný zriadiť pre príjem prostriedkov zo štátneho rozpočtu samostatný bankový účet,\nb) SPV zverejňuje poskytnutú sumu subjektu ako samostatnú položku s Popisom úhrady „príspevok subjektu“, pričom v Dodávateľovi plnenia uvedie názov subjektu,\nc) subjekt zverejňuje použitie príspevku v rovnakej forme a štruktúre ako prijímateľ príspevku, t. j. SPV, nakoľko v tomto prípade vystupuje každý subjekt ako Prijímateľ, \nd) SPV uvádza vo formulári vyúčtovania za aktuálny rok prostriedky poskytnuté samotnému SPV rovnako ako ostatné účely uvedené v zmluve a subjekty združené v SPV v rovnakej forme a štruktúre ako SPV (viď hárok \"Príklady\"). Podľa zmluvy na aktuálny rok subjekty združené v SPV posielajú vyúčtovanie priamo MŠVVaŠ SR (nie cez SPV).\nToto ustanovenie sa rovnako vzťahuje aj na prípady vyčlenenia a poskytnutia finančných prostriedkov pre športy zdravotne znevýhodnených, patriacich pod príslušné národné športové zväzy v pôsobnosti jednotlivých medzinárodných federácií."]
[]
["VŠEOBECNÉ POKYNY"]
["(1) Priebežné čerpanie a vyúčtovanie príspevkov/dotácií poskytnutých zo štátneho rozpočtu v aktuálnom roku v oblasti športu (ďalej len \"Finančných prostriedkov\") sa vykonáva v termínoch a spôsobom, ktoré sú stanovené v zmluve/dodatku k zmluve o poskytnutí Finančných prostriedkov (ďalej len „Zmluva“)."]
[]
["(2) Prijímateľ je v súlade s § 65 ods. (6) zákona o športe povinný priebežne zverejňovať informácie o prijatí a spôsobe použitia Finančných prostriedkov najneskôr do 25. dňa kalendárneho mesiaca nasledujúceho po kalendárnom mesiaci, v ktorom boli Finančné prostriedky prijaté alebo použité. \nZverejnením formuláru vyúčtovania na svojej webovej stránke a jeho pravidelnou aktualizáciou, vrátane oznámenia tejto webovej adresy MŠVVaŠ SR, si túto povinnosť splníte."]
[]
["(3) Tento formulár obsahuje údaje o sumách a účeloch Finančných prostriedkov uvedených v Zmluvách o poskytnutí finančných prostriedkov Prijímateľovi vybranému zo zoznamu. Údaje sú aktualizované priebežne počas celého kalendárneho roka."]
[]
["(4) Prijímateľ aktualizuje k vloženému dátumu (bunka C1 hárku \"Príjmy\") sumu prijatých Finančných prostriedkov, ktoré mu boli poukázané od 01.01.2024 do 31.12.2024."]
[]
["(5) Prijímateľ uvádza každý príjem (poukázané Finančné prostriedky) a každý výdaj (použitie Finančných prostriedkov) na samostatnom riadku ako samostatnú položku. Ak je potrebné platbu rozdeliť na viacero účelov, rozpíše sa táto platba na viacero riadkov, v každom riadku sa vyberie príslušný účel (stĺpec A) a príslušný analytický kód účelu (stĺpec J)."]
[]
["(6) Formulár si uložte vo vašom počítači. V akomkoľvek hárku vypĺňate len žlté polia. V prípade nezrovnalostí alebo problémov pri vypĺňaní sa obráťte na zamestnancov sekcie športu MŠVVaŠ SR."]
[]
["(7) V hárku „Doklady“ vyberte zo zoznamu svoju organizáciu („Prijímateľ Finančných prostriedkov“)."]
[]
["(8) Do polí riadkov 107 až 3000 vložte postupne vyúčtovacie údaje (polia zmenia farbu na žltú). Údaje v stĺpcoch B až H je možné vyplniť aj vložením údajov z iného hárku .xls, alebo z iného zdroja (CTRL+C, CTRL+V). Údaje v stĺpci A nie je možné vyplniť kopírovaním z iného zdroja, ale je potrebné vybrať ich z ponúkaného zoznamu. Pri nedodržaní tohto upozornenia sa poruší funkčnosť formulára."]
[]
["(9) Pri vkladaní údajov použite ako pomôcky komentáre, ktoré sa zobrazia, keď podržíte kurzor myši nad bunkami označenými malými červenými trojuholníčkami v záhlaví stĺpcov."]
[]
["(10) Pri vkladaní údajov uvádzajte plné výrazy, nie skratky (napr. namiesto DPC  treba uviesť „dohoda o pracovnej činnosti“). V nevyhnutnom prípade používajte skratky podľa zoznamu v hárku \"Skratky\", ktorý si môžete rozšíriť o vlastné skratky (je potrebné ich doplniť do príslušnej tabuľky). V stĺpci \"Dodávateľ plnenia\" nie je prípustné používať skratky, okrem skratiek, ktoré sú v oficiálnom názve subjektu.\nVyhnite sa prehnanému používaniu skratiek, ktoré nie sú bežne zaužívané, vyúčtovanie sa tak stáva neprehľadným. Poskytovateľ môže vrátiť neprehľadné vyúčtovanie na prepracovanie."]
[]
["(11) Pri vkladaní popisu uhradeného plnenia vyberte z rozbaľovacieho zoznamu správnu možnosť. V prípade, ak sa daná možnosť vo výbere nenachádza, zadajte voľný text (výstižný so špecifikáciou plnenia)."]
[]
["(12) Vo vyúčtovaní Finančných prostriedkov môžu byť uvedené len doklady uhradené s dátumom od 01.01.2024 do 31.12.2024, resp. s dátumom, ktorý bol uvedený v zmluve/dodatku k zmluve o poskytnutí Finančných prostriedkov ako termín pre ich použitie. Rovnako to platí aj pre príspevky klubom a subjektom, napr. v prípade príspevku SPV, to znamená, že aj kluby a subjekty musia použiť prostriedky v termíne od 01.01.2024 do 31.12.2024, resp. v termíne, ktorý bol uvedený v zmluve/dodatku k zmluve o poskytnutí Finančných prostriedkov. Pri investíciách (kapitálové transfery) je termín použitia príspevku od 01.01.2024 do 31.03.2025. Pri vyúčtovaní kapitálových transferov je nevyhnutné priložiť  k vyúčtovaniu aj kópie faktúr vrátane ich príloh, kópie výpisov z účtu o úhrade faktúr, zmluvy a dodatky uzatvorené s dodávateľmi vrátane príloh, prípadne ďalšie dokumenty/doklady nevyhnutné na posúdenie oprávnenosti a preukázateľnosti výdavkov."]
["Upozornenie: V prípadoch, ak podľa zmluvy/dodatku k zmluve je  umožnené čerpať Finančné prostriedky, poskytnuté ako bežný transfer po 31.07.2024, v termíne do 31.03.2025, je to s výnimkou miezd, platov, ostatných peňažných nárokov zamestnancov vyplývajúcich z pracovnoprávnych vzťahov alebo z obdobných právnych vzťahov, ktoré sa vyplácajú spolu so mzdou a odmeny vyplácané na základe dohôd o prácach vykonávaných mimo pracovného pomeru, ktoré sa považujú za oprávnené, ak sú viazané k obdobiu do 31.12.2024 a zároveň sú uhradené do 28. februára 2025. "]
[]
["(13) Vyúčtovávané sumy vkladajte s presnosťou na dve desatinné miesta."]
[]
["(14) V prípade inej meny ako euro, sumu na účtovnom doklade (napr. na faktúre) prepočítajte na eurá podľa kurzu na účtovnom doklade, resp. aktuálnym kurzom NBS ku dňu realizácie platby. V prípade doloženia faktúr (dokladov) za kapitálové výdavky je potrebné doložiť faktúru (doklad), na ktorej je uvedený kurz a dátum kurzu, podľa ktorého je suma prepočítaná, a zároveň uvedená aj samotná prepočítaná suma."]
[]
["(15) Je dôležité vyplniť všetky bunky v každom riadku. Prázdne bunky nie sú prípustné. Výnimku tvorí úvodný riadok k danej aktivite s presnou kvantifikáciou akcie/podujatia/súťaže/konferencie/školenia."]
[]
["(16) Pri vyúčtovávaní pracovnej cesty: vyúčtovanie pracovnej cesty (majstrovstvá sveta, sústredenie, školenie, podujatie, súťaž, konferencia, iná akcia) pozostáva z položiek, ktoré vyplývajú zo zákona č. 283/2002 Z. z. o cestovných náhradách. Prípadný materiál/služba zakúpený/á na pracovnej ceste sa zúčtuje ako samostatná položka (nie je súčasťou vyúčtovania pracovnej cesty)."]
[]
["(17) Nakoľko elektronická forma vyúčtovania bude zverejnená na internete, pri osobných nákladoch neuvádzajte mená osôb, ale „osoba 1“, „osoba 2“, „osoba 3“, atď. Pokiaľ jednej osobe boli prostriedky poskytnuté viackrát, tejto osobe je potrebné v stĺpci \"Dodávateľ plnenia\" uvádzať vždy to isté označenie."]
[]
["(18) V hárku „Doklady“ nemeňte typ ani veľkosť písma."]
[]
["(19) Doklady vkladajte podľa účelu."]
[]
["(20) Vyúčtovacie údaje sú spracovávané a analyzované automaticky v priebehu ich vkladania a je možné preibežne ich sledovať v hárku „Spolu“. Formulár automaticky vyhodnocuje čerpanie Finančných prostriedkov (analytický kód 1, 2, 3, 4, 5 a 10).\nPoznámka: \nV prípade, ak je v Zmluve uvedená povinnosť spolufinancovania (napr. pri kapitálových výdavkoch na infraštruktúru národného významu), formulár vyhodnocuje aj sumu spolufinancovania (analytický kód 99).\nUpozornenie:\nDo hárku „Spolu“ nerobte žiadne zásahy (dôsledok nedodržania: znefunkčnenie automatického vyhodnocovania).   Vyúčtováva sa len poskytnutá suma  finančných prostriedkov, v prípade vyúčtovania vyššej sumy, sa táto nezrovnalosť premietne v hárku \"Spolu\" červenou farbou, ktorou sa upozorní na tento nesúlad."]
[]
["(21) Pred tlačou"]
["a) nastavte počet strán, ktoré budete tlačiť (dôsledok nedodržania: budete zbytočne tlačiť viac ako 80 strán, nakoľko automaticky je nastavená tlač všetkých 3 000 pripravených formátovaných riadkov, čo je cca 250 strán),"]
["b) skontrolujte identifikačné údaje o Vašej organizácii (v prípade potreby zmeny identifikačných údajov organizácie kontaktujte zamestnancov sekcie športu MŠVVaŠ SR)."]
[]
["(22) Po vytlačení formulára\na) bez ďalších zásahov odošlite elektronický formulár na adresu ziadosti.sport@minedu.sk,\nb) na vytlačený formulár (hárok \"Spolu\") rukou dopíšte dátum a čas odoslania (nesnažte sa dopisovať tieto údaje priamo do elektronického formulára - ide o čas skutočného odoslania, nie o čas zamýšľaného odoslania), \nc) odošlite vytlačený  hárok \"Doklady\" a vytlačený hárok \"Spolu\" (\"vyúčtovanie\") podľa základných pokynov na predpísanú adresu. V prípade nevyčerpaných finančných prostriedkov treba vyplniť aj hárok \"Avízo - vratka \" a zaslať ho taktiež na predpísanú adresu. \n"]
[]
["DÔLEŽITÉ UPOZORNENIA"]
[]
["Poskytovanie preddavkov z finančných prostriedkov (platby za zálohové faktúry) je podľa § 19 ods. 8  zákona 523/2004 Z. z. o rozpočtových pravidlách verejnej správy a o zmene a doplnení niektorých  zákonov v znení neskorších predpisov možné len v prípade, ak boli vopred v zmluve o dodávke výkonov a tovarov písomne dohodnuté, a to najviac na obdobie troch mesiacov v závislosti od vecného plnenia dodávok výkonov a tovarov. \nÚhrada preddavku z finančných prostriedkov v rozpore s týmto zákonom je porušením finančnej disciplíny podľa § 31 ods. 1 písm. l) cit. zákona o rozpočtových pravidlách.  \nVýnimkou je poskytnutie zálohy fyzickej osobe, vyslanej na pracovnú cestu, na krytie svojich nákladov podľa zákona o cestovných náhradách, ktorú vyslaná osoba zúčtováva po skončení pracovnej cesty. Poskytnutie zálohy musí byť zdokumentované príslušným dokladom.\nPlatba bez dokladu právnickej osobe nesmie byť poskytnutá (príjmový doklad predstaviteľa klubu nestačí, nakoľko to je iba doklad, na ktorom nie sú ceny za konečný tovar/službu). Dokladom môže byť iba pokladničný blok/faktúra konečného poskytovateľa služby, alebo dodávateľa tovaru. Originály, resp. v prípade refundácie kópie všetkých primárnych dokladov, musia byť uložené u Prijímateľa Finančných prostriedkov a na požiadanie predložené príslušným orgánom vykonávajúcim kontrolu.                                                                                                                                                             \n\n"]
[]
["Ak Prijímateľ zrealizuje prevod Finančných prostriedkov z bankového účtu uvedeného v Zmluve (ďalej len \"samostatný účet\") za účelom úhrady oprávnených nákladov Účelu \na) na účet dodávateľa tovaru alebo služby,\nb) na iný účet Prijímateľa, najviac však v sume určenej v tejto Zmluve a najviac v sume takto použitých vlastných finančných prostriedkov na Účel z tohto iného účtu Prijímateľa,\nc) na účet Priameho realizátora, ak z vlastných finančných prostriedkov uhradil výdavok na Účel, najviac však v sume určenej v tejto Zmluve a najviac v sume takto použitých vlastných finančných prostriedkov; všetky povinnosti a zmluvné záväzky Prijímateľa, najmä v súvislosti s vyúčtovaním Príspevku a jeho zverejňovaním, zostávajú v prípade takéhoto použitia nedotknuté,\nd) na účet svojho člena, ktorý je právnickou osobou alebo fyzickou osobou, na úhradu oprávnených nákladov na športovú činnosť v súlade so Zmluvou,\ne) na účet subjektov uvedených v Zmluve (napr. v prípade Slovenského paralympijského výboru),\nf) na účty podľa Čl. 2 ods. 1 Zmluvy o poskytnutí príspevku uznanému športu, zriadené na čerpanie Príspevku pre príslušné športové odvetvia v jeho pôsobnosti.\nAk Prijímateľ vykoná hotovostnú operáciu v nevyhnutnom a odôvodnenom rozsahu za účelom úhrady oprávnených nákladov Účelu v rozsahu podľa zákona č. 394/2012 Z. z. o obmedezí platieb v hotovosti, nepovažuje sa za poskytovateľa verejných prostriedkov."]
[]
["POZOR:"]
["Zálohové faktúry (čiastkové úhrady) za rovnaký tovar alebo rovnakú službu a k nim patriace vyúčtovacie faktúry (aj nulové), uvádzať vo vyúčtovaní v riadkoch pod sebou. Rovnako pri vyúčtovaní  tuzemských a zahraničných pracovných ciest, pri ktorých je najprv poskytnutá záloha a následne k nej vykonané vyúčtovanie pracovnej cesty, treba údaje uvádzať v riadkoch pod sebou s uvedením, že ide o vyúčtovanie pracovnej cesty (doplatok resp. vrátenie časti zálohovej platby)."]
["V prípade zúčtovania dane z pridanej hodnoty (ďalej len \"DPH\") uvádzať túto DPH do predloženého vyúčtovania priamo pod riadok k príslušnému internému číslu účtovného dokladu, na ktoré je DPH viazané. "]
["VZOR:"]
["Názov: Majstrovstvá Európy v ..."]
["Termín: 3.9.2024"]
["Miesto - mesto a štát: Varšava, Poľsko"]
["Spôsob dopravy: letecky/BUS"]
["Počet všetkých osôb na pracovnej ceste: 6, z toho:"]
["športovci (+ navádzači): 1"]
["tréneri, rozhodcovia, maséri, vedúci výpravy, lekár, fyzioterapeut atď.: 2"]
["ostatné osoby: 1"]
[]
["VYSVETLIVKY"]
[]
["Účel úhrady (stĺpec A)"]
["Vybrať z rozbaľovacieho zoznamu, inak formulár nebude správne vyhodnocovať vyúčtovanie."]
["POZOR:"]
["Doklady vkladať v poradí jednotlivých účelov. Uvádzať NÁZOV účelu/podujatia na všetky doklady, ktorých sa to týka."]
[]
["Interné číslo účtovného dokladu (stĺpec B)"]
["Uviesť číslo, pod ktorým je doklad zaevidovaný v účtovnej evidencii Prijímateľa Finančných prostriedkov v jeho peňažnom denníku alebo v knihe prijatých faktúr, pod ktorým je možné identifikovať doklad. Čísla dokladov je potrebné uvádzať presne, aj s pomlčkou, alebo iným znakom."]
[]
["Číslo externého (originálneho) účtovného dokladu (stĺpec C)"]
["Uviesť číslo účtovného dokladu, ktoré je na ňom uvedené: napr. číslo faktúry, variabilný symbol faktúry, číslo pracovnej zmluvy (napr. v prípade pracovného pomeru alebo dohody), číslo konkrétnej zmluvy (pri iných typoch zmlúv), číslo výdavkového pokladničného dokladu (napr. v prípade pracovnej cesty), prípadne číslo iného dokladu. V prípade refundácií uviesť čísla pôvodných dokladov. Čísla dokladov uvádzať presne (aj s pomlčkou, alebo iným znakom)."]
[]
["Dátum skutočnej úhrady účtovného dokladu (stĺpec D)"]
["Uviesť dátum pôvodnej úhrady dokladu, a to dátum uvedený na výpise z účtu alebo dátum uvedený na pokladničnom doklade."]
["POZOR:"]
["neuvádzať dátum zadania príkazu na úhradu,"]
["neuvádzať dátum splatnosti/vystavenia/zdaniteľného plnenia faktúry,"]
["dátum skutočnej úhrady musí súhlasiť s oprávneným obdobím použitia finančných prostriedkov uvedeným v zmluve."]
[]
["Dátum refundácie účtovného dokladu (stĺpec E) - (vyplniť len v prípade refundácie)"]
["Refundácia je vždy prevod sumy zo samostatného účtu Prijímateľa, a to:"]
["1. za úhradu výdavkov priameho realizátora, výdavkov klubu alebo výdavkov športovca, ak títo daný výdavok už vopred uhradili zo svojho účtu, "]
["2. na iný účet Prijímateľa, z ktorého príslušný výdavok pôvodne uhradil."]
[null," "]
["Popis úhrady (stĺpec F)"]
["Uviesť výstižný popis toho, za čo bola úhrada vykonaná (napr. počet kusov, osôb, dní, názov podujatia, a pod.), to znamená vybrať jednu z ponúkaných možností a vypísať údaje podľa vzoru, alebo zadať vlastný text s presnou špecifikáciou. Nepostačuje  len uviesť napr. \"príspevok klubu\" t. j. bez bližšej špecifikácie vynaloženého výdavku. Takýto popis nie je prípustný a v prípade výkonu finančnej kontroly nebude možné posúdiť oprávnenosť vynaloženého výdavku. "]
["UPOZORNENIE: pod pracovnou cestou sa rozumie účasť na akomkoľvek podujatí, zasadnutí výkonného výboru, valného zhromaždenia, sústredení, výcvikovom tábore, zasadnutí komisie, konferencii, súťaži, svetovom pohári, európskom pohári, príp. inej akcii."]
[null,null,null," "]
["POZOR: \n\nVRATKY (vrátené nevyčerpané Finančné prostriedky) neuvádzať ani kladným ani záporným číslom. Nevyčerpané Finančné prostriedky sa automaticky zobrazia v hárku \"Spolu\", je potrebné vrátiť ich na príslušný účet MŠVVaŠ SR  (uvedený v hárku \"Avízo - vratka\") a zároveň poslať vyplnené tlačivo \"Avízo - vratka\". V prípade, ak nevraciate finančné prostriedky, netreba vypĺňať ani zasielať  formulár \"Avízo - vratka\" (ani v tlačenej ani v elektronickej forme). Rovnako treba postupovať aj v prípade nulových výnosov (netreba zasielať ani v tlačenej ani v elektronickej forme). "]
["Dodatočne poskytnuté zľavy z pôvodnej ceny tovarov, služieb, storná za platby, dobropisy,...uvádzajte záporným číslom s označením \"STORNO\", \"ZĽAVA\", \"DOBROPIS\" atď."]
["V prípade nákupu PHM do služobného vozidla prijímateľa finančných prostriedkov je potrebné vybrať zo zoznamu položku \"Služobné motorové vozidlo\" a vypísať konkrétne údaje podľa vzoru.\nV prípade pracovnej cesty (majstrovstvá sveta, sústredenie, kongres, zasadnutie komisie a pod.) je potrebné vybrať zo zoznamu položku \"Pracovná cesta\" a vypísať konkrétne údaje podľa vzoru.\nV prípade vyplácania miezd a dohôd je potrebné vybrať zo zoznamu položku \"hrubá mzda vyplatená pracovníkovi\". Pri hrubých mzdách uvádzať dátum úhrady 31.12.2024.\nV prípade miezd vyplácaných pracovníkom na podujatí je potrebné vybrať zo zoznamu položku \"Podujatie\" a vypísať konkrétne údaje podľa vzoru.\nV prípade refundácie (napr.výdavkov  klubu) treba uzatvoriť zmluvu o refundácii (s daným klubom) a rozpísať použitie na konkrétne položky.\nV prípade vyúčtovania nákladov za používanie mobilu je potrebné uviesť, či ide o opravu alebo zakúpenie prístroja, hovory (obdobie, napr. 6/2024), dáta a pod."]
[]
["IČO dodávateľa plnenia (stĺpec G)"]
["Uviesť IČO dodávateľa.\nV prípade zahraničného dodávateľa, ktorý nemá IČO, ostáva bunka nevyplnená."]
[]
["Dodávateľ plnenia (stĺpec H)"]
["Dodávateľom plnenia je"]
[]
["a) v prípade pracovnej cesty účastník pracovnej cesty (meno a priezvisko, a NIE napr. \"osoba 1\"),"]
["b) v prípade byúčtovania použitia služobného motorového vozidla prijímateľa Finančných prostriedkov osoba, ktorá zodpovedá za toto vozidlo (meno a priezvisko, NIE napr. \"osoba 1\"),"]
["c) v prípade, ak dodávateľom plnenia je živnostník, obchodné meno živnostníka, to znamená:"]
["VŽDY meno a priezvisko živnostníka (NIE napr. \"osoba 1\") s označením \"živnostník\",  nakoľko ide o obchodné meno a príjem z podnikateľskej činnosti,"]
["d) v prípade, ak boli finančné prostriedky poskytnuté športovcovi alebo trénerovi na základe schváleného príspevku/dotácie ako napr. \"Ocenenie športovcov a trénerov...\", je to príslušný športovec/tréner, a je potrebné uviesť jeho meno a priezvisko (NIE napr. \"osoba 1\"),"]
["e) konečný prijímateľ finančných prostriedkov, dodávateľ podľa faktúry/pokladničného bloku, napríklad: Slovenská pošta, Slovak Telekom, Gumon a.s., Jozef Mak - podnikateľ (ak budete súhlasiť, tak sa číslovanie poposúva)."]
["POZOR:"]
["Dodávateľom plnenia nemôže byť nikdy Prijímateľ Finančných prostriedkov."]
[]
["Skutočne uhradená suma (stĺpec I)"]
["Uviesť skutočne uhradenú sumu z bankového účtu Prijímateľa. Sumu vkladať v eurách s presnosťou na dve desatinné miesta. V prípade, ak Prijímateľ uhradil len časť sumy z faktúry, do vyúčovania uvádza len túto uhradenú sumu.\n\nPríklad:\nCelková suma faktúry: 100 €\nUhradená suma: 80 €\nPrijímateľ uvedie do vyúčtovania 80 €.\n"]
[]
["Analytický kód (stĺpec J)"]
["(vybrať z rozbaľovacieho zoznamu)\nAnalytický kód PRE PRÍSPEVOK UZNANÉMU ŠPORTU:\n1 = šport mládeže do 23 rokov (cez kluby)\n2 = talentovaní športovci\n3 = športová reprezentácia\n4 = správa a prevádzka\n5  = iné (ostatná športová činnosť, vrátane kapitálových transferov z PUŠ)\n\nAnalytický kód PRE OSTATNÉ FINANČNÉ PROSTRIEDKY :\n10 = ostatné účely\n99 = spolufinancovanie (výlučne iba ak bola zmluvne určená povinnosť spolufinancovania) "]
[]
["Upozornenie: Vo formulári na vyúčtovanie príspevku uznanému športu sú zapracované ustanovenia novely zákona o športe, podľa ktorých v roku, v ktorom bola vyhlásená krízová situácia a trvala viac ako 30 dní, sa ustanovenia § 69 ods. 4 zákona o športe nepoužijú a ustanovenia zmluvy o poskytnutí príspevku uznanému športu, ktoré sa týkajú rozdelenia finančných prostriedkov podľa § 69 ods. 4, sa v príslušnom kalendárnom roku  nebudú uplatňovať.  Zaradenie výdavkov do jednotlivých analytických kódov, aj keď má v takom prípade len informatívny charakter, je však potrebné vyplniť. "]

{"sheet":"Príklady","index":1,"n_rows":76,"n_cols":9,"rows_kept":76,"cut":false,"hidden":false,"merged":[[0,0,0,7],[3,1,3,4],[1,7,1,8],[2,7,2,8],[1,0,1,6]]}
["Príklady vyplnenia formulára"]
["Priebežné čerpanie finančných prostriedkov poskytnutých zo štátneho rozpočtu v oblasti športu v roku 2024",null,null,null,null,null,null,{"$f":"+Doklady!I100","v":"V1"}]
[null,null,null,null,null,null,null,{"$f":"+Doklady!I101","v":"2024-01-25"}]
["Prijímateľ dotácie:","Slovenský zväz skúšobný"]
[]
[]
["Účel úhrady\n(vyberte zo zoznamu, inak automatické vyhodnocovanie nebude fungovať)","Interné číslo účtovného dokladu","Číslo externého (originálneho)\núčtovného dokladu","Dátum skutočnej úhrady účtovného dokladu","Popis úhrady\n(vyberte z rozbaľovacieho zoznamu, alebo zadajte voľný text)","IČO \ndodávateľa\nplnenia","Dodávateľ plnenia","Skutočne uhradená suma\n(eur)","AK"]
["a - kriket - bežné výdavky",null,null,"2024-05-02","Organizovanie podujatia\nNázov podujatia: Svetový pohár v skúškach\nMiesto konania: Brezno\nTermín: 15. - 18.4.2024\nPočet zúčastnených osôb (okrem divákov): 20\n"]
["a - kriket - bežné výdavky","123/2024","CP14-110","2024-05-03","počet odpracovaných hodín spolu: 100\nhrubé mzdy vyplatené osobám v súvislosti s podujatím vrátane odvodov zamestnávateľa spolu (dohody, zmluvy, faktúry, a pod.) v eur",null,"osoba 1 - osoba 20",400,3]
["a - kriket - bežné výdavky","124/2024","DF 24","2024-05-04","náklady na ubytovanie 10 športovcov + 1 tréner",null,"Chata Breznovčan",null,3]
["a - kriket - bežné výdavky","100/2024","3020","2024-05-05","grafické práce na výrobe loga podujatia",null,"Anna Malá - PROMOTION, s.r.o.",100,3]
["a - kriket - bežné výdavky","121/2024","100002352","2024-05-06","cestovné - vlak - Bratislava - Brezno, 16 osôb ",null,"Ján Rýchly",50,3]
["a - kriket - bežné výdavky","125/2024","DF 26","2024-05-07","stravovanie 20 osôb",null,"Reštaurácia \"U vodníka\", Brezno",200,3]
["a - kriket - bežné výdavky","126/2024","DF 29","2024-05-08","prenájom plavárne",null,"STARZ, Bratislava",null,3]
["a - kriket - bežné výdavky","128/2024","DF 30","2024-05-09","nákup športového oblečenia - 15 ks",null,"Adidas, Brezno",505,3]
["a - kriket - bežné výdavky",null,null,"2024-05-10","Pracovná cesta\n\nNázov: Majstrovstvá V4 v skúškach\nTermín: 3.9.2024\nMiesto - mesto a štát: Varšava, Poľsko\nSpôsob dopravy: letecky/BUS\nPočet všetkých osôb na pracovnej ceste: 6, z toho:\n- športovci (+ navádzači): 1\n- tréneri + rozhodcovia + vedúci výpravy + lekár + fyzioterapeut + masér + ): 1\n- ostatné osoby (napr. sponzori, hostia): 4"]
["a - kriket - bežné výdavky","270/2024","3252514","2024-05-11","nákup leteniek - 6 ks",null,"Czech Airlines",null,2]
["a - kriket - bežné výdavky","274/2024","D/258/2020","2024-05-12","materiálové zabezpečenie pretekov - nákup 4 pušiek",null,"Puškárstvo - Ernest Bezaj, Malinovo",null,2]
["a - kriket - bežné výdavky","275/2024","DF 32","2024-05-13","občerstvenie - 6 osôb",null,"Messing Catering, s.r.o., Rovinka",1000,2]
["a - kriket - bežné výdavky","280/2024","DF 33","2024-05-14","ubytovanie - 2 osoby",null,"Jozef Karát - privát, Šaľa",300,2]
["a - kriket - bežné výdavky","190/2024","DF50","2024-05-15","prenájom miestnosti",null,"Double Tree Hotel, Bratislava",600,2]
["a - kriket - bežné výdavky","250/2024","999","2024-05-16","cestovné - Cerová - Trnava a späť, 3.9.2024, 2 osoby",null,"Železničná spoločnosť, a.s., Slovensko",25.9,2]
["a - kriket - bežné výdavky","251/2024","258963","2024-05-17","vecné ceny - poháre 3 ks",null,"Victory sport, s.r.o.",null,2]
["a - kriket - bežné výdavky",null,null,"2024-05-18","Ostatné"]
["a - kriket - bežné výdavky","P1/V/316","P1/V/316","2024-05-19","Hrubé mzdy vyplatené osobám (zamestnancom) vrátane odvodov zamestnávateľa za rok 2024\npočet fyzických osôb: 5",null,"osoba 1, osoba 4 - 7",null,4]
["a - kriket - bežné výdavky","J/2024-20","258","2024-05-20","doplnky výživy - 21 športovcov",null,"Lekáreň Kozia, Bratislava",124,2]
["a - kriket - bežné výdavky","DF2024/326",1213275,"2024-05-21","oprava športtesteru",null,"TOP TREND Patrik Valo",19.100000000000001,2]
["a - kriket - bežné výdavky","DF2024/193",2007006035,"2024-05-22","havarijné poistenie 1-3/2021, EČV BA 258 KK",null,"Uniqa poisťovňa, a.s.",277.74,4]
["a - kriket - bežné výdavky","2024-12-01","258","2024-05-23","diaľničná nálepka na rok 2024",null,"OMV, s.r.o.",50,4]
["a - kriket - bežné výdavky","199/2024","32","2024-05-24","poštovné",null,"Slovenská pošta, a.s.",9,4]
["a - kriket - bežné výdavky","2024-05-01","3","2024-05-25","nájom kancelárskych priestorov 2/2024",null,"Slovenské združenie telesnej kultúry",10,4]
["a - kriket - bežné výdavky","P1/V/259","20123698752","2024-05-26","regenerácia, 8 športovcov, 8/2024",null,"SPORTMEDICAL s.r.o., Bratislava",500,1]
["a - kriket - bežné výdavky","235/2024","40010","2024-05-27","nákup materiálu - reprezentačná vlajka 1 ks",null,"ADAT, s.r.o.",71.2,3]
["a - kriket - bežné výdavky","206/2024","DF100/9/2020","2024-05-28","refundácia nákladov na základe zmluvy pre CTM Žilina: Okresné kolo v skúškach, 7.8.2024, Žilina, 43 osôb, z toho: 37 športovcov, 1 tréner, 1 strážna služba,  1 masér, 3 technickí pracovníci, úhrada nákladov za stravovanie ",null,"Prestige catering, s.r.o.",250,1]
["a - kriket - bežné výdavky","207/2024","DF500","2024-05-29","prenájom plavárne, 4 dráhy, 8 hodín",null,"Mesto Žilina",320,5]
["a - kriket - bežné výdavky","305/2024","14","2024-05-30","upratovacie služby 5/2024",null,"Boris Dubaj - živnostník",40,4]
["a - kriket - bežné výdavky","2024-01-01","V-2020-3","2024-05-31","bankové poplatky",null,"SLSP, a.s.",25,4]
["a - kriket - bežné výdavky","2024-03-01","980","2024-06-01","poplatok medzinárodnej federácii za rok 2024",null,"Internationale Asociation .....",150,4]
["a - kriket - bežné výdavky","2024-04-01","5","2024-06-02","členský poplatok za rok 2024",null,"Konfederácia športových zväzov",100,4]
["a - kriket - bežné výdavky","301/2024","78954787","2024-06-03","prenájom optického kábla 3/2024",null,"e-Net, s.r.o.",74.099999999999994,4]
["a - kriket - bežné výdavky","330/2024","FD52","2024-06-04","poplatky za telefón, 7/2024",null,"Slovak telekom, a.s.",120,2]
["a - kriket - bežné výdavky","V1-12","V1-12","2024-06-05","PHM - služobné motorové vozidlo\nEČV: BA 111 SA\nObdobie: 14.4. - 18.4.2024\nNajazdené kilometre: 800 km",null,"Slovnaft, a.s. Bratislava",80,3]
["a - kriket - bežné výdavky","25","358","2024-06-06","trénerské služby 10/2024",null,"Ondrej Pado - živnostník",600,1]
["a - kriket - bežné výdavky","3","26985235","2024-06-07","oprava služobného motorového vozidla, BA 222 AA",null,"Prvý autoservis, Bratislava",10,3]
["a - kriket - bežné výdavky","P1/V/309","PP46130119","2024-06-08","lekárske vyšetrenie - 10 športovcov",null,"Alpha medical a.s.",19,2]
["a - kriket - bežné výdavky","300/2024","256","2024-06-09","laboratórne vyšetrenie",null,"Nemocnica s poliklinikou, Prešov",230,2]
["a - kriket - bežné výdavky","V/2024/3","DF2020/143","2024-06-10","lyžiarsky servis - február 2024",null,"Dušan Otčenáš - Martek Sport",175,2]
["a - kriket - bežné výdavky","ID258",369963,"2024-06-11","športová výstroj - tenisové rakety - 7 ks",null,"Sportissimo, Bratislava",null,1]
["b - Sergej Bubka",null,null,"2024-06-12","Pracovná cesta\nNázov: Výcvikový tábor\nTermín: 1.12.-20.12.2024\nMiesto - mesto a štát: Moskva, Ruská federácia\nSpôsob dopravy: LET\nPočet všetkých osôb na pracovnej ceste: 2, z toho - športovci: 1\n- tréner: 1",null,null,null,10]
["b - Sergej Bubka","DF2024/309",20200136,"2024-06-13","trénerské služby - 1.12-20.12.2024",null,"Peter Konrád ",360,10]
["b - Sergej Bubka","R/2024/11","20123698752","2024-06-14","regenerácia",null,"SPORTMEDICAL s.r.o., Bratislava",500,10]
["b - Sergej Bubka","2024-08-01","369","2024-06-15","prenájom tenisového kurtu 1.2.2024",null,"Národné tenisové centrum, a.s.",20,10]
["b - Sergej Bubka","40/2024","25412","2024-06-16","doplnky výživy",null,"Sunpharma, s.r.o.",25,10]
["a - kriket - mikrobus","2024-09-01","4/2020/DU","2024-06-17","nákup mikrobusu, EVČ BA 111 SS (faktúra doložená v prílohe vyúčtovania)",null,"AUDI centrum, s.r.o.",20000,5]
["a - kriket - hala","89/2024","36/14","2024-06-18","rekonštrukcia športovej haly v Čadci - opláštenie tribúny, výmena sedadiel, rekonštrukcia šatní a sociálnych zariadení (faktúra doložená v prílohe vyúčtovania)",null,"Rekostav, s.r.o., Čadca",30000,5]
["(1) - výber a príprava športových talentov",null,null,"2024-06-19","Pracovná cesta                                                          Názov: Sústredenie dievčat                                             Termín: 03.-07.06.2024                                                    Miesto - mesto a štát: Košice                         Spôsob dopravy: vlak                                                        Počet všetkých osôb na pracovnej ceste: 48, z toho:\n- športovci (+ navádzači): 44\n- tréneri + rozhodcovia + vedúci výpravy + lekár + fyzioterapeut + masér + ): 3\n- ostatné osoby (napr. sponzori, hostia): 1",null," "]
["a - kriket - bežné výdavky","ID082","555","2024-06-20","doprava, BUS, 2.7.2024, 7.6.2021, 39 osôb",null,"Autodoprava Charvát, Veľké Bielice",123,2]
["a - kriket - bežné výdavky","ID100","444","2024-06-21","cestovné, VLAK, Banská Bystrica - Košice, 3.7.2024, 8 osôb",null,"Ján Rýchly, prezident zväzu",1600,2]
["a - kriket - bežné výdavky",null,null,"2024-06-22","Ostatné",null,null,null,2]
["a - kriket - bežné výdavky","FA213090","1300072","2024-06-23","potlač 4 ks športových dresov ",null,"RES Promotion, s.r.o., Košice 1",21.36,2]
["a - kriket - bežné výdavky","310/2024","DF2555","2024-06-24","regenerácia 16.5.2024, 1 športovec",null,"Fyziopraktik, s.r.o.",20,2]
["a - kriket - bežné výdavky","32/2024","PZ5","2024-06-25","trénerská činnosť 12/2024",null,"Henrich Madaj - živnostník",200,2]
["a - kriket - bežné výdavky","25/2024","254","2024-06-26","Materiálové vybavenie športovcov CTM Žilina, náhradné súčiastky na bicykel",null,"Bottico, s.r.o. Otrokovice",201.5,2]
["a - kriket - bežné výdavky","288/2024","141","2024-06-27","regenerácia športovcov CTM Bobot, 30 hodín",null,"Slovenské liečebné kúpele Rajecké Teplice, a.s.",1010,2]
["a - kriket - bežné výdavky","ID221","25","2024-06-28","refundácia nákladov na základe zmluvy za centrum talentovanej mládeže Bošáca: sústredenie mladších žiačok, 30.6.-7.7.2024, Bardejov, ubytovanie, 12 osôb ",null,"Ubytovňa Nádej, Bardejov",1330,2]
["d - finančné odmeny športovcom a trénerom - Eleonóra Sihoťová","2024-12-01","760998","2024-06-29","odmena športovcom za výsledky dosiahnuté v roku 2024",null,"Peter Novák",1000,10]
["d - finančné odmeny športovcom a trénerom -  Miroslav Hurban ","13/2024","760852","2024-06-30","odmena trénerovi mládeže ",null,"Miroslav Hurban",200,10]
["d- Národná súťaž v skúškach",null,null,"2024-07-01","Organizovanie podujatia                                                          Názov: Národná súťaž v skúškach                                             Termín: 15.06.2024                                                    Miesto - mesto a štát: Pezinok                                                              Počet zúčastnených osôb (okrem divákov): 547         ",null,null,null,10]
["d- Národná súťaž v skúškach","66/2024","25","2024-07-02","tlač diplomov A4 547 ks",null,"Mouton, s.r.o. Žilina",147.35,10]
["d- Národná súťaž v skúškach","361/2024","36","2024-07-03","technické a organizačné zabezpečenie súťaže - úprava pretekárskej dráhy, stavba pódia, organizácia záverečného ceremoniálu, moderovanie ",null,"Dušan Tesár - Select Managering, s.r.o.",2500,10]
["d- Národná súťaž v skúškach","98/2024","14","2024-07-04","nákup športového vybavenia - 20 ks lôpt",null,"Sport, s.r.o. Poprad",1200,10]
["d- Národná súťaž v skúškach","PC2024/36","56/C","2024-07-05","PHM - služobné motorové vozidlo\nEČV: BL 363 AA\nObdobie: 10.6.-15.6.2024\nNajazdené kilometre: 600",null,"OMV, s.r.o., Bratislava",350,10]
["d- Národná súťaž v skúškach",null,null,"2024-07-06","Organizovanie podujatia                                                          Názov: M-SR žiakov ZŠ v skúškach                                             Termín: 15.05.2024                                                    Miesto - mesto a štát: Nitra                                                              Počet zúčastnených osôb (okrem divákov): 220         ",null,null,null,10]
["d- Národná súťaž v skúškach","380/2024","952","2024-07-07","športový materiál - bedmintonové rakety, košíky",null,"Funny sport, s.r.o., Prešov ",null,10]
["d- Národná súťaž v skúškach","390/2024","3852/2020","2024-07-08","zdravotné služby",null,"DZS OPTIMUS, s.r.o.",null,10]
["d- obnova turistických značkovaných trás a údržba turistických informačných miest","400/2024","V582/14","2024-07-09","materiál na obnovu značkovania - okres Poprad - farby, štetce, stĺpiky",null,"Color, s.r.o., Poprad",10,10]

{"sheet":"Príjmy","index":2,"n_rows":61,"n_cols":7,"rows_kept":61,"cut":false,"hidden":false,"merged":[[2,1,2,3],[16,0,16,3],[0,0,0,1]]}
["Aktualizovaná suma prostriedkov poskytnutých ministerstvom k  dátumu",null,"2024-01-31",null,null,null,"2024-01-31"]
[null,null,null,null,null,null,"2024-02-29"]
["Prijímateľ",{"$f":"INDEX(Adr!B:B,Doklady!B102+1)","v":"Slovenský krasokorčuliarsky zväz"},null,null,null,null,"2024-03-31"]
["IČO:",{"$f":"RIGHT(\"0000\"&INDEX(Adr!A:A,Doklady!B102+1),8)","v":"31805540"},null,null,null,null,"2024-04-30"]
["Sídlo:",{"$f":"INDEX(Adr!D:D,Doklady!B102+1)&\", \"&INDEX(Adr!E:E,Doklady!B102+1)","v":"Záhradnícka 752/95, Bratislava"},null,null,null,null,"2024-05-31"]
[null,null,null,null,null,null,"2024-06-30"]
[null,null,null,null,null,null,"2024-07-31"]
[null,null,null,null,null,null,"2024-08-31"]
["PPG","PPG","Poskytnuté prostriedky",null,null,null,"2024-09-30"]
["026 01","Šport pre všetkých, školský a univerzitný šport",{"$f":"+Spolu!C10","v":0},null,null,null,"2024-10-31"]
["026 02","Uznané športy",{"$f":"+Spolu!C11","v":244015},null,null,null,"2024-11-30"]
["026 03","Národné športové projekty",0,null,null,null,"2024-12-31"]
["026 04","Športová infraštruktúra",{"$f":"+Spolu!C13","v":0}]
["026 05","Prierezové činnosti v športe",{"$f":"+Spolu!C14","v":0}]
["SPOLU",null,{"$f":"SUM(C10:C14)","v":244015}]
[]
["Prijímateľ prostriedkov zo štátneho rozpočtu je povinný priebežne zverejňovať informácie o prijatí a spôsobe ich použitia najneskôr do 25. dňa kalendárneho mesiaca nasledujúceho po kalendárnom mesiaci, v ktorom boli prijaté alebo použité ( § 65, ods. 6 zákona č. 440/2015 Z. z. o športe a o zmene a doplnení niektorých zákonov v znení neskorších predpisov)."]
[]
[]
[]
[]
[]
[]
[]
[]
[]
[]
[]
[]
[]
[]
[]
[]
[]
[]
[]
[]
[]
[]
[]
[]
[]
[]
[]
[]
[]
[]
[]
[]
[]
[]
[]
[]
[]
[]
[]
[]
[]
[]
[]
[15]

{"sheet":"Spolu","index":3,"n_rows":141,"n_cols":21,"rows_kept":141,"cut":false,"hidden":false,"merged":[[139,3,139,8],[31,1,31,7],[33,1,33,7],[32,1,32,7],[30,1,30,7],[29,1,29,7],[26,1,26,7],[27,1,27,7],[15,1,15,7],[17,1,17,7],[18,1,18,7],[19,1,19,7],[20,1,20,7],[21,1,21,7],[140,3,140,8],[9,4,9,5],[49,0,49,8],[28,1,28,7],[0,0,0,8],[2,2,2,5],[8,4,8,5],[11,4,11,5],[10,4,10,5],[13,4,13,5],[12,4,12,5],[16,1,16,7],[23,1,23,7],[24,1,24,7],[22,1,22,7],[25,1,25,7]]}
["Priebežné čerpanie a vyúčtovanie finančných prostriedkov poskytnutých zo štátneho rozpočtu v oblasti športu v roku 2024"]
[]
[null,"Prijímateľ dotácie:",{"$f":"INDEX(Adr!B2:B111,Doklady!B102)","v":"Slovenský krasokorčuliarsky zväz"},null,null,null,null,null,{"$f":"Doklady!I100","v":"V1"}]
[null,"IČO:",{"$f":"INDEX(Adr!A2:A154,Doklady!B102)","v":"31805540"},null,null,null,null,null,{"$f":"Doklady!I101","v":"2024-01-25"}]
[null,"Právna forma:",{"$f":"INDEX(Adr!C2:C154,Doklady!B102)","v":"občianske združenie"}]
[null,"Sídlo:",{"$f":"INDEX(Adr!D2:D154,Doklady!B102)&\", \"&INDEX(Adr!E2:E154,Doklady!B102)&\", \"&INDEX(Adr!F2:F154,Doklady!B102)","v":"Záhradnícka 752/95, Bratislava, 821 08"}]
[]
[]
["PPG","Podprogram","Poskytnuté\n(eur)","Vyúčtované\n(eur)","Povinnosť\nvrátiť\n(eur)"]
["026 01","Šport pre všetkých, školský a univerzitný šport",{"$f":"SUMIF(FP!J:J,Doklady!$B$1&A10,FP!D:D)","v":0},{"$f":"C10-E10","v":0},{"$f":"SUMIF(K:K,A10,I:I)","v":0},null,null,null,null,null,null,"AAA"]
["026 02","Uznané športy",{"$f":"SUMIF(FP!J:J,Doklady!$B$1&A11,FP!D:D)","v":244015},{"$f":"+C11-E11","v":31678.950000000012},{"$f":"+I39-I42+I44-I47","v":212336.05},null,null,null,null,null,null,{"$f":"L41","v":"a - krasokorčuľovanie - bežné transfery"}]
["026 03","Národné športové projekty",{"$f":"SUMIF(FP!J:J,Doklady!$B$1&A12,FP!D:D)","v":0},{"$f":"C12-E12","v":0},{"$f":"SUMIF(K:K,A12,I:I)","v":0},null,null,null,null,null,null,{"$f":"L42","v":"a - krasokorčuľovanie - kapitálové transfery"}]
["026 04","Športová infraštruktúra",{"$f":"SUMIF(FP!J:J,Doklady!$B$1&A13,FP!D:D)","v":0},{"$f":"C13-E13","v":0},{"$f":"SUMIF(K:K,A13,I:I)","v":0},null,null,null,null,null,null,{"$f":"L46","v":2}]
["026 05","Prierezové činnosti v športe",{"$f":"SUMIF(FP!J:J,Doklady!$B$1&A14,FP!D:D)","v":0},{"$f":"C14-E14","v":0},{"$f":"SUMIF(K:K,A14,I:I)","v":0},null,null,null,null,null,null,{"$f":"L47","v":"2"}]
[]
["Účel","Názov",null,null,null,null,null,null,"Suma"]
["a","príspevok uznaným športom",null,null,null,null,null,null,{"$f":"SUMIF(FP!I:I,Doklady!$B$1&A17,FP!D:D)","v":244015}]
["b","príspevok Slovenskému olympijskému a športovému výboru",null,null,null,null,null,null,{"$f":"SUMIF(FP!I:I,Doklady!$B$1&A18,FP!D:D)","v":0}]
["c","príspevok Slovenskému paralympijskému výboru",null,null,null,null,null,null,{"$f":"SUMIF(FP!I:I,Doklady!$B$1&A19,FP!D:D)","v":0}]
["d","príspevok športovcom top tímu",null,null,null,null,null,null,{"$f":"SUMIF(FP!I:I,Doklady!$B$1&A20,FP!D:D)","v":0}]
["e","organizácia významnej súťaže alebo účasť na významnej súťaži podľa § 3 písm. h) vrátane prípravy na túto súťaž",null,null,null,null,null,null,{"$f":"SUMIF(FP!I:I,Doklady!$B$1&A21,FP!D:D)","v":0}]
["f","plnenie úloh verejného záujmu v športe",null,null,null,null,null,null,{"$f":"SUMIF(FP!I:I,Doklady!$B$1&A22,FP!D:D)","v":0}]
["g","rozvoj športov, ktoré nie sú uznanými podľa zákona č. 440/2015 Z. z.",null,null,null,null,null,null,{"$f":"SUMIF(FP!I:I,Doklady!$B$1&A23,FP!D:D)","v":0}]
["h","podpora a rozvoj turistických a cykloturistických trás",null,null,null,null,null,null,{"$f":"SUMIF(FP!I:I,Doklady!$B$1&A24,FP!D:D)","v":0}]
["i","finančné odmeny športovcom a trénerom mládeže za dosiahnuté výsledky",null,null,null,null,null,null,{"$f":"SUMIF(FP!I:I,Doklady!$B$1&A25,FP!D:D)","v":0}]
["j","projekty školského športu, univerzitného športu a športu pre všetkých",null,null,null,null,null,null,{"$f":"SUMIF(FP!I:I,Doklady!$B$1&A26,FP!D:D)","v":0}]
["k","výstavba, modernizácia a rekonštrukcia športovej infraštruktúry národného významu",null,null,null,null,null,null,{"$f":"SUMIF(FP!I:I,Doklady!$B$1&A27,FP!D:D)","v":0}]
["l","podpora zdravotne postihnutých športovcov",null,null,null,null,null,null,{"$f":"SUMIF(FP!I:I,Doklady!$B$1&A28,FP!D:D)","v":0}]
["m",null,null,null,null,null,null,null,{"$f":"SUMIF(FP!I:I,Doklady!$B$1&A29,FP!D:D)","v":0}]
["n",null,null,null,null,null,null,null,{"$f":"SUMIF(FP!I:I,Doklady!$B$1&A30,FP!D:D)","v":0}]
["o",null,null,null,null,null,null,null,{"$f":"SUMIF(FP!I:I,Doklady!$B$1&A31,FP!D:D)","v":0}]
["p",null,null,null,null,null,null,null,{"$f":"SUMIF(FP!I:I,Doklady!$B$1&A32,FP!D:D)","v":0}]
["q",null,null,null,null,null,null,null,{"$f":"SUMIF(FP!I:I,Doklady!$B$1&A33,FP!D:D)","v":0}]
["r",null,null,null,null,null,null,null,{"$f":"SUMIF(FP!I:I,Doklady!$B$1&A34,FP!D:D)","v":0}]
[]
["Použitie príspevku uznanému športu",null,1,2,3,4,5,5]
[]
["Účel",{"$f":"\"Šport \"&K40","v":"Šport krasokorčuľovanie"},"mládež 23\nMIN.15%","talenty\nMIN.20%","reprezentácia\nMIN.25%","prevádzka\nMAX.20%","ostatné úlohy","kapitálové transfery z PUŠ","SPOLU",null,null,{"$f":"COUNTIF(FP!N:N,Doklady!B1&\"aB\")","v":1}]
["a","Poskytnutý príspevok uznanému športu",{"$f":"I39*0","v":0},{"$f":"I39*0","v":0},{"$f":"I39*0","v":0},{"$f":"+I39*0.2","v":48803},{"$f":"+MAX(I39-C39-D39-E39-F39-H39,0)","v":195212},{"$f":"+IFERROR(VLOOKUP(K40&\" - kapitálové transfery\",B$53:C$90,2,0),0)","v":0},{"$f":"SUMIF(FP!K:K,K40,FP!D:D)","v":244015},null,null,{"$f":"COUNTIF(FP!N:N,Doklady!B1&\"aK\")","v":0}]
["a","Vyúčtovaný príspevok uznanému športu",{"$f":"DSUM(Doklady!A103:J10000,\"GGG\",Spolu!L40:M42)","v":0},{"$f":"DSUM(Doklady!A103:J10000,\"GGG\",Spolu!N40:O42)","v":11110},{"$f":"DSUM(Doklady!A103:J10000,\"GGG\",Spolu!P40:Q42)","v":14547.57},{"$f":"DSUM(Doklady!A103:J10000,\"GGG\",Spolu!R40:S42)","v":6021.3799999999992},{"$f":"DSUM(Doklady!A103:J10000,\"GGG\",Spolu!T40:U42)-H40","v":0},{"$f":"+IFERROR(VLOOKUP(K40&\" - kapitálové transfery\",B$53:D$90,3,0),0)","v":0},{"$f":"+C40+D40+E40+F40+G40+H40","v":31678.949999999997},{"$f":"+K45","v":"."},{"$f":"IF(L38>0,INDEX(FP!K:K,Doklady!B2),\".\")","v":"krasokorčuľovanie"},"AAA","HHH","AAA","HHH","AAA","HHH","AAA","HHH","AAA","HHH"]
["a","ROZDIEL",{"$f":"MAX(C39-C40,0)","v":0},{"$f":"MAX(D39-D40,0)","v":0},{"$f":"MAX(E39-E40,0)","v":0},{"$f":"MIN(I39,MAX(-F39+F40,0))","v":0},{"$f":"MIN(J39,MAX(-G39+G40+MIN(F40-F39,0),0))","v":0},{"$f":"MAX(H39-H40,0)","v":0},{"$f":"+I39-I42","v":212336.05},{"$f":"+K46","v":0},{"$f":"+I41-H41","v":212336.05},{"$f":"IF(L38>0,\"a - \"&INDEX(FP!C:C,Doklady!B2),2)","v":"a - krasokorčuľovanie - bežné transfery"},1,{"$f":"+L41","v":"a - krasokorčuľovanie - bežné transfery"},2,{"$f":"+L41","v":"a - krasokorčuľovanie - bežné transfery"},3,{"$f":"+L41","v":"a - krasokorčuľovanie - bežné transfery"},4,{"$f":"+L41","v":"a - krasokorčuľovanie - bežné transfery"},5]
["a","Uznaná suma vyúčtovaných FP",{"$f":"+C40","v":0},{"$f":"+D40","v":11110},{"$f":"+E40","v":14547.57},{"$f":"+MIN(F39:F40)","v":6021.3799999999992},{"$f":"+MIN(G39+MAX(F39-F40,0)-MAX(E40-E39,0)-MAX(D40-D39,0)-MAX(C40-C39,0),G40)","v":0},{"$f":"+MIN(H39:H40)","v":0},{"$f":"+C42+D42+E42+MIN(F39:F40)+G42+H42","v":31678.949999999997},{"$f":"+K47","v":0},{"$f":"+I42-H42","v":31678.949999999997},{"$f":"+SUBSTITUTE(L41,\"bežné\",\"kapitálové\")","v":"a - krasokorčuľovanie - kapitálové transfery"},1,{"$f":"+L42","v":"a - krasokorčuľovanie - kapitálové transfery"},2,{"$f":"+L42","v":"a - krasokorčuľovanie - kapitálové transfery"},3,{"$f":"+L42","v":"a - krasokorčuľovanie - kapitálové transfery"},4,{"$f":"+L42","v":"a - krasokorčuľovanie - kapitálové transfery"},5]
["Účel",{"$f":"IF(L38>2,\"Šport \"&INDEX(FP!K:K,Doklady!B2+2),\"Šport \"&K45)","v":"Šport ."},"mládež 23\nMIN.15%","talenty\nMIN.20%","reprezentácia\nMIN.25%","prevádzka\nMAX.20%","ostatné úlohy","kapitálové transfery z PUŠ","SPOLU",null,null,{"$f":"L38-1","v":0}]
["a","Poskytnutý príspevok uznanému športu",{"$f":"I44*0","v":0},{"$f":"I44*0","v":0},{"$f":"I44*0","v":0},{"$f":"+I44*0.2","v":0},{"$f":"+MAX(I44-C44-D44-E44-F44-H44,0)","v":0},{"$f":"+IFERROR(VLOOKUP(K45&\" - kapitálové transfery\",B$53:C$90,2,0),0)","v":0},{"$f":"SUMIF(FP!K:K,K45,FP!D:D)","v":0}]
["a","Vyúčtovaný príspevok uznanému športu",{"$f":"DSUM(Doklady!A103:J10000,\"GGG\",Spolu!L45:M47)","v":0},{"$f":"DSUM(Doklady!A103:J10000,\"GGG\",Spolu!N45:O47)","v":0},{"$f":"DSUM(Doklady!A103:J10000,\"GGG\",Spolu!P45:Q47)","v":0},{"$f":"DSUM(Doklady!A103:J10000,\"GGG\",Spolu!R45:S47)","v":0},{"$f":"DSUM(Doklady!A103:J10000,\"GGG\",Spolu!T45:U47)-H45","v":0},{"$f":"+IFERROR(VLOOKUP(K45&\" - kapitálové transfery\",B$53:D$90,3,0),0)","v":0},{"$f":"+C45+D45+E45+F45+G45+H45","v":0},null,{"$f":"IF(L38>1,INDEX(FP!K:K,Doklady!B2+1),\".\")","v":"."},"AAA","HHH","AAA","HHH","AAA","HHH","AAA","HHH","AAA","HHH"]
["a","ROZDIEL",{"$f":"MAX(C44-C45,0)","v":0},{"$f":"MAX(D44-D45,0)","v":0},{"$f":"MAX(E44-E45,0)","v":0},{"$f":"MIN(I44,MAX(-F44+F45,0))","v":0},{"$f":"MIN(J44,MAX(-G44+G45+MIN(F45-F44,0),0))","v":0},{"$f":"MAX(H44-H45,0)","v":0},{"$f":"+I44-I47","v":0},null,{"$f":"+I46-H46","v":0},{"$f":"IF(L43>0,\"a - \"&INDEX(FP!C:C,Doklady!B2+1),2)","v":2},1,{"$f":"+L46","v":2},2,{"$f":"+L46","v":2},3,{"$f":"+L46","v":2},4,{"$f":"+L46","v":2},5]
["a","Uznaná suma vyúčtovaných FP",{"$f":"+C45","v":0},{"$f":"+D45","v":0},{"$f":"+E45","v":0},{"$f":"+MIN(F44:F45)","v":0},{"$f":"+MIN(G44+MAX(F44-F45,0)-MAX(E45-E44,0)-MAX(D45-D44,0)-MAX(C45-C44,0),G45)","v":0},{"$f":"+MIN(H44:H45)","v":0},{"$f":"+C47+D47+E47+MIN(F44:F45)+G47+H47","v":0},null,{"$f":"+I47-H47","v":0},{"$f":"+SUBSTITUTE(L46,\"bežné\",\"kapitálové\")","v":"2"},1,{"$f":"+L47","v":"2"},2,{"$f":"+L47","v":"2"},3,{"$f":"+L47","v":"2"},4,{"$f":"+L47","v":"2"},5]
[]
[]
[]
[]
["Účel","Účel poskytnutých finančných prostriedkov","Poskytnuté\nFP","Vyúčtované\nFP","Povinné\nSF","Vyúčtované\nSF","Uznaná suma vyúčtov. FP",null,"Povinnosť\nvrátiť",null,"PPG","BK","PPGBK"]
[{"$f":"Doklady!D1","v":"a"},{"$f":"Doklady!H1","v":"krasokorčuľovanie - bežné transfery"},{"$f":"IF(A53<>\"\",INDEX(FP!D:D,Doklady!B$2+(ROW()-53)),\"\")","v":244015},{"$f":"IF(A53<>\"\",Doklady!I1-Doklady!J1,\"\")","v":31678.950000000008},{"$f":"IF(A53<>\"\",MIN(D53,C53)*Doklady!C1/(1-Doklady!C1),\"\")","v":0},{"$f":"IF(A53<>\"\",Doklady!J1,\"\")","v":0},{"$f":"+IFERROR(HLOOKUP(IF(RIGHT(B53,15)=\"bežné transfery\",LEFT(B53,LEN(B53)-18),0),$J$40:$K$42,3,0),MIN(C53,D53))","v":31678.949999999997},null,{"$f":"IF(A53<>\"\",MAX(IF(G53<C53,C53-G53,0)+IF(F53<E53,E53-F53,0),0),0)","v":212336.05},{"$f":"IF(D53>C53,\"Vyúčtované prostriedky nemôžu byť väčšie ako poskytnuté. Opravte v hárku \"\"Doklady\"\"\",\"\")","v":""},{"$f":"Doklady!F1","v":"026 02"},{"$f":"IF(A53<>\"\",INDEX(FP!H:H,Doklady!B$2+(ROW()-52)),\"\")","v":"B"},{"$f":"K53&L53","v":"026 02B"}]
[{"$f":"Doklady!D2","v":""},{"$f":"Doklady!H2","v":""},{"$f":"IF(A54<>\"\",INDEX(FP!D:D,Doklady!B$2+(ROW()-53)),\"\")","v":""},{"$f":"IF(A54<>\"\",Doklady!I2-Doklady!J2,\"\")","v":""},{"$f":"IF(A54<>\"\",MIN(D54,C54)*Doklady!C2/(1-Doklady!C2),\"\")","v":""},{"$f":"IF(A54<>\"\",Doklady!J2,\"\")","v":""},{"$f":"+IFERROR(HLOOKUP(IF(RIGHT(B54,15)=\"bežné transfery\",LEFT(B54,LEN(B54)-18),0),$J$40:$K$42,3,0),MIN(C54,D54))","v":0},null,{"$f":"IF(A54<>\"\",MAX(IF(G54<C54,C54-G54,0)+IF(F54<E54,E54-F54,0),0),0)","v":0},{"$f":"IF(D54>C54,\"Vyúčtované prostriedky nemôžu byť väčšie ako poskytnuté. Opravte v hárku \"\"Doklady\"\"\",\"\")","v":""},{"$f":"Doklady!F2","v":""},{"$f":"IF(A54<>\"\",INDEX(FP!H:H,Doklady!B$2+(ROW()-52)),\"\")","v":""},{"$f":"K54&L54","v":""}]
[{"$f":"Doklady!D3","v":""},{"$f":"Doklady!H3","v":""},{"$f":"IF(A55<>\"\",INDEX(FP!D:D,Doklady!B$2+(ROW()-53)),\"\")","v":""},{"$f":"IF(A55<>\"\",Doklady!I3-Doklady!J3,\"\")","v":""},{"$f":"IF(A55<>\"\",MIN(D55,C55)*Doklady!C3/(1-Doklady!C3),\"\")","v":""},{"$f":"IF(A55<>\"\",Doklady!J3,\"\")","v":""},0,null,0,"",{"$f":"Doklady!F3","v":""},{"$f":"IF(A55<>\"\",INDEX(FP!H:H,Doklady!B$2+(ROW()-52)),\"\")","v":""},""]
[{"$f":"Doklady!D4","v":""},{"$f":"Doklady!H4","v":""},{"$f":"IF(A56<>\"\",INDEX(FP!D:D,Doklady!B$2+(ROW()-53)),\"\")","v":""},{"$f":"IF(A56<>\"\",Doklady!I4-Doklady!J4,\"\")","v":""},{"$f":"IF(A56<>\"\",MIN(D56,C56)*Doklady!C4/(1-Doklady!C4),\"\")","v":""},{"$f":"IF(A56<>\"\",Doklady!J4,\"\")","v":""},0,null,0,"",{"$f":"Doklady!F4","v":""},{"$f":"IF(A56<>\"\",INDEX(FP!H:H,Doklady!B$2+(ROW()-52)),\"\")","v":""},""]
[{"$f":"Doklady!D5","v":""},{"$f":"Doklady!H5","v":""},{"$f":"IF(A57<>\"\",INDEX(FP!D:D,Doklady!B$2+(ROW()-53)),\"\")","v":""},{"$f":"IF(A57<>\"\",Doklady!I5-Doklady!J5,\"\")","v":""},{"$f":"IF(A57<>\"\",MIN(D57,C57)*Doklady!C5/(1-Doklady!C5),\"\")","v":""},{"$f":"IF(A57<>\"\",Doklady!J5,\"\")","v":""},0,null,0,"",{"$f":"Doklady!F5","v":""},{"$f":"IF(A57<>\"\",INDEX(FP!H:H,Doklady!B$2+(ROW()-52)),\"\")","v":""},""]
[{"$f":"Doklady!D6","v":""},{"$f":"Doklady!H6","v":""},{"$f":"IF(A58<>\"\",INDEX(FP!D:D,Doklady!B$2+(ROW()-53)),\"\")","v":""},{"$f":"IF(A58<>\"\",Doklady!I6-Doklady!J6,\"\")","v":""},{"$f":"IF(A58<>\"\",MIN(D58,C58)*Doklady!C6/(1-Doklady!C6),\"\")","v":""},{"$f":"IF(A58<>\"\",Doklady!J6,\"\")","v":""},0,null,0,"",{"$f":"Doklady!F6","v":""},{"$f":"IF(A58<>\"\",INDEX(FP!H:H,Doklady!B$2+(ROW()-52)),\"\")","v":""},""]
[{"$f":"Doklady!D7","v":""},{"$f":"Doklady!H7","v":""},{"$f":"IF(A59<>\"\",INDEX(FP!D:D,Doklady!B$2+(ROW()-53)),\"\")","v":""},{"$f":"IF(A59<>\"\",Doklady!I7-Doklady!J7,\"\")","v":""},{"$f":"IF(A59<>\"\",MIN(D59,C59)*Doklady!C7/(1-Doklady!C7),\"\")","v":""},{"$f":"IF(A59<>\"\",Doklady!J7,\"\")","v":""},0,null,0,"",{"$f":"Doklady!F7","v":""},{"$f":"IF(A59<>\"\",INDEX(FP!H:H,Doklady!B$2+(ROW()-52)),\"\")","v":""},""]
[{"$f":"Doklady!D8","v":""},{"$f":"Doklady!H8","v":""},{"$f":"IF(A60<>\"\",INDEX(FP!D:D,Doklady!B$2+(ROW()-53)),\"\")","v":""},{"$f":"IF(A60<>\"\",Doklady!I8-Doklady!J8,\"\")","v":""},{"$f":"IF(A60<>\"\",MIN(D60,C60)*Doklady!C8/(1-Doklady!C8),\"\")","v":""},{"$f":"IF(A60<>\"\",Doklady!J8,\"\")","v":""},0,null,0,"",{"$f":"Doklady!F8","v":""},{"$f":"IF(A60<>\"\",INDEX(FP!H:H,Doklady!B$2+(ROW()-52)),\"\")","v":""},""]
[{"$f":"Doklady!D9","v":""},{"$f":"Doklady!H9","v":""},{"$f":"IF(A61<>\"\",INDEX(FP!D:D,Doklady!B$2+(ROW()-53)),\"\")","v":""},{"$f":"IF(A61<>\"\",Doklady!I9-Doklady!J9,\"\")","v":""},{"$f":"IF(A61<>\"\",MIN(D61,C61)*Doklady!C9/(1-Doklady!C9),\"\")","v":""},{"$f":"IF(A61<>\"\",Doklady!J9,\"\")","v":""},0,null,0,"",{"$f":"Doklady!F9","v":""},{"$f":"IF(A61<>\"\",INDEX(FP!H:H,Doklady!B$2+(ROW()-52)),\"\")","v":""},""]
[{"$f":"Doklady!D10","v":""},{"$f":"Doklady!H10","v":""},{"$f":"IF(A62<>\"\",INDEX(FP!D:D,Doklady!B$2+(ROW()-53)),\"\")","v":""},{"$f":"IF(A62<>\"\",Doklady!I10-Doklady!J10,\"\")","v":""},{"$f":"IF(A62<>\"\",MIN(D62,C62)*Doklady!C10/(1-Doklady!C10),\"\")","v":""},{"$f":"IF(A62<>\"\",Doklady!J10,\"\")","v":""},0,null,0,"",{"$f":"Doklady!F10","v":""},{"$f":"IF(A62<>\"\",INDEX(FP!H:H,Doklady!B$2+(ROW()-52)),\"\")","v":""},""]
[{"$f":"Doklady!D11","v":""},{"$f":"Doklady!H11","v":""},{"$f":"IF(A63<>\"\",INDEX(FP!D:D,Doklady!B$2+(ROW()-53)),\"\")","v":""},{"$f":"IF(A63<>\"\",Doklady!I11-Doklady!J11,\"\")","v":""},{"$f":"IF(A63<>\"\",MIN(D63,C63)*Doklady!C11/(1-Doklady!C11),\"\")","v":""},{"$f":"IF(A63<>\"\",Doklady!J11,\"\")","v":""},0,null,0,"",{"$f":"Doklady!F11","v":""},{"$f":"IF(A63<>\"\",INDEX(FP!H:H,Doklady!B$2+(ROW()-52)),\"\")","v":""},""]
[{"$f":"Doklady!D12","v":""},{"$f":"Doklady!H12","v":""},{"$f":"IF(A64<>\"\",INDEX(FP!D:D,Doklady!B$2+(ROW()-53)),\"\")","v":""},{"$f":"IF(A64<>\"\",Doklady!I12-Doklady!J12,\"\")","v":""},{"$f":"IF(A64<>\"\",MIN(D64,C64)*Doklady!C12/(1-Doklady!C12),\"\")","v":""},{"$f":"IF(A64<>\"\",Doklady!J12,\"\")","v":""},0,null,0,";",{"$f":"Doklady!F12","v":""},{"$f":"IF(A64<>\"\",INDEX(FP!H:H,Doklady!B$2+(ROW()-52)),\"\")","v":""},""]
[{"$f":"Doklady!D13","v":""},{"$f":"Doklady!H13","v":""},{"$f":"IF(A65<>\"\",INDEX(FP!D:D,Doklady!B$2+(ROW()-53)),\"\")","v":""},{"$f":"IF(A65<>\"\",Doklady!I13-Doklady!J13,\"\")","v":""},{"$f":"IF(A65<>\"\",MIN(D65,C65)*Doklady!C13/(1-Doklady!C13),\"\")","v":""},{"$f":"IF(A65<>\"\",Doklady!J13,\"\")","v":""},0,null,0,"",{"$f":"Doklady!F13","v":""},{"$f":"IF(A65<>\"\",INDEX(FP!H:H,Doklady!B$2+(ROW()-52)),\"\")","v":""},""]
[{"$f":"Doklady!D14","v":""},{"$f":"Doklady!H14","v":""},{"$f":"IF(A66<>\"\",INDEX(FP!D:D,Doklady!B$2+(ROW()-53)),\"\")","v":""},{"$f":"IF(A66<>\"\",Doklady!I14-Doklady!J14,\"\")","v":""},{"$f":"IF(A66<>\"\",MIN(D66,C66)*Doklady!C14/(1-Doklady!C14),\"\")","v":""},{"$f":"IF(A66<>\"\",Doklady!J14,\"\")","v":""},0,null,0,"",{"$f":"Doklady!F14","v":""},{"$f":"IF(A66<>\"\",INDEX(FP!H:H,Doklady!B$2+(ROW()-52)),\"\")","v":""},""]
[{"$f":"Doklady!D15","v":""},{"$f":"Doklady!H15","v":""},{"$f":"IF(A67<>\"\",INDEX(FP!D:D,Doklady!B$2+(ROW()-53)),\"\")","v":""},{"$f":"IF(A67<>\"\",Doklady!I15-Doklady!J15,\"\")","v":""},{"$f":"IF(A67<>\"\",MIN(D67,C67)*Doklady!C15/(1-Doklady!C15),\"\")","v":""},{"$f":"IF(A67<>\"\",Doklady!J15,\"\")","v":""},0,null,0,"",{"$f":"Doklady!F15","v":""},{"$f":"IF(A67<>\"\",INDEX(FP!H:H,Doklady!B$2+(ROW()-52)),\"\")","v":""},""]
[{"$f":"Doklady!D16","v":""},{"$f":"Doklady!H16","v":""},{"$f":"IF(A68<>\"\",INDEX(FP!D:D,Doklady!B$2+(ROW()-53)),\"\")","v":""},{"$f":"IF(A68<>\"\",Doklady!I16-Doklady!J16,\"\")","v":""},{"$f":"IF(A68<>\"\",MIN(D68,C68)*Doklady!C16/(1-Doklady!C16),\"\")","v":""},{"$f":"IF(A68<>\"\",Doklady!J16,\"\")","v":""},0,null,0,"",{"$f":"Doklady!F16","v":""},{"$f":"IF(A68<>\"\",INDEX(FP!H:H,Doklady!B$2+(ROW()-52)),\"\")","v":""},""]
[{"$f":"Doklady!D17","v":""},{"$f":"Doklady!H17","v":""},{"$f":"IF(A69<>\"\",INDEX(FP!D:D,Doklady!B$2+(ROW()-53)),\"\")","v":""},{"$f":"IF(A69<>\"\",Doklady!I17-Doklady!J17,\"\")","v":""},{"$f":"IF(A69<>\"\",MIN(D69,C69)*Doklady!C17/(1-Doklady!C17),\"\")","v":""},{"$f":"IF(A69<>\"\",Doklady!J17,\"\")","v":""},0,null,0,"",{"$f":"Doklady!F17","v":""},{"$f":"IF(A69<>\"\",INDEX(FP!H:H,Doklady!B$2+(ROW()-52)),\"\")","v":""},""]
[{"$f":"Doklady!D18","v":""},{"$f":"Doklady!H18","v":""},{"$f":"IF(A70<>\"\",INDEX(FP!D:D,Doklady!B$2+(ROW()-53)),\"\")","v":""},{"$f":"IF(A70<>\"\",Doklady!I18-Doklady!J18,\"\")","v":""},{"$f":"IF(A70<>\"\",MIN(D70,C70)*Doklady!C18/(1-Doklady!C18),\"\")","v":""},{"$f":"IF(A70<>\"\",Doklady!J18,\"\")","v":""},0,null,0,"",{"$f":"Doklady!F18","v":""},{"$f":"IF(A70<>\"\",INDEX(FP!H:H,Doklady!B$2+(ROW()-52)),\"\")","v":""},""]
[{"$f":"Doklady!D19","v":""},{"$f":"Doklady!H19","v":""},{"$f":"IF(A71<>\"\",INDEX(FP!D:D,Doklady!B$2+(ROW()-53)),\"\")","v":""},{"$f":"IF(A71<>\"\",Doklady!I19-Doklady!J19,\"\")","v":""},{"$f":"IF(A71<>\"\",MIN(D71,C71)*Doklady!C19/(1-Doklady!C19),\"\")","v":""},{"$f":"IF(A71<>\"\",Doklady!J19,\"\")","v":""},0,null,0,"",{"$f":"Doklady!F19","v":""},{"$f":"IF(A71<>\"\",INDEX(FP!H:H,Doklady!B$2+(ROW()-52)),\"\")","v":""},""]
[{"$f":"Doklady!D20","v":""},{"$f":"Doklady!H20","v":""},{"$f":"IF(A72<>\"\",INDEX(FP!D:D,Doklady!B$2+(ROW()-53)),\"\")","v":""},{"$f":"IF(A72<>\"\",Doklady!I20-Doklady!J20,\"\")","v":""},{"$f":"IF(A72<>\"\",MIN(D72,C72)*Doklady!C20/(1-Doklady!C20),\"\")","v":""},{"$f":"IF(A72<>\"\",Doklady!J20,\"\")","v":""},0,null,0,"",{"$f":"Doklady!F20","v":""},{"$f":"IF(A72<>\"\",INDEX(FP!H:H,Doklady!B$2+(ROW()-52)),\"\")","v":""},""]
[{"$f":"Doklady!D21","v":""},{"$f":"Doklady!H21","v":""},{"$f":"IF(A73<>\"\",INDEX(FP!D:D,Doklady!B$2+(ROW()-53)),\"\")","v":""},{"$f":"IF(A73<>\"\",Doklady!I21-Doklady!J21,\"\")","v":""},{"$f":"IF(A73<>\"\",MIN(D73,C73)*Doklady!C21/(1-Doklady!C21),\"\")","v":""},{"$f":"IF(A73<>\"\",Doklady!J21,\"\")","v":""},0,null,0,"",{"$f":"Doklady!F21","v":""},{"$f":"IF(A73<>\"\",INDEX(FP!H:H,Doklady!B$2+(ROW()-52)),\"\")","v":""},""]
[{"$f":"Doklady!D22","v":""},{"$f":"Doklady!H22","v":""},{"$f":"IF(A74<>\"\",INDEX(FP!D:D,Doklady!B$2+(ROW()-53)),\"\")","v":""},{"$f":"IF(A74<>\"\",Doklady!I22-Doklady!J22,\"\")","v":""},{"$f":"IF(A74<>\"\",MIN(D74,C74)*Doklady!C22/(1-Doklady!C22),\"\")","v":""},{"$f":"IF(A74<>\"\",Doklady!J22,\"\")","v":""},0,null,0,"",{"$f":"Doklady!F22","v":""},{"$f":"IF(A74<>\"\",INDEX(FP!H:H,Doklady!B$2+(ROW()-52)),\"\")","v":""},""]
[{"$f":"Doklady!D23","v":""},{"$f":"Doklady!H23","v":""},{"$f":"IF(A75<>\"\",INDEX(FP!D:D,Doklady!B$2+(ROW()-53)),\"\")","v":""},{"$f":"IF(A75<>\"\",Doklady!I23-Doklady!J23,\"\")","v":""},{"$f":"IF(A75<>\"\",MIN(D75,C75)*Doklady!C23/(1-Doklady!C23),\"\")","v":""},{"$f":"IF(A75<>\"\",Doklady!J23,\"\")","v":""},0,null,0,"",{"$f":"Doklady!F23","v":""},{"$f":"IF(A75<>\"\",INDEX(FP!H:H,Doklady!B$2+(ROW()-52)),\"\")","v":""},""]
[{"$f":"Doklady!D24","v":""},{"$f":"Doklady!H24","v":""},{"$f":"IF(A76<>\"\",INDEX(FP!D:D,Doklady!B$2+(ROW()-53)),\"\")","v":""},{"$f":"IF(A76<>\"\",Doklady!I24-Doklady!J24,\"\")","v":""},{"$f":"IF(A76<>\"\",MIN(D76,C76)*Doklady!C24/(1-Doklady!C24),\"\")","v":""},{"$f":"IF(A76<>\"\",Doklady!J24,\"\")","v":""},0,null,0,"",{"$f":"Doklady!F24","v":""},{"$f":"IF(A76<>\"\",INDEX(FP!H:H,Doklady!B$2+(ROW()-52)),\"\")","v":""},""]
[{"$f":"Doklady!D25","v":""},{"$f":"Doklady!H25","v":""},{"$f":"IF(A77<>\"\",INDEX(FP!D:D,Doklady!B$2+(ROW()-53)),\"\")","v":""},{"$f":"IF(A77<>\"\",Doklady!I25-Doklady!J25,\"\")","v":""},{"$f":"IF(A77<>\"\",MIN(D77,C77)*Doklady!C25/(1-Doklady!C25),\"\")","v":""},{"$f":"IF(A77<>\"\",Doklady!J25,\"\")","v":""},0,null,0,"",{"$f":"Doklady!F25","v":""},{"$f":"IF(A77<>\"\",INDEX(FP!H:H,Doklady!B$2+(ROW()-52)),\"\")","v":""},""]
[{"$f":"Doklady!D26","v":""},{"$f":"Doklady!H26","v":""},{"$f":"IF(A78<>\"\",INDEX(FP!D:D,Doklady!B$2+(ROW()-53)),\"\")","v":""},{"$f":"IF(A78<>\"\",Doklady!I26-Doklady!J26,\"\")","v":""},{"$f":"IF(A78<>\"\",MIN(D78,C78)*Doklady!C26/(1-Doklady!C26),\"\")","v":""},{"$f":"IF(A78<>\"\",Doklady!J26,\"\")","v":""},0,null,0,"",{"$f":"Doklady!F26","v":""},{"$f":"IF(A78<>\"\",INDEX(FP!H:H,Doklady!B$2+(ROW()-52)),\"\")","v":""},""]
[{"$f":"Doklady!D27","v":""},{"$f":"Doklady!H27","v":""},{"$f":"IF(A79<>\"\",INDEX(FP!D:D,Doklady!B$2+(ROW()-53)),\"\")","v":""},{"$f":"IF(A79<>\"\",Doklady!I27-Doklady!J27,\"\")","v":""},{"$f":"IF(A79<>\"\",MIN(D79,C79)*Doklady!C27/(1-Doklady!C27),\"\")","v":""},{"$f":"IF(A79<>\"\",Doklady!J27,\"\")","v":""},0,null,0,"",{"$f":"Doklady!F27","v":""},{"$f":"IF(A79<>\"\",INDEX(FP!H:H,Doklady!B$2+(ROW()-52)),\"\")","v":""},""]
[{"$f":"Doklady!D28","v":""},{"$f":"Doklady!H28","v":""},{"$f":"IF(A80<>\"\",INDEX(FP!D:D,Doklady!B$2+(ROW()-53)),\"\")","v":""},{"$f":"IF(A80<>\"\",Doklady!I28-Doklady!J28,\"\")","v":""},{"$f":"IF(A80<>\"\",MIN(D80,C80)*Doklady!C28/(1-Doklady!C28),\"\")","v":""},{"$f":"IF(A80<>\"\",Doklady!J28,\"\")","v":""},0,null,0,"",{"$f":"Doklady!F28","v":""},{"$f":"IF(A80<>\"\",INDEX(FP!H:H,Doklady!B$2+(ROW()-52)),\"\")","v":""},""]
[{"$f":"Doklady!D29","v":""},{"$f":"Doklady!H29","v":""},{"$f":"IF(A81<>\"\",INDEX(FP!D:D,Doklady!B$2+(ROW()-53)),\"\")","v":""},{"$f":"IF(A81<>\"\",Doklady!I29-Doklady!J29,\"\")","v":""},{"$f":"IF(A81<>\"\",MIN(D81,C81)*Doklady!C29/(1-Doklady!C29),\"\")","v":""},{"$f":"IF(A81<>\"\",Doklady!J29,\"\")","v":""},0,null,0,"",{"$f":"Doklady!F29","v":""},{"$f":"IF(A81<>\"\",INDEX(FP!H:H,Doklady!B$2+(ROW()-52)),\"\")","v":""},""]
[{"$f":"Doklady!D30","v":""},{"$f":"Doklady!H30","v":""},{"$f":"IF(A82<>\"\",INDEX(FP!D:D,Doklady!B$2+(ROW()-53)),\"\")","v":""},{"$f":"IF(A82<>\"\",Doklady!I30-Doklady!J30,\"\")","v":""},{"$f":"IF(A82<>\"\",MIN(D82,C82)*Doklady!C30/(1-Doklady!C30),\"\")","v":""},{"$f":"IF(A82<>\"\",Doklady!J30,\"\")","v":""},0,null,0,"",{"$f":"Doklady!F30","v":""},{"$f":"IF(A82<>\"\",INDEX(FP!H:H,Doklady!B$2+(ROW()-52)),\"\")","v":""},""]
[{"$f":"Doklady!D31","v":""},{"$f":"Doklady!H31","v":""},{"$f":"IF(A83<>\"\",INDEX(FP!D:D,Doklady!B$2+(ROW()-53)),\"\")","v":""},{"$f":"IF(A83<>\"\",Doklady!I31-Doklady!J31,\"\")","v":""},{"$f":"IF(A83<>\"\",MIN(D83,C83)*Doklady!C31/(1-Doklady!C31),\"\")","v":""},{"$f":"IF(A83<>\"\",Doklady!J31,\"\")","v":""},0,null,0,"",{"$f":"Doklady!F31","v":""},{"$f":"IF(A83<>\"\",INDEX(FP!H:H,Doklady!B$2+(ROW()-52)),\"\")","v":""},""]
[{"$f":"Doklady!D32","v":""},{"$f":"Doklady!H32","v":""},{"$f":"IF(A84<>\"\",INDEX(FP!D:D,Doklady!B$2+(ROW()-53)),\"\")","v":""},{"$f":"IF(A84<>\"\",Doklady!I32-Doklady!J32,\"\")","v":""},{"$f":"IF(A84<>\"\",MIN(D84,C84)*Doklady!C32/(1-Doklady!C32),\"\")","v":""},{"$f":"IF(A84<>\"\",Doklady!J32,\"\")","v":""},0,null,0,"",{"$f":"Doklady!F32","v":""},{"$f":"IF(A84<>\"\",INDEX(FP!H:H,Doklady!B$2+(ROW()-52)),\"\")","v":""},""]
[{"$f":"Doklady!D33","v":""},{"$f":"Doklady!H33","v":""},{"$f":"IF(A85<>\"\",INDEX(FP!D:D,Doklady!B$2+(ROW()-53)),\"\")","v":""},{"$f":"IF(A85<>\"\",Doklady!I33-Doklady!J33,\"\")","v":""},{"$f":"IF(A85<>\"\",MIN(D85,C85)*Doklady!C33/(1-Doklady!C33),\"\")","v":""},{"$f":"IF(A85<>\"\",Doklady!J33,\"\")","v":""},0,null,0,"",{"$f":"Doklady!F33","v":""},{"$f":"IF(A85<>\"\",INDEX(FP!H:H,Doklady!B$2+(ROW()-52)),\"\")","v":""},""]
[{"$f":"Doklady!D34","v":""},{"$f":"Doklady!H34","v":""},{"$f":"IF(A86<>\"\",INDEX(FP!D:D,Doklady!B$2+(ROW()-53)),\"\")","v":""},{"$f":"IF(A86<>\"\",Doklady!I34-Doklady!J34,\"\")","v":""},{"$f":"IF(A86<>\"\",MIN(D86,C86)*Doklady!C34/(1-Doklady!C34),\"\")","v":""},{"$f":"IF(A86<>\"\",Doklady!J34,\"\")","v":""},0,null,0,"",{"$f":"Doklady!F34","v":""},{"$f":"IF(A86<>\"\",INDEX(FP!H:H,Doklady!B$2+(ROW()-52)),\"\")","v":""},""]
[{"$f":"Doklady!D35","v":""},{"$f":"Doklady!H35","v":""},{"$f":"IF(A87<>\"\",INDEX(FP!D:D,Doklady!B$2+(ROW()-53)),\"\")","v":""},{"$f":"IF(A87<>\"\",Doklady!I35-Doklady!J35,\"\")","v":""},{"$f":"IF(A87<>\"\",MIN(D87,C87)*Doklady!C35/(1-Doklady!C35),\"\")","v":""},{"$f":"IF(A87<>\"\",Doklady!J35,\"\")","v":""},0,null,0,"",{"$f":"Doklady!F35","v":""},{"$f":"IF(A87<>\"\",INDEX(FP!H:H,Doklady!B$2+(ROW()-52)),\"\")","v":""},""]
[{"$f":"Doklady!D36","v":""},{"$f":"Doklady!H36","v":""},{"$f":"IF(A88<>\"\",INDEX(FP!D:D,Doklady!B$2+(ROW()-53)),\"\")","v":""},{"$f":"IF(A88<>\"\",Doklady!I36-Doklady!J36,\"\")","v":""},{"$f":"IF(A88<>\"\",MIN(D88,C88)*Doklady!C36/(1-Doklady!C36),\"\")","v":""},{"$f":"IF(A88<>\"\",Doklady!J36,\"\")","v":""},0,null,0,"",{"$f":"Doklady!F36","v":""},{"$f":"IF(A88<>\"\",INDEX(FP!H:H,Doklady!B$2+(ROW()-52)),\"\")","v":""},""]
[{"$f":"Doklady!D37","v":""},{"$f":"Doklady!H37","v":""},{"$f":"IF(A89<>\"\",INDEX(FP!D:D,Doklady!B$2+(ROW()-53)),\"\")","v":""},{"$f":"IF(A89<>\"\",Doklady!I37-Doklady!J37,\"\")","v":""},{"$f":"IF(A89<>\"\",MIN(D89,C89)*Doklady!C37/(1-Doklady!C37),\"\")","v":""},{"$f":"IF(A89<>\"\",Doklady!J37,\"\")","v":""},0,null,0,"",{"$f":"Doklady!F37","v":""},{"$f":"IF(A89<>\"\",INDEX(FP!H:H,Doklady!B$2+(ROW()-52)),\"\")","v":""},""]
[{"$f":"Doklady!D38","v":""},{"$f":"Doklady!H38","v":""},{"$f":"IF(A90<>\"\",INDEX(FP!D:D,Doklady!B$2+(ROW()-53)),\"\")","v":""},{"$f":"IF(A90<>\"\",Doklady!I38-Doklady!J38,\"\")","v":""},{"$f":"IF(A90<>\"\",MIN(D90,C90)*Doklady!C38/(1-Doklady!C38),\"\")","v":""},{"$f":"IF(A90<>\"\",Doklady!J38,\"\")","v":""},0,null,0,"",{"$f":"Doklady!F38","v":""},{"$f":"IF(A90<>\"\",INDEX(FP!H:H,Doklady!B$2+(ROW()-52)),\"\")","v":""},""]
[{"$f":"Doklady!D39","v":""},{"$f":"Doklady!H39","v":""},{"$f":"IF(A91<>\"\",INDEX(FP!D:D,Doklady!B$2+(ROW()-53)),\"\")","v":""},{"$f":"IF(A91<>\"\",Doklady!I39-Doklady!J39,\"\")","v":""},{"$f":"IF(A91<>\"\",MIN(D91,C91)*Doklady!C39/(1-Doklady!C39),\"\")","v":""},{"$f":"IF(A91<>\"\",Doklady!J39,\"\")","v":""},0,null,0,"",{"$f":"Doklady!F39","v":""},{"$f":"IF(A91<>\"\",INDEX(FP!H:H,Doklady!B$2+(ROW()-52)),\"\")","v":""},""]
[{"$f":"Doklady!D40","v":""},{"$f":"Doklady!H40","v":""},{"$f":"IF(A92<>\"\",INDEX(FP!D:D,Doklady!B$2+(ROW()-53)),\"\")","v":""},{"$f":"IF(A92<>\"\",Doklady!I40-Doklady!J40,\"\")","v":""},{"$f":"IF(A92<>\"\",MIN(D92,C92)*Doklady!C40/(1-Doklady!C40),\"\")","v":""},{"$f":"IF(A92<>\"\",Doklady!J40,\"\")","v":""},0,null,0,"",{"$f":"Doklady!F40","v":""},{"$f":"IF(A92<>\"\",INDEX(FP!H:H,Doklady!B$2+(ROW()-52)),\"\")","v":""},""]
[{"$f":"Doklady!D41","v":""},{"$f":"Doklady!H41","v":""},{"$f":"IF(A93<>\"\",INDEX(FP!D:D,Doklady!B$2+(ROW()-53)),\"\")","v":""},{"$f":"IF(A93<>\"\",Doklady!I41-Doklady!J41,\"\")","v":""},{"$f":"IF(A93<>\"\",MIN(D93,C93)*Doklady!C41/(1-Doklady!C41),\"\")","v":""},{"$f":"IF(A93<>\"\",Doklady!J41,\"\")","v":""},0,null,0,"",{"$f":"Doklady!F41","v":""},{"$f":"IF(A93<>\"\",INDEX(FP!H:H,Doklady!B$2+(ROW()-52)),\"\")","v":""},""]
[{"$f":"Doklady!D42","v":""},{"$f":"Doklady!H42","v":""},{"$f":"IF(A94<>\"\",INDEX(FP!D:D,Doklady!B$2+(ROW()-53)),\"\")","v":""},{"$f":"IF(A94<>\"\",Doklady!I42-Doklady!J42,\"\")","v":""},{"$f":"IF(A94<>\"\",MIN(D94,C94)*Doklady!C42/(1-Doklady!C42),\"\")","v":""},{"$f":"IF(A94<>\"\",Doklady!J42,\"\")","v":""},0,null,0,"",{"$f":"Doklady!F42","v":""},{"$f":"IF(A94<>\"\",INDEX(FP!H:H,Doklady!B$2+(ROW()-52)),\"\")","v":""},""]
[{"$f":"Doklady!D43","v":""},{"$f":"Doklady!H43","v":""},{"$f":"IF(A95<>\"\",INDEX(FP!D:D,Doklady!B$2+(ROW()-53)),\"\")","v":""},{"$f":"IF(A95<>\"\",Doklady!I43-Doklady!J43,\"\")","v":""},{"$f":"IF(A95<>\"\",MIN(D95,C95)*Doklady!C43/(1-Doklady!C43),\"\")","v":""},{"$f":"IF(A95<>\"\",Doklady!J43,\"\")","v":""},0,null,0,"",{"$f":"Doklady!F43","v":""},{"$f":"IF(A95<>\"\",INDEX(FP!H:H,Doklady!B$2+(ROW()-52)),\"\")","v":""},""]
[{"$f":"Doklady!D44","v":""},{"$f":"Doklady!H44","v":""},{"$f":"IF(A96<>\"\",INDEX(FP!D:D,Doklady!B$2+(ROW()-53)),\"\")","v":""},{"$f":"IF(A96<>\"\",Doklady!I44-Doklady!J44,\"\")","v":""},{"$f":"IF(A96<>\"\",MIN(D96,C96)*Doklady!C44/(1-Doklady!C44),\"\")","v":""},{"$f":"IF(A96<>\"\",Doklady!J44,\"\")","v":""},0,null,0,"",{"$f":"Doklady!F44","v":""},{"$f":"IF(A96<>\"\",INDEX(FP!H:H,Doklady!B$2+(ROW()-52)),\"\")","v":""},""]
[{"$f":"Doklady!D45","v":""},{"$f":"Doklady!H45","v":""},{"$f":"IF(A97<>\"\",INDEX(FP!D:D,Doklady!B$2+(ROW()-53)),\"\")","v":""},{"$f":"IF(A97<>\"\",Doklady!I45-Doklady!J45,\"\")","v":""},{"$f":"IF(A97<>\"\",MIN(D97,C97)*Doklady!C45/(1-Doklady!C45),\"\")","v":""},{"$f":"IF(A97<>\"\",Doklady!J45,\"\")","v":""},0,null,0,"",{"$f":"Doklady!F45","v":""},{"$f":"IF(A97<>\"\",INDEX(FP!H:H,Doklady!B$2+(ROW()-52)),\"\")","v":""},""]
[{"$f":"Doklady!D46","v":""},{"$f":"Doklady!H46","v":""},{"$f":"IF(A98<>\"\",INDEX(FP!D:D,Doklady!B$2+(ROW()-53)),\"\")","v":""},{"$f":"IF(A98<>\"\",Doklady!I46-Doklady!J46,\"\")","v":""},{"$f":"IF(A98<>\"\",MIN(D98,C98)*Doklady!C46/(1-Doklady!C46),\"\")","v":""},{"$f":"IF(A98<>\"\",Doklady!J46,\"\")","v":""},0,null,0,"",{"$f":"Doklady!F46","v":""},{"$f":"IF(A98<>\"\",INDEX(FP!H:H,Doklady!B$2+(ROW()-52)),\"\")","v":""},""]
[{"$f":"Doklady!D47","v":""},{"$f":"Doklady!H47","v":""},{"$f":"IF(A99<>\"\",INDEX(FP!D:D,Doklady!B$2+(ROW()-53)),\"\")","v":""},{"$f":"IF(A99<>\"\",Doklady!I47-Doklady!J47,\"\")","v":""},{"$f":"IF(A99<>\"\",MIN(D99,C99)*Doklady!C47/(1-Doklady!C47),\"\")","v":""},{"$f":"IF(A99<>\"\",Doklady!J47,\"\")","v":""},0,null,0,"",{"$f":"Doklady!F47","v":""},{"$f":"IF(A99<>\"\",INDEX(FP!H:H,Doklady!B$2+(ROW()-52)),\"\")","v":""},""]
[{"$f":"Doklady!D48","v":""},{"$f":"Doklady!H48","v":""},{"$f":"IF(A100<>\"\",INDEX(FP!D:D,Doklady!B$2+(ROW()-53)),\"\")","v":""},{"$f":"IF(A100<>\"\",Doklady!I48-Doklady!J48,\"\")","v":""},{"$f":"IF(A100<>\"\",MIN(D100,C100)*Doklady!C48/(1-Doklady!C48),\"\")","v":""},{"$f":"IF(A100<>\"\",Doklady!J48,\"\")","v":""},0,null,0,"",{"$f":"Doklady!F48","v":""},{"$f":"IF(A100<>\"\",INDEX(FP!H:H,Doklady!B$2+(ROW()-52)),\"\")","v":""},""]
[{"$f":"Doklady!D49","v":""},{"$f":"Doklady!H49","v":""},{"$f":"IF(A101<>\"\",INDEX(FP!D:D,Doklady!B$2+(ROW()-53)),\"\")","v":""},{"$f":"IF(A101<>\"\",Doklady!I49-Doklady!J49,\"\")","v":""},{"$f":"IF(A101<>\"\",MIN(D101,C101)*Doklady!C49/(1-Doklady!C49),\"\")","v":""},{"$f":"IF(A101<>\"\",Doklady!J49,\"\")","v":""},0,null,0,"",{"$f":"Doklady!F49","v":""},{"$f":"IF(A101<>\"\",INDEX(FP!H:H,Doklady!B$2+(ROW()-52)),\"\")","v":""},""]
[{"$f":"Doklady!D50","v":""},{"$f":"Doklady!H50","v":""},{"$f":"IF(A102<>\"\",INDEX(FP!D:D,Doklady!B$2+(ROW()-53)),\"\")","v":""},{"$f":"IF(A102<>\"\",Doklady!I50-Doklady!J50,\"\")","v":""},{"$f":"IF(A102<>\"\",MIN(D102,C102)*Doklady!C50/(1-Doklady!C50),\"\")","v":""},{"$f":"IF(A102<>\"\",Doklady!J50,\"\")","v":""},0,null,0,"",{"$f":"Doklady!F50","v":""},{"$f":"IF(A102<>\"\",INDEX(FP!H:H,Doklady!B$2+(ROW()-52)),\"\")","v":""},""]
[{"$f":"Doklady!D51","v":""},{"$f":"Doklady!H51","v":""},{"$f":"IF(A103<>\"\",INDEX(FP!D:D,Doklady!B$2+(ROW()-53)),\"\")","v":""},{"$f":"IF(A103<>\"\",Doklady!I51-Doklady!J51,\"\")","v":""},{"$f":"IF(A103<>\"\",MIN(D103,C103)*Doklady!C51/(1-Doklady!C51),\"\")","v":""},{"$f":"IF(A103<>\"\",Doklady!J51,\"\")","v":""},0,null,0,"",{"$f":"Doklady!F51","v":""},{"$f":"IF(A103<>\"\",INDEX(FP!H:H,Doklady!B$2+(ROW()-52)),\"\")","v":""},""]
[{"$f":"Doklady!D52","v":""},{"$f":"Doklady!H52","v":""},{"$f":"IF(A104<>\"\",INDEX(FP!D:D,Doklady!B$2+(ROW()-53)),\"\")","v":""},{"$f":"IF(A104<>\"\",Doklady!I52-Doklady!J52,\"\")","v":""},{"$f":"IF(A104<>\"\",MIN(D104,C104)*Doklady!C52/(1-Doklady!C52),\"\")","v":""},{"$f":"IF(A104<>\"\",Doklady!J52,\"\")","v":""},0,null,0,"",{"$f":"Doklady!F52","v":""},{"$f":"IF(A104<>\"\",INDEX(FP!H:H,Doklady!B$2+(ROW()-52)),\"\")","v":""},""]
[{"$f":"Doklady!D53","v":""},{"$f":"Doklady!H53","v":""},{"$f":"IF(A105<>\"\",INDEX(FP!D:D,Doklady!B$2+(ROW()-53)),\"\")","v":""},{"$f":"IF(A105<>\"\",Doklady!I53-Doklady!J53,\"\")","v":""},{"$f":"IF(A105<>\"\",MIN(D105,C105)*Doklady!C53/(1-Doklady!C53),\"\")","v":""},{"$f":"IF(A105<>\"\",Doklady!J53,\"\")","v":""},0,null,0,"",{"$f":"Doklady!F53","v":""},{"$f":"IF(A105<>\"\",INDEX(FP!H:H,Doklady!B$2+(ROW()-52)),\"\")","v":""},""]
[{"$f":"Doklady!D54","v":""},{"$f":"Doklady!H54","v":""},{"$f":"IF(A106<>\"\",INDEX(FP!D:D,Doklady!B$2+(ROW()-53)),\"\")","v":""},{"$f":"IF(A106<>\"\",Doklady!I54-Doklady!J54,\"\")","v":""},{"$f":"IF(A106<>\"\",MIN(D106,C106)*Doklady!C54/(1-Doklady!C54),\"\")","v":""},{"$f":"IF(A106<>\"\",Doklady!J54,\"\")","v":""},0,null,0,"",{"$f":"Doklady!F54","v":""},{"$f":"IF(A106<>\"\",INDEX(FP!H:H,Doklady!B$2+(ROW()-52)),\"\")","v":""},""]
[{"$f":"Doklady!D55","v":""},{"$f":"Doklady!H55","v":""},{"$f":"IF(A107<>\"\",INDEX(FP!D:D,Doklady!B$2+(ROW()-53)),\"\")","v":""},{"$f":"IF(A107<>\"\",Doklady!I55-Doklady!J55,\"\")","v":""},{"$f":"IF(A107<>\"\",MIN(D107,C107)*Doklady!C55/(1-Doklady!C55),\"\")","v":""},{"$f":"IF(A107<>\"\",Doklady!J55,\"\")","v":""},0,null,0,"",{"$f":"Doklady!F55","v":""},{"$f":"IF(A107<>\"\",INDEX(FP!H:H,Doklady!B$2+(ROW()-52)),\"\")","v":""},""]
[{"$f":"Doklady!D56","v":""},{"$f":"Doklady!H56","v":""},{"$f":"IF(A108<>\"\",INDEX(FP!D:D,Doklady!B$2+(ROW()-53)),\"\")","v":""},{"$f":"IF(A108<>\"\",Doklady!I56-Doklady!J56,\"\")","v":""},{"$f":"IF(A108<>\"\",MIN(D108,C108)*Doklady!C56/(1-Doklady!C56),\"\")","v":""},{"$f":"IF(A108<>\"\",Doklady!J56,\"\")","v":""},0,null,0,"",{"$f":"Doklady!F56","v":""},{"$f":"IF(A108<>\"\",INDEX(FP!H:H,Doklady!B$2+(ROW()-52)),\"\")","v":""},""]
[{"$f":"Doklady!D57","v":""},{"$f":"Doklady!H57","v":""},{"$f":"IF(A109<>\"\",INDEX(FP!D:D,Doklady!B$2+(ROW()-53)),\"\")","v":""},{"$f":"IF(A109<>\"\",Doklady!I57-Doklady!J57,\"\")","v":""},{"$f":"IF(A109<>\"\",MIN(D109,C109)*Doklady!C57/(1-Doklady!C57),\"\")","v":""},{"$f":"IF(A109<>\"\",Doklady!J57,\"\")","v":""},0,null,0,"",{"$f":"Doklady!F57","v":""},{"$f":"IF(A109<>\"\",INDEX(FP!H:H,Doklady!B$2+(ROW()-52)),\"\")","v":""},""]
[{"$f":"Doklady!D58","v":""},{"$f":"Doklady!H58","v":""},{"$f":"IF(A110<>\"\",INDEX(FP!D:D,Doklady!B$2+(ROW()-53)),\"\")","v":""},{"$f":"IF(A110<>\"\",Doklady!I58-Doklady!J58,\"\")","v":""},{"$f":"IF(A110<>\"\",MIN(D110,C110)*Doklady!C58/(1-Doklady!C58),\"\")","v":""},{"$f":"IF(A110<>\"\",Doklady!J58,\"\")","v":""},0,null,0,"",{"$f":"Doklady!F58","v":""},{"$f":"IF(A110<>\"\",INDEX(FP!H:H,Doklady!B$2+(ROW()-52)),\"\")","v":""},""]
[{"$f":"Doklady!D59","v":""},{"$f":"Doklady!H59","v":""},{"$f":"IF(A111<>\"\",INDEX(FP!D:D,Doklady!B$2+(ROW()-53)),\"\")","v":""},{"$f":"IF(A111<>\"\",Doklady!I59-Doklady!J59,\"\")","v":""},{"$f":"IF(A111<>\"\",MIN(D111,C111)*Doklady!C59/(1-Doklady!C59),\"\")","v":""},{"$f":"IF(A111<>\"\",Doklady!J59,\"\")","v":""},0,null,0,"",{"$f":"Doklady!F59","v":""},{"$f":"IF(A111<>\"\",INDEX(FP!H:H,Doklady!B$2+(ROW()-52)),\"\")","v":""},""]
[{"$f":"Doklady!D60","v":""},{"$f":"Doklady!H60","v":""},{"$f":"IF(A112<>\"\",INDEX(FP!D:D,Doklady!B$2+(ROW()-53)),\"\")","v":""},{"$f":"IF(A112<>\"\",Doklady!I60-Doklady!J60,\"\")","v":""},{"$f":"IF(A112<>\"\",MIN(D112,C112)*Doklady!C60/(1-Doklady!C60),\"\")","v":""},{"$f":"IF(A112<>\"\",Doklady!J60,\"\")","v":""},0,null,0,"",{"$f":"Doklady!F60","v":""},{"$f":"IF(A112<>\"\",INDEX(FP!H:H,Doklady!B$2+(ROW()-52)),\"\")","v":""},""]
[{"$f":"Doklady!D61","v":""},{"$f":"Doklady!H61","v":""},{"$f":"IF(A113<>\"\",INDEX(FP!D:D,Doklady!B$2+(ROW()-53)),\"\")","v":""},{"$f":"IF(A113<>\"\",Doklady!I61-Doklady!J61,\"\")","v":""},{"$f":"IF(A113<>\"\",MIN(D113,C113)*Doklady!C61/(1-Doklady!C61),\"\")","v":""},{"$f":"IF(A113<>\"\",Doklady!J61,\"\")","v":""},0,null,0,"",{"$f":"Doklady!F61","v":""},{"$f":"IF(A113<>\"\",INDEX(FP!H:H,Doklady!B$2+(ROW()-52)),\"\")","v":""},""]
[{"$f":"Doklady!D62","v":""},{"$f":"Doklady!H62","v":""},{"$f":"IF(A114<>\"\",INDEX(FP!D:D,Doklady!B$2+(ROW()-53)),\"\")","v":""},{"$f":"IF(A114<>\"\",Doklady!I62-Doklady!J62,\"\")","v":""},{"$f":"IF(A114<>\"\",MIN(D114,C114)*Doklady!C62/(1-Doklady!C62),\"\")","v":""},{"$f":"IF(A114<>\"\",Doklady!J62,\"\")","v":""},0,null,0,"",{"$f":"Doklady!F62","v":""},{"$f":"IF(A114<>\"\",INDEX(FP!H:H,Doklady!B$2+(ROW()-52)),\"\")","v":""},""]
[{"$f":"Doklady!D63","v":""},{"$f":"Doklady!H63","v":""},{"$f":"IF(A115<>\"\",INDEX(FP!D:D,Doklady!B$2+(ROW()-53)),\"\")","v":""},{"$f":"IF(A115<>\"\",Doklady!I63-Doklady!J63,\"\")","v":""},{"$f":"IF(A115<>\"\",MIN(D115,C115)*Doklady!C63/(1-Doklady!C63),\"\")","v":""},{"$f":"IF(A115<>\"\",Doklady!J63,\"\")","v":""},0,null,0,"",{"$f":"Doklady!F63","v":""},{"$f":"IF(A115<>\"\",INDEX(FP!H:H,Doklady!B$2+(ROW()-52)),\"\")","v":""},""]
[{"$f":"Doklady!D64","v":""},{"$f":"Doklady!H64","v":""},{"$f":"IF(A116<>\"\",INDEX(FP!D:D,Doklady!B$2+(ROW()-53)),\"\")","v":""},{"$f":"IF(A116<>\"\",Doklady!I64-Doklady!J64,\"\")","v":""},{"$f":"IF(A116<>\"\",MIN(D116,C116)*Doklady!C64/(1-Doklady!C64),\"\")","v":""},{"$f":"IF(A116<>\"\",Doklady!J64,\"\")","v":""},0,null,0,"",{"$f":"Doklady!F64","v":""},{"$f":"IF(A116<>\"\",INDEX(FP!H:H,Doklady!B$2+(ROW()-52)),\"\")","v":""},""]
[{"$f":"Doklady!D65","v":""},{"$f":"Doklady!H65","v":""},{"$f":"IF(A117<>\"\",INDEX(FP!D:D,Doklady!B$2+(ROW()-53)),\"\")","v":""},{"$f":"IF(A117<>\"\",Doklady!I65-Doklady!J65,\"\")","v":""},{"$f":"IF(A117<>\"\",MIN(D117,C117)*Doklady!C65/(1-Doklady!C65),\"\")","v":""},{"$f":"IF(A117<>\"\",Doklady!J65,\"\")","v":""},0,null,0,"",{"$f":"Doklady!F65","v":""},{"$f":"IF(A117<>\"\",INDEX(FP!H:H,Doklady!B$2+(ROW()-52)),\"\")","v":""},""]
[{"$f":"Doklady!D66","v":""},{"$f":"Doklady!H66","v":""},{"$f":"IF(A118<>\"\",INDEX(FP!D:D,Doklady!B$2+(ROW()-53)),\"\")","v":""},{"$f":"IF(A118<>\"\",Doklady!I66-Doklady!J66,\"\")","v":""},{"$f":"IF(A118<>\"\",MIN(D118,C118)*Doklady!C66/(1-Doklady!C66),\"\")","v":""},{"$f":"IF(A118<>\"\",Doklady!J66,\"\")","v":""},{"$f":"+IFERROR(HLOOKUP(IF(RIGHT(B118,15)=\"bežné transfery\",LEFT(B118,LEN(B118)-18),0),$J$40:$K$42,3,0),MIN(C118,D118))","v":0},null,{"$f":"IF(A118<>\"\",MAX(IF(G118<C118,C118-G118,0)+IF(F118<E118,E118-F118,0),0),0)","v":0},{"$f":"IF(D118>C118,\"Vyúčtované prostriedky nemôžu byť väčšie ako poskytnuté. Opravte v hárku \"\"Doklady\"\"\",\"\")","v":""},{"$f":"Doklady!F66","v":""},{"$f":"IF(A118<>\"\",INDEX(FP!H:H,Doklady!B$2+(ROW()-52)),\"\")","v":""},{"$f":"K118&L118","v":""}]
[{"$f":"Doklady!D67","v":""},{"$f":"Doklady!H67","v":""},{"$f":"IF(A119<>\"\",INDEX(FP!D:D,Doklady!B$2+(ROW()-53)),\"\")","v":""},{"$f":"IF(A119<>\"\",Doklady!I67-Doklady!J67,\"\")","v":""},{"$f":"IF(A119<>\"\",MIN(D119,C119)*Doklady!C67/(1-Doklady!C67),\"\")","v":""},{"$f":"IF(A119<>\"\",Doklady!J67,\"\")","v":""},0,null,0,"",{"$f":"Doklady!F67","v":""},{"$f":"IF(A119<>\"\",INDEX(FP!H:H,Doklady!B$2+(ROW()-52)),\"\")","v":""},""]
[{"$f":"Doklady!D68","v":""},{"$f":"Doklady!H68","v":""},{"$f":"IF(A120<>\"\",INDEX(FP!D:D,Doklady!B$2+(ROW()-53)),\"\")","v":""},{"$f":"IF(A120<>\"\",Doklady!I68-Doklady!J68,\"\")","v":""},{"$f":"IF(A120<>\"\",MIN(D120,C120)*Doklady!C68/(1-Doklady!C68),\"\")","v":""},{"$f":"IF(A120<>\"\",Doklady!J68,\"\")","v":""},0,null,0,"",{"$f":"Doklady!F68","v":""},{"$f":"IF(A120<>\"\",INDEX(FP!H:H,Doklady!B$2+(ROW()-52)),\"\")","v":""},""]
[{"$f":"Doklady!D69","v":""},{"$f":"Doklady!H69","v":""},{"$f":"IF(A121<>\"\",INDEX(FP!D:D,Doklady!B$2+(ROW()-53)),\"\")","v":""},{"$f":"IF(A121<>\"\",Doklady!I69-Doklady!J69,\"\")","v":""},{"$f":"IF(A121<>\"\",MIN(D121,C121)*Doklady!C69/(1-Doklady!C69),\"\")","v":""},{"$f":"IF(A121<>\"\",Doklady!J69,\"\")","v":""},0,null,0,"",{"$f":"Doklady!F69","v":""},{"$f":"IF(A121<>\"\",INDEX(FP!H:H,Doklady!B$2+(ROW()-52)),\"\")","v":""},""]
[{"$f":"Doklady!D70","v":""},{"$f":"Doklady!H70","v":""},{"$f":"IF(A122<>\"\",INDEX(FP!D:D,Doklady!B$2+(ROW()-53)),\"\")","v":""},{"$f":"IF(A122<>\"\",Doklady!I70-Doklady!J70,\"\")","v":""},{"$f":"IF(A122<>\"\",MIN(D122,C122)*Doklady!C70/(1-Doklady!C70),\"\")","v":""},{"$f":"IF(A122<>\"\",Doklady!J70,\"\")","v":""},0,null,0,"",{"$f":"Doklady!F70","v":""},{"$f":"IF(A122<>\"\",INDEX(FP!H:H,Doklady!B$2+(ROW()-52)),\"\")","v":""},""]
[{"$f":"Doklady!D71","v":""},{"$f":"Doklady!H71","v":""},{"$f":"IF(A123<>\"\",INDEX(FP!D:D,Doklady!B$2+(ROW()-53)),\"\")","v":""},{"$f":"IF(A123<>\"\",Doklady!I71-Doklady!J71,\"\")","v":""},{"$f":"IF(A123<>\"\",MIN(D123,C123)*Doklady!C71/(1-Doklady!C71),\"\")","v":""},{"$f":"IF(A123<>\"\",Doklady!J71,\"\")","v":""},0,null,0,"",{"$f":"Doklady!F71","v":""},{"$f":"IF(A123<>\"\",INDEX(FP!H:H,Doklady!B$2+(ROW()-52)),\"\")","v":""},""]
[{"$f":"Doklady!D72","v":""},{"$f":"Doklady!H72","v":""},{"$f":"IF(A124<>\"\",INDEX(FP!D:D,Doklady!B$2+(ROW()-53)),\"\")","v":""},{"$f":"IF(A124<>\"\",Doklady!I72-Doklady!J72,\"\")","v":""},{"$f":"IF(A124<>\"\",MIN(D124,C124)*Doklady!C72/(1-Doklady!C72),\"\")","v":""},{"$f":"IF(A124<>\"\",Doklady!J72,\"\")","v":""},0,null,0,"",{"$f":"Doklady!F72","v":""},{"$f":"IF(A124<>\"\",INDEX(FP!H:H,Doklady!B$2+(ROW()-52)),\"\")","v":""},{"$f":"K124&L124","v":""}]
[{"$f":"Doklady!D73","v":""},{"$f":"Doklady!H73","v":""},{"$f":"IF(A125<>\"\",INDEX(FP!D:D,Doklady!B$2+(ROW()-53)),\"\")","v":""},{"$f":"IF(A125<>\"\",Doklady!I73-Doklady!J73,\"\")","v":""},{"$f":"IF(A125<>\"\",MIN(D125,C125)*Doklady!C73/(1-Doklady!C73),\"\")","v":""},{"$f":"IF(A125<>\"\",Doklady!J73,\"\")","v":""},0,null,0,"",{"$f":"Doklady!F73","v":""},{"$f":"IF(A125<>\"\",INDEX(FP!H:H,Doklady!B$2+(ROW()-52)),\"\")","v":""},""]
[{"$f":"Doklady!D74","v":""},{"$f":"Doklady!H74","v":""},{"$f":"IF(A126<>\"\",INDEX(FP!D:D,Doklady!B$2+(ROW()-53)),\"\")","v":""},{"$f":"IF(A126<>\"\",Doklady!I74-Doklady!J74,\"\")","v":""},{"$f":"IF(A126<>\"\",MIN(D126,C126)*Doklady!C74/(1-Doklady!C74),\"\")","v":""},{"$f":"IF(A126<>\"\",Doklady!J74,\"\")","v":""},0,null,0,"",{"$f":"Doklady!F74","v":""},{"$f":"IF(A126<>\"\",INDEX(FP!H:H,Doklady!B$2+(ROW()-52)),\"\")","v":""},""]
[{"$f":"Doklady!D75","v":""},{"$f":"Doklady!H75","v":""},{"$f":"IF(A127<>\"\",INDEX(FP!D:D,Doklady!B$2+(ROW()-53)),\"\")","v":""},{"$f":"IF(A127<>\"\",Doklady!I75-Doklady!J75,\"\")","v":""},{"$f":"IF(A127<>\"\",MIN(D127,C127)*Doklady!C75/(1-Doklady!C75),\"\")","v":""},{"$f":"IF(A127<>\"\",Doklady!J75,\"\")","v":""},0,null,0,"",{"$f":"Doklady!F75","v":""},{"$f":"IF(A127<>\"\",INDEX(FP!H:H,Doklady!B$2+(ROW()-52)),\"\")","v":""},""]
[{"$f":"Doklady!D76","v":""},{"$f":"Doklady!H76","v":""},{"$f":"IF(A128<>\"\",INDEX(FP!D:D,Doklady!B$2+(ROW()-53)),\"\")","v":""},{"$f":"IF(A128<>\"\",Doklady!I76-Doklady!J76,\"\")","v":""},{"$f":"IF(A128<>\"\",MIN(D128,C128)*Doklady!C76/(1-Doklady!C76),\"\")","v":""},{"$f":"IF(A128<>\"\",Doklady!J76,\"\")","v":""},0,null,0,"",{"$f":"Doklady!F76","v":""},{"$f":"IF(A128<>\"\",INDEX(FP!H:H,Doklady!B$2+(ROW()-52)),\"\")","v":""},""]
[null,null,null,null,null,null,null,null,null,"",{"$f":"Doklady!F77","v":""},{"$f":"IF(A129<>\"\",INDEX(FP!H:H,Doklady!B$2+(ROW()-52)),\"\")","v":""},""]
[{"$f":"Doklady!D66","v":""},"SPOLU",{"$f":"SUM(C53:C129)","v":244015},{"$f":"SUM(D53:D129)","v":31678.950000000008},0,0,31678.949999999997,0,212336.05,{"$f":"IF(D130>C130,\"Vyúčtované prostriedky nemôžu byť väčšie ako poskytnuté. Opravte v hárku \"\"Doklady\"\"\",\"\")","v":""}]
[]
["Čestne vyhlasujem, že"]
["a) všetky uvedené údaje sú pravdivé,"]
["b) dolu podpísaná osoba/osoby je oprávnená/sú oprávnené v súlade so stanovami/zriaďovacou listinou na podpis vyúčtovania finančných prostriedkov poskytnutých v roku 2024."]
["c) toto vytlačené a podpísané vyúčtovanie je zhodné s hárkom, ktorý sme zaslali na adresu ziadosti.sport@minedu.sk dňa ....................... o .......... hod. ........ min."]
[]
["Súhlasím so zhromažďovaním, spracovávaním a zverejňovaním poskytnutých údajov."]
[]
["Dátum:"]
[]
[null,"Kontaktná osoba zodpovedná za vyplnený formulár\nmeno a priezvisko:\ne-mail:\ntel. kontakt (mobil):",null,"Meno, priezvisko a podpis štatutárneho zástupcu/zástupcov oprávneného/oprávnených na podpis žiadosti a zmluvy o poskytnutí finančných prostriedkov v súlade so stanovami, resp. zriaďovacou listinou"]

{"sheet":"Doklady","index":4,"n_rows":157,"n_cols":14,"rows_kept":157,"cut":false,"hidden":false,"merged":[[99,0,99,7],[100,8,100,9],[99,8,99,9],[100,0,100,7],[104,0,104,9]]}
[{"$f":"IF(ROW()<=B$3,INDEX(FP!F:F,B$2+ROW()-1)&\" - \"&INDEX(FP!C:C,B$2+ROW()-1),\"\")","v":"a - krasokorčuľovanie - bežné transfery"},{"$f":"INDEX(Adr!A:A,B102+1)","v":"31805540"},{"$f":"IF(ROW()<=B$3,INDEX(FP!E:E,B$2+ROW()-1),\"\")","v":0},{"$f":"IF(ROW()<=B$3,INDEX(FP!F:F,B$2+ROW()-1),\"\")","v":"a"},null,{"$f":"IF(ROW()<=B$3,INDEX(FP!G:G,B$2+ROW()-1),\"\")","v":"026 02"},null,{"$f":"IF(ROW()<=B$3,INDEX(FP!C:C,B$2+ROW()-1),\"\")","v":"krasokorčuľovanie - bežné transfery"},{"$f":"IF(ROW()<=B$3,SUMIF(A$107:A$10042,A1,I$107:I$10042),\"\")","v":31678.950000000008},{"$f":"IF(ROW()<=B$3,SUMIFS(I$103:I$50042,A$103:A$50042,K1,J$103:J$50042,L1),\"\")","v":0},{"$f":"$A1","v":"a - krasokorčuľovanie - bežné transfery"},99]
[{"$f":"IF(ROW()<=B$3,INDEX(FP!F:F,B$2+ROW()-1)&\" - \"&INDEX(FP!C:C,B$2+ROW()-1),\"\")","v":""},{"$f":"MATCH(B1,FP!A:A,0)","v":54},{"$f":"IF(ROW()<=B$3,INDEX(FP!E:E,B$2+ROW()-1),\"\")","v":""},{"$f":"IF(ROW()<=B$3,INDEX(FP!F:F,B$2+ROW()-1),\"\")","v":""},null,{"$f":"IF(ROW()<=B$3,INDEX(FP!G:G,B$2+ROW()-1),\"\")","v":""},null,{"$f":"IF(ROW()<=B$3,INDEX(FP!C:C,B$2+ROW()-1),\"\")","v":""},"","",{"$f":"$A2","v":""},99,"AAA","HHH"]
[{"$f":"IF(ROW()<=B$3,INDEX(FP!F:F,B$2+ROW()-1)&\" - \"&INDEX(FP!C:C,B$2+ROW()-1),\"\")","v":""},{"$f":"COUNTIF(FP!A:A,Doklady!B1)","v":1},{"$f":"IF(ROW()<=B$3,INDEX(FP!E:E,B$2+ROW()-1),\"\")","v":""},{"$f":"IF(ROW()<=B$3,INDEX(FP!F:F,B$2+ROW()-1),\"\")","v":""},null,{"$f":"IF(ROW()<=B$3,INDEX(FP!G:G,B$2+ROW()-1),\"\")","v":""},null,{"$f":"IF(ROW()<=B$3,INDEX(FP!C:C,B$2+ROW()-1),\"\")","v":""},"","",{"$f":"$A3","v":""},99,{"$f":"$A2","v":""},99]
[{"$f":"IF(ROW()<=B$3,INDEX(FP!F:F,B$2+ROW()-1)&\" - \"&INDEX(FP!C:C,B$2+ROW()-1),\"\")","v":""},null,{"$f":"IF(ROW()<=B$3,INDEX(FP!E:E,B$2+ROW()-1),\"\")","v":""},{"$f":"IF(ROW()<=B$3,INDEX(FP!F:F,B$2+ROW()-1),\"\")","v":""},null,{"$f":"IF(ROW()<=B$3,INDEX(FP!G:G,B$2+ROW()-1),\"\")","v":""},null,{"$f":"IF(ROW()<=B$3,INDEX(FP!C:C,B$2+ROW()-1),\"\")","v":""},"","","",99,"AAA","HHH"]
[{"$f":"IF(ROW()<=B$3,INDEX(FP!F:F,B$2+ROW()-1)&\" - \"&INDEX(FP!C:C,B$2+ROW()-1),\"\")","v":""},null,{"$f":"IF(ROW()<=B$3,INDEX(FP!E:E,B$2+ROW()-1),\"\")","v":""},{"$f":"IF(ROW()<=B$3,INDEX(FP!F:F,B$2+ROW()-1),\"\")","v":""},null,{"$f":"IF(ROW()<=B$3,INDEX(FP!G:G,B$2+ROW()-1),\"\")","v":""},null,{"$f":"IF(ROW()<=B$3,INDEX(FP!C:C,B$2+ROW()-1),\"\")","v":""},"","","",99,{"$f":"$A4","v":""},99]
[{"$f":"IF(ROW()<=B$3,INDEX(FP!F:F,B$2+ROW()-1)&\" - \"&INDEX(FP!C:C,B$2+ROW()-1),\"\")","v":""},null,{"$f":"IF(ROW()<=B$3,INDEX(FP!E:E,B$2+ROW()-1),\"\")","v":""},{"$f":"IF(ROW()<=B$3,INDEX(FP!F:F,B$2+ROW()-1),\"\")","v":""},null,{"$f":"IF(ROW()<=B$3,INDEX(FP!G:G,B$2+ROW()-1),\"\")","v":""},null,{"$f":"IF(ROW()<=B$3,INDEX(FP!C:C,B$2+ROW()-1),\"\")","v":""},"","","",99,"AAA","HHH"]
[{"$f":"IF(ROW()<=B$3,INDEX(FP!F:F,B$2+ROW()-1)&\" - \"&INDEX(FP!C:C,B$2+ROW()-1),\"\")","v":""},null,{"$f":"IF(ROW()<=B$3,INDEX(FP!E:E,B$2+ROW()-1),\"\")","v":""},{"$f":"IF(ROW()<=B$3,INDEX(FP!F:F,B$2+ROW()-1),\"\")","v":""},null,{"$f":"IF(ROW()<=B$3,INDEX(FP!G:G,B$2+ROW()-1),\"\")","v":""},null,{"$f":"IF(ROW()<=B$3,INDEX(FP!C:C,B$2+ROW()-1),\"\")","v":""},"","","",99,{"$f":"$A6","v":""},99]
[{"$f":"IF(ROW()<=B$3,INDEX(FP!F:F,B$2+ROW()-1)&\" - \"&INDEX(FP!C:C,B$2+ROW()-1),\"\")","v":""},null,{"$f":"IF(ROW()<=B$3,INDEX(FP!E:E,B$2+ROW()-1),\"\")","v":""},{"$f":"IF(ROW()<=B$3,INDEX(FP!F:F,B$2+ROW()-1),\"\")","v":""},null,{"$f":"IF(ROW()<=B$3,INDEX(FP!G:G,B$2+ROW()-1),\"\")","v":""},null,{"$f":"IF(ROW()<=B$3,INDEX(FP!C:C,B$2+ROW()-1),\"\")","v":""},"","","",99,"AAA","HHH"]
[{"$f":"IF(ROW()<=B$3,INDEX(FP!F:F,B$2+ROW()-1)&\" - \"&INDEX(FP!C:C,B$2+ROW()-1),\"\")","v":""},null,{"$f":"IF(ROW()<=B$3,INDEX(FP!E:E,B$2+ROW()-1),\"\")","v":""},{"$f":"IF(ROW()<=B$3,INDEX(FP!F:F,B$2+ROW()-1),\"\")","v":""},null,{"$f":"IF(ROW()<=B$3,INDEX(FP!G:G,B$2+ROW()-1),\"\")","v":""},null,{"$f":"IF(ROW()<=B$3,INDEX(FP!C:C,B$2+ROW()-1),\"\")","v":""},"","","",99,{"$f":"$A8","v":""},99]
[{"$f":"IF(ROW()<=B$3,INDEX(FP!F:F,B$2+ROW()-1)&\" - \"&INDEX(FP!C:C,B$2+ROW()-1),\"\")","v":""},null,{"$f":"IF(ROW()<=B$3,INDEX(FP!E:E,B$2+ROW()-1),\"\")","v":""},{"$f":"IF(ROW()<=B$3,INDEX(FP!F:F,B$2+ROW()-1),\"\")","v":""},null,{"$f":"IF(ROW()<=B$3,INDEX(FP!G:G,B$2+ROW()-1),\"\")","v":""},null,{"$f":"IF(ROW()<=B$3,INDEX(FP!C:C,B$2+ROW()-1),\"\")","v":""},"","","",99,"AAA","HHH"]
[{"$f":"IF(ROW()<=B$3,INDEX(FP!F:F,B$2+ROW()-1)&\" - \"&INDEX(FP!C:C,B$2+ROW()-1),\"\")","v":""},null,{"$f":"IF(ROW()<=B$3,INDEX(FP!E:E,B$2+ROW()-1),\"\")","v":""},{"$f":"IF(ROW()<=B$3,INDEX(FP!F:F,B$2+ROW()-1),\"\")","v":""},null,{"$f":"IF(ROW()<=B$3,INDEX(FP!G:G,B$2+ROW()-1),\"\")","v":""},null,{"$f":"IF(ROW()<=B$3,INDEX(FP!C:C,B$2+ROW()-1),\"\")","v":""},"","","",99,{"$f":"$A10","v":""},99]
[{"$f":"IF(ROW()<=B$3,INDEX(FP!F:F,B$2+ROW()-1)&\" - \"&INDEX(FP!C:C,B$2+ROW()-1),\"\")","v":""},null,{"$f":"IF(ROW()<=B$3,INDEX(FP!E:E,B$2+ROW()-1),\"\")","v":""},{"$f":"IF(ROW()<=B$3,INDEX(FP!F:F,B$2+ROW()-1),\"\")","v":""},null,{"$f":"IF(ROW()<=B$3,INDEX(FP!G:G,B$2+ROW()-1),\"\")","v":""},null,{"$f":"IF(ROW()<=B$3,INDEX(FP!C:C,B$2+ROW()-1),\"\")","v":""},"","","",99,"AAA","HHH"]
[{"$f":"IF(ROW()<=B$3,INDEX(FP!F:F,B$2+ROW()-1)&\" - \"&INDEX(FP!C:C,B$2+ROW()-1),\"\")","v":""},null,{"$f":"IF(ROW()<=B$3,INDEX(FP!E:E,B$2+ROW()-1),\"\")","v":""},{"$f":"IF(ROW()<=B$3,INDEX(FP!F:F,B$2+ROW()-1),\"\")","v":""},null,{"$f":"IF(ROW()<=B$3,INDEX(FP!G:G,B$2+ROW()-1),\"\")","v":""},null,{"$f":"IF(ROW()<=B$3,INDEX(FP!C:C,B$2+ROW()-1),\"\")","v":""},"","","",99,{"$f":"$A12","v":""},99]
[{"$f":"IF(ROW()<=B$3,INDEX(FP!F:F,B$2+ROW()-1)&\" - \"&INDEX(FP!C:C,B$2+ROW()-1),\"\")","v":""},null,{"$f":"IF(ROW()<=B$3,INDEX(FP!E:E,B$2+ROW()-1),\"\")","v":""},{"$f":"IF(ROW()<=B$3,INDEX(FP!F:F,B$2+ROW()-1),\"\")","v":""},null,{"$f":"IF(ROW()<=B$3,INDEX(FP!G:G,B$2+ROW()-1),\"\")","v":""},null,{"$f":"IF(ROW()<=B$3,INDEX(FP!C:C,B$2+ROW()-1),\"\")","v":""},"","","",99,"AAA","HHH"]
[{"$f":"IF(ROW()<=B$3,INDEX(FP!F:F,B$2+ROW()-1)&\" - \"&INDEX(FP!C:C,B$2+ROW()-1),\"\")","v":""},null,{"$f":"IF(ROW()<=B$3,INDEX(FP!E:E,B$2+ROW()-1),\"\")","v":""},{"$f":"IF(ROW()<=B$3,INDEX(FP!F:F,B$2+ROW()-1),\"\")","v":""},null,{"$f":"IF(ROW()<=B$3,INDEX(FP!G:G,B$2+ROW()-1),\"\")","v":""},null,{"$f":"IF(ROW()<=B$3,INDEX(FP!C:C,B$2+ROW()-1),\"\")","v":""},"","","",99,{"$f":"$A14","v":""},99]
[{"$f":"IF(ROW()<=B$3,INDEX(FP!F:F,B$2+ROW()-1)&\" - \"&INDEX(FP!C:C,B$2+ROW()-1),\"\")","v":""},null,{"$f":"IF(ROW()<=B$3,INDEX(FP!E:E,B$2+ROW()-1),\"\")","v":""},{"$f":"IF(ROW()<=B$3,INDEX(FP!F:F,B$2+ROW()-1),\"\")","v":""},null,{"$f":"IF(ROW()<=B$3,INDEX(FP!G:G,B$2+ROW()-1),\"\")","v":""},null,{"$f":"IF(ROW()<=B$3,INDEX(FP!C:C,B$2+ROW()-1),\"\")","v":""},"","","",99,"AAA","HHH"]
[{"$f":"IF(ROW()<=B$3,INDEX(FP!F:F,B$2+ROW()-1)&\" - \"&INDEX(FP!C:C,B$2+ROW()-1),\"\")","v":""},null,{"$f":"IF(ROW()<=B$3,INDEX(FP!E:E,B$2+ROW()-1),\"\")","v":""},{"$f":"IF(ROW()<=B$3,INDEX(FP!F:F,B$2+ROW()-1),\"\")","v":""},null,{"$f":"IF(ROW()<=B$3,INDEX(FP!G:G,B$2+ROW()-1),\"\")","v":""},null,{"$f":"IF(ROW()<=B$3,INDEX(FP!C:C,B$2+ROW()-1),\"\")","v":""},"","","",99,{"$f":"$A16","v":""},99]
[{"$f":"IF(ROW()<=B$3,INDEX(FP!F:F,B$2+ROW()-1)&\" - \"&INDEX(FP!C:C,B$2+ROW()-1),\"\")","v":""},null,{"$f":"IF(ROW()<=B$3,INDEX(FP!E:E,B$2+ROW()-1),\"\")","v":""},{"$f":"IF(ROW()<=B$3,INDEX(FP!F:F,B$2+ROW()-1),\"\")","v":""},null,{"$f":"IF(ROW()<=B$3,INDEX(FP!G:G,B$2+ROW()-1),\"\")","v":""},null,{"$f":"IF(ROW()<=B$3,INDEX(FP!C:C,B$2+ROW()-1),\"\")","v":""},"","","",99,"AAA","HHH"]
[{"$f":"IF(ROW()<=B$3,INDEX(FP!F:F,B$2+ROW()-1)&\" - \"&INDEX(FP!C:C,B$2+ROW()-1),\"\")","v":""},null,{"$f":"IF(ROW()<=B$3,INDEX(FP!E:E,B$2+ROW()-1),\"\")","v":""},{"$f":"IF(ROW()<=B$3,INDEX(FP!F:F,B$2+ROW()-1),\"\")","v":""},null,{"$f":"IF(ROW()<=B$3,INDEX(FP!G:G,B$2+ROW()-1),\"\")","v":""},null,{"$f":"IF(ROW()<=B$3,INDEX(FP!C:C,B$2+ROW()-1),\"\")","v":""},"","","",99,{"$f":"$A18","v":""},99]
[{"$f":"IF(ROW()<=B$3,INDEX(FP!F:F,B$2+ROW()-1)&\" - \"&INDEX(FP!C:C,B$2+ROW()-1),\"\")","v":""},null,{"$f":"IF(ROW()<=B$3,INDEX(FP!E:E,B$2+ROW()-1),\"\")","v":""},{"$f":"IF(ROW()<=B$3,INDEX(FP!F:F,B$2+ROW()-1),\"\")","v":""},null,{"$f":"IF(ROW()<=B$3,INDEX(FP!G:G,B$2+ROW()-1),\"\")","v":""},null,{"$f":"IF(ROW()<=B$3,INDEX(FP!C:C,B$2+ROW()-1),\"\")","v":""},"","","",99,"AAA","HHH"]
[{"$f":"IF(ROW()<=B$3,INDEX(FP!F:F,B$2+ROW()-1)&\" - \"&INDEX(FP!C:C,B$2+ROW()-1),\"\")","v":""},null,{"$f":"IF(ROW()<=B$3,INDEX(FP!E:E,B$2+ROW()-1),\"\")","v":""},{"$f":"IF(ROW()<=B$3,INDEX(FP!F:F,B$2+ROW()-1),\"\")","v":""},null,{"$f":"IF(ROW()<=B$3,INDEX(FP!G:G,B$2+ROW()-1),\"\")","v":""},null,{"$f":"IF(ROW()<=B$3,INDEX(FP!C:C,B$2+ROW()-1),\"\")","v":""},"","","",99,{"$f":"$A20","v":""},99]
[{"$f":"IF(ROW()<=B$3,INDEX(FP!F:F,B$2+ROW()-1)&\" - \"&INDEX(FP!C:C,B$2+ROW()-1),\"\")","v":""},null,{"$f":"IF(ROW()<=B$3,INDEX(FP!E:E,B$2+ROW()-1),\"\")","v":""},{"$f":"IF(ROW()<=B$3,INDEX(FP!F:F,B$2+ROW()-1),\"\")","v":""},null,{"$f":"IF(ROW()<=B$3,INDEX(FP!G:G,B$2+ROW()-1),\"\")","v":""},null,{"$f":"IF(ROW()<=B$3,INDEX(FP!C:C,B$2+ROW()-1),\"\")","v":""},"","","",99,"AAA","HHH"]
[{"$f":"IF(ROW()<=B$3,INDEX(FP!F:F,B$2+ROW()-1)&\" - \"&INDEX(FP!C:C,B$2+ROW()-1),\"\")","v":""},null,{"$f":"IF(ROW()<=B$3,INDEX(FP!E:E,B$2+ROW()-1),\"\")","v":""},{"$f":"IF(ROW()<=B$3,INDEX(FP!F:F,B$2+ROW()-1),\"\")","v":""},null,{"$f":"IF(ROW()<=B$3,INDEX(FP!G:G,B$2+ROW()-1),\"\")","v":""},null,{"$f":"IF(ROW()<=B$3,INDEX(FP!C:C,B$2+ROW()-1),\"\")","v":""},"","","",99,{"$f":"$A22","v":""},99]
[{"$f":"IF(ROW()<=B$3,INDEX(FP!F:F,B$2+ROW()-1)&\" - \"&INDEX(FP!C:C,B$2+ROW()-1),\"\")","v":""},null,{"$f":"IF(ROW()<=B$3,INDEX(FP!E:E,B$2+ROW()-1),\"\")","v":""},{"$f":"IF(ROW()<=B$3,INDEX(FP!F:F,B$2+ROW()-1),\"\")","v":""},null,{"$f":"IF(ROW()<=B$3,INDEX(FP!G:G,B$2+ROW()-1),\"\")","v":""},null,{"$f":"IF(ROW()<=B$3,INDEX(FP!C:C,B$2+ROW()-1),\"\")","v":""},"","","",99,"AAA","HHH"]
[{"$f":"IF(ROW()<=B$3,INDEX(FP!F:F,B$2+ROW()-1)&\" - \"&INDEX(FP!C:C,B$2+ROW()-1),\"\")","v":""},null,{"$f":"IF(ROW()<=B$3,INDEX(FP!E:E,B$2+ROW()-1),\"\")","v":""},{"$f":"IF(ROW()<=B$3,INDEX(FP!F:F,B$2+ROW()-1),\"\")","v":""},null,{"$f":"IF(ROW()<=B$3,INDEX(FP!G:G,B$2+ROW()-1),\"\")","v":""},null,{"$f":"IF(ROW()<=B$3,INDEX(FP!C:C,B$2+ROW()-1),\"\")","v":""},"","","",99,{"$f":"$A24","v":""},99]
[{"$f":"IF(ROW()<=B$3,INDEX(FP!F:F,B$2+ROW()-1)&\" - \"&INDEX(FP!C:C,B$2+ROW()-1),\"\")","v":""},null,{"$f":"IF(ROW()<=B$3,INDEX(FP!E:E,B$2+ROW()-1),\"\")","v":""},{"$f":"IF(ROW()<=B$3,INDEX(FP!F:F,B$2+ROW()-1),\"\")","v":""},null,{"$f":"IF(ROW()<=B$3,INDEX(FP!G:G,B$2+ROW()-1),\"\")","v":""},null,{"$f":"IF(ROW()<=B$3,INDEX(FP!C:C,B$2+ROW()-1),\"\")","v":""},"","","",99,"AAA","HHH"]
[{"$f":"IF(ROW()<=B$3,INDEX(FP!F:F,B$2+ROW()-1)&\" - \"&INDEX(FP!C:C,B$2+ROW()-1),\"\")","v":""},null,{"$f":"IF(ROW()<=B$3,INDEX(FP!E:E,B$2+ROW()-1),\"\")","v":""},{"$f":"IF(ROW()<=B$3,INDEX(FP!F:F,B$2+ROW()-1),\"\")","v":""},null,{"$f":"IF(ROW()<=B$3,INDEX(FP!G:G,B$2+ROW()-1),\"\")","v":""},null,{"$f":"IF(ROW()<=B$3,INDEX(FP!C:C,B$2+ROW()-1),\"\")","v":""},"","","",99,{"$f":"$A26","v":""},99]
[{"$f":"IF(ROW()<=B$3,INDEX(FP!F:F,B$2+ROW()-1)&\" - \"&INDEX(FP!C:C,B$2+ROW()-1),\"\")","v":""},null,{"$f":"IF(ROW()<=B$3,INDEX(FP!E:E,B$2+ROW()-1),\"\")","v":""},{"$f":"IF(ROW()<=B$3,INDEX(FP!F:F,B$2+ROW()-1),\"\")","v":""},null,{"$f":"IF(ROW()<=B$3,INDEX(FP!G:G,B$2+ROW()-1),\"\")","v":""},null,{"$f":"IF(ROW()<=B$3,INDEX(FP!C:C,B$2+ROW()-1),\"\")","v":""},"","","",99,"AAA","HHH"]
[{"$f":"IF(ROW()<=B$3,INDEX(FP!F:F,B$2+ROW()-1)&\" - \"&INDEX(FP!C:C,B$2+ROW()-1),\"\")","v":""},null,{"$f":"IF(ROW()<=B$3,INDEX(FP!E:E,B$2+ROW()-1),\"\")","v":""},{"$f":"IF(ROW()<=B$3,INDEX(FP!F:F,B$2+ROW()-1),\"\")","v":""},null,{"$f":"IF(ROW()<=B$3,INDEX(FP!G:G,B$2+ROW()-1),\"\")","v":""},null,{"$f":"IF(ROW()<=B$3,INDEX(FP!C:C,B$2+ROW()-1),\"\")","v":""},"","","",99,{"$f":"$A28","v":""},99]
[{"$f":"IF(ROW()<=B$3,INDEX(FP!F:F,B$2+ROW()-1)&\" - \"&INDEX(FP!C:C,B$2+ROW()-1),\"\")","v":""},null,{"$f":"IF(ROW()<=B$3,INDEX(FP!E:E,B$2+ROW()-1),\"\")","v":""},{"$f":"IF(ROW()<=B$3,INDEX(FP!F:F,B$2+ROW()-1),\"\")","v":""},null,{"$f":"IF(ROW()<=B$3,INDEX(FP!G:G,B$2+ROW()-1),\"\")","v":""},null,{"$f":"IF(ROW()<=B$3,INDEX(FP!C:C,B$2+ROW()-1),\"\")","v":""},"","","",99,"AAA","HHH"]
[{"$f":"IF(ROW()<=B$3,INDEX(FP!F:F,B$2+ROW()-1)&\" - \"&INDEX(FP!C:C,B$2+ROW()-1),\"\")","v":""},null,{"$f":"IF(ROW()<=B$3,INDEX(FP!E:E,B$2+ROW()-1),\"\")","v":""},{"$f":"IF(ROW()<=B$3,INDEX(FP!F:F,B$2+ROW()-1),\"\")","v":""},null,{"$f":"IF(ROW()<=B$3,INDEX(FP!G:G,B$2+ROW()-1),\"\")","v":""},null,{"$f":"IF(ROW()<=B$3,INDEX(FP!C:C,B$2+ROW()-1),\"\")","v":""},"","","",99,{"$f":"$A30","v":""},99]
[{"$f":"IF(ROW()<=B$3,INDEX(FP!F:F,B$2+ROW()-1)&\" - \"&INDEX(FP!C:C,B$2+ROW()-1),\"\")","v":""},null,{"$f":"IF(ROW()<=B$3,INDEX(FP!E:E,B$2+ROW()-1),\"\")","v":""},{"$f":"IF(ROW()<=B$3,INDEX(FP!F:F,B$2+ROW()-1),\"\")","v":""},null,{"$f":"IF(ROW()<=B$3,INDEX(FP!G:G,B$2+ROW()-1),\"\")","v":""},null,{"$f":"IF(ROW()<=B$3,INDEX(FP!C:C,B$2+ROW()-1),\"\")","v":""},"","","",99,"AAA","HHH"]
[{"$f":"IF(ROW()<=B$3,INDEX(FP!F:F,B$2+ROW()-1)&\" - \"&INDEX(FP!C:C,B$2+ROW()-1),\"\")","v":""},null,{"$f":"IF(ROW()<=B$3,INDEX(FP!E:E,B$2+ROW()-1),\"\")","v":""},{"$f":"IF(ROW()<=B$3,INDEX(FP!F:F,B$2+ROW()-1),\"\")","v":""},null,{"$f":"IF(ROW()<=B$3,INDEX(FP!G:G,B$2+ROW()-1),\"\")","v":""},null,{"$f":"IF(ROW()<=B$3,INDEX(FP!C:C,B$2+ROW()-1),\"\")","v":""},{"$f":"IF(ROW()<=B$3,SUMIF(A$107:A$10042,A33,I$107:I$10042),\"\")","v":""},{"$f":"IF(ROW()<=B$3,SUMIFS(I$103:I$50042,A$103:A$50042,K33,J$103:J$50042,L33),\"\")","v":""},"",99,{"$f":"$A32","v":""},99]
[{"$f":"IF(ROW()<=B$3,INDEX(FP!F:F,B$2+ROW()-1)&\" - \"&INDEX(FP!C:C,B$2+ROW()-1),\"\")","v":""},null,{"$f":"IF(ROW()<=B$3,INDEX(FP!E:E,B$2+ROW()-1),\"\")","v":""},{"$f":"IF(ROW()<=B$3,INDEX(FP!F:F,B$2+ROW()-1),\"\")","v":""},null,{"$f":"IF(ROW()<=B$3,INDEX(FP!G:G,B$2+ROW()-1),\"\")","v":""},null,{"$f":"IF(ROW()<=B$3,INDEX(FP!C:C,B$2+ROW()-1),\"\")","v":""},"","","",99,"AAA","HHH"]
[{"$f":"IF(ROW()<=B$3,INDEX(FP!F:F,B$2+ROW()-1)&\" - \"&INDEX(FP!C:C,B$2+ROW()-1),\"\")","v":""},null,{"$f":"IF(ROW()<=B$3,INDEX(FP!E:E,B$2+ROW()-1),\"\")","v":""},{"$f":"IF(ROW()<=B$3,INDEX(FP!F:F,B$2+ROW()-1),\"\")","v":""},null,{"$f":"IF(ROW()<=B$3,INDEX(FP!G:G,B$2+ROW()-1),\"\")","v":""},null,{"$f":"IF(ROW()<=B$3,INDEX(FP!C:C,B$2+ROW()-1),\"\")","v":""},"","","",99,{"$f":"$A34","v":""},99]
[{"$f":"IF(ROW()<=B$3,INDEX(FP!F:F,B$2+ROW()-1)&\" - \"&INDEX(FP!C:C,B$2+ROW()-1),\"\")","v":""},null,{"$f":"IF(ROW()<=B$3,INDEX(FP!E:E,B$2+ROW()-1),\"\")","v":""},{"$f":"IF(ROW()<=B$3,INDEX(FP!F:F,B$2+ROW()-1),\"\")","v":""},null,{"$f":"IF(ROW()<=B$3,INDEX(FP!G:G,B$2+ROW()-1),\"\")","v":""},null,{"$f":"IF(ROW()<=B$3,INDEX(FP!C:C,B$2+ROW()-1),\"\")","v":""},"","","",99,"AAA","HHH"]
[{"$f":"IF(ROW()<=B$3,INDEX(FP!F:F,B$2+ROW()-1)&\" - \"&INDEX(FP!C:C,B$2+ROW()-1),\"\")","v":""},null,{"$f":"IF(ROW()<=B$3,INDEX(FP!E:E,B$2+ROW()-1),\"\")","v":""},{"$f":"IF(ROW()<=B$3,INDEX(FP!F:F,B$2+ROW()-1),\"\")","v":""},null,{"$f":"IF(ROW()<=B$3,INDEX(FP!G:G,B$2+ROW()-1),\"\")","v":""},null,{"$f":"IF(ROW()<=B$3,INDEX(FP!C:C,B$2+ROW()-1),\"\")","v":""},"","","",99,{"$f":"$A36","v":""},99]
[{"$f":"IF(ROW()<=B$3,INDEX(FP!F:F,B$2+ROW()-1)&\" - \"&INDEX(FP!C:C,B$2+ROW()-1),\"\")","v":""},null,{"$f":"IF(ROW()<=B$3,INDEX(FP!E:E,B$2+ROW()-1),\"\")","v":""},{"$f":"IF(ROW()<=B$3,INDEX(FP!F:F,B$2+ROW()-1),\"\")","v":""},null,{"$f":"IF(ROW()<=B$3,INDEX(FP!G:G,B$2+ROW()-1),\"\")","v":""},null,{"$f":"IF(ROW()<=B$3,INDEX(FP!C:C,B$2+ROW()-1),\"\")","v":""},"","","",99,"AAA","HHH"]
[{"$f":"IF(ROW()<=B$3,INDEX(FP!F:F,B$2+ROW()-1)&\" - \"&INDEX(FP!C:C,B$2+ROW()-1),\"\")","v":""},null,{"$f":"IF(ROW()<=B$3,INDEX(FP!E:E,B$2+ROW()-1),\"\")","v":""},{"$f":"IF(ROW()<=B$3,INDEX(FP!F:F,B$2+ROW()-1),\"\")","v":""},null,{"$f":"IF(ROW()<=B$3,INDEX(FP!G:G,B$2+ROW()-1),\"\")","v":""},null,{"$f":"IF(ROW()<=B$3,INDEX(FP!C:C,B$2+ROW()-1),\"\")","v":""},"","","",99,{"$f":"$A38","v":""},99]
[{"$f":"IF(ROW()<=B$3,INDEX(FP!F:F,B$2+ROW()-1)&\" - \"&INDEX(FP!C:C,B$2+ROW()-1),\"\")","v":""},null,{"$f":"IF(ROW()<=B$3,INDEX(FP!E:E,B$2+ROW()-1),\"\")","v":""},{"$f":"IF(ROW()<=B$3,INDEX(FP!F:F,B$2+ROW()-1),\"\")","v":""},null,{"$f":"IF(ROW()<=B$3,INDEX(FP!G:G,B$2+ROW()-1),\"\")","v":""},null,{"$f":"IF(ROW()<=B$3,INDEX(FP!C:C,B$2+ROW()-1),\"\")","v":""},"","","",99,"AAA","HHH"]
[{"$f":"IF(ROW()<=B$3,INDEX(FP!F:F,B$2+ROW()-1)&\" - \"&INDEX(FP!C:C,B$2+ROW()-1),\"\")","v":""},null,{"$f":"IF(ROW()<=B$3,INDEX(FP!E:E,B$2+ROW()-1),\"\")","v":""},{"$f":"IF(ROW()<=B$3,INDEX(FP!F:F,B$2+ROW()-1),\"\")","v":""},null,{"$f":"IF(ROW()<=B$3,INDEX(FP!G:G,B$2+ROW()-1),\"\")","v":""},null,{"$f":"IF(ROW()<=B$3,INDEX(FP!C:C,B$2+ROW()-1),\"\")","v":""},"","","",99,{"$f":"$A40","v":""},99]
[{"$f":"IF(ROW()<=B$3,INDEX(FP!F:F,B$2+ROW()-1)&\" - \"&INDEX(FP!C:C,B$2+ROW()-1),\"\")","v":""},null,{"$f":"IF(ROW()<=B$3,INDEX(FP!E:E,B$2+ROW()-1),\"\")","v":""},{"$f":"IF(ROW()<=B$3,INDEX(FP!F:F,B$2+ROW()-1),\"\")","v":""},null,{"$f":"IF(ROW()<=B$3,INDEX(FP!G:G,B$2+ROW()-1),\"\")","v":""},null,{"$f":"IF(ROW()<=B$3,INDEX(FP!C:C,B$2+ROW()-1),\"\")","v":""},"","","",99,"AAA","HHH"]
[{"$f":"IF(ROW()<=B$3,INDEX(FP!F:F,B$2+ROW()-1)&\" - \"&INDEX(FP!C:C,B$2+ROW()-1),\"\")","v":""},null,{"$f":"IF(ROW()<=B$3,INDEX(FP!E:E,B$2+ROW()-1),\"\")","v":""},{"$f":"IF(ROW()<=B$3,INDEX(FP!F:F,B$2+ROW()-1),\"\")","v":""},null,{"$f":"IF(ROW()<=B$3,INDEX(FP!G:G,B$2+ROW()-1),\"\")","v":""},null,{"$f":"IF(ROW()<=B$3,INDEX(FP!C:C,B$2+ROW()-1),\"\")","v":""},"","","",99,{"$f":"$A42","v":""},99]
[{"$f":"IF(ROW()<=B$3,INDEX(FP!F:F,B$2+ROW()-1)&\" - \"&INDEX(FP!C:C,B$2+ROW()-1),\"\")","v":""},null,{"$f":"IF(ROW()<=B$3,INDEX(FP!E:E,B$2+ROW()-1),\"\")","v":""},{"$f":"IF(ROW()<=B$3,INDEX(FP!F:F,B$2+ROW()-1),\"\")","v":""},null,{"$f":"IF(ROW()<=B$3,INDEX(FP!G:G,B$2+ROW()-1),\"\")","v":""},null,{"$f":"IF(ROW()<=B$3,INDEX(FP!C:C,B$2+ROW()-1),\"\")","v":""},"","","",99,"AAA","HHH"]
[{"$f":"IF(ROW()<=B$3,INDEX(FP!F:F,B$2+ROW()-1)&\" - \"&INDEX(FP!C:C,B$2+ROW()-1),\"\")","v":""},null,{"$f":"IF(ROW()<=B$3,INDEX(FP!E:E,B$2+ROW()-1),\"\")","v":""},{"$f":"IF(ROW()<=B$3,INDEX(FP!F:F,B$2+ROW()-1),\"\")","v":""},null,{"$f":"IF(ROW()<=B$3,INDEX(FP!G:G,B$2+ROW()-1),\"\")","v":""},null,{"$f":"IF(ROW()<=B$3,INDEX(FP!C:C,B$2+ROW()-1),\"\")","v":""},"","","",99,{"$f":"$A44","v":""},99]
[{"$f":"IF(ROW()<=B$3,INDEX(FP!F:F,B$2+ROW()-1)&\" - \"&INDEX(FP!C:C,B$2+ROW()-1),\"\")","v":""},null,{"$f":"IF(ROW()<=B$3,INDEX(FP!E:E,B$2+ROW()-1),\"\")","v":""},{"$f":"IF(ROW()<=B$3,INDEX(FP!F:F,B$2+ROW()-1),\"\")","v":""},null,{"$f":"IF(ROW()<=B$3,INDEX(FP!G:G,B$2+ROW()-1),\"\")","v":""},null,{"$f":"IF(ROW()<=B$3,INDEX(FP!C:C,B$2+ROW()-1),\"\")","v":""},"","","",99,"AAA","HHH"]
[{"$f":"IF(ROW()<=B$3,INDEX(FP!F:F,B$2+ROW()-1)&\" - \"&INDEX(FP!C:C,B$2+ROW()-1),\"\")","v":""},null,{"$f":"IF(ROW()<=B$3,INDEX(FP!E:E,B$2+ROW()-1),\"\")","v":""},{"$f":"IF(ROW()<=B$3,INDEX(FP!F:F,B$2+ROW()-1),\"\")","v":""},null,{"$f":"IF(ROW()<=B$3,INDEX(FP!G:G,B$2+ROW()-1),\"\")","v":""},null,{"$f":"IF(ROW()<=B$3,INDEX(FP!C:C,B$2+ROW()-1),\"\")","v":""},"","","",99,{"$f":"$A46","v":""},99]
[{"$f":"IF(ROW()<=B$3,INDEX(FP!F:F,B$2+ROW()-1)&\" - \"&INDEX(FP!C:C,B$2+ROW()-1),\"\")","v":""},null,{"$f":"IF(ROW()<=B$3,INDEX(FP!E:E,B$2+ROW()-1),\"\")","v":""},{"$f":"IF(ROW()<=B$3,INDEX(FP!F:F,B$2+ROW()-1),\"\")","v":""},null,{"$f":"IF(ROW()<=B$3,INDEX(FP!G:G,B$2+ROW()-1),\"\")","v":""},null,{"$f":"IF(ROW()<=B$3,INDEX(FP!C:C,B$2+ROW()-1),\"\")","v":""},"","","",99,"AAA","HHH"]
[{"$f":"IF(ROW()<=B$3,INDEX(FP!F:F,B$2+ROW()-1)&\" - \"&INDEX(FP!C:C,B$2+ROW()-1),\"\")","v":""},null,{"$f":"IF(ROW()<=B$3,INDEX(FP!E:E,B$2+ROW()-1),\"\")","v":""},{"$f":"IF(ROW()<=B$3,INDEX(FP!F:F,B$2+ROW()-1),\"\")","v":""},null,{"$f":"IF(ROW()<=B$3,INDEX(FP!G:G,B$2+ROW()-1),\"\")","v":""},null,{"$f":"IF(ROW()<=B$3,INDEX(FP!C:C,B$2+ROW()-1),\"\")","v":""},"","","",99,{"$f":"$A48","v":""},99]
[{"$f":"IF(ROW()<=B$3,INDEX(FP!F:F,B$2+ROW()-1)&\" - \"&INDEX(FP!C:C,B$2+ROW()-1),\"\")","v":""},null,{"$f":"IF(ROW()<=B$3,INDEX(FP!E:E,B$2+ROW()-1),\"\")","v":""},{"$f":"IF(ROW()<=B$3,INDEX(FP!F:F,B$2+ROW()-1),\"\")","v":""},null,{"$f":"IF(ROW()<=B$3,INDEX(FP!G:G,B$2+ROW()-1),\"\")","v":""},null,{"$f":"IF(ROW()<=B$3,INDEX(FP!C:C,B$2+ROW()-1),\"\")","v":""},"","","",99,"AAA","HHH"]
[{"$f":"IF(ROW()<=B$3,INDEX(FP!F:F,B$2+ROW()-1)&\" - \"&INDEX(FP!C:C,B$2+ROW()-1),\"\")","v":""},null,{"$f":"IF(ROW()<=B$3,INDEX(FP!E:E,B$2+ROW()-1),\"\")","v":""},{"$f":"IF(ROW()<=B$3,INDEX(FP!F:F,B$2+ROW()-1),\"\")","v":""},null,{"$f":"IF(ROW()<=B$3,INDEX(FP!G:G,B$2+ROW()-1),\"\")","v":""},null,{"$f":"IF(ROW()<=B$3,INDEX(FP!C:C,B$2+ROW()-1),\"\")","v":""},"","","",99,{"$f":"$A50","v":""},99]
[{"$f":"IF(ROW()<=B$3,INDEX(FP!F:F,B$2+ROW()-1)&\" - \"&INDEX(FP!C:C,B$2+ROW()-1),\"\")","v":""},null,{"$f":"IF(ROW()<=B$3,INDEX(FP!E:E,B$2+ROW()-1),\"\")","v":""},{"$f":"IF(ROW()<=B$3,INDEX(FP!F:F,B$2+ROW()-1),\"\")","v":""},null,{"$f":"IF(ROW()<=B$3,INDEX(FP!G:G,B$2+ROW()-1),\"\")","v":""},null,{"$f":"IF(ROW()<=B$3,INDEX(FP!C:C,B$2+ROW()-1),\"\")","v":""},"","","",99,"AAA","HHH"]
[{"$f":"IF(ROW()<=B$3,INDEX(FP!F:F,B$2+ROW()-1)&\" - \"&INDEX(FP!C:C,B$2+ROW()-1),\"\")","v":""},null,{"$f":"IF(ROW()<=B$3,INDEX(FP!E:E,B$2+ROW()-1),\"\")","v":""},{"$f":"IF(ROW()<=B$3,INDEX(FP!F:F,B$2+ROW()-1),\"\")","v":""},null,{"$f":"IF(ROW()<=B$3,INDEX(FP!G:G,B$2+ROW()-1),\"\")","v":""},null,{"$f":"IF(ROW()<=B$3,INDEX(FP!C:C,B$2+ROW()-1),\"\")","v":""},"","","",99,{"$f":"$A52","v":""},99]
[{"$f":"IF(ROW()<=B$3,INDEX(FP!F:F,B$2+ROW()-1)&\" - \"&INDEX(FP!C:C,B$2+ROW()-1),\"\")","v":""},null,{"$f":"IF(ROW()<=B$3,INDEX(FP!E:E,B$2+ROW()-1),\"\")","v":""},{"$f":"IF(ROW()<=B$3,INDEX(FP!F:F,B$2+ROW()-1),\"\")","v":""},null,{"$f":"IF(ROW()<=B$3,INDEX(FP!G:G,B$2+ROW()-1),\"\")","v":""},null,{"$f":"IF(ROW()<=B$3,INDEX(FP!C:C,B$2+ROW()-1),\"\")","v":""},"","","",99,"AAA","HHH"]
[{"$f":"IF(ROW()<=B$3,INDEX(FP!F:F,B$2+ROW()-1)&\" - \"&INDEX(FP!C:C,B$2+ROW()-1),\"\")","v":""},null,{"$f":"IF(ROW()<=B$3,INDEX(FP!E:E,B$2+ROW()-1),\"\")","v":""},{"$f":"IF(ROW()<=B$3,INDEX(FP!F:F,B$2+ROW()-1),\"\")","v":""},null,{"$f":"IF(ROW()<=B$3,INDEX(FP!G:G,B$2+ROW()-1),\"\")","v":""},null,{"$f":"IF(ROW()<=B$3,INDEX(FP!C:C,B$2+ROW()-1),\"\")","v":""},"","","",99,{"$f":"$A54","v":""},99]
[{"$f":"IF(ROW()<=B$3,INDEX(FP!F:F,B$2+ROW()-1)&\" - \"&INDEX(FP!C:C,B$2+ROW()-1),\"\")","v":""},null,{"$f":"IF(ROW()<=B$3,INDEX(FP!E:E,B$2+ROW()-1),\"\")","v":""},{"$f":"IF(ROW()<=B$3,INDEX(FP!F:F,B$2+ROW()-1),\"\")","v":""},null,{"$f":"IF(ROW()<=B$3,INDEX(FP!G:G,B$2+ROW()-1),\"\")","v":""},null,{"$f":"IF(ROW()<=B$3,INDEX(FP!C:C,B$2+ROW()-1),\"\")","v":""},"","","",99,"AAA","HHH"]
[{"$f":"IF(ROW()<=B$3,INDEX(FP!F:F,B$2+ROW()-1)&\" - \"&INDEX(FP!C:C,B$2+ROW()-1),\"\")","v":""},null,{"$f":"IF(ROW()<=B$3,INDEX(FP!E:E,B$2+ROW()-1),\"\")","v":""},{"$f":"IF(ROW()<=B$3,INDEX(FP!F:F,B$2+ROW()-1),\"\")","v":""},null,{"$f":"IF(ROW()<=B$3,INDEX(FP!G:G,B$2+ROW()-1),\"\")","v":""},null,{"$f":"IF(ROW()<=B$3,INDEX(FP!C:C,B$2+ROW()-1),\"\")","v":""},"","","",99,{"$f":"$A56","v":""},99]
[{"$f":"IF(ROW()<=B$3,INDEX(FP!F:F,B$2+ROW()-1)&\" - \"&INDEX(FP!C:C,B$2+ROW()-1),\"\")","v":""},null,{"$f":"IF(ROW()<=B$3,INDEX(FP!E:E,B$2+ROW()-1),\"\")","v":""},{"$f":"IF(ROW()<=B$3,INDEX(FP!F:F,B$2+ROW()-1),\"\")","v":""},null,{"$f":"IF(ROW()<=B$3,INDEX(FP!G:G,B$2+ROW()-1),\"\")","v":""},null,{"$f":"IF(ROW()<=B$3,INDEX(FP!C:C,B$2+ROW()-1),\"\")","v":""},"","","",99,"AAA","HHH"]
[{"$f":"IF(ROW()<=B$3,INDEX(FP!F:F,B$2+ROW()-1)&\" - \"&INDEX(FP!C:C,B$2+ROW()-1),\"\")","v":""},null,{"$f":"IF(ROW()<=B$3,INDEX(FP!E:E,B$2+ROW()-1),\"\")","v":""},{"$f":"IF(ROW()<=B$3,INDEX(FP!F:F,B$2+ROW()-1),\"\")","v":""},null,{"$f":"IF(ROW()<=B$3,INDEX(FP!G:G,B$2+ROW()-1),\"\")","v":""},null,{"$f":"IF(ROW()<=B$3,INDEX(FP!C:C,B$2+ROW()-1),\"\")","v":""},"","","",99,{"$f":"$A58","v":""},99]
[{"$f":"IF(ROW()<=B$3,INDEX(FP!F:F,B$2+ROW()-1)&\" - \"&INDEX(FP!C:C,B$2+ROW()-1),\"\")","v":""},null,{"$f":"IF(ROW()<=B$3,INDEX(FP!E:E,B$2+ROW()-1),\"\")","v":""},{"$f":"IF(ROW()<=B$3,INDEX(FP!F:F,B$2+ROW()-1),\"\")","v":""},null,{"$f":"IF(ROW()<=B$3,INDEX(FP!G:G,B$2+ROW()-1),\"\")","v":""},null,{"$f":"IF(ROW()<=B$3,INDEX(FP!C:C,B$2+ROW()-1),\"\")","v":""},"","","",99,"AAA","HHH"]
[{"$f":"IF(ROW()<=B$3,INDEX(FP!F:F,B$2+ROW()-1)&\" - \"&INDEX(FP!C:C,B$2+ROW()-1),\"\")","v":""},null,{"$f":"IF(ROW()<=B$3,INDEX(FP!E:E,B$2+ROW()-1),\"\")","v":""},{"$f":"IF(ROW()<=B$3,INDEX(FP!F:F,B$2+ROW()-1),\"\")","v":""},null,{"$f":"IF(ROW()<=B$3,INDEX(FP!G:G,B$2+ROW()-1),\"\")","v":""},null,{"$f":"IF(ROW()<=B$3,INDEX(FP!C:C,B$2+ROW()-1),\"\")","v":""},"","","",99,{"$f":"$A60","v":""},99]
[{"$f":"IF(ROW()<=B$3,INDEX(FP!F:F,B$2+ROW()-1)&\" - \"&INDEX(FP!C:C,B$2+ROW()-1),\"\")","v":""},null,{"$f":"IF(ROW()<=B$3,INDEX(FP!E:E,B$2+ROW()-1),\"\")","v":""},{"$f":"IF(ROW()<=B$3,INDEX(FP!F:F,B$2+ROW()-1),\"\")","v":""},null,{"$f":"IF(ROW()<=B$3,INDEX(FP!G:G,B$2+ROW()-1),\"\")","v":""},null,{"$f":"IF(ROW()<=B$3,INDEX(FP!C:C,B$2+ROW()-1),\"\")","v":""},"","","",99,"AAA","HHH"]
[{"$f":"IF(ROW()<=B$3,INDEX(FP!F:F,B$2+ROW()-1)&\" - \"&INDEX(FP!C:C,B$2+ROW()-1),\"\")","v":""},null,{"$f":"IF(ROW()<=B$3,INDEX(FP!E:E,B$2+ROW()-1),\"\")","v":""},{"$f":"IF(ROW()<=B$3,INDEX(FP!F:F,B$2+ROW()-1),\"\")","v":""},null,{"$f":"IF(ROW()<=B$3,INDEX(FP!G:G,B$2+ROW()-1),\"\")","v":""},null,{"$f":"IF(ROW()<=B$3,INDEX(FP!C:C,B$2+ROW()-1),\"\")","v":""},"","","",99,{"$f":"$A62","v":""},99]
[{"$f":"IF(ROW()<=B$3,INDEX(FP!F:F,B$2+ROW()-1)&\" - \"&INDEX(FP!C:C,B$2+ROW()-1),\"\")","v":""},null,{"$f":"IF(ROW()<=B$3,INDEX(FP!E:E,B$2+ROW()-1),\"\")","v":""},{"$f":"IF(ROW()<=B$3,INDEX(FP!F:F,B$2+ROW()-1),\"\")","v":""},null,{"$f":"IF(ROW()<=B$3,INDEX(FP!G:G,B$2+ROW()-1),\"\")","v":""},null,{"$f":"IF(ROW()<=B$3,INDEX(FP!C:C,B$2+ROW()-1),\"\")","v":""},"","","",99,"AAA","HHH"]
[{"$f":"IF(ROW()<=B$3,INDEX(FP!F:F,B$2+ROW()-1)&\" - \"&INDEX(FP!C:C,B$2+ROW()-1),\"\")","v":""},null,{"$f":"IF(ROW()<=B$3,INDEX(FP!E:E,B$2+ROW()-1),\"\")","v":""},{"$f":"IF(ROW()<=B$3,INDEX(FP!F:F,B$2+ROW()-1),\"\")","v":""},null,{"$f":"IF(ROW()<=B$3,INDEX(FP!G:G,B$2+ROW()-1),\"\")","v":""},null,{"$f":"IF(ROW()<=B$3,INDEX(FP!C:C,B$2+ROW()-1),\"\")","v":""},{"$f":"IF(ROW()<=B$3,SUMIF(A$107:A$10042,A65,I$107:I$10042),\"\")","v":""},{"$f":"IF(ROW()<=B$3,SUMIFS(I$103:I$50042,A$103:A$50042,K65,J$103:J$50042,L65),\"\")","v":""},"",99,{"$f":"$A64","v":""},99]
[{"$f":"IF(ROW()<=B$3,INDEX(FP!F:F,B$2+ROW()-1)&\" - \"&INDEX(FP!C:C,B$2+ROW()-1),\"\")","v":""},null,{"$f":"IF(ROW()<=B$3,INDEX(FP!E:E,B$2+ROW()-1),\"\")","v":""},{"$f":"IF(ROW()<=B$3,INDEX(FP!F:F,B$2+ROW()-1),\"\")","v":""},null,{"$f":"IF(ROW()<=B$3,INDEX(FP!G:G,B$2+ROW()-1),\"\")","v":""},null,{"$f":"IF(ROW()<=B$3,INDEX(FP!C:C,B$2+ROW()-1),\"\")","v":""},"","","",99,"AAA","HHH"]
[{"$f":"IF(ROW()<=B$3,INDEX(FP!F:F,B$2+ROW()-1)&\" - \"&INDEX(FP!C:C,B$2+ROW()-1),\"\")","v":""},null,{"$f":"IF(ROW()<=B$3,INDEX(FP!E:E,B$2+ROW()-1),\"\")","v":""},{"$f":"IF(ROW()<=B$3,INDEX(FP!F:F,B$2+ROW()-1),\"\")","v":""},null,{"$f":"IF(ROW()<=B$3,INDEX(FP!G:G,B$2+ROW()-1),\"\")","v":""},null,{"$f":"IF(ROW()<=B$3,INDEX(FP!C:C,B$2+ROW()-1),\"\")","v":""},"","",{"$f":"$A67","v":""},99,{"$f":"$A66","v":""},99]
[{"$f":"IF(ROW()<=B$3,INDEX(FP!F:F,B$2+ROW()-1)&\" - \"&INDEX(FP!C:C,B$2+ROW()-1),\"\")","v":""},null,{"$f":"IF(ROW()<=B$3,INDEX(FP!E:E,B$2+ROW()-1),\"\")","v":""},{"$f":"IF(ROW()<=B$3,INDEX(FP!F:F,B$2+ROW()-1),\"\")","v":""},null,{"$f":"IF(ROW()<=B$3,INDEX(FP!G:G,B$2+ROW()-1),\"\")","v":""},null,{"$f":"IF(ROW()<=B$3,INDEX(FP!C:C,B$2+ROW()-1),\"\")","v":""},"","","",99,"AAA","HHH"]
[{"$f":"IF(ROW()<=B$3,INDEX(FP!F:F,B$2+ROW()-1)&\" - \"&INDEX(FP!C:C,B$2+ROW()-1),\"\")","v":""},null,{"$f":"IF(ROW()<=B$3,INDEX(FP!E:E,B$2+ROW()-1),\"\")","v":""},{"$f":"IF(ROW()<=B$3,INDEX(FP!F:F,B$2+ROW()-1),\"\")","v":""},null,{"$f":"IF(ROW()<=B$3,INDEX(FP!G:G,B$2+ROW()-1),\"\")","v":""},null,{"$f":"IF(ROW()<=B$3,INDEX(FP!C:C,B$2+ROW()-1),\"\")","v":""},"","","",99,{"$f":"$A68","v":""},99]
[{"$f":"IF(ROW()<=B$3,INDEX(FP!F:F,B$2+ROW()-1)&\" - \"&INDEX(FP!C:C,B$2+ROW()-1),\"\")","v":""},null,{"$f":"IF(ROW()<=B$3,INDEX(FP!E:E,B$2+ROW()-1),\"\")","v":""},{"$f":"IF(ROW()<=B$3,INDEX(FP!F:F,B$2+ROW()-1),\"\")","v":""},null,{"$f":"IF(ROW()<=B$3,INDEX(FP!G:G,B$2+ROW()-1),\"\")","v":""},null,{"$f":"IF(ROW()<=B$3,INDEX(FP!C:C,B$2+ROW()-1),\"\")","v":""},"","","",99,"AAA","HHH"]
[{"$f":"IF(ROW()<=B$3,INDEX(FP!F:F,B$2+ROW()-1)&\" - \"&INDEX(FP!C:C,B$2+ROW()-1),\"\")","v":""},null,{"$f":"IF(ROW()<=B$3,INDEX(FP!E:E,B$2+ROW()-1),\"\")","v":""},{"$f":"IF(ROW()<=B$3,INDEX(FP!F:F,B$2+ROW()-1),\"\")","v":""},null,{"$f":"IF(ROW()<=B$3,INDEX(FP!G:G,B$2+ROW()-1),\"\")","v":""},null,{"$f":"IF(ROW()<=B$3,INDEX(FP!C:C,B$2+ROW()-1),\"\")","v":""},"","","",99,{"$f":"$A70","v":""},99]
[{"$f":"IF(ROW()<=B$3,INDEX(FP!F:F,B$2+ROW()-1)&\" - \"&INDEX(FP!C:C,B$2+ROW()-1),\"\")","v":""},null,{"$f":"IF(ROW()<=B$3,INDEX(FP!E:E,B$2+ROW()-1),\"\")","v":""},{"$f":"IF(ROW()<=B$3,INDEX(FP!F:F,B$2+ROW()-1),\"\")","v":""},null,{"$f":"IF(ROW()<=B$3,INDEX(FP!G:G,B$2+ROW()-1),\"\")","v":""},null,{"$f":"IF(ROW()<=B$3,INDEX(FP!C:C,B$2+ROW()-1),\"\")","v":""},"","","",99,"AAA","HHH"]
[{"$f":"IF(ROW()<=B$3,INDEX(FP!F:F,B$2+ROW()-1)&\" - \"&INDEX(FP!C:C,B$2+ROW()-1),\"\")","v":""},null,{"$f":"IF(ROW()<=B$3,INDEX(FP!E:E,B$2+ROW()-1),\"\")","v":""},{"$f":"IF(ROW()<=B$3,INDEX(FP!F:F,B$2+ROW()-1),\"\")","v":""},null,{"$f":"IF(ROW()<=B$3,INDEX(FP!G:G,B$2+ROW()-1),\"\")","v":""},null,{"$f":"IF(ROW()<=B$3,INDEX(FP!C:C,B$2+ROW()-1),\"\")","v":""},"","","",99,{"$f":"$A72","v":""},99]
[{"$f":"IF(ROW()<=B$3,INDEX(FP!F:F,B$2+ROW()-1)&\" - \"&INDEX(FP!C:C,B$2+ROW()-1),\"\")","v":""},null,{"$f":"IF(ROW()<=B$3,INDEX(FP!E:E,B$2+ROW()-1),\"\")","v":""},{"$f":"IF(ROW()<=B$3,INDEX(FP!F:F,B$2+ROW()-1),\"\")","v":""},null,{"$f":"IF(ROW()<=B$3,INDEX(FP!G:G,B$2+ROW()-1),\"\")","v":""},null,{"$f":"IF(ROW()<=B$3,INDEX(FP!C:C,B$2+ROW()-1),\"\")","v":""},"","","",99,"AAA","HHH"]
[{"$f":"IF(ROW()<=B$3,INDEX(FP!F:F,B$2+ROW()-1)&\" - \"&INDEX(FP!C:C,B$2+ROW()-1),\"\")","v":""},null,{"$f":"IF(ROW()<=B$3,INDEX(FP!E:E,B$2+ROW()-1),\"\")","v":""},{"$f":"IF(ROW()<=B$3,INDEX(FP!F:F,B$2+ROW()-1),\"\")","v":""},null,{"$f":"IF(ROW()<=B$3,INDEX(FP!G:G,B$2+ROW()-1),\"\")","v":""},null,{"$f":"IF(ROW()<=B$3,INDEX(FP!C:C,B$2+ROW()-1),\"\")","v":""},"","","",99,{"$f":"$A74","v":""},99]
[{"$f":"IF(ROW()<=B$3,INDEX(FP!F:F,B$2+ROW()-1)&\" - \"&INDEX(FP!C:C,B$2+ROW()-1),\"\")","v":""},null,{"$f":"IF(ROW()<=B$3,INDEX(FP!E:E,B$2+ROW()-1),\"\")","v":""},{"$f":"IF(ROW()<=B$3,INDEX(FP!F:F,B$2+ROW()-1),\"\")","v":""},null,{"$f":"IF(ROW()<=B$3,INDEX(FP!G:G,B$2+ROW()-1),\"\")","v":""},null,{"$f":"IF(ROW()<=B$3,INDEX(FP!C:C,B$2+ROW()-1),\"\")","v":""},"","","",99,"AAA","HHH"]
[{"$f":"IF(ROW()<=B$3,INDEX(FP!F:F,B$2+ROW()-1)&\" - \"&INDEX(FP!C:C,B$2+ROW()-1),\"\")","v":""},null,{"$f":"IF(ROW()<=B$3,INDEX(FP!E:E,B$2+ROW()-1),\"\")","v":""},{"$f":"IF(ROW()<=B$3,INDEX(FP!F:F,B$2+ROW()-1),\"\")","v":""},null,{"$f":"IF(ROW()<=B$3,INDEX(FP!G:G,B$2+ROW()-1),\"\")","v":""},null,{"$f":"IF(ROW()<=B$3,INDEX(FP!C:C,B$2+ROW()-1),\"\")","v":""},"","","",99,{"$f":"$A76","v":""},99]
[{"$f":"IF(ROW()<=B$3,INDEX(FP!F:F,B$2+ROW()-1)&\" - \"&INDEX(FP!C:C,B$2+ROW()-1),\"\")","v":""},null,{"$f":"IF(ROW()<=B$3,INDEX(FP!E:E,B$2+ROW()-1),\"\")","v":""},{"$f":"IF(ROW()<=B$3,INDEX(FP!F:F,B$2+ROW()-1),\"\")","v":""},null,{"$f":"IF(ROW()<=B$3,INDEX(FP!G:G,B$2+ROW()-1),\"\")","v":""},null,{"$f":"IF(ROW()<=B$3,INDEX(FP!C:C,B$2+ROW()-1),\"\")","v":""},"","","",99,"AAA","HHH"]
[{"$f":"IF(ROW()<=B$3,INDEX(FP!F:F,B$2+ROW()-1)&\" - \"&INDEX(FP!C:C,B$2+ROW()-1),\"\")","v":""},null,{"$f":"IF(ROW()<=B$3,INDEX(FP!E:E,B$2+ROW()-1),\"\")","v":""},{"$f":"IF(ROW()<=B$3,INDEX(FP!F:F,B$2+ROW()-1),\"\")","v":""},null,{"$f":"IF(ROW()<=B$3,INDEX(FP!G:G,B$2+ROW()-1),\"\")","v":""},null,{"$f":"IF(ROW()<=B$3,INDEX(FP!C:C,B$2+ROW()-1),\"\")","v":""},"","","",99,{"$f":"$A78","v":""},99]
[{"$f":"IF(ROW()<=B$3,INDEX(FP!F:F,B$2+ROW()-1)&\" - \"&INDEX(FP!C:C,B$2+ROW()-1),\"\")","v":""},null,{"$f":"IF(ROW()<=B$3,INDEX(FP!E:E,B$2+ROW()-1),\"\")","v":""},{"$f":"IF(ROW()<=B$3,INDEX(FP!F:F,B$2+ROW()-1),\"\")","v":""},null,{"$f":"IF(ROW()<=B$3,INDEX(FP!G:G,B$2+ROW()-1),\"\")","v":""},null,{"$f":"IF(ROW()<=B$3,INDEX(FP!C:C,B$2+ROW()-1),\"\")","v":""},"","","",99,"AAA","HHH"]
[{"$f":"IF(ROW()<=B$3,INDEX(FP!F:F,B$2+ROW()-1)&\" - \"&INDEX(FP!C:C,B$2+ROW()-1),\"\")","v":""},null,{"$f":"IF(ROW()<=B$3,INDEX(FP!E:E,B$2+ROW()-1),\"\")","v":""},{"$f":"IF(ROW()<=B$3,INDEX(FP!F:F,B$2+ROW()-1),\"\")","v":""},null,{"$f":"IF(ROW()<=B$3,INDEX(FP!G:G,B$2+ROW()-1),\"\")","v":""},null,{"$f":"IF(ROW()<=B$3,INDEX(FP!C:C,B$2+ROW()-1),\"\")","v":""},"","","",99,{"$f":"$A80","v":""},99]
[{"$f":"IF(ROW()<=B$3,INDEX(FP!F:F,B$2+ROW()-1)&\" - \"&INDEX(FP!C:C,B$2+ROW()-1),\"\")","v":""},null,{"$f":"IF(ROW()<=B$3,INDEX(FP!E:E,B$2+ROW()-1),\"\")","v":""},{"$f":"IF(ROW()<=B$3,INDEX(FP!F:F,B$2+ROW()-1),\"\")","v":""},null,{"$f":"IF(ROW()<=B$3,INDEX(FP!G:G,B$2+ROW()-1),\"\")","v":""},null,{"$f":"IF(ROW()<=B$3,INDEX(FP!C:C,B$2+ROW()-1),\"\")","v":""},"","","",99,"AAA","HHH"]
[{"$f":"IF(ROW()<=B$3,INDEX(FP!F:F,B$2+ROW()-1)&\" - \"&INDEX(FP!C:C,B$2+ROW()-1),\"\")","v":""},null,{"$f":"IF(ROW()<=B$3,INDEX(FP!E:E,B$2+ROW()-1),\"\")","v":""},{"$f":"IF(ROW()<=B$3,INDEX(FP!F:F,B$2+ROW()-1),\"\")","v":""},null,{"$f":"IF(ROW()<=B$3,INDEX(FP!G:G,B$2+ROW()-1),\"\")","v":""},null,{"$f":"IF(ROW()<=B$3,INDEX(FP!C:C,B$2+ROW()-1),\"\")","v":""},"","","",99,{"$f":"$A82","v":""},99]
[{"$f":"IF(ROW()<=B$3,INDEX(FP!F:F,B$2+ROW()-1)&\" - \"&INDEX(FP!C:C,B$2+ROW()-1),\"\")","v":""},null,{"$f":"IF(ROW()<=B$3,INDEX(FP!E:E,B$2+ROW()-1),\"\")","v":""},{"$f":"IF(ROW()<=B$3,INDEX(FP!F:F,B$2+ROW()-1),\"\")","v":""},null,{"$f":"IF(ROW()<=B$3,INDEX(FP!G:G,B$2+ROW()-1),\"\")","v":""},null,{"$f":"IF(ROW()<=B$3,INDEX(FP!C:C,B$2+ROW()-1),\"\")","v":""},"","","",99,"AAA","HHH"]
[{"$f":"IF(ROW()<=B$3,INDEX(FP!F:F,B$2+ROW()-1)&\" - \"&INDEX(FP!C:C,B$2+ROW()-1),\"\")","v":""},null,{"$f":"IF(ROW()<=B$3,INDEX(FP!E:E,B$2+ROW()-1),\"\")","v":""},{"$f":"IF(ROW()<=B$3,INDEX(FP!F:F,B$2+ROW()-1),\"\")","v":""},null,{"$f":"IF(ROW()<=B$3,INDEX(FP!G:G,B$2+ROW()-1),\"\")","v":""},null,{"$f":"IF(ROW()<=B$3,INDEX(FP!C:C,B$2+ROW()-1),\"\")","v":""},"","","",99,{"$f":"$A84","v":""},99]
[{"$f":"IF(ROW()<=B$3,INDEX(FP!F:F,B$2+ROW()-1)&\" - \"&INDEX(FP!C:C,B$2+ROW()-1),\"\")","v":""},null,{"$f":"IF(ROW()<=B$3,INDEX(FP!E:E,B$2+ROW()-1),\"\")","v":""},{"$f":"IF(ROW()<=B$3,INDEX(FP!F:F,B$2+ROW()-1),\"\")","v":""},null,{"$f":"IF(ROW()<=B$3,INDEX(FP!G:G,B$2+ROW()-1),\"\")","v":""},null,{"$f":"IF(ROW()<=B$3,INDEX(FP!C:C,B$2+ROW()-1),\"\")","v":""},"","","",99,"AAA","HHH"]
[{"$f":"IF(ROW()<=B$3,INDEX(FP!F:F,B$2+ROW()-1)&\" - \"&INDEX(FP!C:C,B$2+ROW()-1),\"\")","v":""},null,{"$f":"IF(ROW()<=B$3,INDEX(FP!E:E,B$2+ROW()-1),\"\")","v":""},{"$f":"IF(ROW()<=B$3,INDEX(FP!F:F,B$2+ROW()-1),\"\")","v":""},null,{"$f":"IF(ROW()<=B$3,INDEX(FP!G:G,B$2+ROW()-1),\"\")","v":""},null,{"$f":"IF(ROW()<=B$3,INDEX(FP!C:C,B$2+ROW()-1),\"\")","v":""},"","","",99,{"$f":"$A86","v":""},99]
[{"$f":"IF(ROW()<=B$3,INDEX(FP!F:F,B$2+ROW()-1)&\" - \"&INDEX(FP!C:C,B$2+ROW()-1),\"\")","v":""},null,{"$f":"IF(ROW()<=B$3,INDEX(FP!E:E,B$2+ROW()-1),\"\")","v":""},{"$f":"IF(ROW()<=B$3,INDEX(FP!F:F,B$2+ROW()-1),\"\")","v":""},null,{"$f":"IF(ROW()<=B$3,INDEX(FP!G:G,B$2+ROW()-1),\"\")","v":""},null,{"$f":"IF(ROW()<=B$3,INDEX(FP!C:C,B$2+ROW()-1),\"\")","v":""},"","","",99,"AAA","HHH"]
[{"$f":"IF(ROW()<=B$3,INDEX(FP!F:F,B$2+ROW()-1)&\" - \"&INDEX(FP!C:C,B$2+ROW()-1),\"\")","v":""},null,{"$f":"IF(ROW()<=B$3,INDEX(FP!E:E,B$2+ROW()-1),\"\")","v":""},{"$f":"IF(ROW()<=B$3,INDEX(FP!F:F,B$2+ROW()-1),\"\")","v":""},null,{"$f":"IF(ROW()<=B$3,INDEX(FP!G:G,B$2+ROW()-1),\"\")","v":""},null,{"$f":"IF(ROW()<=B$3,INDEX(FP!C:C,B$2+ROW()-1),\"\")","v":""},"","","",99,{"$f":"$A88","v":""},99]
[{"$f":"IF(ROW()<=B$3,INDEX(FP!F:F,B$2+ROW()-1)&\" - \"&INDEX(FP!C:C,B$2+ROW()-1),\"\")","v":""},null,{"$f":"IF(ROW()<=B$3,INDEX(FP!E:E,B$2+ROW()-1),\"\")","v":""},{"$f":"IF(ROW()<=B$3,INDEX(FP!F:F,B$2+ROW()-1),\"\")","v":""},null,{"$f":"IF(ROW()<=B$3,INDEX(FP!G:G,B$2+ROW()-1),\"\")","v":""},null,{"$f":"IF(ROW()<=B$3,INDEX(FP!C:C,B$2+ROW()-1),\"\")","v":""},"","","",99,"AAA","HHH"]
[{"$f":"IF(ROW()<=B$3,INDEX(FP!F:F,B$2+ROW()-1)&\" - \"&INDEX(FP!C:C,B$2+ROW()-1),\"\")","v":""},null,{"$f":"IF(ROW()<=B$3,INDEX(FP!E:E,B$2+ROW()-1),\"\")","v":""},{"$f":"IF(ROW()<=B$3,INDEX(FP!F:F,B$2+ROW()-1),\"\")","v":""},null,{"$f":"IF(ROW()<=B$3,INDEX(FP!G:G,B$2+ROW()-1),\"\")","v":""},null,{"$f":"IF(ROW()<=B$3,INDEX(FP!C:C,B$2+ROW()-1),\"\")","v":""},"","","",99,{"$f":"$A90","v":""},99]
[{"$f":"IF(ROW()<=B$3,INDEX(FP!F:F,B$2+ROW()-1)&\" - \"&INDEX(FP!C:C,B$2+ROW()-1),\"\")","v":""},null,{"$f":"IF(ROW()<=B$3,INDEX(FP!E:E,B$2+ROW()-1),\"\")","v":""},{"$f":"IF(ROW()<=B$3,INDEX(FP!F:F,B$2+ROW()-1),\"\")","v":""},null,{"$f":"IF(ROW()<=B$3,INDEX(FP!G:G,B$2+ROW()-1),\"\")","v":""},null,{"$f":"IF(ROW()<=B$3,INDEX(FP!C:C,B$2+ROW()-1),\"\")","v":""},"","","",99,"AAA","HHH"]
[{"$f":"IF(ROW()<=B$3,INDEX(FP!F:F,B$2+ROW()-1)&\" - \"&INDEX(FP!C:C,B$2+ROW()-1),\"\")","v":""},null,{"$f":"IF(ROW()<=B$3,INDEX(FP!E:E,B$2+ROW()-1),\"\")","v":""},{"$f":"IF(ROW()<=B$3,INDEX(FP!F:F,B$2+ROW()-1),\"\")","v":""},null,{"$f":"IF(ROW()<=B$3,INDEX(FP!G:G,B$2+ROW()-1),\"\")","v":""},null,{"$f":"IF(ROW()<=B$3,INDEX(FP!C:C,B$2+ROW()-1),\"\")","v":""},"","","",99,{"$f":"$A92","v":""},99]
[{"$f":"IF(ROW()<=B$3,INDEX(FP!F:F,B$2+ROW()-1)&\" - \"&INDEX(FP!C:C,B$2+ROW()-1),\"\")","v":""},null,{"$f":"IF(ROW()<=B$3,INDEX(FP!E:E,B$2+ROW()-1),\"\")","v":""},{"$f":"IF(ROW()<=B$3,INDEX(FP!F:F,B$2+ROW()-1),\"\")","v":""},null,{"$f":"IF(ROW()<=B$3,INDEX(FP!G:G,B$2+ROW()-1),\"\")","v":""},null,{"$f":"IF(ROW()<=B$3,INDEX(FP!C:C,B$2+ROW()-1),\"\")","v":""},"","","",99,"AAA","HHH"]
[null,null,null,null,null,{"$f":"IF(ROW()<=B$3,INDEX(FP!G:G,B$2+ROW()-1),\"\")","v":""},null,null,null,null,null,null,{"$f":"$A94","v":""},99]
[null,null,null,null,null,"Organizácia podujatia\nnázov podujatia (napr. Kongres ISF, Svetový pohár ICU):\nmiesto konania (napr. Komjatice):\ntermín (od-do) (napr. 1.5.-15.5.2013):\npočet aktívnych účastníkov (napr. 223):\npočet odpracovaných hodín spolu: (napr. 690):\nhrubé mzdy vyplatené osobám v súvislosti s podujatím vrátane odvodov zamestnávateľa spolu (dohody, zmluvy, faktúry, a pod.) v eur:"]
[null,null,null,null,null,"Hrubé mzdy vyplatené osobám (zamestnancom) vrátane odvodov zamestnávateľa\npočet fyzických osôb (napr. 3):\nobdobie (napr. január - marec):"]
[null,null,null,null,null,"Služobné motorové vozidlo\nEČV (napr. BB 123 AK):\nObdobie (napr. 3.7.-28.7.2013):\nNajazdené kilometre (napr. 1 211 km):"]
[null,null,null,null,null,"Pracovná cesta\n(napr. výjazd na výkonný výbor, na majstrovstvá)\nNázov (napr. majstrovstvá sveta, sústredenie, kongres, zasadnutie komisie):\nTermín (napr. 1.5.-3.6.2013):\nMiesto - mesto a štát (napr. Palermo, Taliansko):\nSpôsob dopravy (napr. letecky):\nPočet všetkých osôb na pracovnej ceste (napr. 17)\nz toho:\n- športovci (+ navádzači): 12\n- tréneri + rozhodcovia + vedúci výpravy + administratívni pracovníci + lekár + fyzioterapeut + masér + ): 2\n- ostatné osoby (napr. sponzori, hostia): 3"]
["Priebežné čerpanie a vyúčtovanie finančných prostriedkov poskytnutých zo štátneho rozpočtu v oblasti športu v roku 2024",null,null,null,null,null,null,null,"V1"]
[null,null,null,null,null,null,null,null,"2024-01-25"]
["Názov prijímateľa prostriedkov: ",61]
["AAA","BBB","CCC","DDD",null,"EEE",null,"FFF","GGG","HHH"]
["Účel úhrady\n(vyberte zo zoznamu, inak automatické vyhodnocovanie nebude fungovať)","Interné číslo účtovného dokladu","Číslo externého (originálneho)\núčtovného dokladu","Dátum skutočnej úhrady účtovného dokladu","Dátum refundácie účtovného dokladu","Popis úhrady\n(vyberte z rozbaľovacieho zoznamu, alebo zadajte voľný text)","IČO \ndodávateľa\nplnenia","Dodávateľ plnenia","Skutočne uhradená suma\n(eur)","AK"]
["ÚDAJE ZORADIŤ PODĽA ÚČELU ÚHRADY A V RÁMCI JEDNÉHO ÚČELU PODĽA POPISU ÚHRADY"]
[]
["a - krasokorčuľovanie - bežné transfery","VUB 2/24","VUB 2/24","2024-02-29",null,"1x výpis a poštovné","31320155","Všeobecná úverová banka,a.s.",3.65,4]
["a - krasokorčuľovanie - bežné transfery","VUB 2/24","VUB 2/24","2024-02-29",null,"Vedenie konta VÚB Biznis účet Prem","31320155","Všeobecná úverová banka,a.s.",22,4]
["a - krasokorčuľovanie - bežné transfery","VUB 3/24","VUB 3/24","2024-03-28",null,"1x výpis a poštovné","31320155","Všeobecná úverová banka,a.s.",3.65,4]
["a - krasokorčuľovanie - bežné transfery","VUB 3/24","VUB 3/24","2024-03-28",null,"Vedenie konta VÚB Biznis účet Prem","31320155","Všeobecná úverová banka,a.s.",22,4]
["a - krasokorčuľovanie - bežné transfery",null,"56/2024","2024-04-17",null,"ISU Pair seminár - pracovná cesta-cestovné, účastnícky poplatok                                 Berlín, Nemecko 31.3.-6.4.2024,                       doprava: AUV                                            účastníci:                                                tréneri: Vrlák Rastislav                           športovci: Sitková, Kubacak",null,"Vrlák Rastislav-vyúčtovateľ",540.20000000000005,3]
["a - krasokorčuľovanie - bežné transfery",null,null,"2024-04-17",null,"poštovné",null,"Vozárová Lucia, Mgr.-vyúčtovateľ",13.2,4]
["a - krasokorčuľovanie - bežné transfery",null,"18/2024","2024-04-24",null,"ISU Majstrovstvá sveta - pracovná cesta-cestovné, parkovné                                                  Montreal, Kanada 17.3.-26.3.2024                       doprava: AUV, AIR                                          ",null,"Hagara Miroslav, Ing.-vyúčtovateľ",202.86,3]
["a - krasokorčuľovanie - bežné transfery",null,null,"2024-04-25",null,"poštovné",null,"Vozárová Lucia, Mgr.-vyúčtovateľ",13.8,4]
["a - krasokorčuľovanie - bežné transfery",null,null,"2024-04-29",null,"Zasadnutie Kontrolnej komisie - pracovná cesta-cestovné, stravné, ubytovanie                       Bratislava-Košice, 25.4.-27.4.2024,                       doprava: AUV                                            účastníci:  Poljaková, Komarovská                                 ",null,"Poljaková Marta-vyúčtovateľ",106.85,4]
["a - krasokorčuľovanie - bežné transfery",null,"2440412","2024-04-29",null,"1.časť nájomného za prenájom priestorov-Zimný štadión Ondreja Nepelu - podujatie Nepela Memorál","00179663","Správa telovýchovných a rekreačných zariadení hlavného mesta Slovenskej republiky Bratislavy",6000,2]
["a - krasokorčuľovanie - bežné transfery",null,"5783372190",null,null,"telekomunikacne sluzby 4/2024",null,"Orange Slovensko, a.s.",67,4]
["a - krasokorčuľovanie - bežné transfery","VUB 4/24","VUB 4/24","2024-04-30",null,"1x výpis a poštovné","31320155","Všeobecná úverová banka,a.s.",3.65,4]
["a - krasokorčuľovanie - bežné transfery","VUB 4/24","VUB 4/24","2024-04-30",null,"Vedenie konta VÚB Biznis účet Prem","31320155","Všeobecná úverová banka,a.s.",22,4]
["a - krasokorčuľovanie - bežné transfery",null,"3806700001","2024-05-03",null,"flotilové poistenie","54228573","Generali Poisťovňa",221.4,4]
["a - krasokorčuľovanie - bežné transfery",null,"0202410010","2024-05-03",null,"online workshop o výžive 17.4.2024","53937490","Nutrisport, s.r.o.",200,4]
["a - krasokorčuľovanie - bežné transfery",null,"56/2024","2024-05-07",null,"Participation fee-pair skating development seminar Berlin 2024",null,"Války Alex-vyúčtovateľ",100,3]
["a - krasokorčuľovanie - bežné transfery",null,null,"2024-05-07",null,"kancelárske potreby",null,"Vozárová Lucia, Mgr.-vyúčtovateľ",7.9,4]
["a - krasokorčuľovanie - bežné transfery",null,null,"2024-05-07",null,"taxi-Bratislava-Viedeň 5.5.2024 - Amodio+Ecomonides Repre camp 2024",null,"Vozárová Lucia, Mgr.-vyúčtovateľ",53.39,3]
["a - krasokorčuľovanie - bežné transfery",null,null,"2024-05-07",null,"Zasadnutie Kontrolnej komisie - pracovná cesta-použitie súkr. vozidla                          Bratislava-Košice, 25.4.-27.4.2024,                       doprava: AUV                                            účastníci:  Poljaková, Komarovská                                 ",null,"Komarovská Marta -vyúčtovateľ",367.2,4]
["a - krasokorčuľovanie - bežné transfery",null,"2024002","2024-05-07",null,"organizačné zabezpečenie Repre camp 2024 - 29.4.-4.5.2024-Monika Kuštáková","55179444","M&M Excellence Services s.r.o.",600,3]
["a - krasokorčuľovanie - bežné transfery",null,"202405K","2024-05-07",null,"off-ice tréning - 12 tréning.jednotiek Repre camp 2024 - 29.4.-4.5.2024-Juraj Pecho","52055167","Juraj Pecho, PhD. - Strenght & Conditioning",720,3]
["a - krasokorčuľovanie - bežné transfery",null,"1010131268","2024-05-13",null,"internet 04/2024","35954612","Slovanet, a.s.",8.4,4]
["a - krasokorčuľovanie - bežné transfery",null,"2410329","2024-05-13",null,"prenájom ľadovej plochy, šatní, rozcvičovne a ozvučenia v TIPOS Aréne-ZŠ Ondreja Nepelu 29.4.-30.4.2024-podujatie: Repre camp 2024","00179663","Správa telovýchovných a rekreačných zariadení hlavného mesta Slovenskej republiky Bratislavy",1707.6,3]
["a - krasokorčuľovanie - bežné transfery",null,"2410330","2024-05-13",null,"prenájom ľadovej plochy, šatní, rozcvičovne a ozvučenia v TIPOS Aréne-ZŠ Ondreja Nepelu 1.5.-4.5.2024-podujatie: Repre camp 2024","00179663","Správa telovýchovných a rekreačných zariadení hlavného mesta Slovenskej republiky Bratislavy",3342.4,3]
["a - krasokorčuľovanie - bežné transfery",null,"56/2024","2024-05-13",null,"ISU Pair seminár - pracovná cesta-cestovné, účastnícky poplatok                                 Berlín, Nemecko 31.3.-6.4.2024,                       doprava: AUV                                            ",null,"Bokor Miroslav-vyúčtovateľ",356.32,3]
["a - krasokorčuľovanie - bežné transfery",null,"FA-29156","2024-05-13",null,"ubytovanie 29.4.-4.5.2024 - Repre camp","35880899","Hotel Set s.r.o.",2495,3]
["a - krasokorčuľovanie - bežné transfery",null,"UC-45385","2024-05-13",null,"strava 28.4.-4.5.2024 - Repre camp","35880899","Hotel Set s.r.o.",2624,3]
["a - krasokorčuľovanie - bežné transfery",null,"FA-29157","2024-05-13",null,"prenájom sály - školenie - Repre camp","35880899","Hotel Set s.r.o.",40,3]
["a - krasokorčuľovanie - bežné transfery",null,"OFH20240150","2024-05-14",null,"prenájom ľadovej plochy ZŠ NMnV 9.-10.3.2024 - M-SR","00350656","Technické služby mesta Nové mesto nad Váhom",3640,2]
["a - krasokorčuľovanie - bežné transfery",null,null,"2024-05-15",null,"poštovné",null,"Vozárová Lucia, Mgr.-vyúčtovateľ",15.9,4]
["a - krasokorčuľovanie - bežné transfery",null,"OFH20240166","2024-05-15",null,"prenájom ľadovej plochy ZŠ NMnV 12.1.2024 - testy výkonnosti","00350656","Technické služby mesta Nové mesto nad Váhom",1470,2]
["a - krasokorčuľovanie - bežné transfery","VUB 5/24","VUB 5/24","2024-05-31",null,"1x výpis a poštovné","31320155","Všeobecná úverová banka,a.s.",3.65,4]
["a - krasokorčuľovanie - bežné transfery","VUB 5/24","VUB 5/24","2024-05-31",null,"Vedenie konta VÚB Biznis účet Prem","31320155","Všeobecná úverová banka,a.s.",22,4]
[]
["a - krasokorčuľovanie - bežné transfery","VUB 6/24","VUB 6/24","2024-06-11",null,"poplatok za zmenu podpisoveho vzoru","31320155","Všeobecná úverová banka,a.s.",3.5,4]
[]
[]
["a - krasokorčuľovanie - bežné transfery",null,"2024005143","2024-06-11",null,"Valné zhromaždenie SKrZ prenájom priestorov dňa 18.5.2024, Púchov","36845981","ALEXANDRA HOTEL, s.r.o.",1256.75,4]
["a - krasokorčuľovanie - bežné transfery",null,"1000069624","2024-06-11",null,"Ocenenia ",35774282,"Victory sport, spol. s r.o.",391,4]
["a - krasokorčuľovanie - bežné transfery",null,"0202400065","2024-06-11",null,"Overenie účtovnej závierky za rok 2023 - audit","33620253","Ing. Edita Čechová",1060,4]
["a - krasokorčuľovanie - bežné transfery",null,"132329210","2024-06-11",null,"Telekomunikacne sluzby 5/2024","35697270","Orange Slovensko, a.s.",67,4]
["a - krasokorčuľovanie - bežné transfery",null,"1024141","2024-06-11",null,"Nájomné kancelárskych priestorov SKrZ v období 06/2024","47234407","INVEST 5 - Grand House a. s.",451.99,4]
["a - krasokorčuľovanie - bežné transfery",null,"1024174","2024-06-11",null,"Nájomné kancelárskych priestorov SKrZ v období 07/2024","47234407","INVEST 5 - Grand House a. s.",451.99,4]
["a - krasokorčuľovanie - bežné transfery",null,"6202410249","2024-06-25",null,"Valné zhromaždenie SKrZ prenájom priestorov dňa 15.6.2024, Ružomberok","35789638","SLOVAKIA REAL-IN, a.s.",1100,4]
["a - krasokorčuľovanie - bežné transfery",null,"32024037","2024-06-25",null,"Tréningový poplatok pre športovcov počas reprezentačného sústredenia 29.4.-4.5.2024, Bratislava, 12x60EUR","30853923","Národné športové centrum",720,3]
["a - krasokorčuľovanie - bežné transfery",null,"32024038","2024-06-25",null,"Testovanie športovcov počas reprezentačného sústredenia 29.4.-4.5.2024, Bratislava, 9 repre športovcov","30853923","Národné športové centrum",1045.8,3]
["a - krasokorčuľovanie - bežné transfery",null,null,"2024-06-26",null,"poštovné, kancelárske potreby, kolky",null,"Vozárová Lucia, Mgr. - vyúčtovateľ",67.599999999999994,4]
["a - krasokorčuľovanie - bežné transfery",null,"1010131268","2024-06-28",null,"Poplatok za internet v obdobi 05/2024","35954612","Slovanet, a.s.,",8.4,4]
["a - krasokorčuľovanie - bežné transfery",null,null,"2024-06-28",null,"notárske poplatky za osvedčenie, poštovné",null,"Majerník Peter, JUDr. - vyúčtovateľ",13.25,4]
["a - krasokorčuľovanie - bežné transfery","VUB 6/24","VUB 6/24","2024-06-28",null,"1x výpis a poštovné","31320155","Všeobecná úverová banka,a.s.",3.65,4]
["a - krasokorčuľovanie - bežné transfery","VUB 6/24","VUB 6/24","2024-06-28",null,"Vedenie konta VÚB Biznis účet Prem","31320155","Všeobecná úverová banka,a.s.",22,4]

{"sheet":"Adr","index":5,"n_rows":111,"n_cols":18,"rows_kept":111,"cut":false,"hidden":true,"merged":[]}
["IČO","Subjekt","Právna forma","Ulica a číslo domu","Mesto","PSČ","Webové sídlo","E-mail","Štatutárny zástupca","Štatutár - funkcia","Kontakná osoba","Kontakt\ntelefón","IBAN 1","IBAN PUŠ 2","IBAN TOP","IBAN DOT"]
["42254388","Deaflympijský výbor Slovenska","občianske združenie","Kýčerského 7","Bratislava 1","811 05","www.deaflympic.sk","office@deaflympic.sk","Peter Birka","prezident","Milena Fabšičová",421911370554,"SK30 1100 0000 0029 2988 5740",null,null,null,null,{"$f":"A2","v":"42254388"}]
["50642804","iCompete Natural Slovakia","občianske združenie","Jesenského 71","Zvolen","960 01","www.icn.sk","icn@icn.sk","René Tomášek","prezident","René Tomášek",421905819613,"SK84 7500 0000 0040 3183 7581"]
["00688312","Klub slovenských turistov","občianske združenie","Záborského 33","Bratislava 3","831 03","www.kst.sk","ustredie@kst.sk","František Šiller","predseda","Marica Žáková",421910448008,"SK34 0900 0000 0001 7152 7595"]
["47845660","Košická Futbalová Aréna a. s.","akciová spoločnosť","Pri prachárni 13","Košice – mestská časť Juh","040 11","www.kosickafutbalovaarena.sk","office@kosickafutbalovaarena.sk","Marcel Gibóda, Stanislav Petráš","predseda predstavenstva, člen predstavenstva",null,null,"SK89 0200 0000 0035 8891 0657"]
["42269423","MAMMAL - Slovenský zväz MMA","občianske združenie","Židovská 298/19","Bratislava 1","811 01","www.mammal.sk","info@mammal.sk; marek.herda@mammal.sk","Marek Herda","prezident","Jana Gurová",421903555547,"SK31 0200 0000 0031 8656 0551"]
["00595209","Maratónsky klub Košice","občianske združenie","Hroncova 2","Košice","040 01","www.kosicemarathon.com","klub@kosicemarathon.com","Ján Sudzina","prezident",null,null,"SK53 0900 0000 0051 8854 0107"]
["42296901","Občianske združenie Street Dance Academy","občianske združenie","Kvačalova 1011/51","Bratislava 2","821 08","www.streetdance.sk","stanka@streetdance.sk","Ladislav Neuschl","predseda","Stanislava Matejová",421911472299,"SK67 0900 0000 0051 8102 0512",null,null,null,null,{"$f":"A8","v":"42296901"}]
["42255171","OZ za zdravší život","občianske združenie","Komárnicka 11","Bratislava 2","821 33","www.zdravachrbtica.sk","info@zdravachrbtica.sk","Róbert Rusnák","predseda","Zuzana Hrčková",421918149068,"SK12 1100 0000 0029 4307 8646"]
["53500423","Pomáhame pohybom","občianske združenie","Prievozská 1326/34","Bratislava 2","821 05","https://www.falcon1crossfit.sk/sk/obcianske-zdruzenie/","pomahamepohybom@gmail.com","Róbert Rybanský","podpredseda","Róbert Rybanský",421917614884,"SK25 1100 0000 0029 4511 8904"]
["30787009","Slovenská asociácia amerického futbalu, o.z.","občianske združenie","Nevädzová 17211/6B","Bratislava","821 01","www.saaf.sk","info@saaf.sk","Michal Slašťan","prezident","Michal Slašťan",421908868248,"SK90 8330 0000 0021 0189 0697"]
["50897152","Slovenská Asociácia Bandy, skrátený názov SAB","občianske združenie","Trenčianske Teplice 611/2","Trenčianske Teplice","914 51","www.slovakbandy.sk","slovakbandy@gmail.com","Lukáš Vepy","predseda","Ľudovít Vepy",421917626568,"SK62 0900 0000 0051 3067 7020"]
["00631655","Slovenská asociácia boccie","občianske združenie","Ulica Vajanského 874/46","Lučenec","984 01","www.bocce.sk","slovenska.asociacia.bocce@gmail.com","Ján Macko, Ján Brezňan, Ladislav Mészáros","prezident, predseda, predseda","Ján Macko ",421919188236,"SK92 8330 0000 0026 0113 7730"]
["42019541","Slovenská asociácia čínskeho wushu","občianske združenie","Ladislava Dérera 35","Bratislava","831 01","www.wushuslovakia.sk","email@wushuslovakia.sk","Ľubomír France","prezident","Ľubomír France",421905948422,"SK12 8330 0000 0024 0152 5392"]
["30810108","Slovenská Asociácia Dynamickej Streľby","občianske združenie","Skautská 2","Košice","040 01","www.sads.sk","prezident@sads.sk","Bystrík Zachar","prezident","Bystrík Zachar",421915184709,"SK75 3100 0000 0040 0020 5012"]
["30842069","Slovenská asociácia fitnes, kulturistiky a silového trojboja","občianske združenie","Junácka 6","Bratislava","832 80","www.safkst.sk","sekretariat@safkst.sk","Boris Mlsna","prezident","Boris Mlsna",421908965156,"SK77 0900 0000 0051 7589 2912",null,null,null,null,{"$f":"A16","v":"30842069"}]
["31749852","Slovenská asociácia Frisbee","občianske združenie","Eisnerova 6131/13","Bratislava","841 07","www.szf.sk","safslovakia@gmail.com","Juraj Turan","predseda","Martin Keseg",421905998953,"SK62 0200 0000 0000 7763 5012",null,null,null,null,{"$f":"A17","v":"31749852"}]
["30844711","Slovenská asociácia go","občianske združenie","Junácka 6","Bratislava","832 80","www.sago.sk","slovakgo@gmail.com","Martin Lukáč","prezident","Miroslav Poliak",421903200136,"SK31 8330 0000 0025 0173 0318",null,null,null,null,{"$f":"A18","v":"30844711"}]
["31940668","Slovenská asociácia korfbalu","občianske združenie","Makovického 6/2","Prievidza","971 01","www.korfbal.sk","martinsonoga@gmail.com","Martin Sonoga","prezident","Martin Sonoga",421911361044,"SK91 3100 0000 0040 0116 2405",null,null,null,null,{"$f":"A19","v":"31940668"}]
["31824021","Slovenská asociácia motoristického športu","občianske združenie","Fatranská 3","Nitra","949 01","www.sams-asn.sk","samssk@nextra.sk","Dušan Koblišek","prezident","Vojtech Ruisl",421903403105,"SK29 3100 0000 0042 2012 1718",null,null,null,null,{"$f":"A20","v":"31824021"}]
["45009660","Slovenská asociácia naturálnej kulturistiky","občianske združenie","Štefániková 3509/20","Michalovce","071 01","www.sank.sk","rigosank@gmail.com","Viliam Rigo","prezident","Viliam Rigo",421917812810,"SK83 0900 0000 0051 5460 0722",null,null,null,null,{"$f":"A21","v":"45009660"}]
["42340594","Slovenská asociácia Nordic Walking","občianske združenie","Rudolfa Mocka 2/A","Bratislava 4","841 04 ","www.snwa.sk","info@snwa.sk","Lucia Okoličányová","prezidentka","Lucia Okoličányová",null,"SK19 1100 0000 0029 2589 3903"]
["30811686","Slovenská asociácia pretláčania rukou","občianske združenie","Vavrečka 311","Námestovo","029 01","www.armsport.sk","sekretariat@armsport.sk","Ján Germánus","prezident","Dagmar Petrová",421905162424,"SK46 0900 0000 0000 1147 3305",null,null,null,null,"30811686"]
["30814910","Slovenská asociácia taekwondo WT","občianske združenie","Stará spišská cesta 2166/38","Košice","040 01","new.satkd.sk","satkd.office@gmail.com","Mário Švec","prezident","Pavel Ižarik",421902901640,"SK19 8330 0000 0021 0142 0070",null,null,null,null,"30814910"]
["17316731","Slovenská asociácia univerzitného športu","občianske združenie","Trnavska cesta 37","Bratislava 3","831 04","www.saus.sk","saus@saus.sk","Július Dubovský","prezident","Michaela Masárová",421907696186,"SK51 1100 0000 0026 2902 3663",null,null,null,null,"17316731"]
["30841798","Slovenská asociácia zrakovo postihnutých športovcov","občianske združenie","Rosina 497","Rosina","013 22","www.sazps.sk","sazps@sazps.sk","Peter Ďuroška","predseda","Peter Ďuroška",421907253794,"SK95 8330 0000 0021 0076 9190"]
["30844568","Slovenská baseballová federácia","občianske združenie","Junácka 6","Bratislava","831 04","www.slovakiabaseball.com","office@slovakiabaseball.com","Mojmír Jankovič","prezident","František Bunta",421905294239,"SK09 0200 0000 0017 8566 0854",null,null,null,null,"30844568"]
["17315166","Slovenská basketbalová asociácia","občianske združenie","Trnavská cesta 37","Bratislava","831 04","www.slovakbasket.sk","sekretariat@slovakbasket.sk","Michal Ondruš","prezident","Štefan Kubík",421905504810,"SK94 1100 0000 0029 2586 5005",null,null,null,null,"17315166"]
["31744621","Slovenská boxerská federácia","občianske združenie","Dr. Vladimíra Clementisa 3222/10","Bratislava","821 02","www.sbf.sk","sbf@sbf.sk","Tomáš Kovács","prezident","Ivana Haršányová",421949246786,"SK63 0200 0000 0017 8550 5555",null,null,null,null,"31744621"]
["34056939","SLOVENSKÁ CYKLOTRIALOVÁ ÚNIA","občianske združenie","Štefánikova 4445","Poprad","058 01","www.slovakbiketrial.sk","stefan@blackmail.sk","Štefan Pčola","prezident","Štefan Pčola",421905607646,"SK82 7500 0000 0040 2786 8668",null,null,null,null,"34056939"]
["34003975","Slovenská federácia karate a bojových umení","občianske združenie","Miletičova 3/A","Bratislava","821 08","www.karate-slovakia.sk","info@karate-slovakia.sk","Daniel Baran","prezident","Daniel Baran",421903919943,"SK51 0200 0000 0011 8096 9955",null,null,null,null,"34003975"]
["36064742","Slovenská federácia pétanque","občianske združenie","Karpatské námestie 10A","Bratislava","831 06","www.sfp.sk","peter.sury@gmail.com","Peter Šúry","prezident","Peter Šúry",421903421644,"SK28 8330 0000 0023 0103 3104",null,null,null,null,"36064742"]
["42361885","Slovenská footgolfová asociácia","občianske združenie","Medveďovej 13","Bratislava","851 04","www.sfga.sk","info@sfga.sk","Viliam Nemčko","prezident","Tomáš Bartko",421903204367,"SK72 1111 0000 0014 6314 7011",null,null,null,null,"42361885"]
["50284363","Slovenská golfová asociácia","občianske združenie","Kukučínova 26","Bratislava","831 02","www.skga.sk","skga@skga.sk","Rastislav Antala, Miroslav Rusnák","Prezident, viceprezident","Kamil Balga",421903446366,"SK42 0900 0000 0052 1113 2866",null,null,null,null,"50284363"]
["00688321","Slovenská gymnastická federácia","občianske združenie","Junácka 6","Bratislava","832 80","www.sgf.sk","gymnastics@sgf.sk","Monika Šišková","prezidentka","Silvia Ruščinová",421915177492,"SK53 0900 0000 0051 0865 8667",null,null,null,null,"00688321"]
["00603091","Slovenská hokejbalová únia","občianske združenie","Junácka 6","Bratislava","832 80","www.hokejbal.sk","hokejbal@hokejbal.sk","Miroslav Dragun","Generálny sekretár ","Miroslav Dragun",421908145184,"SK77 0200 0000 0017 8572 3456",null,null,null,null,"00603091"]
["54041368","SLOVENSKÁ CHEERLEADING ÚNIA","občianske združenie","Novozámocká 3212/22","Zvolen","960 01","www.scu.sk","sekretariatscu@scu.sk","Zuzana Niščáková","prezidentka","Zuzana Niščáková",421905380634,"SK37 8330 0000 0022 0206 1417",null,null,null,null,"54041368"]
["31787801","SLOVENSKÁ JAZDECKÁ FEDERÁCIA","občianske združenie","Junácka 6","Bratislava","832 80","www.sjf.sk","baciak.masarykova@sjf.sk","Vladimír Chovan","predseda","Zuzana Bačiak Masaryková",421907100191,"SK06 0900 0000 0001 7426 1462",null,null,null,null,"31787801"]
["50434101","Slovenská kanoistika","občianske združenie","Junácka 6","Bratislava","831 04","www.canoe.sk","canoe@canoe.sk","Miroslav Haviar","prezident","Boris Bergendi",421905659739,"SK77 0900 0000 0051 1559 0728",null,null,null,null,"50434101"]
["30853427","Slovenská Lakrosová Federácia","občianske združenie","Jarabinková 6/B","Bratislava","821 09","www.lacrosse.sk","eminentasro@gmail.com","Igor Moravčík","prezident","Igor Moravčík",421905620961,"SK65 0200 0000 0041 7252 5557",null,null,null,null,"30853427"]
["36075809","Slovenská lukostrelecká asociácia 3D","občianske združenie","Trnovec nad Váhom 1040","Trnovec nad Váhom  ","825 71","www.archery3d.sk","info@archery3d.sk","Peter Málek","predseda","Peter Málek",421944644533,"SK63 8330 0000 0020 0175 2748",null,null,null,null,"36075809"]
["30813883","Slovenská motocyklová federácia","občianske združenie","Športovcov 340","Považská Bystrica","017 01","www.smf.sk","smf@smf.sk","Peter Lazar","prezident","Tatiana Kašlíková",421905601243,"SK96 0900 0000 0003 6178 9457",null,null,null,null,"30813883"]
["34057587","Slovenská Muaythai asociácia","občianske združenie","Lermontovova 3","Bratislava","811 05","www.smta.sk ","office@smta.sk ","Róbert Kajánek","prezident","Róbert Kajánek",421903584555,"SK64 1100 0000 0029 4704 5980",null,null,null,null,"34057587"]
["30806887","Slovenská nohejbalová asociácia","občianske združenie","Junácka 6","Bratislava 3","832 80","www.nohejbalsk.com","nohejbal.sna@gmail.com","Miroslav Kováč","prezident","Miroslav Kováč",421917800004,"SK75 0200 0000 0017 8646 8258",null,null,null,null,"30806887"]
["36068764","Slovenská plavecká federácia","občianske združenie","Za kasárňou 315/1","Bratislava","831 03","www.swimmsvk.sk","prezident@swimmsvk.sk","Ivan Šulek","prezident","Ivan Šulek",421905297832,"SK13 0200 0000 0030 7422 5951",null,null,null,null,"36068764"]
["31813283","Slovenská rope skippingová asociácia","občianske združenie","Junácka 6","Bratislava 3","831 04","www.srsa.sk","srsa@srsa.sk","Martin Kolčák","predseda ","Pavlína Hadová ",421905790607,"SK73 8330 0000 0024 0111 2432",null,null,null,null,"31813283"]
["30851459","Slovenská rugbyová únia","občianske združenie","Hrobákova 1","Bratislava","851 02","www.slovakrugby.sk","kubalova@sprinklersystem.sk","Eduard Krützner","prezident","Katarína Kubalová",421911977728,"SK14 0200 0000 0028 4751 3556",null,null,null,null,"30851459"]
["37998919","Slovenská skialpinistická asociácia","občianske združenie","Jalovec 98","Bobrovec","032 21","www.slovakskimo.sk","info@slovakskimo.sk","Michaela Babčanová","podpredseda","Michaela Babčanová",421915156717,"SK69 1100 0000 0026 2009 8466",null,null,null,null,"37998919"]
["17316723","Slovenská softballová asociácia","občianske združenie","Junácka 6","Bratislava","831 04","www.slovakiasoftball.com","office@softballslovakia.com","Lenka Gunišová","prezident","František Bunta",421905294239,"SK37 0200 0000 0017 8559 5554",null,null,null,null,"17316723"]
["30807018","Slovenská squashová asociácia","občianske združenie","Junácka 6","Bratislava","832 80","www.squashtour.sk","gs@squash.sk","Dávid Kubiček","generálny sekretár","Dávid Kubiček",421908447934,"SK75 0200 0000 0017 8581 8455"]
["31745466","Slovenská triatlonová únia","občianske združenie","Junácka 6","Bratislava","832 80","www.triathlon.sk","triathlon@triathlon.sk","Jozef Jurášek","prezident","Peter Dobiaš",421918234840,"SK41 0200 0000 0017 8359 4857",null,null,null,null,"31745466"]
["00688819","Slovenská volejbalová federácia","občianske združenie","Kalinčiakova 33","Bratislava","831 04","www.svf.sk","svf@svf.sk","Marek Rojko","prezident","Jozef Mihalco",421911427222,"SK03 0200 0000 0017 7219 1251",null,null,null,null,"00688819"]
["36063835","Slovenský atletický zväz","občianske združenie","Junácka 6","Bratislava","831 04","www.atletika.sk","office@atletika.sk","Peter Korčok, Vladimír Gubrický","prezident, generálny sekretár","Vladimír Gubrický",421905278836,"SK17 0200 0000 0017 8547 1754",null,null,null,null,"36063835"]
["31753825","Slovenský biliardový zväz","občianske združenie","Junácka 6","Bratislava","832 80","www.biliard.online","koniar@sbiz.sk; sbiz1994@gmail.com","Samuel Koniar","predseda","Samuel Koniar",421907194669,"SK40 0200 0000 0017 8851 0253",null,null,null,null,"31753825"]
["36128147","Slovenský bowlingový zväz","občianske združenie","Dunajská 12","Košice ","040 11","www.slovakbowling.sk","merkovskyv@gmail.com ","Vladimír Merkovský ","prezident","Vladimír Merkovský ",421903712927,"SK70 1100 0000 0026 2878 1403",null,null,null,null,"36128147"]
["31770908","Slovenský bridžový zväz","občianske združenie","Lopenícka 1/A","Bratislava","831 02","www.bridgeclub.sk","sbz@bridgeclub.sk","Peter Belčák","prezident","Peter Belčák",421908672270,"SK65 0900 0000 0001 7666 9007",null,null,null,null,"31770908"]
["37841866","Slovenský curlingový zväz","občianske združenie","Zahradnícka 27","Bratislava","811 07","www.curling.sk","office@curling.sk","Pavol Pitoňák","predseda","Pavel Kocian",421918824449,"SK82 0200 0000 0017 0714 0853",null,null,null,null,"37841866"]
["34009388","Slovenský cykloklub","občianske združenie","Námestie slobody 1716/6","Piešťany","921 01","www.cykloklub.sk","office@cykloklub.sk","Michal Hlatký","predseda","Michal Hlatký",421903996977,"SK76 0200 0000 0014 3822 4951",null,null,null,null,"34009388"]
["00687308","Slovenský futbalový zväz","občianske združenie","Tomášikova 30C","Bratislava","821 01","www.futbalsfz.sk","msvvas@futbalsfz.sk","Ján Kováčik","prezident","Marcel Korinek",421907984638,"SK80 0900 0000 0051 1021 1442",null,null,null,null,"00687308"]
["00586455","Slovenský horolezecký spolok JAMES","občianske združenie","Junácka 6","Bratislava","832 80","www.james.sk","office@james.sk","Anton Pacek","predseda","Anton Pacek",421911597705,"SK53 0200 0000 0017 7177 3057",null,null,null,null,"00586455"]
["31771688","Slovenský kolkársky zväz","občianske združenie","Štúrova 1158/22","Piešťany","921 01","www.kolky.sk","sekretariat@kolky.sk","Štefan Kočan","prezident","Eva Ondrejkovičová",421905762340,"SK56 0200 0000 0017 8579 0958",null,null,null,null,"31771688"]
["31805540","Slovenský krasokorčuliarsky zväz","občianske združenie","Záhradnícka 752/95","Bratislava","821 08","www.kraso.sk","slovakskating@kraso.sk","Jozef Beständig","predseda","Jozef Beständig",421905504040,"SK14 0200 0000 0017 8521 4758",null,null,null,null,"31805540"]
["30793009","Slovenský lukostrelecký zväz","občianske združenie","Junácka 6","Bratislava","832 80","www.archerysvk.sk","office@archerysvk.sk","Vladimír Bužek","predseda","Vladimír Bužek",421903202270,"SK53 0900 0000 0051 1920 0627",null,null,null,null,"30793009"]
["00677604","Slovenský národný aeroklub generála Milana Rastislava Štefánika","občianske združenie","Pri Rajčianke 49","Žilina","010 01","www.sna.sk","sna@sna.sk","Miroslav Gábor","prezident","Marcela Nagyová",421911928826,"SK61 0900 0000 0051 8920 0921",null,null,null,null,"00677604"]
["30811082","Slovenský olympijský a športový výbor","občianske združenie","Junácka 6","Bratislava 3","831 04","www.olympic.sk","office@olympic.sk","Anton Siekel","prezident","Gábor Asványi; Patrik Hrbek","421903584992; 421911090490","SK07 1100 0000 0026 2702 3539",null,null,null,null,"30811082"]
["31745661","Slovenský paralympijský výbor","občianske združenie","Benediktiho 5","Bratislava 1","811 05","www.spv.sk","spcoffice@spv.sk","Ján Riapoš","predseda","Ján Riapoš; Maroš Čambal","421905788436; 421257789713","SK62 8120 0000 0014 1226 2060",null,null,null,null,"31745661"]
["30688060","Slovenský rýchlokorčuliarsky zväz","občianske združenie","T.Vansovej 2171/1","Spišská Nová Ves","052 01","www.speedskating.sk","info@speedskating.sk","Ivana Iliašová","predseda","Ján Magdoško",421903601379,"SK49 5600 0000 0075 0146 2002",null,null,null,null,"30688060"]
["30806836","Slovenský stolnotenisový zväz","občianske združenie","Černockého 6","Bratislava","831 53","www.sstz.sk","sstz1@sstz.sk","Anton Hamran","predseda","Ivica Hatalová",421903370792,"SK09 0900 0000 0051 6511 8018",null,null,null,null,"30806836"]
["00603341","SLOVENSKÝ STRELECKÝ ZVÄZ","občianske združenie","Wolkrova 4","Bratislava","851 01","www.shooting.sk","ssz@shooting.sk","Miloslav Benca","prezident","Ján Kulich",421905795511,"SK12 0900 0000 0001 1080 4827",null,null,null,null,"00603341"]
["17310571","Slovenský šachový zväz","občianske združenie","Bernolákovo námestie 25","Nové Zámky","940 01","www.chess.sk","sekretariat@chess.sk","Milan Roman","prezident","Vladimír Szűcs",421903363993,"SK71 1111 0000 0066 0114 7013",null,null,null,null,"17310571"]
["30806437","Slovenský šermiarsky zväz","občianske združenie","Trnavská cesta 39","Bratislava","831 04","ww.slovak-fencing.sk","slovak-fencing@slovak-fencing.sk","Attila Érsek","prezident","Gabriela Geršiová",421903740961,"SK15 0200 0000 0017 8550 2151",null,null,null,null,"30806437"]
["30811384","Slovenský tenisový zväz","občianske združenie","Príkopova 6","Bratislava","831 03","www.stz.sk","stz@stz.sk","Miloslav Mečíř","prezident","Ivan Greguška",421903714918,"SK34 0900 0000 0052 0010 1394",null,null,null,null,"30811384"]
["00688304","Slovenský veslársky zväz","občianske združenie","FTVŠ, Nábrežie armádneho generála Ludvíka Svobodu 4298/9","Bratislava","814 69","www.veslovanie.sk","rowingslovakia@gmail.com","Ján Žiška","predseda","Stanislava Vičanová",421918882990,"SK97 0200 0000 0017 8584 7256",null,null,null,null,"00688304"]
["31791981","SLOVENSKÝ ZÁPASNÍCKY ZVÄZ","občianske združenie","Junácka 2951/6","Bratislava","832 80","www.slovenskezapasenie.sk","szz@zapasenie.sk","Štefánia Galandová","generálna sekretárka ","Štefánia Galandová",421917476268,"SK64 0200 0000 0017 8575 3954",null,null,null,null,"31791981"]
["30811546","Slovenský zväz bedmintonu","občianske združenie","Slovenská 19","Prešov","080 01","www.bedminton.sk ","sekretar@bedminton.sk ","Zuzana Rajdugová","generálna sekretárka ","Zuzana Rajdugová",421905193404,"SK47 5600 0000 0008 5511 7001",null,null,null,null,"30811546"]
["35656743","Slovenský zväz biatlonu","občianske združenie","Partizánska cesta 3501/71","Banská Bystrica","974 01","www.biathlon.sk","svk@biathlon.sk","Peter Vozár","prezident","Zuzana Donovalová",421902902970,"SK28 0900 0000 0051 1924 9092",null,null,null,null,"35656743"]
["36067580","Slovenský zväz bobistov","občianske združenie","Líščie údolie 134","Bratislava","841 01","www.boby.sk","szb@boby.sk","Milan Majtán","predseda","Zdenka Jagnešáková",421903262626,"SK97 1100 0000 0026 2153 0361",null,null,null,null,"36067580"]
["00684112","Slovenský zväz cyklistiky","občianske združenie","Kukuričná 13","Bratislava","831 03","www.cyklistikaszc.sk","szc@cyklistikaszc.sk","Peter Privara, Katarína Jakubová","prezident, generálna sekretárka","Michal Rohoň",421902228191,"SK29 0200 0000 0017 8455 9156",null,null,null,null,"00684112"]
["31806431","Slovenský zväz dráhového golfu","občianske združenie","Junácka 2951/6","Bratislava","832 80","www.minigolfsport.sk","manager@minigolfsport.sk","František Drgoň","prezident","René Šimanský",421905305338,"SK44 0200 0000 0017 8760 5656",null,null,null,null,"31806431"]
["31795421","Slovenský zväz florbalu","občianske združenie","Junácka 6","Bratislava","832 80","www.szfb.sk","info@szfb.sk","Martin Kopejtko","prezident","Oto Divinský",421908979442,"SK09 0900 0000 0051 0969 4061",null,null,null,null,"31795421"]
["30774772","Slovenský zväz hádzanej","občianske združenie","Junácka 6","Bratislava","831 04","www.slovakhandball.sk","szh@slovakhandball.sk","Jaroslav Holeša","prezident","Ivan Sabovik",421903708275,"SK81 8420 0000 0001 7512 8786"]
["30793211","Slovenský zväz jachtingu","občianske združenie","Junácka 6","Bratislava","832 80","www.sailing.sk","szj@sailing.sk","Martin Mydlík","predseda","Zuzana Vargová",421918529304,"SK82 1100 0000 0029 4803 1855"]
["17308518","Slovenský zväz Judo","občianske združenie","Junácka 6","Bratislava","832 80","www.judo.sk","szj@judo.sk","Jozef Tománek ml., Pavel Zvara","predseda, podpredseda","Sophia Kanátová",421944318444,"SK08 0200 0000 0017 8526 0359"]
["30811571","Slovenský Zväz Karate","občianske združenie","Junácka 6","Bratislava","832 80","www.karate.sk","karate@karate.sk","Daniel Líška","prezident","Leopold Roman",421903692095,"SK51 0200 0000 0017 8666 3854"]
["31119247","Slovenský zväz kickboxu","občianske združenie","Junácka 6","Bratislava","832 80","www.slovak-kickboxing.sk ","onuscak@kickboxing.sk","Jozef Kolozsy","prezident","Viliam Sabol",421915499077,"SK90 0200 0000 0017 8509 1655"]
["30845386","Slovenský zväz ľadového hokeja","občianske združenie","Trnavská cesta 27/B","Bratislava","831 04","www.hockeyslovakia.sk","urbanova@szlh.sk","Miroslav Lažo","generálny sekretár","Andrea Urbanová",421905234323,"SK58 0200 0000 0013 0803 9053"]
["30865930","Slovenský zväz malého futbalu","občianske združenie","Ružinovská 28","Bratislava 2","821 03","www.malyfutbal.sk","peter.kralik@malyfutbal.sk","Peter Králik","prezident","Peter Králik",421915902632,"SK19 1100 0000 0029 4108 0902"]
["30788714","Slovenský zväz moderného päťboja","občianske združenie","Junácka 6","Bratislava","832 80","www.pentathlon.sk","smpa@pentathlon.sk","Dušan Poláček ml.","predseda","Dušan Poláček st.",421905650170,"SK71 0200 0000 0017 8531 6455"]
["30806518","Slovenský zväz orientačných športov","občianske združenie","Junácka 6","Bratislava","832 80","www.orienteering.sk","slovakia@orienteering.sk","Andrej Patráš","predseda","Milan Mazúr",421903636503,"SK88 1100 0000 0026 2876 2843"]
["31751075","Slovenský zväz pozemného hokeja","občianske združenie","Jurkovičova 5","Bratislava","831 06","www.szph.sk","szph@szph.sk","Ľudmila Pastorová","predseda","Matej Boho",421917263316,"SK12 0200 0000 0017 8578 5251"]
["37818058","Slovenský zväz psích záprahov","občianske združenie","M.R.Štefánika 217","Vranov nad Topľou","093 01","www.mushing.sk","igorpribula11@gmail.com","Igor Pribula","prezident","Igor Pribula",421905486716,"SK12 5600 0000 0012 2522 2004 "]
["00896896","Slovenský zväz rádioamatérov","občianske združenie","Mlynská 4","Stupava","900 31","www.hamradio.sk","szr@szr.sk","Roman Kudláč","prezident",null,null,"SK41 0200 0000 0037 9716 9551"]
["31871526","Slovenský zväz rybolovnej techniky","občianske združenie","Svornosti 69","Nové Zámky","940 77","www.szrtnz.sk","szrtnz@szm.sk","Juraj Mészáros","prezident","Juraj Mészáros",421905235472,"SK93 0200 0000 3500 2413 6172"]
["31989373","Slovenský zväz sánkarov","občianske združenie","Starý Smokovec 18074","Vysoké Tatry","062 01","www.sane.sk","sane@sane.sk","Viera Bachárová Findurová","predseda","Viera Bachárová Findurová",421905970041,"SK77 7500 0000 0006 1310 1613"]
["17326087","Slovenský zväz športovcov s mentálnym postihnutím","občianske združenie","SNP 90","Košice-Lorinčík","040 11","www.szsmp.sk","robert@cassovianet.sk","Róbert Luby","Funkciapredseda",null,421907953701]
["42219922","Slovenský zväz športového ju-jitsu","občianske združenie","Sládkovičova 454/16","Martin","036 01","www.szsjj.sk","predseda@szsjj.sk","Miroslav Ševčík","predseda","Miroslav Ševčík",421915879583,"SK04 1100 0000 0029 4113 5395"]
["51118831","Slovenský zväz športového rybolovu","občianske združenie","Andreja Kmeťa 314/20","Žilina","010 01","www.szsr.sk","sekretariatszsr@gmail.com","Jaroslav Sámela","prezident","Mária Sprušanská",421918711548,"SK96 0200 0000 0041 7420 1353"]
["37938941","Slovenský zväz Taekwon-Do ITF","občianske združenie","Staré Grunty 3553/9A","Bratislava","841 05","www.sztkd-itf.sk","sztkditf@gmail.com","Matej Košalko","prezident","Ladislav Huňady",421908553335,"SK27 1100 0000 0026 2903 9227"]
["00684767","Slovenský zväz tanečných športov","občianske združenie","Junácka 14290/6","Bratislava","832 80","www.szts.sk","szts@szts.sk","Peter Ivanič","prezident","Peter Ivanič",421905245008,"SK50 0200 0000 0019 7814 8953"]
["22665234","Slovenský zväz telesne postihnutých športovcov","občianske združenie","Benediktiho 5","Bratislava 1","811 05","www.sztps.sk","tps@sztps.sk","Ján Riapoš","predseda","Ján Riapoš\nMartina Balcová","421905788436;\n421918940356","SK47 8120 0000 0014 1246 5060"]
["30793203","Slovenský zväz vodného lyžovania a wakeboardingu","občianske združenie","Junácka 6","Bratislava","832 80","www.waterski.sk","waterski@waterski.sk","Alexander Vaško","predseda","Denisa Oravcová",421918808923,"SK65 0200 0000 0017 8165 3358"]
["00681768","Slovenský zväz vodného motorizmu","občianske združenie","Trnavská cesta 29","Bratislava","832 84","www.szvm.sk","szvm@szvm.sk","Marian Jung","predseda","Marian Jung",421905418010,"SK48 0900 0000 0051 2383 8869"]
["31796079","Slovenský zväz vzpierania","občianske združenie","Junácka 2951/6","Bratislava","832 80","www.vzpieranie.sk","chairmanswf@gmail.com ","Tomáš Chovanec","predseda","Tomáš Chovanec",421915282858,"SK44 0200 0000 0017 8558 1654"]
["30811406","Špeciálne olympiády Slovensko","občianske združenie","Trnavská cesta 37","Bratislava 3","831 04","www.specialolympics.sk","office@specialolympics.sk","Eva Gažová","Národná riaditeľka","Eva Gažová",421917176673,"SK31 0200 0000 0013 5172 7951"]
["42184827","Športová akadémia Mateja Tótha, o. z. ","občianske združenie","Trnavská cesta 37","Bratislava 3","831 04","www.akademiamatejatotha.sk","bedlekova@akademiamatejatotha.sk","Michal Tóth, Daniel Pastorek","Vedúci člen predstavenstva a štatutár","Mária Bedleková",421915165745,"SK49 0900 0000 0051 2925 8435"]
["53007344","Teqballová federácia Slovensko","občianske združenie","Jazdecká 13198/1A","Prešov","080 01 ","www.teq.sk","info@teq.sk","Artúr Benes","prezident","Artúr Benes",421918648073,"SK21 1111 0000 0016 2429 8006"]
["35538015","Združenie šípkarských organizácií","občianske združenie","Szakkayho 1","Košice","040 01","www.slovakiadart.sk","info@sipky.sk","Karol Kirchner","predseda","Karol Kirchner",421905700790,"SK26 0900 0000 0005 7536 2504"]
["00585319","Zväz potápačov Slovenska","občianske združenie","Wolkrova 4","Bratislava","851 01","www.zps-diving.sk","zps@zps-diving.sk","Roman Baláž","prezident","Zuzana Žecová",421918737877,"SK26 0200 0000 0017 8515 2753"]
["42132690","Zväz slovenského kolieskového korčuľovania","občianske združenie","Trnavská 3273/37","Bratislava 3","831 04","www.slovakskate.sk","president@slovakskate.sk","Štefan Pjontek","predseda","Štefan Pjontek",421903422249,"SK68 0200 0000 0046 8802 7153"]
["50671669","Zväz slovenského lyžovania","občianske združenie","Galvaniho 16617/17A","Bratislava","821 04","www.zsl.sk","sekretariat@zsl.sk","Martin Paško","prezident","Radovan Cagala",421905641479,"SK72 0900 0000 0051 8522 2656"]
["12664901","Zväz vodáctva a raftingu Slovenskej republiky","občianske združenie","Dunajská 8","Bratislava 1","811 08 ","www.zvazraftingu.sk","zvazraftingu@gmail.com","Radoslav Orokocký","prezident",null,null,"SK91 8330 0000 0023 0203 5726"]

{"sheet":"FP","index":6,"n_rows":822,"n_cols":14,"rows_kept":822,"cut":false,"hidden":true,"merged":[]}
["IČO","Prijímateľ","Predmet\n(názov, miesto, termín, parametre)","Schválená\n(eur)","SF\n(%)","Účel","PPG","B/K","ico+ucel","ico+ppg","Šport","ICO+PPG+BK","Zoraď","ico+ucel+B/K"]
["42254388",{"$f":"VLOOKUP(A2,Adr!A:B,2,FALSE)","v":"Deaflympijský výbor Slovenska"},"zabezpečenie činnosti a úloh v roku 2024",310117,0,"c","026 03","B",{"$f":"A2&F2","v":"42254388c"},{"$f":"A2&G2","v":"42254388026 03"},null,{"$f":"A2&G2&H2","v":"42254388026 03B"},{"$f":"B2&F2&H2&C2","v":"Deaflympijský výbor SlovenskacBzabezpečenie činnosti a úloh v roku 2024"},{"$f":"+I2&H2","v":"42254388cB"}]
["30787009",{"$f":"VLOOKUP(A3,Adr!A:B,2,FALSE)","v":"Slovenská asociácia amerického futbalu, o.z."},"americký futbal - bežné transfery",30160,0,"a","026 02","B","30787009a","30787009026 02","americký futbal","30787009026 02B","Slovenská asociácia amerického futbalu, o.z.aBamerický futbal - bežné transfery","30787009aB"]
["00631655",{"$f":"VLOOKUP(A4,Adr!A:B,2,FALSE)","v":"Slovenská asociácia boccie"},"boccia - bežné transfery",30160,0,"a","026 02","B","00631655a","00631655026 02","boccia","00631655026 02B","Slovenská asociácia boccieaBboccia - bežné transfery","00631655aB"]
["00631655",{"$f":"VLOOKUP(A5,Adr!A:B,2,FALSE)","v":"Slovenská asociácia boccie"},"boule lyonnaise - bežné transfery",30160,0,"a","026 02","B","00631655a","00631655026 02","boule lyonnaise","00631655026 02B","Slovenská asociácia boccieaBboule lyonnaise - bežné transfery","00631655aB"]
["42019541",{"$f":"VLOOKUP(A6,Adr!A:B,2,FALSE)","v":"Slovenská asociácia čínskeho wushu"},"wushu - bežné transfery",30160,0,"a","026 02","B","42019541a","42019541026 02","wushu","42019541026 02B","Slovenská asociácia čínskeho wushuaBwushu - bežné transfery","42019541aB"]
["30810108",{"$f":"VLOOKUP(A7,Adr!A:B,2,FALSE)","v":"Slovenská Asociácia Dynamickej Streľby"},"dynamická streľba - bežné transfery",50284,0,"a","026 02","B","30810108a","30810108026 02","dynamická streľba","30810108026 02B","Slovenská Asociácia Dynamickej StreľbyaBdynamická streľba - bežné transfery","30810108aB"]
["30842069",{"$f":"VLOOKUP(A8,Adr!A:B,2,FALSE)","v":"Slovenská asociácia fitnes, kulturistiky a silového trojboja"},"fitnes a kulturistika - bežné transfery",730205,0,"a","026 02","B","30842069a","30842069026 02","fitnes a kulturistika","30842069026 02B","Slovenská asociácia fitnes, kulturistiky a silového trojbojaaBfitnes a kulturistika - bežné transfery","30842069aB"]
["30842069",{"$f":"VLOOKUP(A9,Adr!A:B,2,FALSE)","v":"Slovenská asociácia fitnes, kulturistiky a silového trojboja"},"silové športy - bežné transfery",41829,0,"a","026 02","B","30842069a","30842069026 02","silové športy","30842069026 02B","Slovenská asociácia fitnes, kulturistiky a silového trojbojaaBsilové športy - bežné transfery","30842069aB"]
["31749852",{"$f":"VLOOKUP(A10,Adr!A:B,2,FALSE)","v":"Slovenská asociácia Frisbee"},"športy s lietajúcim diskom - bežné transfery",118069,0,"a","026 02","B","31749852a","31749852026 02","športy s lietajúcim diskom","31749852026 02B","Slovenská asociácia FrisbeeaBšporty s lietajúcim diskom - bežné transfery","31749852aB"]
["30844711",{"$f":"VLOOKUP(A11,Adr!A:B,2,FALSE)","v":"Slovenská asociácia go"},"go - bežné transfery",30160,0,"a","026 02","B","30844711a","30844711026 02","go","30844711026 02B","Slovenská asociácia goaBgo - bežné transfery","30844711aB"]
["31940668",{"$f":"VLOOKUP(A12,Adr!A:B,2,FALSE)","v":"Slovenská asociácia korfbalu"},"korfbal - bežné transfery",45447,0,"a","026 02","B","31940668a","31940668026 02","korfbal","31940668026 02B","Slovenská asociácia korfbaluaBkorfbal - bežné transfery","31940668aB"]
["31824021",{"$f":"VLOOKUP(A13,Adr!A:B,2,FALSE)","v":"Slovenská asociácia motoristického športu"},"automobilový šport - bežné transfery",446106,0,"a","026 02","B","31824021a","31824021026 02","automobilový šport","31824021026 02B","Slovenská asociácia motoristického športuaBautomobilový šport - bežné transfery","31824021aB"]
["31824021",{"$f":"VLOOKUP(A14,Adr!A:B,2,FALSE)","v":"Slovenská asociácia motoristického športu"},"automobilový šport - kapitálové transfery",31000,0,"a","026 02","K","31824021a","31824021026 02","automobilový šport","31824021026 02K","Slovenská asociácia motoristického športuaKautomobilový šport - kapitálové transfery","31824021aK"]
["30811686",{"$f":"VLOOKUP(A15,Adr!A:B,2,FALSE)","v":"Slovenská asociácia pretláčania rukou"},"pretláčanie rukou - bežné transfery",36664,0,"a","026 02","B","30811686a","30811686026 02","pretláčanie rukou","30811686026 02B","Slovenská asociácia pretláčania rukouaBpretláčanie rukou - bežné transfery","30811686aB"]
["30814910",{"$f":"VLOOKUP(A16,Adr!A:B,2,FALSE)","v":"Slovenská asociácia taekwondo WT"},"taekwondo - bežné transfery",80310,0,"a","026 02","B","30814910a","30814910026 02","taekwondo","30814910026 02B","Slovenská asociácia taekwondo WTaBtaekwondo - bežné transfery","30814910aB"]
["30814910",{"$f":"VLOOKUP(A17,Adr!A:B,2,FALSE)","v":"Slovenská asociácia taekwondo WT"},"zabezpečenie a rozvoj zdravotne postihnutých športovcov (SPV)",9003,0,"c","026 03","B","30814910c","30814910026 03",null,"30814910026 03B","Slovenská asociácia taekwondo WTcBzabezpečenie a rozvoj zdravotne postihnutých športovcov (SPV)","30814910cB"]
["30841798",{"$f":"VLOOKUP(A18,Adr!A:B,2,FALSE)","v":"Slovenská asociácia zrakovo postihnutých športovcov"},"zabezpečenie činnosti a úloh v roku 2024",150057,0,"c","026 03","B","30841798c","30841798026 03",null,"30841798026 03B","Slovenská asociácia zrakovo postihnutých športovcovcBzabezpečenie činnosti a úloh v roku 2024","30841798cB"]
["30844568",{"$f":"VLOOKUP(A19,Adr!A:B,2,FALSE)","v":"Slovenská baseballová federácia"},"baseball - bežné transfery",233925,0,"a","026 02","B","30844568a","30844568026 02","baseball","30844568026 02B","Slovenská baseballová federáciaaBbaseball - bežné transfery","30844568aB"]
["17315166",{"$f":"VLOOKUP(A20,Adr!A:B,2,FALSE)","v":"Slovenská basketbalová asociácia"},"basketbal - bežné transfery",1476337,0,"a","026 02","B","17315166a","17315166026 02","basketbal","17315166026 02B","Slovenská basketbalová asociáciaaBbasketbal - bežné transfery","17315166aB"]
["31744621",{"$f":"VLOOKUP(A21,Adr!A:B,2,FALSE)","v":"Slovenská boxerská federácia"},"box - bežné transfery",327913,0,"a","026 02","B","31744621a","31744621026 02","box","31744621026 02B","Slovenská boxerská federáciaaBbox - bežné transfery","31744621aB"]
["31744621",{"$f":"VLOOKUP(A22,Adr!A:B,2,FALSE)","v":"Slovenská boxerská federácia"},"box - kapitálové transfery",60000,0,"a","026 02","K","31744621a","31744621026 02","box","31744621026 02K","Slovenská boxerská federáciaaKbox - kapitálové transfery","31744621aK"]
["36064742",{"$f":"VLOOKUP(A23,Adr!A:B,2,FALSE)","v":"Slovenská federácia pétanque"},"pétanque - bežné transfery",30160,0,"a","026 02","B","36064742a","36064742026 02","pétanque","36064742026 02B","Slovenská federácia pétanqueaBpétanque - bežné transfery","36064742aB"]
["50284363",{"$f":"VLOOKUP(A24,Adr!A:B,2,FALSE)","v":"Slovenská golfová asociácia"},"golf - bežné transfery",477372,0,"a","026 02","B","50284363a","50284363026 02","golf","50284363026 02B","Slovenská golfová asociáciaaBgolf - bežné transfery","50284363aB"]
["50284363",{"$f":"VLOOKUP(A25,Adr!A:B,2,FALSE)","v":"Slovenská golfová asociácia"},"zabezpečenie a rozvoj zdravotne postihnutých športovcov (SPV)",4502,0,"c","026 03","B","50284363c","50284363026 03",null,"50284363026 03B","Slovenská golfová asociáciacBzabezpečenie a rozvoj zdravotne postihnutých športovcov (SPV)","50284363cB"]
["00688321",{"$f":"VLOOKUP(A26,Adr!A:B,2,FALSE)","v":"Slovenská gymnastická federácia"},"gymnastika - bežné transfery",1123715,0,"a","026 02","B","00688321a","00688321026 02","gymnastika","00688321026 02B","Slovenská gymnastická federáciaaBgymnastika - bežné transfery","00688321aB"]
["00688321",{"$f":"VLOOKUP(A27,Adr!A:B,2,FALSE)","v":"Slovenská gymnastická federácia"},"gymnastika - kapitálové transfery",35000,0,"a","026 02","K","00688321a","00688321026 02","gymnastika","00688321026 02K","Slovenská gymnastická federáciaaKgymnastika - kapitálové transfery","00688321aK"]
["54041368",{"$f":"VLOOKUP(A28,Adr!A:B,2,FALSE)","v":"SLOVENSKÁ CHEERLEADING ÚNIA"},"cheerleading - bežné transfery",30160,0,"a","026 02","B","54041368a","54041368026 02","cheerleading","54041368026 02B","SLOVENSKÁ CHEERLEADING ÚNIAaBcheerleading - bežné transfery","54041368aB"]
["31787801",{"$f":"VLOOKUP(A29,Adr!A:B,2,FALSE)","v":"SLOVENSKÁ JAZDECKÁ FEDERÁCIA"},"jazdectvo - bežné transfery",210599,0,"a","026 02","B","31787801a","31787801026 02","jazdectvo","31787801026 02B","SLOVENSKÁ JAZDECKÁ FEDERÁCIAaBjazdectvo - bežné transfery","31787801aB"]
["50434101",{"$f":"VLOOKUP(A30,Adr!A:B,2,FALSE)","v":"Slovenská kanoistika"},"kanoistika - bežné transfery",2045117,0,"a","026 02","B","50434101a","50434101026 02","kanoistika","50434101026 02B","Slovenská kanoistikaaBkanoistika - bežné transfery","50434101aB"]
["50434101",{"$f":"VLOOKUP(A31,Adr!A:B,2,FALSE)","v":"Slovenská kanoistika"},"kanoistika - kapitálové transfery",12500,0,"a","026 02","K","50434101a","50434101026 02","kanoistika","50434101026 02K","Slovenská kanoistikaaKkanoistika - kapitálové transfery","50434101aK"]
["30853427",{"$f":"VLOOKUP(A32,Adr!A:B,2,FALSE)","v":"Slovenská Lakrosová Federácia"},"lakros - bežné transfery",30160,0,"a","026 02","B","30853427a","30853427026 02","lakros","30853427026 02B","Slovenská Lakrosová FederáciaaBlakros - bežné transfery","30853427aB"]
["30813883",{"$f":"VLOOKUP(A33,Adr!A:B,2,FALSE)","v":"Slovenská motocyklová federácia"},"motocyklový šport - bežné transfery",135335,0,"a","026 02","B","30813883a","30813883026 02","motocyklový šport","30813883026 02B","Slovenská motocyklová federáciaaBmotocyklový šport - bežné transfery","30813883aB"]
["34057587",{"$f":"VLOOKUP(A34,Adr!A:B,2,FALSE)","v":"Slovenská Muaythai asociácia"},"thajský box - bežné transfery",34156,0,"a","026 02","B",{"$f":"A34&F34","v":"34057587a"},"34057587026 02","thajský box","34057587026 02B","Slovenská Muaythai asociáciaaBthajský box - bežné transfery","34057587aB"]
["36068764",{"$f":"VLOOKUP(A35,Adr!A:B,2,FALSE)","v":"Slovenská plavecká federácia"},"plavecké športy - bežné transfery",3020031,0,"a","026 02","B","36068764a","36068764026 02","plavecké športy","36068764026 02B","Slovenská plavecká federáciaaBplavecké športy - bežné transfery","36068764aB"]
["36068764",{"$f":"VLOOKUP(A36,Adr!A:B,2,FALSE)","v":"Slovenská plavecká federácia"},"plavecké športy - kapitálové transfery",11300,0,"a","026 02","K","36068764a","36068764026 02","plavecké športy","36068764026 02K","Slovenská plavecká federáciaaKplavecké športy - kapitálové transfery","36068764aK"]
["30851459",{"$f":"VLOOKUP(A37,Adr!A:B,2,FALSE)","v":"Slovenská rugbyová únia"},"rugby - bežné transfery",40763,0,"a","026 02","B","30851459a","30851459026 02","rugby","30851459026 02B","Slovenská rugbyová úniaaBrugby - bežné transfery","30851459aB"]
["37998919",{"$f":"VLOOKUP(A38,Adr!A:B,2,FALSE)","v":"Slovenská skialpinistická asociácia"},"skialpinizmus - bežné transfery",30160,0,"a","026 02","B","37998919a","37998919026 02","skialpinizmus","37998919026 02B","Slovenská skialpinistická asociáciaaBskialpinizmus - bežné transfery","37998919aB"]
["17316723",{"$f":"VLOOKUP(A39,Adr!A:B,2,FALSE)","v":"Slovenská softballová asociácia"},"softbal - bežné transfery",48320,0,"a","026 02","B","17316723a","17316723026 02","softbal","17316723026 02B","Slovenská softballová asociáciaaBsoftbal - bežné transfery","17316723aB"]
["30807018",{"$f":"VLOOKUP(A40,Adr!A:B,2,FALSE)","v":"Slovenská squashová asociácia"},"squash - bežné transfery",30160,0,"a","026 02","B","30807018a","30807018026 02","squash","30807018026 02B","Slovenská squashová asociáciaaBsquash - bežné transfery","30807018aB"]
["31745466",{"$f":"VLOOKUP(A41,Adr!A:B,2,FALSE)","v":"Slovenská triatlonová únia"},"triatlon - bežné transfery",294372,0,"a","026 02","B","31745466a","31745466026 02","triatlon","31745466026 02B","Slovenská triatlonová úniaaBtriatlon - bežné transfery","31745466aB"]
["00688819",{"$f":"VLOOKUP(A42,Adr!A:B,2,FALSE)","v":"Slovenská volejbalová federácia"},"volejbal - bežné transfery",1865534,0,"a","026 02","B","00688819a","00688819026 02","volejbal","00688819026 02B","Slovenská volejbalová federáciaaBvolejbal - bežné transfery","00688819aB"]
["00688819",{"$f":"VLOOKUP(A43,Adr!A:B,2,FALSE)","v":"Slovenská volejbalová federácia"},"volejbal - kapitálové transfery",6500,0,"a","026 02","K","00688819a","00688819026 02","volejbal","00688819026 02K","Slovenská volejbalová federáciaaKvolejbal - kapitálové transfery","00688819aK"]
["36063835",{"$f":"VLOOKUP(A44,Adr!A:B,2,FALSE)","v":"Slovenský atletický zväz"},"atletika - bežné transfery",3028883,0,"a","026 02","B","36063835a","36063835026 02","atletika","36063835026 02B","Slovenský atletický zväzaBatletika - bežné transfery","36063835aB"]
["36063835",{"$f":"VLOOKUP(A45,Adr!A:B,2,FALSE)","v":"Slovenský atletický zväz"},"atletika - kapitálové transfery",100000,0,"a","026 02","K","36063835a","36063835026 02","atletika","36063835026 02K","Slovenský atletický zväzaKatletika - kapitálové transfery","36063835aK"]
["31753825",{"$f":"VLOOKUP(A46,Adr!A:B,2,FALSE)","v":"Slovenský biliardový zväz"},"biliard - bežné transfery",44985,0,"a","026 02","B","31753825a","31753825026 02","biliard","31753825026 02B","Slovenský biliardový zväzaBbiliard - bežné transfery","31753825aB"]
["36128147",{"$f":"VLOOKUP(A47,Adr!A:B,2,FALSE)","v":"Slovenský bowlingový zväz"},"bowling - bežné transfery",34574,0,"a","026 02","B","36128147a","36128147026 02","bowling","36128147026 02B","Slovenský bowlingový zväzaBbowling - bežné transfery","36128147aB"]
["31770908",{"$f":"VLOOKUP(A48,Adr!A:B,2,FALSE)","v":"Slovenský bridžový zväz"},"bridž - bežné transfery",30160,0,"a","026 02","B","31770908a","31770908026 02","bridž","31770908026 02B","Slovenský bridžový zväzaBbridž - bežné transfery","31770908aB"]
["37841866",{"$f":"VLOOKUP(A49,Adr!A:B,2,FALSE)","v":"Slovenský curlingový zväz"},"curling - bežné transfery",42861,0,"a","026 02","B","37841866a","37841866026 02","curling","37841866026 02B","Slovenský curlingový zväzaBcurling - bežné transfery","37841866aB"]
["00687308",{"$f":"VLOOKUP(A50,Adr!A:B,2,FALSE)","v":"Slovenský futbalový zväz"},"futbal - bežné transfery",12717974,0,"a","026 02","B","00687308a","00687308026 02","futbal","00687308026 02B","Slovenský futbalový zväzaBfutbal - bežné transfery","00687308aB"]
["00687308",{"$f":"VLOOKUP(A51,Adr!A:B,2,FALSE)","v":"Slovenský futbalový zväz"},"futbal - kapitálové transfery",100000,0,"a","026 02","K","00687308a","00687308026 02","futbal","00687308026 02K","Slovenský futbalový zväzaKfutbal - kapitálové transfery","00687308aK"]
["00586455",{"$f":"VLOOKUP(A52,Adr!A:B,2,FALSE)","v":"Slovenský horolezecký spolok JAMES"},"horolezectvo - bežné transfery",134606,0,"a","026 02","B","00586455a","00586455026 02","horolezectvo","00586455026 02B","Slovenský horolezecký spolok JAMESaBhorolezectvo - bežné transfery","00586455aB"]
["00586455",{"$f":"VLOOKUP(A53,Adr!A:B,2,FALSE)","v":"Slovenský horolezecký spolok JAMES"},"športové lezenie - bežné transfery",58898,0,"a","026 02","B","00586455a","00586455026 02","športové lezenie","00586455026 02B","Slovenský horolezecký spolok JAMESaBšportové lezenie - bežné transfery","00586455aB"]
["31805540",{"$f":"VLOOKUP(A54,Adr!A:B,2,FALSE)","v":"Slovenský krasokorčuliarsky zväz"},"krasokorčuľovanie - bežné transfery",244015,0,"a","026 02","B","31805540a","31805540026 02","krasokorčuľovanie","31805540026 02B","Slovenský krasokorčuliarsky zväzaBkrasokorčuľovanie - bežné transfery","31805540aB"]
["30793009",{"$f":"VLOOKUP(A55,Adr!A:B,2,FALSE)","v":"Slovenský lukostrelecký zväz"},"lukostreľba - bežné transfery",255821,0,"a","026 02","B","30793009a","30793009026 02","lukostreľba","30793009026 02B","Slovenský lukostrelecký zväzaBlukostreľba - bežné transfery","30793009aB"]
["00677604",{"$f":"VLOOKUP(A56,Adr!A:B,2,FALSE)","v":"Slovenský národný aeroklub generála Milana Rastislava Štefánika"},"letecké športy - bežné transfery",156786,0,"a","026 02","B","00677604a","00677604026 02","letecké športy","00677604026 02B","Slovenský národný aeroklub generála Milana Rastislava ŠtefánikaaBletecké športy - bežné transfery","00677604aB"]
["30811082",{"$f":"VLOOKUP(A57,Adr!A:B,2,FALSE)","v":"Slovenský olympijský a športový výbor"},"činnosť Slovenského olympijského a športového výboru",1507997,0,"b","026 03","B","30811082b","30811082026 03",null,"30811082026 03B","Slovenský olympijský a športový výborbBčinnosť Slovenského olympijského a športového výboru","30811082bB"]
["31745661",{"$f":"VLOOKUP(A58,Adr!A:B,2,FALSE)","v":"Slovenský paralympijský výbor"},"činnosť Slovenského paralympijského výboru",1032389,0,"c","026 03","B","31745661c","31745661026 03",null,"31745661026 03B","Slovenský paralympijský výborcBčinnosť Slovenského paralympijského výboru","31745661cB"]
["31745661",{"$f":"VLOOKUP(A59,Adr!A:B,2,FALSE)","v":"Slovenský paralympijský výbor"},"letné paralympijské hry Paríž 2024 (UV SR č. 626)",500000,0,"e","026 03","B","31745661e","31745661026 03",null,"31745661026 03B","Slovenský paralympijský výboreBletné paralympijské hry Paríž 2024 (UV SR č. 626)","31745661eB"]
["30688060",{"$f":"VLOOKUP(A60,Adr!A:B,2,FALSE)","v":"Slovenský rýchlokorčuliarsky zväz"},"rýchlokorčuľovanie - bežné transfery",73430,0,"a","026 02","B","30688060a","30688060026 02","rýchlokorčuľovanie","30688060026 02B","Slovenský rýchlokorčuliarsky zväzaBrýchlokorčuľovanie - bežné transfery","30688060aB"]
["30806836",{"$f":"VLOOKUP(A61,Adr!A:B,2,FALSE)","v":"Slovenský stolnotenisový zväz"},"stolný tenis - bežné transfery",1596005,0,"a","026 02","B","30806836a","30806836026 02","stolný tenis","30806836026 02B","Slovenský stolnotenisový zväzaBstolný tenis - bežné transfery","30806836aB"]
["30806836",{"$f":"VLOOKUP(A62,Adr!A:B,2,FALSE)","v":"Slovenský stolnotenisový zväz"},"stolný tenis - kapitálové transfery",40000,0,"a","026 02","K","30806836a","30806836026 02","stolný tenis","30806836026 02K","Slovenský stolnotenisový zväzaKstolný tenis - kapitálové transfery","30806836aK"]
["00603341",{"$f":"VLOOKUP(A63,Adr!A:B,2,FALSE)","v":"SLOVENSKÝ STRELECKÝ ZVÄZ"},"streľba - bežné transfery",958295,0,"a","026 02","B","00603341a","00603341026 02","streľba","00603341026 02B","SLOVENSKÝ STRELECKÝ ZVÄZaBstreľba - bežné transfery","00603341aB"]
["00603341",{"$f":"VLOOKUP(A64,Adr!A:B,2,FALSE)","v":"SLOVENSKÝ STRELECKÝ ZVÄZ"},"streľba - kapitálové transfery",51000,0,"a","026 02","K","00603341a","00603341026 02","streľba","00603341026 02K","SLOVENSKÝ STRELECKÝ ZVÄZaKstreľba - kapitálové transfery","00603341aK"]
["17310571",{"$f":"VLOOKUP(A65,Adr!A:B,2,FALSE)","v":"Slovenský šachový zväz"},"šach - bežné transfery",507517,0,"a","026 02","B","17310571a","17310571026 02","šach","17310571026 02B","Slovenský šachový zväzaBšach - bežné transfery","17310571aB"]
["17310571",{"$f":"VLOOKUP(A66,Adr!A:B,2,FALSE)","v":"Slovenský šachový zväz"},"zabezpečenie a rozvoj zdravotne postihnutých športovcov (SPV)",5502,0,"c","026 03","B",{"$f":"A66&F66","v":"17310571c"},{"$f":"A66&G66","v":"17310571026 03"},null,{"$f":"A66&G66&H66","v":"17310571026 03B"},{"$f":"B66&F66&H66&C66","v":"Slovenský šachový zväzcBzabezpečenie a rozvoj zdravotne postihnutých športovcov (SPV)"},{"$f":"+I66&H66","v":"17310571cB"}]
["30806437",{"$f":"VLOOKUP(A67,Adr!A:B,2,FALSE)","v":"Slovenský šermiarsky zväz"},"šerm - bežné transfery",155771,0,"a","026 02","B","30806437a","30806437026 02","šerm","30806437026 02B","Slovenský šermiarsky zväzaBšerm - bežné transfery","30806437aB"]
["30811384",{"$f":"VLOOKUP(A68,Adr!A:B,2,FALSE)","v":"Slovenský tenisový zväz"},"tenis - bežné transfery",4428173,0,"a","026 02","B","30811384a","30811384026 02","tenis","30811384026 02B","Slovenský tenisový zväzaBtenis - bežné transfery","30811384aB"]
["00688304",{"$f":"VLOOKUP(A69,Adr!A:B,2,FALSE)","v":"Slovenský veslársky zväz"},"veslovanie - bežné transfery",104114,0,"a","026 02","B","00688304a","00688304026 02","veslovanie","00688304026 02B","Slovenský veslársky zväzaBveslovanie - bežné transfery","00688304aB"]
["00688304",{"$f":"VLOOKUP(A70,Adr!A:B,2,FALSE)","v":"Slovenský veslársky zväz"},"veslovanie - kapitálové transfery",35000,0,"a","026 02","K","00688304a","00688304026 02","veslovanie","00688304026 02K","Slovenský veslársky zväzaKveslovanie - kapitálové transfery","00688304aK"]
["00688304",{"$f":"VLOOKUP(A71,Adr!A:B,2,FALSE)","v":"Slovenský veslársky zväz"},"zabezpečenie a rozvoj zdravotne postihnutých športovcov (SPV)",6503,0,"c","026 03","B","00688304c","00688304026 03",null,"00688304026 03B","Slovenský veslársky zväzcBzabezpečenie a rozvoj zdravotne postihnutých športovcov (SPV)","00688304cB"]
["31791981",{"$f":"VLOOKUP(A72,Adr!A:B,2,FALSE)","v":"SLOVENSKÝ ZÁPASNÍCKY ZVÄZ"},"zápasenie - bežné transfery",367713,0,"a","026 02","B","31791981a","31791981026 02","zápasenie","31791981026 02B","SLOVENSKÝ ZÁPASNÍCKY ZVÄZaBzápasenie - bežné transfery","31791981aB"]
["30811546",{"$f":"VLOOKUP(A73,Adr!A:B,2,FALSE)","v":"Slovenský zväz bedmintonu"},"bedminton - bežné transfery",319933,0,"a","026 02","B","30811546a","30811546026 02","bedminton","30811546026 02B","Slovenský zväz bedmintonuaBbedminton - bežné transfery","30811546aB"]
["35656743",{"$f":"VLOOKUP(A74,Adr!A:B,2,FALSE)","v":"Slovenský zväz biatlonu"},"biatlon - bežné transfery",590940,0,"a","026 02","B","35656743a","35656743026 02","biatlon","35656743026 02B","Slovenský zväz biatlonuaBbiatlon - bežné transfery","35656743aB"]
["35656743",{"$f":"VLOOKUP(A75,Adr!A:B,2,FALSE)","v":"Slovenský zväz biatlonu"},"biatlon - kapitálové transfery",68450,0,"a","026 02","K","35656743a","35656743026 02","biatlon","35656743026 02K","Slovenský zväz biatlonuaKbiatlon - kapitálové transfery","35656743aK"]
["36067580",{"$f":"VLOOKUP(A76,Adr!A:B,2,FALSE)","v":"Slovenský zväz bobistov"},"boby a skeleton - bežné transfery",86372,0,"a","026 02","B","36067580a","36067580026 02","boby a skeleton","36067580026 02B","Slovenský zväz bobistovaBboby a skeleton - bežné transfery","36067580aB"]
["36067580",{"$f":"VLOOKUP(A77,Adr!A:B,2,FALSE)","v":"Slovenský zväz bobistov"},"boby a skeleton - kapitálové transfery",8376,0,"a","026 02","K","36067580a","36067580026 02","boby a skeleton","36067580026 02K","Slovenský zväz bobistovaKboby a skeleton - kapitálové transfery","36067580aK"]
["00684112",{"$f":"VLOOKUP(A78,Adr!A:B,2,FALSE)","v":"Slovenský zväz cyklistiky"},"cyklistika - bežné transfery",2585363,0,"a","026 02","B","00684112a","00684112026 02","cyklistika","00684112026 02B","Slovenský zväz cyklistikyaBcyklistika - bežné transfery","00684112aB"]
["00684112",{"$f":"VLOOKUP(A79,Adr!A:B,2,FALSE)","v":"Slovenský zväz cyklistiky"},"cyklistika - kapitálové transfery",21200,0,"a","026 02","K","00684112a","00684112026 02","cyklistika","00684112026 02K","Slovenský zväz cyklistikyaKcyklistika - kapitálové transfery","00684112aK"]
["00684112",{"$f":"VLOOKUP(A80,Adr!A:B,2,FALSE)","v":"Slovenský zväz cyklistiky"},"zabezpečenie a rozvoj zdravotne postihnutých športovcov (SPV)",56021,0,"c","026 03","B","00684112c","00684112026 03",null,"00684112026 03B","Slovenský zväz cyklistikycBzabezpečenie a rozvoj zdravotne postihnutých športovcov (SPV)","00684112cB"]
["31806431",{"$f":"VLOOKUP(A81,Adr!A:B,2,FALSE)","v":"Slovenský zväz dráhového golfu"},"dráhový golf - bežné transfery",36551,0,"a","026 02","B","31806431a","31806431026 02","dráhový golf","31806431026 02B","Slovenský zväz dráhového golfuaBdráhový golf - bežné transfery","31806431aB"]
["31795421",{"$f":"VLOOKUP(A82,Adr!A:B,2,FALSE)","v":"Slovenský zväz florbalu"},"florbal - bežné transfery",823221,0,"a","026 02","B","31795421a","31795421026 02","florbal","31795421026 02B","Slovenský zväz florbaluaBflorbal - bežné transfery","31795421aB"]
["30774772",{"$f":"VLOOKUP(A83,Adr!A:B,2,FALSE)","v":"Slovenský zväz hádzanej"},"hádzaná - bežné transfery",2001954,0,"a","026 02","B","30774772a","30774772026 02","hádzaná","30774772026 02B","Slovenský zväz hádzanejaBhádzaná - bežné transfery","30774772aB"]
["30793211",{"$f":"VLOOKUP(A84,Adr!A:B,2,FALSE)","v":"Slovenský zväz jachtingu"},"jachting - bežné transfery",97455,0,"a","026 02","B","30793211a","30793211026 02","jachting","30793211026 02B","Slovenský zväz jachtinguaBjachting - bežné transfery","30793211aB"]
["17308518",{"$f":"VLOOKUP(A85,Adr!A:B,2,FALSE)","v":"Slovenský zväz Judo"},"judo - bežné transfery",275194,0,"a","026 02","B","17308518a","17308518026 02","judo","17308518026 02B","Slovenský zväz JudoaBjudo - bežné transfery","17308518aB"]
["30811571",{"$f":"VLOOKUP(A86,Adr!A:B,2,FALSE)","v":"Slovenský Zväz Karate"},"karate - bežné transfery",905449,0,"a","026 02","B","30811571a","30811571026 02","karate","30811571026 02B","Slovenský Zväz KarateaBkarate - bežné transfery","30811571aB"]
["30811571",{"$f":"VLOOKUP(A87,Adr!A:B,2,FALSE)","v":"Slovenský Zväz Karate"},"zabezpečenie a rozvoj zdravotne postihnutých športovcov (SPV)",8503,0,"c","026 03","B","30811571c","30811571026 03",null,"30811571026 03B","Slovenský Zväz KaratecBzabezpečenie a rozvoj zdravotne postihnutých športovcov (SPV)","30811571cB"]
["31119247",{"$f":"VLOOKUP(A88,Adr!A:B,2,FALSE)","v":"Slovenský zväz kickboxu"},"kickbox - bežné transfery",164699,0,"a","026 02","B","31119247a","31119247026 02","kickbox","31119247026 02B","Slovenský zväz kickboxuaBkickbox - bežné transfery","31119247aB"]
["30845386",{"$f":"VLOOKUP(A89,Adr!A:B,2,FALSE)","v":"Slovenský zväz ľadového hokeja"},"ľadový hokej - bežné transfery",9710306,0,"a","026 02","B","30845386a","30845386026 02","ľadový hokej","30845386026 02B","Slovenský zväz ľadového hokejaaBľadový hokej - bežné transfery","30845386aB"]
["30845386",{"$f":"VLOOKUP(A90,Adr!A:B,2,FALSE)","v":"Slovenský zväz ľadového hokeja"},"ľadový hokej - kapitálové transfery",91674,0,"a","026 02","K","30845386a","30845386026 02","ľadový hokej","30845386026 02K","Slovenský zväz ľadového hokejaaKľadový hokej - kapitálové transfery","30845386aK"]
["30788714",{"$f":"VLOOKUP(A91,Adr!A:B,2,FALSE)","v":"Slovenský zväz moderného päťboja"},"moderný päťboj - bežné transfery",117759,0,"a","026 02","B","30788714a","30788714026 02","moderný päťboj","30788714026 02B","Slovenský zväz moderného päťbojaaBmoderný päťboj - bežné transfery","30788714aB"]
["30806518",{"$f":"VLOOKUP(A92,Adr!A:B,2,FALSE)","v":"Slovenský zväz orientačných športov"},"orientačné športy - bežné transfery",57729,0,"a","026 02","B","30806518a","30806518026 02","orientačné športy","30806518026 02B","Slovenský zväz orientačných športovaBorientačné športy - bežné transfery","30806518aB"]
["31751075",{"$f":"VLOOKUP(A93,Adr!A:B,2,FALSE)","v":"Slovenský zväz pozemného hokeja"},"pozemný hokej - bežné transfery",142124,0,"a","026 02","B","31751075a","31751075026 02","pozemný hokej","31751075026 02B","Slovenský zväz pozemného hokejaaBpozemný hokej - bežné transfery","31751075aB"]
["31751075",{"$f":"VLOOKUP(A94,Adr!A:B,2,FALSE)","v":"Slovenský zväz pozemného hokeja"},"pozemný hokej - kapitálové transfery",20000,0,"a","026 02","K","31751075a","31751075026 02","pozemný hokej","31751075026 02K","Slovenský zväz pozemného hokejaaKpozemný hokej - kapitálové transfery","31751075aK"]
["37818058",{"$f":"VLOOKUP(A95,Adr!A:B,2,FALSE)","v":"Slovenský zväz psích záprahov"},"psie záprahy - bežné transfery",41497,0,"a","026 02","B","37818058a","37818058026 02","psie záprahy","37818058026 02B","Slovenský zväz psích záprahovaBpsie záprahy - bežné transfery","37818058aB"]
["31871526",{"$f":"VLOOKUP(A96,Adr!A:B,2,FALSE)","v":"Slovenský zväz rybolovnej techniky"},"rybolovná technika - bežné transfery",65346,0,"a","026 02","B","31871526a","31871526026 02","rybolovná technika","31871526026 02B","Slovenský zväz rybolovnej technikyaBrybolovná technika - bežné transfery","31871526aB"]
["31989373",{"$f":"VLOOKUP(A97,Adr!A:B,2,FALSE)","v":"Slovenský zväz sánkarov"},"sánkovanie - bežné transfery",140092,0,"a","026 02","B","31989373a","31989373026 02","sánkovanie","31989373026 02B","Slovenský zväz sánkarovaBsánkovanie - bežné transfery","31989373aB"]
["17326087",{"$f":"VLOOKUP(A98,Adr!A:B,2,FALSE)","v":"Slovenský zväz športovcov s mentálnym postihnutím"},"zabezpečenie činnosti a úloh v roku 2024",10004,0,"c","026 03","B",{"$f":"A98&F98","v":"17326087c"},"17326087026 03",null,"17326087026 03B","Slovenský zväz športovcov s mentálnym postihnutímcBzabezpečenie činnosti a úloh v roku 2024","17326087cB"]
["42219922",{"$f":"VLOOKUP(A99,Adr!A:B,2,FALSE)","v":"Slovenský zväz športového ju-jitsu"},"ju-jitsu - bežné transfery",30160,0,"a","026 02","B","42219922a","42219922026 02","ju-jitsu","42219922026 02B","Slovenský zväz športového ju-jitsuaBju-jitsu - bežné transfery","42219922aB"]
["51118831",{"$f":"VLOOKUP(A100,Adr!A:B,2,FALSE)","v":"Slovenský zväz športového rybolovu"},"športové rybárstvo - bežné transfery",89011,0,"a","026 02","B","51118831a","51118831026 02","športové rybárstvo","51118831026 02B","Slovenský zväz športového rybolovuaBšportové rybárstvo - bežné transfery","51118831aB"]
["00684767",{"$f":"VLOOKUP(A101,Adr!A:B,2,FALSE)","v":"Slovenský zväz tanečných športov"},"tanečný šport - bežné transfery",590215,0,"a","026 02","B","00684767a","00684767026 02","tanečný šport","00684767026 02B","Slovenský zväz tanečných športovaBtanečný šport - bežné transfery","00684767aB"]
["22665234",{"$f":"VLOOKUP(A102,Adr!A:B,2,FALSE)","v":"Slovenský zväz telesne postihnutých športovcov"},"zabezpečenie činnosti a úloh v roku 2024",503190,0,"c","026 03","B","22665234c","22665234026 03",null,"22665234026 03B","Slovenský zväz telesne postihnutých športovcovcBzabezpečenie činnosti a úloh v roku 2024","22665234cB"]
["30793203",{"$f":"VLOOKUP(A103,Adr!A:B,2,FALSE)","v":"Slovenský zväz vodného lyžovania a wakeboardingu"},"vodné lyžovanie - bežné transfery",64577,0,"a","026 02","B","30793203a","30793203026 02","vodné lyžovanie","30793203026 02B","Slovenský zväz vodného lyžovania a wakeboardinguaBvodné lyžovanie - bežné transfery","30793203aB"]
["00681768",{"$f":"VLOOKUP(A104,Adr!A:B,2,FALSE)","v":"Slovenský zväz vodného motorizmu"},"vodný motorizmus - bežné transfery",30160,0,"a","026 02","B","00681768a","00681768026 02","vodný motorizmus","00681768026 02B","Slovenský zväz vodného motorizmuaBvodný motorizmus - bežné transfery","00681768aB"]
["31796079",{"$f":"VLOOKUP(A105,Adr!A:B,2,FALSE)","v":"Slovenský zväz vzpierania"},"vzpieranie - bežné transfery",488195,0,"a","026 02","B","31796079a","31796079026 02","vzpieranie","31796079026 02B","Slovenský zväz vzpieraniaaBvzpieranie - bežné transfery","31796079aB"]
["30811406",{"$f":"VLOOKUP(A106,Adr!A:B,2,FALSE)","v":"Špeciálne olympiády Slovensko"},"zabezpečenie činnosti a úloh v roku 2024",419158,0,"c","026 03","B","30811406c","30811406026 03",null,"30811406026 03B","Špeciálne olympiády SlovenskocBzabezpečenie činnosti a úloh v roku 2024","30811406cB"]
["53007344",{"$f":"VLOOKUP(A107,Adr!A:B,2,FALSE)","v":"Teqballová federácia Slovensko"},"teqball - bežné transfery",22160,0,"a","026 02","B","53007344a","53007344026 02","teqball","53007344026 02B","Teqballová federácia SlovenskoaBteqball - bežné transfery","53007344aB"]
["53007344",{"$f":"VLOOKUP(A108,Adr!A:B,2,FALSE)","v":"Teqballová federácia Slovensko"},"teqball - kapitálové transfery",8000,0,"a","026 02","K","53007344a","53007344026 02","teqball","53007344026 02K","Teqballová federácia SlovenskoaKteqball - kapitálové transfery","53007344aK"]
["35538015",{"$f":"VLOOKUP(A109,Adr!A:B,2,FALSE)","v":"Združenie šípkarských organizácií"},"šípky - bežné transfery",59057,0,"a","026 02","B","35538015a","35538015026 02","šípky","35538015026 02B","Združenie šípkarských organizáciíaBšípky - bežné transfery","35538015aB"]
["00585319",{"$f":"VLOOKUP(A110,Adr!A:B,2,FALSE)","v":"Zväz potápačov Slovenska"},"potápačské športy - bežné transfery",102563,0,"a","026 02","B","00585319a","00585319026 02","potápačské športy","00585319026 02B","Zväz potápačov SlovenskaaBpotápačské športy - bežné transfery","00585319aB"]
["42132690",{"$f":"VLOOKUP(A111,Adr!A:B,2,FALSE)","v":"Zväz slovenského kolieskového korčuľovania"},"kolieskové korčuľovanie - bežné transfery",185600,0,"a","026 02","B","42132690a","42132690026 02","kolieskové korčuľovanie","42132690026 02B","Zväz slovenského kolieskového korčuľovaniaaBkolieskové korčuľovanie - bežné transfery","42132690aB"]
["50671669",{"$f":"VLOOKUP(A112,Adr!A:B,2,FALSE)","v":"Zväz slovenského lyžovania"},"lyžovanie - bežné transfery",1571612,0,"a","026 02","B","50671669a","50671669026 02","lyžovanie","50671669026 02B","Zväz slovenského lyžovaniaaBlyžovanie - bežné transfery","50671669aB"]
["50671669",{"$f":"VLOOKUP(A113,Adr!A:B,2,FALSE)","v":"Zväz slovenského lyžovania"},"lyžovanie - kapitálové transfery",100000,0,"a","026 02","K","50671669a","50671669026 02","lyžovanie","50671669026 02K","Zväz slovenského lyžovaniaaKlyžovanie - kapitálové transfery","50671669aK"]
["50671669",{"$f":"VLOOKUP(A114,Adr!A:B,2,FALSE)","v":"Zväz slovenského lyžovania"},"zabezpečenie a rozvoj zdravotne postihnutých športovcov (SPV)",124046,0,"c","026 03","B","50671669c","50671669026 03",null,"50671669026 03B","Zväz slovenského lyžovaniacBzabezpečenie a rozvoj zdravotne postihnutých športovcov (SPV)","50671669cB"]
[null,{"$f":"VLOOKUP(A115,Adr!A:B,2,FALSE)","v":{"$error":"#N/A"}},null,null,null,null,null,null,"","",null,"",{"$error":"#N/A"},""]
[null,{"$f":"VLOOKUP(A116,Adr!A:B,2,FALSE)","v":{"$error":"#N/A"}},null,null,null,null,null,null,"","",null,"",{"$error":"#N/A"},""]
[null,{"$f":"VLOOKUP(A117,Adr!A:B,2,FALSE)","v":{"$error":"#N/A"}},null,null,null,null,null,null,"","",null,"",{"$error":"#N/A"},""]
[null,{"$f":"VLOOKUP(A118,Adr!A:B,2,FALSE)","v":{"$error":"#N/A"}},null,null,null,null,null,null,"","",null,"",{"$error":"#N/A"},""]
[null,{"$f":"VLOOKUP(A119,Adr!A:B,2,FALSE)","v":{"$error":"#N/A"}},null,null,null,null,null,null,"","",null,"",{"$error":"#N/A"},""]
[null,{"$f":"VLOOKUP(A120,Adr!A:B,2,FALSE)","v":{"$error":"#N/A"}},null,null,null,null,null,null,"","",null,"",{"$error":"#N/A"},""]
[null,{"$f":"VLOOKUP(A121,Adr!A:B,2,FALSE)","v":{"$error":"#N/A"}},null,null,null,null,null,null,"","",null,"",{"$error":"#N/A"},""]
[null,{"$f":"VLOOKUP(A122,Adr!A:B,2,FALSE)","v":{"$error":"#N/A"}},null,null,null,null,null,null,"","",null,"",{"$error":"#N/A"},""]
[null,{"$f":"VLOOKUP(A123,Adr!A:B,2,FALSE)","v":{"$error":"#N/A"}},null,null,null,null,null,null,"","",null,"",{"$error":"#N/A"},""]
[null,{"$f":"VLOOKUP(A124,Adr!A:B,2,FALSE)","v":{"$error":"#N/A"}},null,null,null,null,null,null,"","",null,"",{"$error":"#N/A"},""]
[null,{"$f":"VLOOKUP(A125,Adr!A:B,2,FALSE)","v":{"$error":"#N/A"}},null,null,null,null,null,null,"","",null,"",{"$error":"#N/A"},""]
[null,{"$f":"VLOOKUP(A126,Adr!A:B,2,FALSE)","v":{"$error":"#N/A"}},null,null,null,null,null,null,"","",null,"",{"$error":"#N/A"},""]
[null,{"$f":"VLOOKUP(A127,Adr!A:B,2,FALSE)","v":{"$error":"#N/A"}},null,null,null,null,null,null,"","",null,"",{"$error":"#N/A"},""]
[null,{"$f":"VLOOKUP(A128,Adr!A:B,2,FALSE)","v":{"$error":"#N/A"}},null,null,null,null,null,null,"","",null,"",{"$error":"#N/A"},""]
[null,{"$f":"VLOOKUP(A129,Adr!A:B,2,FALSE)","v":{"$error":"#N/A"}},null,null,null,null,null,null,"","",null,"",{"$error":"#N/A"},""]
[null,{"$f":"VLOOKUP(A130,Adr!A:B,2,FALSE)","v":{"$error":"#N/A"}},null,null,null,null,null,null,{"$f":"A130&F130","v":""},{"$f":"A130&G130","v":""},null,{"$f":"A130&G130&H130","v":""},{"$f":"B130&F130&H130&C130","v":{"$error":"#N/A"}},{"$f":"+I130&H130","v":""}]
[null,{"$f":"VLOOKUP(A131,Adr!A:B,2,FALSE)","v":{"$error":"#N/A"}},null,null,null,null,null,null,"","",null,"",{"$error":"#N/A"},""]
[null,{"$f":"VLOOKUP(A132,Adr!A:B,2,FALSE)","v":{"$error":"#N/A"}},null,null,null,null,null,null,"","",null,"",{"$error":"#N/A"},""]
[null,{"$f":"VLOOKUP(A133,Adr!A:B,2,FALSE)","v":{"$error":"#N/A"}},null,null,null,null,null,null,"","",null,"",{"$error":"#N/A"},""]
[null,{"$f":"VLOOKUP(A134,Adr!A:B,2,FALSE)","v":{"$error":"#N/A"}},null,null,null,null,null,null,"","",null,"",{"$error":"#N/A"},""]
[null,{"$f":"VLOOKUP(A135,Adr!A:B,2,FALSE)","v":{"$error":"#N/A"}},null,null,null,null,null,null,"","",null,"",{"$error":"#N/A"},""]
[null,{"$f":"VLOOKUP(A136,Adr!A:B,2,FALSE)","v":{"$error":"#N/A"}},null,null,null,null,null,null,"","",null,"",{"$error":"#N/A"},""]
[null,{"$f":"VLOOKUP(A137,Adr!A:B,2,FALSE)","v":{"$error":"#N/A"}},null,null,null,null,null,null,"","",null,"",{"$error":"#N/A"},""]
[null,{"$f":"VLOOKUP(A138,Adr!A:B,2,FALSE)","v":{"$error":"#N/A"}},null,null,null,null,null,null,"","",null,"",{"$error":"#N/A"},""]
[null,{"$f":"VLOOKUP(A139,Adr!A:B,2,FALSE)","v":{"$error":"#N/A"}},null,null,null,null,null,null,"","",null,"",{"$error":"#N/A"},""]
[null,{"$f":"VLOOKUP(A140,Adr!A:B,2,FALSE)","v":{"$error":"#N/A"}},null,null,null,null,null,null,"","",null,"",{"$error":"#N/A"},""]
[null,{"$f":"VLOOKUP(A141,Adr!A:B,2,FALSE)","v":{"$error":"#N/A"}},null,null,null,null,null,null,"","",null,"",{"$error":"#N/A"},""]
[null,{"$f":"VLOOKUP(A142,Adr!A:B,2,FALSE)","v":{"$error":"#N/A"}},null,null,null,null,null,null,"","",null,"",{"$error":"#N/A"},""]
[null,{"$f":"VLOOKUP(A143,Adr!A:B,2,FALSE)","v":{"$error":"#N/A"}},null,null,null,null,null,null,"","",null,"",{"$error":"#N/A"},""]
[null,{"$f":"VLOOKUP(A144,Adr!A:B,2,FALSE)","v":{"$error":"#N/A"}},null,null,null,null,null,null,"","",null,"",{"$error":"#N/A"},""]
[null,{"$f":"VLOOKUP(A145,Adr!A:B,2,FALSE)","v":{"$error":"#N/A"}},null,null,null,null,null,null,"","",null,"",{"$error":"#N/A"},""]
[null,{"$f":"VLOOKUP(A146,Adr!A:B,2,FALSE)","v":{"$error":"#N/A"}},null,null,null,null,null,null,"","",null,"",{"$error":"#N/A"},""]
[null,{"$f":"VLOOKUP(A147,Adr!A:B,2,FALSE)","v":{"$error":"#N/A"}},null,null,null,null,null,null,"","",null,"",{"$error":"#N/A"},""]
[null,{"$f":"VLOOKUP(A148,Adr!A:B,2,FALSE)","v":{"$error":"#N/A"}},null,null,null,null,null,null,"","",null,"",{"$error":"#N/A"},""]
[null,{"$f":"VLOOKUP(A149,Adr!A:B,2,FALSE)","v":{"$error":"#N/A"}},null,null,null,null,null,null,"","",null,"",{"$error":"#N/A"},""]
[null,{"$f":"VLOOKUP(A150,Adr!A:B,2,FALSE)","v":{"$error":"#N/A"}},null,null,null,null,null,null,"","",null,"",{"$error":"#N/A"},""]
[null,{"$f":"VLOOKUP(A151,Adr!A:B,2,FALSE)","v":{"$error":"#N/A"}},null,null,null,null,null,null,"","",null,"",{"$error":"#N/A"},""]
[null,{"$f":"VLOOKUP(A152,Adr!A:B,2,FALSE)","v":{"$error":"#N/A"}},null,null,null,null,null,null,"","",null,"",{"$error":"#N/A"},""]
[null,{"$f":"VLOOKUP(A153,Adr!A:B,2,FALSE)","v":{"$error":"#N/A"}},null,null,null,null,null,null,"","",null,"",{"$error":"#N/A"},""]
[null,{"$f":"VLOOKUP(A154,Adr!A:B,2,FALSE)","v":{"$error":"#N/A"}},null,null,null,null,null,null,"","",null,"",{"$error":"#N/A"},""]
[null,{"$f":"VLOOKUP(A155,Adr!A:B,2,FALSE)","v":{"$error":"#N/A"}},null,null,null,null,null,null,"","",null,"",{"$error":"#N/A"},""]
[null,{"$f":"VLOOKUP(A156,Adr!A:B,2,FALSE)","v":{"$error":"#N/A"}},null,null,null,null,null,null,"","",null,"",{"$error":"#N/A"},""]
[null,{"$f":"VLOOKUP(A157,Adr!A:B,2,FALSE)","v":{"$error":"#N/A"}},null,null,null,null,null,null,"","",null,"",{"$error":"#N/A"},""]
[null,{"$f":"VLOOKUP(A158,Adr!A:B,2,FALSE)","v":{"$error":"#N/A"}},null,null,null,null,null,null,"","",null,"",{"$error":"#N/A"},""]
[null,{"$f":"VLOOKUP(A159,Adr!A:B,2,FALSE)","v":{"$error":"#N/A"}},null,null,null,null,null,null,"","",null,"",{"$error":"#N/A"},""]
[null,{"$f":"VLOOKUP(A160,Adr!A:B,2,FALSE)","v":{"$error":"#N/A"}},null,null,null,null,null,null,"","",null,"",{"$error":"#N/A"},""]
[null,{"$f":"VLOOKUP(A161,Adr!A:B,2,FALSE)","v":{"$error":"#N/A"}},null,null,null,null,null,null,"","",null,"",{"$error":"#N/A"},""]
[null,{"$f":"VLOOKUP(A162,Adr!A:B,2,FALSE)","v":{"$error":"#N/A"}},null,null,null,null,null,null,{"$f":"A162&F162","v":""},"",null,"",{"$error":"#N/A"},""]
[null,{"$f":"VLOOKUP(A163,Adr!A:B,2,FALSE)","v":{"$error":"#N/A"}},null,null,null,null,null,null,"","",null,"",{"$error":"#N/A"},""]
[null,{"$f":"VLOOKUP(A164,Adr!A:B,2,FALSE)","v":{"$error":"#N/A"}},null,null,null,null,null,null,"","",null,"",{"$error":"#N/A"},""]
[null,{"$f":"VLOOKUP(A165,Adr!A:B,2,FALSE)","v":{"$error":"#N/A"}},null,null,null,null,null,null,"","",null,"",{"$error":"#N/A"},""]
[null,{"$f":"VLOOKUP(A166,Adr!A:B,2,FALSE)","v":{"$error":"#N/A"}},null,null,null,null,null,null,"","",null,"",{"$error":"#N/A"},""]
[null,{"$f":"VLOOKUP(A167,Adr!A:B,2,FALSE)","v":{"$error":"#N/A"}},null,null,null,null,null,null,"","",null,"",{"$error":"#N/A"},""]
[null,{"$f":"VLOOKUP(A168,Adr!A:B,2,FALSE)","v":{"$error":"#N/A"}},null,null,null,null,null,null,"","",null,"",{"$error":"#N/A"},""]
[null,{"$f":"VLOOKUP(A169,Adr!A:B,2,FALSE)","v":{"$error":"#N/A"}},null,null,null,null,null,null,"","",null,"",{"$error":"#N/A"},""]
[null,{"$f":"VLOOKUP(A170,Adr!A:B,2,FALSE)","v":{"$error":"#N/A"}},null,null,null,null,null,null,"","",null,"",{"$error":"#N/A"},""]
[null,{"$f":"VLOOKUP(A171,Adr!A:B,2,FALSE)","v":{"$error":"#N/A"}},null,null,null,null,null,null,"","",null,"",{"$error":"#N/A"},""]
[null,{"$f":"VLOOKUP(A172,Adr!A:B,2,FALSE)","v":{"$error":"#N/A"}},null,null,null,null,null,null,null,"",null,"",{"$error":"#N/A"},""]
[null,{"$f":"VLOOKUP(A173,Adr!A:B,2,FALSE)","v":{"$error":"#N/A"}},null,null,null,null,null,null,null,"",null,"",{"$error":"#N/A"},""]
[null,{"$f":"VLOOKUP(A174,Adr!A:B,2,FALSE)","v":{"$error":"#N/A"}},null,null,null,null,null,null,null,"",null,"",{"$error":"#N/A"},""]
[null,{"$f":"VLOOKUP(A175,Adr!A:B,2,FALSE)","v":{"$error":"#N/A"}},null,null,null,null,null,null,null,"",null,"",{"$error":"#N/A"},""]
[null,{"$f":"VLOOKUP(A176,Adr!A:B,2,FALSE)","v":{"$error":"#N/A"}},null,null,null,null,null,null,null,"",null,"",{"$error":"#N/A"},""]
[null,{"$f":"VLOOKUP(A177,Adr!A:B,2,FALSE)","v":{"$error":"#N/A"}},null,null,null,null,null,null,null,"",null,"",{"$error":"#N/A"},""]
[null,{"$f":"VLOOKUP(A178,Adr!A:B,2,FALSE)","v":{"$error":"#N/A"}},null,null,null,null,null,null,null,"",null,"",{"$error":"#N/A"},""]
[null,{"$f":"VLOOKUP(A179,Adr!A:B,2,FALSE)","v":{"$error":"#N/A"}},null,null,null,null,null,null,null,"",null,"",{"$error":"#N/A"},""]
[null,{"$f":"VLOOKUP(A180,Adr!A:B,2,FALSE)","v":{"$error":"#N/A"}},null,null,null,null,null,null,null,"",null,"",{"$error":"#N/A"},""]
[null,{"$f":"VLOOKUP(A181,Adr!A:B,2,FALSE)","v":{"$error":"#N/A"}},null,null,null,null,null,null,null,"",null,"",{"$error":"#N/A"},""]
[null,{"$f":"VLOOKUP(A182,Adr!A:B,2,FALSE)","v":{"$error":"#N/A"}},null,null,null,null,null,null,null,"",null,"",{"$error":"#N/A"},""]
[null,{"$f":"VLOOKUP(A183,Adr!A:B,2,FALSE)","v":{"$error":"#N/A"}},null,null,null,null,null,null,null,"",null,"",{"$error":"#N/A"},""]
[null,{"$f":"VLOOKUP(A184,Adr!A:B,2,FALSE)","v":{"$error":"#N/A"}},null,null,null,null,null,null,null,"",null,"",{"$error":"#N/A"},""]
[null,{"$f":"VLOOKUP(A185,Adr!A:B,2,FALSE)","v":{"$error":"#N/A"}},null,null,null,null,null,null,null,"",null,"",{"$error":"#N/A"},""]
[null,{"$f":"VLOOKUP(A186,Adr!A:B,2,FALSE)","v":{"$error":"#N/A"}},null,null,null,null,null,null,null,"",null,"",{"$error":"#N/A"},""]
[null,{"$f":"VLOOKUP(A187,Adr!A:B,2,FALSE)","v":{"$error":"#N/A"}},null,null,null,null,null,null,null,"",null,"",{"$error":"#N/A"},""]
[null,{"$f":"VLOOKUP(A188,Adr!A:B,2,FALSE)","v":{"$error":"#N/A"}},null,null,null,null,null,null,null,"",null,"",{"$error":"#N/A"},""]
[null,{"$f":"VLOOKUP(A189,Adr!A:B,2,FALSE)","v":{"$error":"#N/A"}},null,null,null,null,null,null,null,"",null,"",{"$error":"#N/A"},""]
[null,{"$f":"VLOOKUP(A190,Adr!A:B,2,FALSE)","v":{"$error":"#N/A"}},null,null,null,null,null,null,null,"",null,"",{"$error":"#N/A"},""]
[null,{"$f":"VLOOKUP(A191,Adr!A:B,2,FALSE)","v":{"$error":"#N/A"}},null,null,null,null,null,null,null,"",null,"",{"$error":"#N/A"},""]
[null,{"$f":"VLOOKUP(A192,Adr!A:B,2,FALSE)","v":{"$error":"#N/A"}},null,null,null,null,null,null,null,"",null,"",{"$error":"#N/A"},""]
[null,{"$f":"VLOOKUP(A193,Adr!A:B,2,FALSE)","v":{"$error":"#N/A"}},null,null,null,null,null,null,null,"",null,"",{"$error":"#N/A"},""]
[null,{"$f":"VLOOKUP(A194,Adr!A:B,2,FALSE)","v":{"$error":"#N/A"}},null,null,null,null,null,null,null,{"$f":"A194&G194","v":""},null,{"$f":"A194&G194&H194","v":""},{"$f":"B194&F194&H194&C194","v":{"$error":"#N/A"}},{"$f":"+I194&H194","v":""}]
[null,{"$f":"VLOOKUP(A195,Adr!A:B,2,FALSE)","v":{"$error":"#N/A"}},null,null,null,null,null,null,null,"",null,"",{"$error":"#N/A"},""]
[null,{"$f":"VLOOKUP(A196,Adr!A:B,2,FALSE)","v":{"$error":"#N/A"}},null,null,null,null,null,null,null,"",null,"",{"$error":"#N/A"},""]
[null,{"$f":"VLOOKUP(A197,Adr!A:B,2,FALSE)","v":{"$error":"#N/A"}},null,null,null,null,null,null,null,"",null,"",{"$error":"#N/A"},""]
[null,{"$f":"VLOOKUP(A198,Adr!A:B,2,FALSE)","v":{"$error":"#N/A"}},null,null,null,null,null,null,null,"",null,"",{"$error":"#N/A"},""]
[null,{"$f":"VLOOKUP(A199,Adr!A:B,2,FALSE)","v":{"$error":"#N/A"}},null,null,null,null,null,null,null,"",null,"",{"$error":"#N/A"},""]
[null,{"$f":"VLOOKUP(A200,Adr!A:B,2,FALSE)","v":{"$error":"#N/A"}},null,null,null,null,null,null,null,"",null,"",{"$error":"#N/A"},""]
[null,{"$f":"VLOOKUP(A201,Adr!A:B,2,FALSE)","v":{"$error":"#N/A"}},null,null,null,null,null,null,null,"",null,"",{"$error":"#N/A"},""]
[null,{"$f":"VLOOKUP(A202,Adr!A:B,2,FALSE)","v":{"$error":"#N/A"}},null,null,null,null,null,null,null,"",null,"",{"$error":"#N/A"},""]
[null,{"$f":"VLOOKUP(A203,Adr!A:B,2,FALSE)","v":{"$error":"#N/A"}},null,null,null,null,null,null,null,"",null,"",{"$error":"#N/A"},""]
[null,{"$f":"VLOOKUP(A204,Adr!A:B,2,FALSE)","v":{"$error":"#N/A"}},null,null,null,null,null,null,null,"",null,"",{"$error":"#N/A"},""]
[null,{"$f":"VLOOKUP(A205,Adr!A:B,2,FALSE)","v":{"$error":"#N/A"}},null,null,null,null,null,null,null,"",null,"",{"$error":"#N/A"},""]
[null,{"$f":"VLOOKUP(A206,Adr!A:B,2,FALSE)","v":{"$error":"#N/A"}},null,null,null,null,null,null,null,"",null,"",{"$error":"#N/A"},""]
[null,{"$f":"VLOOKUP(A207,Adr!A:B,2,FALSE)","v":{"$error":"#N/A"}},null,null,null,null,null,null,null,"",null,"",{"$error":"#N/A"},""]
[null,{"$f":"VLOOKUP(A208,Adr!A:B,2,FALSE)","v":{"$error":"#N/A"}},null,null,null,null,null,null,null,"",null,"",{"$error":"#N/A"},""]
[null,{"$f":"VLOOKUP(A209,Adr!A:B,2,FALSE)","v":{"$error":"#N/A"}},null,null,null,null,null,null,null,"",null,"",{"$error":"#N/A"},""]
[null,{"$f":"VLOOKUP(A210,Adr!A:B,2,FALSE)","v":{"$error":"#N/A"}},null,null,null,null,null,null,null,"",null,"",{"$error":"#N/A"},""]
[null,{"$f":"VLOOKUP(A211,Adr!A:B,2,FALSE)","v":{"$error":"#N/A"}},null,null,null,null,null,null,null,"",null,"",{"$error":"#N/A"},""]
[null,{"$f":"VLOOKUP(A212,Adr!A:B,2,FALSE)","v":{"$error":"#N/A"}},null,null,null,null,null,null,null,"",null,"",{"$error":"#N/A"},""]
[null,{"$f":"VLOOKUP(A213,Adr!A:B,2,FALSE)","v":{"$error":"#N/A"}},null,null,null,null,null,null,null,"",null,"",{"$error":"#N/A"},""]
[null,{"$f":"VLOOKUP(A214,Adr!A:B,2,FALSE)","v":{"$error":"#N/A"}},null,null,null,null,null,null,null,"",null,"",{"$error":"#N/A"},""]
[null,{"$f":"VLOOKUP(A215,Adr!A:B,2,FALSE)","v":{"$error":"#N/A"}},null,null,null,null,null,null,null,"",null,"",{"$error":"#N/A"},""]
[null,{"$f":"VLOOKUP(A216,Adr!A:B,2,FALSE)","v":{"$error":"#N/A"}},null,null,null,null,null,null,null,"",null,"",{"$error":"#N/A"},""]
[null,{"$f":"VLOOKUP(A217,Adr!A:B,2,FALSE)","v":{"$error":"#N/A"}},null,null,null,null,null,null,null,"",null,"",{"$error":"#N/A"},""]
[null,{"$f":"VLOOKUP(A218,Adr!A:B,2,FALSE)","v":{"$error":"#N/A"}},null,null,null,null,null,null,null,"",null,"",{"$error":"#N/A"},""]
[null,{"$f":"VLOOKUP(A219,Adr!A:B,2,FALSE)","v":{"$error":"#N/A"}},null,null,null,null,null,null,null,"",null,"",{"$error":"#N/A"},""]
[null,{"$f":"VLOOKUP(A220,Adr!A:B,2,FALSE)","v":{"$error":"#N/A"}},null,null,null,null,null,null,null,"",null,"",{"$error":"#N/A"},""]
[null,{"$f":"VLOOKUP(A221,Adr!A:B,2,FALSE)","v":{"$error":"#N/A"}},null,null,null,null,null,null,null,"",null,"",{"$error":"#N/A"},""]
[null,{"$f":"VLOOKUP(A222,Adr!A:B,2,FALSE)","v":{"$error":"#N/A"}},null,null,null,null,null,null,null,"",null,"",{"$error":"#N/A"},""]
[null,{"$f":"VLOOKUP(A223,Adr!A:B,2,FALSE)","v":{"$error":"#N/A"}},null,null,null,null,null,null,null,"",null,"",{"$error":"#N/A"},""]
[null,{"$f":"VLOOKUP(A224,Adr!A:B,2,FALSE)","v":{"$error":"#N/A"}},null,null,null,null,null,null,null,"",null,"",{"$error":"#N/A"},""]
[null,{"$f":"VLOOKUP(A225,Adr!A:B,2,FALSE)","v":{"$error":"#N/A"}},null,null,null,null,null,null,null,"",null,"",{"$error":"#N/A"},""]
[null,{"$f":"VLOOKUP(A226,Adr!A:B,2,FALSE)","v":{"$error":"#N/A"}},null,null,null,null,null,null,null,"",null,"",{"$error":"#N/A"},""]
[null,{"$f":"VLOOKUP(A227,Adr!A:B,2,FALSE)","v":{"$error":"#N/A"}},null,null,null,null,null,null,null,"",null,"",{"$error":"#N/A"},""]
[null,{"$f":"VLOOKUP(A228,Adr!A:B,2,FALSE)","v":{"$error":"#N/A"}},null,null,null,null,null,null,null,"",null,"",{"$error":"#N/A"},""]
[null,{"$f":"VLOOKUP(A229,Adr!A:B,2,FALSE)","v":{"$error":"#N/A"}},null,null,null,null,null,null,null,"",null,"",{"$error":"#N/A"},""]
[null,{"$f":"VLOOKUP(A230,Adr!A:B,2,FALSE)","v":{"$error":"#N/A"}},null,null,null,null,null,null,null,"",null,"",{"$error":"#N/A"},""]
[null,{"$f":"VLOOKUP(A231,Adr!A:B,2,FALSE)","v":{"$error":"#N/A"}},null,null,null,null,null,null,null,"",null,"",{"$error":"#N/A"},""]
[null,{"$f":"VLOOKUP(A232,Adr!A:B,2,FALSE)","v":{"$error":"#N/A"}},null,null,null,null,null,null,null,"",null,"",{"$error":"#N/A"},""]
[null,{"$f":"VLOOKUP(A233,Adr!A:B,2,FALSE)","v":{"$error":"#N/A"}},null,null,null,null,null,null,null,"",null,"",{"$error":"#N/A"},""]
[null,{"$f":"VLOOKUP(A234,Adr!A:B,2,FALSE)","v":{"$error":"#N/A"}},null,null,null,null,null,null,null,"",null,"",{"$error":"#N/A"},""]
[null,{"$f":"VLOOKUP(A235,Adr!A:B,2,FALSE)","v":{"$error":"#N/A"}},null,null,null,null,null,null,null,"",null,"",{"$error":"#N/A"},""]
[null,{"$f":"VLOOKUP(A236,Adr!A:B,2,FALSE)","v":{"$error":"#N/A"}},null,null,null,null,null,null,null,"",null,"",{"$error":"#N/A"},""]
[null,{"$f":"VLOOKUP(A237,Adr!A:B,2,FALSE)","v":{"$error":"#N/A"}},null,null,null,null,null,null,null,"",null,"",{"$error":"#N/A"},""]
[null,{"$f":"VLOOKUP(A238,Adr!A:B,2,FALSE)","v":{"$error":"#N/A"}},null,null,null,null,null,null,null,"",null,"",{"$error":"#N/A"},""]
[null,{"$f":"VLOOKUP(A239,Adr!A:B,2,FALSE)","v":{"$error":"#N/A"}},null,null,null,null,null,null,null,"",null,"",{"$error":"#N/A"},""]
[null,{"$f":"VLOOKUP(A240,Adr!A:B,2,FALSE)","v":{"$error":"#N/A"}},null,null,null,null,null,null,null,"",null,"",{"$error":"#N/A"},""]
[null,{"$f":"VLOOKUP(A241,Adr!A:B,2,FALSE)","v":{"$error":"#N/A"}},null,null,null,null,null,null,null,"",null,"",{"$error":"#N/A"},""]
[null,{"$f":"VLOOKUP(A242,Adr!A:B,2,FALSE)","v":{"$error":"#N/A"}},null,null,null,null,null,null,null,"",null,"",{"$error":"#N/A"},""]
[null,{"$f":"VLOOKUP(A243,Adr!A:B,2,FALSE)","v":{"$error":"#N/A"}},null,null,null,null,null,null,null,"",null,"",{"$error":"#N/A"},""]
[null,{"$f":"VLOOKUP(A244,Adr!A:B,2,FALSE)","v":{"$error":"#N/A"}},null,null,null,null,null,null,null,"",null,"",{"$error":"#N/A"},""]
[null,{"$f":"VLOOKUP(A245,Adr!A:B,2,FALSE)","v":{"$error":"#N/A"}},null,null,null,null,null,null,null,"",null,"",{"$error":"#N/A"},""]
[null,{"$f":"VLOOKUP(A246,Adr!A:B,2,FALSE)","v":{"$error":"#N/A"}},null,null,null,null,null,null,null,"",null,"",{"$error":"#N/A"},""]
[null,{"$f":"VLOOKUP(A247,Adr!A:B,2,FALSE)","v":{"$error":"#N/A"}},null,null,null,null,null,null,null,"",null,"",{"$error":"#N/A"},""]
[null,{"$f":"VLOOKUP(A248,Adr!A:B,2,FALSE)","v":{"$error":"#N/A"}},null,null,null,null,null,null,null,"",null,"",{"$error":"#N/A"},""]
[null,{"$f":"VLOOKUP(A249,Adr!A:B,2,FALSE)","v":{"$error":"#N/A"}},null,null,null,null,null,null,null,"",null,"",{"$error":"#N/A"},""]
[null,{"$f":"VLOOKUP(A250,Adr!A:B,2,FALSE)","v":{"$error":"#N/A"}},null,null,null,null,null,null,null,"",null,"",{"$error":"#N/A"},""]
[null,{"$f":"VLOOKUP(A251,Adr!A:B,2,FALSE)","v":{"$error":"#N/A"}},null,null,null,null,null,null,null,"",null,"",{"$error":"#N/A"},""]
[null,{"$f":"VLOOKUP(A252,Adr!A:B,2,FALSE)","v":{"$error":"#N/A"}},null,null,null,null,null,null,null,"",null,"",{"$error":"#N/A"},""]
[null,{"$f":"VLOOKUP(A253,Adr!A:B,2,FALSE)","v":{"$error":"#N/A"}},null,null,null,null,null,null,null,"",null,"",{"$error":"#N/A"}]
[null,{"$f":"VLOOKUP(A254,Adr!A:B,2,FALSE)","v":{"$error":"#N/A"}},null,null,null,null,null,null,null,"",null,"",{"$error":"#N/A"}]
[null,{"$f":"VLOOKUP(A255,Adr!A:B,2,FALSE)","v":{"$error":"#N/A"}},null,null,null,null,null,null,null,"",null,"",{"$error":"#N/A"}]
[null,{"$f":"VLOOKUP(A256,Adr!A:B,2,FALSE)","v":{"$error":"#N/A"}},null,null,null,null,null,null,null,"",null,"",{"$error":"#N/A"}]
[null,{"$f":"VLOOKUP(A257,Adr!A:B,2,FALSE)","v":{"$error":"#N/A"}},null,null,null,null,null,null,null,"",null,"",{"$error":"#N/A"}]
[null,{"$f":"VLOOKUP(A258,Adr!A:B,2,FALSE)","v":{"$error":"#N/A"}},null,null,null,null,null,null,null,{"$f":"A258&G258","v":""},null,{"$f":"A258&G258&H258","v":""},{"$f":"B258&F258&H258&C258","v":{"$error":"#N/A"}}]
[null,{"$f":"VLOOKUP(A259,Adr!A:B,2,FALSE)","v":{"$error":"#N/A"}},null,null,null,null,null,null,null,"",null,"",{"$error":"#N/A"}]
[null,{"$f":"VLOOKUP(A260,Adr!A:B,2,FALSE)","v":{"$error":"#N/A"}},null,null,null,null,null,null,null,"",null,"",{"$error":"#N/A"}]
[null,{"$f":"VLOOKUP(A261,Adr!A:B,2,FALSE)","v":{"$error":"#N/A"}},null,null,null,null,null,null,null,"",null,"",{"$error":"#N/A"},{"$f":"+I261&H261","v":""}]
[null,{"$f":"VLOOKUP(A262,Adr!A:B,2,FALSE)","v":{"$error":"#N/A"}},null,null,null,null,null,null,null,"",null,"",{"$error":"#N/A"},""]
[null,{"$f":"VLOOKUP(A263,Adr!A:B,2,FALSE)","v":{"$error":"#N/A"}},null,null,null,null,null,null,null,"",null,"",{"$error":"#N/A"},""]
[null,{"$f":"VLOOKUP(A264,Adr!A:B,2,FALSE)","v":{"$error":"#N/A"}},null,null,null,null,null,null,null,"",null,"",{"$error":"#N/A"},""]
[null,{"$f":"VLOOKUP(A265,Adr!A:B,2,FALSE)","v":{"$error":"#N/A"}},null,null,null,null,null,null,null,"",null,"",{"$error":"#N/A"},""]
[null,{"$f":"VLOOKUP(A266,Adr!A:B,2,FALSE)","v":{"$error":"#N/A"}},null,null,null,null,null,null,null,"",null,"",{"$error":"#N/A"},""]
[null,{"$f":"VLOOKUP(A267,Adr!A:B,2,FALSE)","v":{"$error":"#N/A"}},null,null,null,null,null,null,null,"",null,"",{"$error":"#N/A"},""]
[null,{"$f":"VLOOKUP(A268,Adr!A:B,2,FALSE)","v":{"$error":"#N/A"}},null,null,null,null,null,null,null,"",null,"",{"$error":"#N/A"},""]
[null,{"$f":"VLOOKUP(A269,Adr!A:B,2,FALSE)","v":{"$error":"#N/A"}},null,null,null,null,null,null,null,"",null,"",{"$error":"#N/A"},""]
[null,{"$f":"VLOOKUP(A270,Adr!A:B,2,FALSE)","v":{"$error":"#N/A"}},null,null,null,null,null,null,null,"",null,"",{"$error":"#N/A"},""]
[null,{"$f":"VLOOKUP(A271,Adr!A:B,2,FALSE)","v":{"$error":"#N/A"}},null,null,null,null,null,null,null,"",null,"",{"$error":"#N/A"},""]
[null,{"$f":"VLOOKUP(A272,Adr!A:B,2,FALSE)","v":{"$error":"#N/A"}},null,null,null,null,null,null,null,"",null,"",{"$error":"#N/A"},""]
[null,{"$f":"VLOOKUP(A273,Adr!A:B,2,FALSE)","v":{"$error":"#N/A"}},null,null,null,null,null,null,null,"",null,"",{"$error":"#N/A"},""]
[null,{"$f":"VLOOKUP(A274,Adr!A:B,2,FALSE)","v":{"$error":"#N/A"}},null,null,null,null,null,null,null,"",null,"",{"$error":"#N/A"},""]
[null,{"$f":"VLOOKUP(A275,Adr!A:B,2,FALSE)","v":{"$error":"#N/A"}},null,null,null,null,null,null,null,"",null,"",{"$error":"#N/A"},""]
[null,{"$f":"VLOOKUP(A276,Adr!A:B,2,FALSE)","v":{"$error":"#N/A"}},null,null,null,null,null,null,null,"",null,"",{"$error":"#N/A"},""]
[null,{"$f":"VLOOKUP(A277,Adr!A:B,2,FALSE)","v":{"$error":"#N/A"}},null,null,null,null,null,null,null,"",null,"",{"$error":"#N/A"},""]
[null,{"$f":"VLOOKUP(A278,Adr!A:B,2,FALSE)","v":{"$error":"#N/A"}},null,null,null,null,null,null,null,"",null,"",{"$error":"#N/A"},""]
[null,{"$f":"VLOOKUP(A279,Adr!A:B,2,FALSE)","v":{"$error":"#N/A"}},null,null,null,null,null,null,null,"",null,"",{"$error":"#N/A"},""]
[null,{"$f":"VLOOKUP(A280,Adr!A:B,2,FALSE)","v":{"$error":"#N/A"}},null,null,null,null,null,null,null,"",null,"",{"$error":"#N/A"},""]
[null,{"$f":"VLOOKUP(A281,Adr!A:B,2,FALSE)","v":{"$error":"#N/A"}},null,null,null,null,null,null,null,"",null,"",{"$error":"#N/A"},""]
[null,{"$f":"VLOOKUP(A282,Adr!A:B,2,FALSE)","v":{"$error":"#N/A"}},null,null,null,null,null,null,null,"",null,"",{"$error":"#N/A"},""]
[null,{"$f":"VLOOKUP(A283,Adr!A:B,2,FALSE)","v":{"$error":"#N/A"}},null,null,null,null,null,null,null,"",null,"",{"$error":"#N/A"},""]
[null,{"$f":"VLOOKUP(A284,Adr!A:B,2,FALSE)","v":{"$error":"#N/A"}},null,null,null,null,null,null,null,"",null,"",{"$error":"#N/A"},""]
[null,{"$f":"VLOOKUP(A285,Adr!A:B,2,FALSE)","v":{"$error":"#N/A"}},null,null,null,null,null,null,null,"",null,"",{"$error":"#N/A"},""]
[null,{"$f":"VLOOKUP(A286,Adr!A:B,2,FALSE)","v":{"$error":"#N/A"}},null,null,null,null,null,null,null,"",null,"",{"$error":"#N/A"},""]
[null,{"$f":"VLOOKUP(A287,Adr!A:B,2,FALSE)","v":{"$error":"#N/A"}},null,null,null,null,null,null,null,"",null,"",{"$error":"#N/A"},""]
[null,{"$f":"VLOOKUP(A288,Adr!A:B,2,FALSE)","v":{"$error":"#N/A"}},null,null,null,null,null,null,null,"",null,"",{"$error":"#N/A"},""]
[null,{"$f":"VLOOKUP(A289,Adr!A:B,2,FALSE)","v":{"$error":"#N/A"}},null,null,null,null,null,null,null,"",null,"",{"$error":"#N/A"},""]
[null,{"$f":"VLOOKUP(A290,Adr!A:B,2,FALSE)","v":{"$error":"#N/A"}},null,null,null,null,null,null,null,"",null,"",{"$error":"#N/A"},""]
[null,{"$f":"VLOOKUP(A291,Adr!A:B,2,FALSE)","v":{"$error":"#N/A"}},null,null,null,null,null,null,null,"",null,"",{"$error":"#N/A"},""]
[null,{"$f":"VLOOKUP(A292,Adr!A:B,2,FALSE)","v":{"$error":"#N/A"}},null,null,null,null,null,null,null,"",null,"",{"$error":"#N/A"},""]
[null,{"$f":"VLOOKUP(A293,Adr!A:B,2,FALSE)","v":{"$error":"#N/A"}},null,null,null,null,null,null,null,"",null,"",{"$error":"#N/A"},{"$f":"+I293&H293","v":""}]
[null,{"$f":"VLOOKUP(A294,Adr!A:B,2,FALSE)","v":{"$error":"#N/A"}},null,null,null,null,null,null,null,"",null,"",{"$error":"#N/A"},""]
[null,{"$f":"VLOOKUP(A295,Adr!A:B,2,FALSE)","v":{"$error":"#N/A"}},null,null,null,null,null,null,null,"",null,"",{"$error":"#N/A"},""]
[null,{"$f":"VLOOKUP(A296,Adr!A:B,2,FALSE)","v":{"$error":"#N/A"}},null,null,null,null,null,null,null,"",null,"",{"$error":"#N/A"},""]
[null,{"$f":"VLOOKUP(A297,Adr!A:B,2,FALSE)","v":{"$error":"#N/A"}},null,null,null,null,null,null,null,"",null,"",{"$error":"#N/A"},""]
[null,{"$f":"VLOOKUP(A298,Adr!A:B,2,FALSE)","v":{"$error":"#N/A"}},null,null,null,null,null,null,null,"",null,"",{"$error":"#N/A"},""]
[null,{"$f":"VLOOKUP(A299,Adr!A:B,2,FALSE)","v":{"$error":"#N/A"}},null,null,null,null,null,null,null,"",null,"",{"$error":"#N/A"},""]
[null,{"$f":"VLOOKUP(A300,Adr!A:B,2,FALSE)","v":{"$error":"#N/A"}},null,null,null,null,null,null,null,"",null,"",{"$error":"#N/A"},""]
[null,{"$f":"VLOOKUP(A301,Adr!A:B,2,FALSE)","v":{"$error":"#N/A"}},null,null,null,null,null,null,null,"",null,"",{"$error":"#N/A"},""]
[null,{"$f":"VLOOKUP(A302,Adr!A:B,2,FALSE)","v":{"$error":"#N/A"}},null,null,null,null,null,null,null,"",null,"",{"$error":"#N/A"},""]
[null,{"$f":"VLOOKUP(A303,Adr!A:B,2,FALSE)","v":{"$error":"#N/A"}},null,null,null,null,null,null,null,"",null,"",{"$error":"#N/A"},""]
[null,{"$f":"VLOOKUP(A304,Adr!A:B,2,FALSE)","v":{"$error":"#N/A"}},null,null,null,null,null,null,null,"",null,"",{"$error":"#N/A"},""]
[null,{"$f":"VLOOKUP(A305,Adr!A:B,2,FALSE)","v":{"$error":"#N/A"}},null,null,null,null,null,null,null,"",null,"",{"$error":"#N/A"},""]
[null,{"$f":"VLOOKUP(A306,Adr!A:B,2,FALSE)","v":{"$error":"#N/A"}},null,null,null,null,null,null,null,"",null,"",{"$error":"#N/A"},""]
[null,{"$f":"VLOOKUP(A307,Adr!A:B,2,FALSE)","v":{"$error":"#N/A"}},null,null,null,null,null,null,null,"",null,"",{"$error":"#N/A"},""]
[null,{"$f":"VLOOKUP(A308,Adr!A:B,2,FALSE)","v":{"$error":"#N/A"}},null,null,null,null,null,null,null,"",null,"",{"$error":"#N/A"},""]
[null,{"$f":"VLOOKUP(A309,Adr!A:B,2,FALSE)","v":{"$error":"#N/A"}},null,null,null,null,null,null,null,"",null,"",{"$error":"#N/A"},""]
[null,{"$f":"VLOOKUP(A310,Adr!A:B,2,FALSE)","v":{"$error":"#N/A"}},null,null,null,null,null,null,null,"",null,"",{"$error":"#N/A"},""]
[null,{"$f":"VLOOKUP(A311,Adr!A:B,2,FALSE)","v":{"$error":"#N/A"}},null,null,null,null,null,null,null,"",null,"",{"$error":"#N/A"},""]
[null,{"$f":"VLOOKUP(A312,Adr!A:B,2,FALSE)","v":{"$error":"#N/A"}},null,null,null,null,null,null,null,"",null,"",{"$error":"#N/A"},""]
[null,{"$f":"VLOOKUP(A313,Adr!A:B,2,FALSE)","v":{"$error":"#N/A"}},null,null,null,null,null,null,null,"",null,"",{"$error":"#N/A"},""]
[null,{"$f":"VLOOKUP(A314,Adr!A:B,2,FALSE)","v":{"$error":"#N/A"}},null,null,null,null,null,null,null,"",null,"",{"$error":"#N/A"},""]
[null,{"$f":"VLOOKUP(A315,Adr!A:B,2,FALSE)","v":{"$error":"#N/A"}},null,null,null,null,null,null,null,"",null,"",{"$error":"#N/A"},""]
[null,{"$f":"VLOOKUP(A316,Adr!A:B,2,FALSE)","v":{"$error":"#N/A"}},null,null,null,null,null,null,null,"",null,"",{"$error":"#N/A"},""]
[null,{"$f":"VLOOKUP(A317,Adr!A:B,2,FALSE)","v":{"$error":"#N/A"}},null,null,null,null,null,null,null,"",null,"",{"$error":"#N/A"},""]
[null,{"$f":"VLOOKUP(A318,Adr!A:B,2,FALSE)","v":{"$error":"#N/A"}},null,null,null,null,null,null,null,"",null,"",{"$error":"#N/A"},""]
[null,{"$f":"VLOOKUP(A319,Adr!A:B,2,FALSE)","v":{"$error":"#N/A"}},null,null,null,null,null,null,null,"",null,"",{"$error":"#N/A"},""]
[null,{"$f":"VLOOKUP(A320,Adr!A:B,2,FALSE)","v":{"$error":"#N/A"}},null,null,null,null,null,null,null,"",null,"",{"$error":"#N/A"},""]
[null,{"$f":"VLOOKUP(A321,Adr!A:B,2,FALSE)","v":{"$error":"#N/A"}},null,null,null,null,null,null,null,"",null,"",{"$error":"#N/A"},""]
[null,{"$f":"VLOOKUP(A322,Adr!A:B,2,FALSE)","v":{"$error":"#N/A"}},null,null,null,null,null,null,null,{"$f":"A322&G322","v":""},null,{"$f":"A322&G322&H322","v":""},{"$f":"B322&F322&H322&C322","v":{"$error":"#N/A"}},""]
[null,{"$f":"VLOOKUP(A323,Adr!A:B,2,FALSE)","v":{"$error":"#N/A"}},null,null,null,null,null,null,null,"",null,"",{"$error":"#N/A"},""]
[null,{"$f":"VLOOKUP(A324,Adr!A:B,2,FALSE)","v":{"$error":"#N/A"}},null,null,null,null,null,null,null,"",null,"",{"$error":"#N/A"},""]
[null,{"$f":"VLOOKUP(A325,Adr!A:B,2,FALSE)","v":{"$error":"#N/A"}},null,null,null,null,null,null,null,"",null,"",{"$error":"#N/A"},{"$f":"+I325&H325","v":""}]
[null,{"$f":"VLOOKUP(A326,Adr!A:B,2,FALSE)","v":{"$error":"#N/A"}},null,null,null,null,null,null,null,"",null,"",{"$error":"#N/A"},""]
[null,{"$f":"VLOOKUP(A327,Adr!A:B,2,FALSE)","v":{"$error":"#N/A"}},null,null,null,null,null,null,null,"",null,"",{"$error":"#N/A"},""]
[null,{"$f":"VLOOKUP(A328,Adr!A:B,2,FALSE)","v":{"$error":"#N/A"}},null,null,null,null,null,null,null,"",null,"",{"$error":"#N/A"},""]
[null,{"$f":"VLOOKUP(A329,Adr!A:B,2,FALSE)","v":{"$error":"#N/A"}},null,null,null,null,null,null,null,"",null,"",{"$error":"#N/A"},""]
[null,{"$f":"VLOOKUP(A330,Adr!A:B,2,FALSE)","v":{"$error":"#N/A"}},null,null,null,null,null,null,null,"",null,"",{"$error":"#N/A"},""]
[null,{"$f":"VLOOKUP(A331,Adr!A:B,2,FALSE)","v":{"$error":"#N/A"}},null,null,null,null,null,null,null,"",null,"",{"$error":"#N/A"},""]
[null,{"$f":"VLOOKUP(A332,Adr!A:B,2,FALSE)","v":{"$error":"#N/A"}},null,null,null,null,null,null,null,"",null,"",{"$error":"#N/A"},""]
[null,{"$f":"VLOOKUP(A333,Adr!A:B,2,FALSE)","v":{"$error":"#N/A"}},null,null,null,null,null,null,null,"",null,"",{"$error":"#N/A"},""]
[null,{"$f":"VLOOKUP(A334,Adr!A:B,2,FALSE)","v":{"$error":"#N/A"}},null,null,null,null,null,null,null,"",null,"",{"$error":"#N/A"},""]
[null,{"$f":"VLOOKUP(A335,Adr!A:B,2,FALSE)","v":{"$error":"#N/A"}},null,null,null,null,null,null,null,"",null,"",{"$error":"#N/A"},""]
[null,{"$f":"VLOOKUP(A336,Adr!A:B,2,FALSE)","v":{"$error":"#N/A"}},null,null,null,null,null,null,null,"",null,"",{"$error":"#N/A"},""]
[null,{"$f":"VLOOKUP(A337,Adr!A:B,2,FALSE)","v":{"$error":"#N/A"}},null,null,null,null,null,null,null,"",null,"",{"$error":"#N/A"},""]
[null,{"$f":"VLOOKUP(A338,Adr!A:B,2,FALSE)","v":{"$error":"#N/A"}},null,null,null,null,null,null,null,"",null,"",{"$error":"#N/A"},""]
[null,{"$f":"VLOOKUP(A339,Adr!A:B,2,FALSE)","v":{"$error":"#N/A"}},null,null,null,null,null,null,null,"",null,"",{"$error":"#N/A"},""]
[null,{"$f":"VLOOKUP(A340,Adr!A:B,2,FALSE)","v":{"$error":"#N/A"}},null,null,null,null,null,null,null,"",null,"",{"$error":"#N/A"},""]
[null,{"$f":"VLOOKUP(A341,Adr!A:B,2,FALSE)","v":{"$error":"#N/A"}},null,null,null,null,null,null,null,"",null,"",{"$error":"#N/A"}]
[null,{"$f":"VLOOKUP(A342,Adr!A:B,2,FALSE)","v":{"$error":"#N/A"}},null,null,null,null,null,null,null,"",null,"",{"$error":"#N/A"},{"$f":"+I342&H342","v":""}]
[null,{"$f":"VLOOKUP(A343,Adr!A:B,2,FALSE)","v":{"$error":"#N/A"}},null,null,null,null,null,null,null,"",null,"",{"$error":"#N/A"},""]
[null,{"$f":"VLOOKUP(A344,Adr!A:B,2,FALSE)","v":{"$error":"#N/A"}},null,null,null,null,null,null,null,"",null,"",{"$error":"#N/A"},""]
[null,{"$f":"VLOOKUP(A345,Adr!A:B,2,FALSE)","v":{"$error":"#N/A"}},null,null,null,null,null,null,null,"",null,"",{"$error":"#N/A"},""]
[null,{"$f":"VLOOKUP(A346,Adr!A:B,2,FALSE)","v":{"$error":"#N/A"}},null,null,null,null,null,null,null,"",null,"",{"$error":"#N/A"},""]
[null,{"$f":"VLOOKUP(A347,Adr!A:B,2,FALSE)","v":{"$error":"#N/A"}},null,null,null,null,null,null,null,"",null,"",{"$error":"#N/A"},""]
[null,{"$f":"VLOOKUP(A348,Adr!A:B,2,FALSE)","v":{"$error":"#N/A"}},null,null,null,null,null,null,null,"",null,"",{"$error":"#N/A"},""]
[null,{"$f":"VLOOKUP(A349,Adr!A:B,2,FALSE)","v":{"$error":"#N/A"}},null,null,null,null,null,null,null,"",null,"",{"$error":"#N/A"},""]
[null,{"$f":"VLOOKUP(A350,Adr!A:B,2,FALSE)","v":{"$error":"#N/A"}},null,null,null,null,null,null,null,"",null,"",{"$error":"#N/A"},""]
[null,{"$f":"VLOOKUP(A351,Adr!A:B,2,FALSE)","v":{"$error":"#N/A"}},null,null,null,null,null,null,null,"",null,"",{"$error":"#N/A"},""]
[null,{"$f":"VLOOKUP(A352,Adr!A:B,2,FALSE)","v":{"$error":"#N/A"}},null,null,null,null,null,null,null,"",null,"",{"$error":"#N/A"},""]
[null,{"$f":"VLOOKUP(A353,Adr!A:B,2,FALSE)","v":{"$error":"#N/A"}},null,null,null,null,null,null,null,"",null,"",{"$error":"#N/A"},""]
[null,{"$f":"VLOOKUP(A354,Adr!A:B,2,FALSE)","v":{"$error":"#N/A"}},null,null,null,null,null,null,null,"",null,"",{"$error":"#N/A"},""]
[null,{"$f":"VLOOKUP(A355,Adr!A:B,2,FALSE)","v":{"$error":"#N/A"}},null,null,null,null,null,null,null,"",null,"",{"$error":"#N/A"},""]
[null,{"$f":"VLOOKUP(A356,Adr!A:B,2,FALSE)","v":{"$error":"#N/A"}},null,null,null,null,null,null,null,"",null,"",{"$error":"#N/A"},""]
[null,{"$f":"VLOOKUP(A357,Adr!A:B,2,FALSE)","v":{"$error":"#N/A"}},null,null,null,null,null,null,null,"",null,"",{"$error":"#N/A"},""]
[null,{"$f":"VLOOKUP(A358,Adr!A:B,2,FALSE)","v":{"$error":"#N/A"}},null,null,null,null,null,null,null,"",null,"",{"$error":"#N/A"},""]
[null,{"$f":"VLOOKUP(A359,Adr!A:B,2,FALSE)","v":{"$error":"#N/A"}},null,null,null,null,null,null,null,"",null,"",{"$error":"#N/A"},""]
[null,{"$f":"VLOOKUP(A360,Adr!A:B,2,FALSE)","v":{"$error":"#N/A"}},null,null,null,null,null,null,null,"",null,"",{"$error":"#N/A"},""]
[null,{"$f":"VLOOKUP(A361,Adr!A:B,2,FALSE)","v":{"$error":"#N/A"}},null,null,null,null,null,null,null,"",null,"",{"$error":"#N/A"},""]
[null,{"$f":"VLOOKUP(A362,Adr!A:B,2,FALSE)","v":{"$error":"#N/A"}},null,null,null,null,null,null,null,"",null,"",{"$error":"#N/A"},""]
[null,{"$f":"VLOOKUP(A363,Adr!A:B,2,FALSE)","v":{"$error":"#N/A"}},null,null,null,null,null,null,null,"",null,"",{"$error":"#N/A"},""]
[null,{"$f":"VLOOKUP(A364,Adr!A:B,2,FALSE)","v":{"$error":"#N/A"}},null,null,null,null,null,null,null,"",null,"",{"$error":"#N/A"},""]
[null,{"$f":"VLOOKUP(A365,Adr!A:B,2,FALSE)","v":{"$error":"#N/A"}},null,null,null,null,null,null,null,"",null,"",{"$error":"#N/A"},""]
[null,{"$f":"VLOOKUP(A366,Adr!A:B,2,FALSE)","v":{"$error":"#N/A"}},null,null,null,null,null,null,null,"",null,"",{"$error":"#N/A"},""]
[null,{"$f":"VLOOKUP(A367,Adr!A:B,2,FALSE)","v":{"$error":"#N/A"}},null,null,null,null,null,null,null,"",null,"",{"$error":"#N/A"},""]
[null,{"$f":"VLOOKUP(A368,Adr!A:B,2,FALSE)","v":{"$error":"#N/A"}},null,null,null,null,null,null,null,"",null,"",{"$error":"#N/A"},""]
[null,{"$f":"VLOOKUP(A369,Adr!A:B,2,FALSE)","v":{"$error":"#N/A"}},null,null,null,null,null,null,null,"",null,"",{"$error":"#N/A"},""]
[null,{"$f":"VLOOKUP(A370,Adr!A:B,2,FALSE)","v":{"$error":"#N/A"}},null,null,null,null,null,null,null,"",null,"",{"$error":"#N/A"},""]
[null,{"$f":"VLOOKUP(A371,Adr!A:B,2,FALSE)","v":{"$error":"#N/A"}},null,null,null,null,null,null,null,"",null,"",{"$error":"#N/A"},""]
[null,{"$f":"VLOOKUP(A372,Adr!A:B,2,FALSE)","v":{"$error":"#N/A"}},null,null,null,null,null,null,null,"",null,"",{"$error":"#N/A"},""]
[null,{"$f":"VLOOKUP(A373,Adr!A:B,2,FALSE)","v":{"$error":"#N/A"}},null,null,null,null,null,null,null,"",null,"",{"$error":"#N/A"},""]
[null,{"$f":"VLOOKUP(A374,Adr!A:B,2,FALSE)","v":{"$error":"#N/A"}},null,null,null,null,null,null,null,"",null,"",{"$error":"#N/A"},""]
[null,{"$f":"VLOOKUP(A375,Adr!A:B,2,FALSE)","v":{"$error":"#N/A"}},null,null,null,null,null,null,null,"",null,"",{"$error":"#N/A"},""]
[null,{"$f":"VLOOKUP(A376,Adr!A:B,2,FALSE)","v":{"$error":"#N/A"}},null,null,null,null,null,null,null,"",null,"",{"$error":"#N/A"},""]
[null,{"$f":"VLOOKUP(A377,Adr!A:B,2,FALSE)","v":{"$error":"#N/A"}},null,null,null,null,null,null,null,"",null,"",{"$error":"#N/A"},""]
[null,{"$f":"VLOOKUP(A378,Adr!A:B,2,FALSE)","v":{"$error":"#N/A"}},null,null,null,null,null,null,null,"",null,"",{"$error":"#N/A"},""]
[null,{"$f":"VLOOKUP(A379,Adr!A:B,2,FALSE)","v":{"$error":"#N/A"}},null,null,null,null,null,null,null,"",null,"",{"$error":"#N/A"},""]
[null,{"$f":"VLOOKUP(A380,Adr!A:B,2,FALSE)","v":{"$error":"#N/A"}},null,null,null,null,null,null,null,"",null,"",{"$error":"#N/A"},""]
[null,{"$f":"VLOOKUP(A381,Adr!A:B,2,FALSE)","v":{"$error":"#N/A"}},null,null,null,null,null,null,null,"",null,"",{"$error":"#N/A"},""]
[null,{"$f":"VLOOKUP(A382,Adr!A:B,2,FALSE)","v":{"$error":"#N/A"}},null,null,null,null,null,null,null,"",null,"",{"$error":"#N/A"},""]
[null,{"$f":"VLOOKUP(A383,Adr!A:B,2,FALSE)","v":{"$error":"#N/A"}},null,null,null,null,null,null,null,"",null,"",{"$error":"#N/A"},""]
[null,{"$f":"VLOOKUP(A384,Adr!A:B,2,FALSE)","v":{"$error":"#N/A"}},null,null,null,null,null,null,null,"",null,"",{"$error":"#N/A"},""]
[null,{"$f":"VLOOKUP(A385,Adr!A:B,2,FALSE)","v":{"$error":"#N/A"}},null,null,null,null,null,null,null,"",null,"",{"$error":"#N/A"},""]
[null,{"$f":"VLOOKUP(A386,Adr!A:B,2,FALSE)","v":{"$error":"#N/A"}},null,null,null,null,null,null,null,{"$f":"A386&G386","v":""},null,{"$f":"A386&G386&H386","v":""},{"$f":"B386&F386&H386&C386","v":{"$error":"#N/A"}},""]
[null,{"$f":"VLOOKUP(A387,Adr!A:B,2,FALSE)","v":{"$error":"#N/A"}},null,null,null,null,null,null,null,"",null,"",{"$error":"#N/A"},""]
[null,{"$f":"VLOOKUP(A388,Adr!A:B,2,FALSE)","v":{"$error":"#N/A"}},null,null,null,null,null,null,null,"",null,"",{"$error":"#N/A"},""]
[null,{"$f":"VLOOKUP(A389,Adr!A:B,2,FALSE)","v":{"$error":"#N/A"}},null,null,null,null,null,null,null,"",null,"",{"$error":"#N/A"},""]
[null,{"$f":"VLOOKUP(A390,Adr!A:B,2,FALSE)","v":{"$error":"#N/A"}},null,null,null,null,null,null,null,"",null,"",{"$error":"#N/A"},""]
[null,{"$f":"VLOOKUP(A391,Adr!A:B,2,FALSE)","v":{"$error":"#N/A"}},null,null,null,null,null,null,null,"",null,"",{"$error":"#N/A"},""]
[null,{"$f":"VLOOKUP(A392,Adr!A:B,2,FALSE)","v":{"$error":"#N/A"}},null,null,null,null,null,null,null,"",null,"",{"$error":"#N/A"},""]
[null,{"$f":"VLOOKUP(A393,Adr!A:B,2,FALSE)","v":{"$error":"#N/A"}},null,null,null,null,null,null,null,"",null,"",{"$error":"#N/A"},""]
[null,{"$f":"VLOOKUP(A394,Adr!A:B,2,FALSE)","v":{"$error":"#N/A"}},null,null,null,null,null,null,null,"",null,"",{"$error":"#N/A"},""]
[null,{"$f":"VLOOKUP(A395,Adr!A:B,2,FALSE)","v":{"$error":"#N/A"}},null,null,null,null,null,null,null,"",null,"",{"$error":"#N/A"},""]
[null,{"$f":"VLOOKUP(A396,Adr!A:B,2,FALSE)","v":{"$error":"#N/A"}},null,null,null,null,null,null,null,"",null,"",{"$error":"#N/A"},""]
[null,{"$f":"VLOOKUP(A397,Adr!A:B,2,FALSE)","v":{"$error":"#N/A"}},null,null,null,null,null,null,null,"",null,"",{"$error":"#N/A"},""]
[null,{"$f":"VLOOKUP(A398,Adr!A:B,2,FALSE)","v":{"$error":"#N/A"}},null,null,null,null,null,null,null,"",null,"",{"$error":"#N/A"},""]
[null,{"$f":"VLOOKUP(A399,Adr!A:B,2,FALSE)","v":{"$error":"#N/A"}},null,null,null,null,null,null,null,"",null,"",{"$error":"#N/A"},""]
[null,{"$f":"VLOOKUP(A400,Adr!A:B,2,FALSE)","v":{"$error":"#N/A"}},null,null,null,null,null,null,null,"",null,"",{"$error":"#N/A"},""]
[null,{"$f":"VLOOKUP(A401,Adr!A:B,2,FALSE)","v":{"$error":"#N/A"}},null,null,null,null,null,null,null,"",null,"",{"$error":"#N/A"},""]
[null,{"$f":"VLOOKUP(A402,Adr!A:B,2,FALSE)","v":{"$error":"#N/A"}},null,null,null,null,null,null,null,"",null,"",{"$error":"#N/A"},""]
[null,{"$f":"VLOOKUP(A403,Adr!A:B,2,FALSE)","v":{"$error":"#N/A"}},null,null,null,null,null,null,null,"",null,"",{"$error":"#N/A"},""]
[null,{"$f":"VLOOKUP(A404,Adr!A:B,2,FALSE)","v":{"$error":"#N/A"}},null,null,null,null,null,null,null,"",null,"",{"$error":"#N/A"},""]
[null,{"$f":"VLOOKUP(A405,Adr!A:B,2,FALSE)","v":{"$error":"#N/A"}},null,null,null,null,null,null,null,"",null,"",{"$error":"#N/A"},""]
[null,{"$f":"VLOOKUP(A406,Adr!A:B,2,FALSE)","v":{"$error":"#N/A"}},null,null,null,null,null,null,null,"",null,"",{"$error":"#N/A"},{"$f":"+I406&H406","v":""}]
[null,{"$f":"VLOOKUP(A407,Adr!A:B,2,FALSE)","v":{"$error":"#N/A"}},null,null,null,null,null,null,null,"",null,"",{"$error":"#N/A"},""]
[null,{"$f":"VLOOKUP(A408,Adr!A:B,2,FALSE)","v":{"$error":"#N/A"}},null,null,null,null,null,null,null,"",null,"",{"$error":"#N/A"},""]
[null,{"$f":"VLOOKUP(A409,Adr!A:B,2,FALSE)","v":{"$error":"#N/A"}},null,null,null,null,null,null,null,"",null,"",{"$error":"#N/A"},""]
[null,{"$f":"VLOOKUP(A410,Adr!A:B,2,FALSE)","v":{"$error":"#N/A"}},null,null,null,null,null,null,null,"",null,"",{"$error":"#N/A"},""]
[null,{"$f":"VLOOKUP(A411,Adr!A:B,2,FALSE)","v":{"$error":"#N/A"}},null,null,null,null,null,null,null,"",null,"",{"$error":"#N/A"},""]
[null,{"$f":"VLOOKUP(A412,Adr!A:B,2,FALSE)","v":{"$error":"#N/A"}},null,null,null,null,null,null,null,"",null,"",{"$error":"#N/A"},""]
[null,{"$f":"VLOOKUP(A413,Adr!A:B,2,FALSE)","v":{"$error":"#N/A"}},null,null,null,null,null,null,null,"",null,"",{"$error":"#N/A"},""]
[null,{"$f":"VLOOKUP(A414,Adr!A:B,2,FALSE)","v":{"$error":"#N/A"}},null,null,null,null,null,null,null,"",null,"",{"$error":"#N/A"},""]
[null,{"$f":"VLOOKUP(A415,Adr!A:B,2,FALSE)","v":{"$error":"#N/A"}},null,null,null,null,null,null,null,"",null,"",{"$error":"#N/A"},""]
[null,{"$f":"VLOOKUP(A416,Adr!A:B,2,FALSE)","v":{"$error":"#N/A"}},null,null,null,null,null,null,null,"",null,"",{"$error":"#N/A"},""]
[null,{"$f":"VLOOKUP(A417,Adr!A:B,2,FALSE)","v":{"$error":"#N/A"}},null,null,null,null,null,null,null,"",null,"",{"$error":"#N/A"},""]
[null,{"$f":"VLOOKUP(A418,Adr!A:B,2,FALSE)","v":{"$error":"#N/A"}},null,null,null,null,null,null,null,"",null,"",{"$error":"#N/A"},""]
[null,{"$f":"VLOOKUP(A419,Adr!A:B,2,FALSE)","v":{"$error":"#N/A"}},null,null,null,null,null,null,null,"",null,"",{"$error":"#N/A"},""]
[null,{"$f":"VLOOKUP(A420,Adr!A:B,2,FALSE)","v":{"$error":"#N/A"}},null,null,null,null,null,null,null,"",null,"",{"$error":"#N/A"},""]
[null,{"$f":"VLOOKUP(A421,Adr!A:B,2,FALSE)","v":{"$error":"#N/A"}},null,null,null,null,null,null,null,"",null,"",{"$error":"#N/A"},""]
[null,{"$f":"VLOOKUP(A422,Adr!A:B,2,FALSE)","v":{"$error":"#N/A"}},null,null,null,null,null,null,null,"",null,"",{"$error":"#N/A"},""]
[null,{"$f":"VLOOKUP(A423,Adr!A:B,2,FALSE)","v":{"$error":"#N/A"}},null,null,null,null,null,null,null,"",null,"",{"$error":"#N/A"},""]
[null,{"$f":"VLOOKUP(A424,Adr!A:B,2,FALSE)","v":{"$error":"#N/A"}},null,null,null,null,null,null,null,"",null,"",{"$error":"#N/A"},""]
[null,{"$f":"VLOOKUP(A425,Adr!A:B,2,FALSE)","v":{"$error":"#N/A"}},null,null,null,null,null,null,null,"",null,"",{"$error":"#N/A"},""]
[null,{"$f":"VLOOKUP(A426,Adr!A:B,2,FALSE)","v":{"$error":"#N/A"}},null,null,null,null,null,null,null,"",null,"",{"$error":"#N/A"},""]
[null,{"$f":"VLOOKUP(A427,Adr!A:B,2,FALSE)","v":{"$error":"#N/A"}},null,null,null,null,null,null,null,"",null,"",{"$error":"#N/A"},""]
[null,{"$f":"VLOOKUP(A428,Adr!A:B,2,FALSE)","v":{"$error":"#N/A"}},null,null,null,null,null,null,null,"",null,"",{"$error":"#N/A"},""]
[null,{"$f":"VLOOKUP(A429,Adr!A:B,2,FALSE)","v":{"$error":"#N/A"}},null,null,null,null,null,null,null,"",null,"",{"$error":"#N/A"},""]
[null,{"$f":"VLOOKUP(A430,Adr!A:B,2,FALSE)","v":{"$error":"#N/A"}},null,null,null,null,null,null,null,"",null,"",{"$error":"#N/A"},""]
[null,{"$f":"VLOOKUP(A431,Adr!A:B,2,FALSE)","v":{"$error":"#N/A"}},null,null,null,null,null,null,null,"",null,"",{"$error":"#N/A"},""]
[null,{"$f":"VLOOKUP(A432,Adr!A:B,2,FALSE)","v":{"$error":"#N/A"}},null,null,null,null,null,null,null,"",null,"",{"$error":"#N/A"},""]
[null,{"$f":"VLOOKUP(A433,Adr!A:B,2,FALSE)","v":{"$error":"#N/A"}},null,null,null,null,null,null,null,"",null,"",{"$error":"#N/A"},""]
[null,{"$f":"VLOOKUP(A434,Adr!A:B,2,FALSE)","v":{"$error":"#N/A"}},null,null,null,null,null,null,null,"",null,"",{"$error":"#N/A"},""]
[null,{"$f":"VLOOKUP(A435,Adr!A:B,2,FALSE)","v":{"$error":"#N/A"}},null,null,null,null,null,null,null,"",null,"",{"$error":"#N/A"},""]
[null,{"$f":"VLOOKUP(A436,Adr!A:B,2,FALSE)","v":{"$error":"#N/A"}},null,null,null,null,null,null,null,"",null,"",{"$error":"#N/A"},""]
[null,{"$f":"VLOOKUP(A437,Adr!A:B,2,FALSE)","v":{"$error":"#N/A"}},null,null,null,null,null,null,null,"",null,"",{"$error":"#N/A"},""]
[null,{"$f":"VLOOKUP(A438,Adr!A:B,2,FALSE)","v":{"$error":"#N/A"}},null,null,null,null,null,null,null,"",null,"",{"$error":"#N/A"},""]
[null,{"$f":"VLOOKUP(A439,Adr!A:B,2,FALSE)","v":{"$error":"#N/A"}},null,null,null,null,null,null,null,"",null,"",{"$error":"#N/A"},""]
[null,{"$f":"VLOOKUP(A440,Adr!A:B,2,FALSE)","v":{"$error":"#N/A"}},null,null,null,null,null,null,null,"",null,"",{"$error":"#N/A"},""]
[null,{"$f":"VLOOKUP(A441,Adr!A:B,2,FALSE)","v":{"$error":"#N/A"}},null,null,null,null,null,null,null,"",null,"",{"$error":"#N/A"},""]
[null,{"$f":"VLOOKUP(A442,Adr!A:B,2,FALSE)","v":{"$error":"#N/A"}},null,null,null,null,null,null,null,"",null,"",{"$error":"#N/A"},""]
[null,{"$f":"VLOOKUP(A443,Adr!A:B,2,FALSE)","v":{"$error":"#N/A"}},null,null,null,null,null,null,null,"",null,"",{"$error":"#N/A"},""]
[null,{"$f":"VLOOKUP(A444,Adr!A:B,2,FALSE)","v":{"$error":"#N/A"}},null,null,null,null,null,null,null,"",null,"",{"$error":"#N/A"},""]
[null,{"$f":"VLOOKUP(A445,Adr!A:B,2,FALSE)","v":{"$error":"#N/A"}},null,null,null,null,null,null,null,"",null,"",{"$error":"#N/A"},""]
[null,{"$f":"VLOOKUP(A446,Adr!A:B,2,FALSE)","v":{"$error":"#N/A"}},null,null,null,null,null,null,null,"",null,"",{"$error":"#N/A"},""]
[null,{"$f":"VLOOKUP(A447,Adr!A:B,2,FALSE)","v":{"$error":"#N/A"}},null,null,null,null,null,null,null,"",null,"",{"$error":"#N/A"},""]
[null,{"$f":"VLOOKUP(A448,Adr!A:B,2,FALSE)","v":{"$error":"#N/A"}},null,null,null,null,null,null,null,"",null,"",{"$error":"#N/A"},""]
[null,{"$f":"VLOOKUP(A449,Adr!A:B,2,FALSE)","v":{"$error":"#N/A"}},null,null,null,null,null,null,null,"",null,"",{"$error":"#N/A"},""]
[null,{"$f":"VLOOKUP(A450,Adr!A:B,2,FALSE)","v":{"$error":"#N/A"}},null,null,null,null,null,null,null,{"$f":"A450&G450","v":""},null,{"$f":"A450&G450&H450","v":""},{"$f":"B450&F450&H450&C450","v":{"$error":"#N/A"}},""]
[null,{"$f":"VLOOKUP(A451,Adr!A:B,2,FALSE)","v":{"$error":"#N/A"}},null,null,null,null,null,null,null,"",null,"",{"$error":"#N/A"},""]
[null,{"$f":"VLOOKUP(A452,Adr!A:B,2,FALSE)","v":{"$error":"#N/A"}},null,null,null,null,null,null,null,"",null,"",{"$error":"#N/A"},""]
[null,{"$f":"VLOOKUP(A453,Adr!A:B,2,FALSE)","v":{"$error":"#N/A"}},null,null,null,null,null,null,null,"",null,"",{"$error":"#N/A"},""]
[null,{"$f":"VLOOKUP(A454,Adr!A:B,2,FALSE)","v":{"$error":"#N/A"}},null,null,null,null,null,null,null,"",null,"",{"$error":"#N/A"},""]
[null,{"$f":"VLOOKUP(A455,Adr!A:B,2,FALSE)","v":{"$error":"#N/A"}},null,null,null,null,null,null,null,"",null,"",{"$error":"#N/A"},""]
[null,{"$f":"VLOOKUP(A456,Adr!A:B,2,FALSE)","v":{"$error":"#N/A"}},null,null,null,null,null,null,null,"",null,"",{"$error":"#N/A"},""]
[null,{"$f":"VLOOKUP(A457,Adr!A:B,2,FALSE)","v":{"$error":"#N/A"}},null,null,null,null,null,null,null,"",null,"",{"$error":"#N/A"},""]
[null,{"$f":"VLOOKUP(A458,Adr!A:B,2,FALSE)","v":{"$error":"#N/A"}},null,null,null,null,null,null,null,"",null,"",{"$error":"#N/A"},""]
[null,{"$f":"VLOOKUP(A459,Adr!A:B,2,FALSE)","v":{"$error":"#N/A"}},null,null,null,null,null,null,null,"",null,"",{"$error":"#N/A"},""]
[null,{"$f":"VLOOKUP(A460,Adr!A:B,2,FALSE)","v":{"$error":"#N/A"}},null,null,null,null,null,null,null,"",null,"",{"$error":"#N/A"},""]
[null,{"$f":"VLOOKUP(A461,Adr!A:B,2,FALSE)","v":{"$error":"#N/A"}},null,null,null,null,null,null,null,"",null,"",{"$error":"#N/A"},""]
[null,{"$f":"VLOOKUP(A462,Adr!A:B,2,FALSE)","v":{"$error":"#N/A"}},null,null,null,null,null,null,null,"",null,"",{"$error":"#N/A"},""]
[null,{"$f":"VLOOKUP(A463,Adr!A:B,2,FALSE)","v":{"$error":"#N/A"}},null,null,null,null,null,null,null,"",null,"",{"$error":"#N/A"},""]
[null,{"$f":"VLOOKUP(A464,Adr!A:B,2,FALSE)","v":{"$error":"#N/A"}},null,null,null,null,null,null,null,"",null,"",{"$error":"#N/A"},""]
[null,{"$f":"VLOOKUP(A465,Adr!A:B,2,FALSE)","v":{"$error":"#N/A"}},null,null,null,null,null,null,null,"",null,"",{"$error":"#N/A"},""]
[null,{"$f":"VLOOKUP(A466,Adr!A:B,2,FALSE)","v":{"$error":"#N/A"}},null,null,null,null,null,null,null,"",null,"",{"$error":"#N/A"},""]
[null,{"$f":"VLOOKUP(A467,Adr!A:B,2,FALSE)","v":{"$error":"#N/A"}},null,null,null,null,null,null,null,"",null,"",{"$error":"#N/A"},""]
[null,{"$f":"VLOOKUP(A468,Adr!A:B,2,FALSE)","v":{"$error":"#N/A"}},null,null,null,null,null,null,null,"",null,"",{"$error":"#N/A"},""]
[null,{"$f":"VLOOKUP(A469,Adr!A:B,2,FALSE)","v":{"$error":"#N/A"}},null,null,null,null,null,null,null,"",null,"",{"$error":"#N/A"},""]
[null,{"$f":"VLOOKUP(A470,Adr!A:B,2,FALSE)","v":{"$error":"#N/A"}},null,null,null,null,null,null,null,"",null,"",{"$error":"#N/A"},{"$f":"+I470&H470","v":""}]
[null,{"$f":"VLOOKUP(A471,Adr!A:B,2,FALSE)","v":{"$error":"#N/A"}},null,null,null,null,null,null,null,"",null,"",{"$error":"#N/A"},""]
[null,{"$f":"VLOOKUP(A472,Adr!A:B,2,FALSE)","v":{"$error":"#N/A"}},null,null,null,null,null,null,null,"",null,"",{"$error":"#N/A"},""]
[null,{"$f":"VLOOKUP(A473,Adr!A:B,2,FALSE)","v":{"$error":"#N/A"}},null,null,null,null,null,null,null,"",null,"",{"$error":"#N/A"},""]
[null,{"$f":"VLOOKUP(A474,Adr!A:B,2,FALSE)","v":{"$error":"#N/A"}},null,null,null,null,null,null,null,"",null,"",{"$error":"#N/A"},""]
[null,{"$f":"VLOOKUP(A475,Adr!A:B,2,FALSE)","v":{"$error":"#N/A"}},null,null,null,null,null,null,null,"",null,"",{"$error":"#N/A"},""]
[null,{"$f":"VLOOKUP(A476,Adr!A:B,2,FALSE)","v":{"$error":"#N/A"}},null,null,null,null,null,null,null,"",null,"",{"$error":"#N/A"},""]
[null,{"$f":"VLOOKUP(A477,Adr!A:B,2,FALSE)","v":{"$error":"#N/A"}},null,null,null,null,null,null,null,"",null,"",{"$error":"#N/A"},""]
[null,{"$f":"VLOOKUP(A478,Adr!A:B,2,FALSE)","v":{"$error":"#N/A"}},null,null,null,null,null,null,null,"",null,"",{"$error":"#N/A"},""]
[null,{"$f":"VLOOKUP(A479,Adr!A:B,2,FALSE)","v":{"$error":"#N/A"}},null,null,null,null,null,null,null,"",null,"",{"$error":"#N/A"},""]
[null,{"$f":"VLOOKUP(A480,Adr!A:B,2,FALSE)","v":{"$error":"#N/A"}},null,null,null,null,null,null,null,"",null,"",{"$error":"#N/A"},""]
[null,{"$f":"VLOOKUP(A481,Adr!A:B,2,FALSE)","v":{"$error":"#N/A"}},null,null,null,null,null,null,null,"",null,"",{"$error":"#N/A"},""]
[null,{"$f":"VLOOKUP(A482,Adr!A:B,2,FALSE)","v":{"$error":"#N/A"}},null,null,null,null,null,null,null,"",null,"",{"$error":"#N/A"},""]
[null,{"$f":"VLOOKUP(A483,Adr!A:B,2,FALSE)","v":{"$error":"#N/A"}},null,null,null,null,null,null,null,"",null,"",{"$error":"#N/A"},""]
[null,{"$f":"VLOOKUP(A484,Adr!A:B,2,FALSE)","v":{"$error":"#N/A"}},null,null,null,null,null,null,null,"",null,"",{"$error":"#N/A"},""]
[null,{"$f":"VLOOKUP(A485,Adr!A:B,2,FALSE)","v":{"$error":"#N/A"}},null,null,null,null,null,null,null,"",null,"",{"$error":"#N/A"},""]
[null,{"$f":"VLOOKUP(A486,Adr!A:B,2,FALSE)","v":{"$error":"#N/A"}},null,null,null,null,null,null,null,"",null,"",{"$error":"#N/A"},""]
[null,{"$f":"VLOOKUP(A487,Adr!A:B,2,FALSE)","v":{"$error":"#N/A"}},null,null,null,null,null,null,null,"",null,"",{"$error":"#N/A"},""]
[null,{"$f":"VLOOKUP(A488,Adr!A:B,2,FALSE)","v":{"$error":"#N/A"}},null,null,null,null,null,null,null,"",null,"",{"$error":"#N/A"},""]
[null,{"$f":"VLOOKUP(A489,Adr!A:B,2,FALSE)","v":{"$error":"#N/A"}},null,null,null,null,null,null,null,"",null,"",{"$error":"#N/A"},""]
[null,{"$f":"VLOOKUP(A490,Adr!A:B,2,FALSE)","v":{"$error":"#N/A"}},null,null,null,null,null,null,null,"",null,"",{"$error":"#N/A"},""]
[null,{"$f":"VLOOKUP(A491,Adr!A:B,2,FALSE)","v":{"$error":"#N/A"}},null,null,null,null,null,null,{"$f":"A491&F491","v":""},"",null,"",{"$error":"#N/A"},""]
[null,{"$f":"VLOOKUP(A492,Adr!A:B,2,FALSE)","v":{"$error":"#N/A"}},null,null,null,null,null,null,{"$f":"A492&F492","v":""},"",null,"",{"$error":"#N/A"},""]
[null,{"$f":"VLOOKUP(A493,Adr!A:B,2,FALSE)","v":{"$error":"#N/A"}},null,null,null,null,null,null,{"$f":"A493&F493","v":""},"",null,"",{"$error":"#N/A"},""]
[null,{"$f":"VLOOKUP(A494,Adr!A:B,2,FALSE)","v":{"$error":"#N/A"}},null,null,null,null,null,null,null,null,null,"",{"$error":"#N/A"},""]
[null,{"$f":"VLOOKUP(A495,Adr!A:B,2,FALSE)","v":{"$error":"#N/A"}},null,null,null,null,null,null,null,null,null,"",{"$error":"#N/A"},""]
[null,{"$f":"VLOOKUP(A496,Adr!A:B,2,FALSE)","v":{"$error":"#N/A"}},null,null,null,null,null,null,null,null,null,"",{"$error":"#N/A"},""]
[null,{"$f":"VLOOKUP(A497,Adr!A:B,2,FALSE)","v":{"$error":"#N/A"}},null,null,null,null,null,null,null,null,null,"",{"$error":"#N/A"},""]
[null,{"$f":"VLOOKUP(A498,Adr!A:B,2,FALSE)","v":{"$error":"#N/A"}},null,null,null,null,null,null,null,null,null,"",{"$error":"#N/A"},""]
[null,{"$f":"VLOOKUP(A499,Adr!A:B,2,FALSE)","v":{"$error":"#N/A"}},null,null,null,null,null,null,null,null,null,"",{"$error":"#N/A"},""]
[null,{"$f":"VLOOKUP(A500,Adr!A:B,2,FALSE)","v":{"$error":"#N/A"}},null,null,null,null,null,null,null,null,null,"",{"$error":"#N/A"},""]
[null,{"$f":"VLOOKUP(A501,Adr!A:B,2,FALSE)","v":{"$error":"#N/A"}},null,null,null,null,null,null,null,null,null,"",{"$error":"#N/A"},""]
[null,{"$f":"VLOOKUP(A502,Adr!A:B,2,FALSE)","v":{"$error":"#N/A"}},null,null,null,null,null,null,null,null,null,"",{"$error":"#N/A"},""]
[null,{"$f":"VLOOKUP(A503,Adr!A:B,2,FALSE)","v":{"$error":"#N/A"}},null,null,null,null,null,null,null,null,null,"",{"$error":"#N/A"},""]
[null,{"$f":"VLOOKUP(A504,Adr!A:B,2,FALSE)","v":{"$error":"#N/A"}},null,null,null,null,null,null,null,null,null,"",{"$error":"#N/A"},""]
[null,{"$f":"VLOOKUP(A505,Adr!A:B,2,FALSE)","v":{"$error":"#N/A"}},null,null,null,null,null,null,null,null,null,"",{"$error":"#N/A"},""]
[null,{"$f":"VLOOKUP(A506,Adr!A:B,2,FALSE)","v":{"$error":"#N/A"}},null,null,null,null,null,null,null,null,null,"",{"$error":"#N/A"},""]
[null,{"$f":"VLOOKUP(A507,Adr!A:B,2,FALSE)","v":{"$error":"#N/A"}},null,null,null,null,null,null,null,null,null,"",{"$error":"#N/A"},""]
[null,{"$f":"VLOOKUP(A508,Adr!A:B,2,FALSE)","v":{"$error":"#N/A"}},null,null,null,null,null,null,null,null,null,"",{"$error":"#N/A"},""]
[null,{"$f":"VLOOKUP(A509,Adr!A:B,2,FALSE)","v":{"$error":"#N/A"}},null,null,null,null,null,null,null,null,null,"",{"$error":"#N/A"},""]
[null,{"$f":"VLOOKUP(A510,Adr!A:B,2,FALSE)","v":{"$error":"#N/A"}},null,null,null,null,null,null,null,null,null,"",{"$error":"#N/A"},""]
[null,{"$f":"VLOOKUP(A511,Adr!A:B,2,FALSE)","v":{"$error":"#N/A"}},null,null,null,null,null,null,null,null,null,"",{"$error":"#N/A"},""]
[null,{"$f":"VLOOKUP(A512,Adr!A:B,2,FALSE)","v":{"$error":"#N/A"}},null,null,null,null,null,null,null,null,null,"",{"$error":"#N/A"},""]
[null,{"$f":"VLOOKUP(A513,Adr!A:B,2,FALSE)","v":{"$error":"#N/A"}},null,null,null,null,null,null,null,null,null,"",{"$error":"#N/A"},""]
[null,{"$f":"VLOOKUP(A514,Adr!A:B,2,FALSE)","v":{"$error":"#N/A"}},null,null,null,null,null,null,null,null,null,{"$f":"A514&G514&H514","v":""},{"$f":"B514&F514&H514&C514","v":{"$error":"#N/A"}},""]
[null,{"$f":"VLOOKUP(A515,Adr!A:B,2,FALSE)","v":{"$error":"#N/A"}},null,null,null,null,null,null,null,null,null,"",{"$error":"#N/A"},""]
[null,{"$f":"VLOOKUP(A516,Adr!A:B,2,FALSE)","v":{"$error":"#N/A"}},null,null,null,null,null,null,null,null,null,"",{"$error":"#N/A"},""]
[null,{"$f":"VLOOKUP(A517,Adr!A:B,2,FALSE)","v":{"$error":"#N/A"}},null,null,null,null,null,null,null,null,null,"",{"$error":"#N/A"},""]
[null,{"$f":"VLOOKUP(A518,Adr!A:B,2,FALSE)","v":{"$error":"#N/A"}},null,null,null,null,null,null,null,null,null,"",{"$error":"#N/A"},""]
[null,{"$f":"VLOOKUP(A519,Adr!A:B,2,FALSE)","v":{"$error":"#N/A"}},null,null,null,null,null,null,null,null,null,"",{"$error":"#N/A"},""]
[null,{"$f":"VLOOKUP(A520,Adr!A:B,2,FALSE)","v":{"$error":"#N/A"}},null,null,null,null,null,null,null,null,null,"",{"$error":"#N/A"},""]
[null,{"$f":"VLOOKUP(A521,Adr!A:B,2,FALSE)","v":{"$error":"#N/A"}},null,null,null,null,null,null,null,null,null,"",{"$error":"#N/A"},""]
[null,{"$f":"VLOOKUP(A522,Adr!A:B,2,FALSE)","v":{"$error":"#N/A"}},null,null,null,null,null,null,null,null,null,"",{"$error":"#N/A"},""]
[null,{"$f":"VLOOKUP(A523,Adr!A:B,2,FALSE)","v":{"$error":"#N/A"}},null,null,null,null,null,null,null,null,null,"",{"$error":"#N/A"},""]
[null,{"$f":"VLOOKUP(A524,Adr!A:B,2,FALSE)","v":{"$error":"#N/A"}},null,null,null,null,null,null,null,null,null,"",{"$error":"#N/A"},""]
[null,{"$f":"VLOOKUP(A525,Adr!A:B,2,FALSE)","v":{"$error":"#N/A"}},null,null,null,null,null,null,null,null,null,"",{"$error":"#N/A"},""]
[null,{"$f":"VLOOKUP(A526,Adr!A:B,2,FALSE)","v":{"$error":"#N/A"}},null,null,null,null,null,null,null,null,null,"",{"$error":"#N/A"},""]
[null,{"$f":"VLOOKUP(A527,Adr!A:B,2,FALSE)","v":{"$error":"#N/A"}},null,null,null,null,null,null,null,null,null,"",{"$error":"#N/A"},""]
[null,{"$f":"VLOOKUP(A528,Adr!A:B,2,FALSE)","v":{"$error":"#N/A"}},null,null,null,null,null,null,null,null,null,"",{"$error":"#N/A"},""]
[null,{"$f":"VLOOKUP(A529,Adr!A:B,2,FALSE)","v":{"$error":"#N/A"}},null,null,null,null,null,null,null,null,null,"",{"$error":"#N/A"},""]
[null,{"$f":"VLOOKUP(A530,Adr!A:B,2,FALSE)","v":{"$error":"#N/A"}},null,null,null,null,null,null,null,null,null,"",{"$error":"#N/A"},""]
[null,{"$f":"VLOOKUP(A531,Adr!A:B,2,FALSE)","v":{"$error":"#N/A"}},null,null,null,null,null,null,null,null,null,"",{"$error":"#N/A"},""]
[null,{"$f":"VLOOKUP(A532,Adr!A:B,2,FALSE)","v":{"$error":"#N/A"}},null,null,null,null,null,null,null,null,null,"",{"$error":"#N/A"},""]
[null,{"$f":"VLOOKUP(A533,Adr!A:B,2,FALSE)","v":{"$error":"#N/A"}},null,null,null,null,null,null,null,null,null,"",{"$error":"#N/A"},""]
[null,{"$f":"VLOOKUP(A534,Adr!A:B,2,FALSE)","v":{"$error":"#N/A"}},null,null,null,null,null,null,null,null,null,"",{"$error":"#N/A"},{"$f":"+I534&H534","v":""}]
[null,{"$f":"VLOOKUP(A535,Adr!A:B,2,FALSE)","v":{"$error":"#N/A"}},null,null,null,null,null,null,null,null,null,"",{"$error":"#N/A"},""]
[null,{"$f":"VLOOKUP(A536,Adr!A:B,2,FALSE)","v":{"$error":"#N/A"}},null,null,null,null,null,null,null,null,null,"",{"$error":"#N/A"},""]
[null,{"$f":"VLOOKUP(A537,Adr!A:B,2,FALSE)","v":{"$error":"#N/A"}},null,null,null,null,null,null,null,null,null,"",{"$error":"#N/A"},""]
[null,{"$f":"VLOOKUP(A538,Adr!A:B,2,FALSE)","v":{"$error":"#N/A"}},null,null,null,null,null,null,null,null,null,"",{"$error":"#N/A"},""]
[null,{"$f":"VLOOKUP(A539,Adr!A:B,2,FALSE)","v":{"$error":"#N/A"}},null,null,null,null,null,null,null,null,null,"",{"$error":"#N/A"},""]
[null,{"$f":"VLOOKUP(A540,Adr!A:B,2,FALSE)","v":{"$error":"#N/A"}},null,null,null,null,null,null,null,null,null,"",{"$error":"#N/A"},""]
[null,{"$f":"VLOOKUP(A541,Adr!A:B,2,FALSE)","v":{"$error":"#N/A"}},null,null,null,null,null,null,null,null,null,"",{"$error":"#N/A"},""]
[null,{"$f":"VLOOKUP(A542,Adr!A:B,2,FALSE)","v":{"$error":"#N/A"}},null,null,null,null,null,null,null,null,null,"",{"$error":"#N/A"},""]
[null,{"$f":"VLOOKUP(A543,Adr!A:B,2,FALSE)","v":{"$error":"#N/A"}},null,null,null,null,null,null,null,null,null,"",{"$error":"#N/A"},""]
[null,{"$f":"VLOOKUP(A544,Adr!A:B,2,FALSE)","v":{"$error":"#N/A"}},null,null,null,null,null,null,null,null,null,"",{"$error":"#N/A"},""]
[null,{"$f":"VLOOKUP(A545,Adr!A:B,2,FALSE)","v":{"$error":"#N/A"}},null,null,null,null,null,null,null,null,null,"",{"$error":"#N/A"},""]
[null,{"$f":"VLOOKUP(A546,Adr!A:B,2,FALSE)","v":{"$error":"#N/A"}},null,null,null,null,null,null,null,null,null,"",{"$error":"#N/A"},""]
[null,{"$f":"VLOOKUP(A547,Adr!A:B,2,FALSE)","v":{"$error":"#N/A"}},null,null,null,null,null,null,null,null,null,"",{"$error":"#N/A"},""]
[null,{"$f":"VLOOKUP(A548,Adr!A:B,2,FALSE)","v":{"$error":"#N/A"}},null,null,null,null,null,null,null,null,null,"",{"$error":"#N/A"},""]
[null,{"$f":"VLOOKUP(A549,Adr!A:B,2,FALSE)","v":{"$error":"#N/A"}},null,null,null,null,null,null,null,null,null,"",{"$error":"#N/A"},""]
[null,{"$f":"VLOOKUP(A550,Adr!A:B,2,FALSE)","v":{"$error":"#N/A"}},null,null,null,null,null,null,null,null,null,"",{"$error":"#N/A"},""]
[null,{"$f":"VLOOKUP(A551,Adr!A:B,2,FALSE)","v":{"$error":"#N/A"}},null,null,null,null,null,null,null,null,null,"",{"$error":"#N/A"},""]
[null,{"$f":"VLOOKUP(A552,Adr!A:B,2,FALSE)","v":{"$error":"#N/A"}},null,null,null,null,null,null,null,null,null,"",{"$error":"#N/A"},""]
[null,{"$f":"VLOOKUP(A553,Adr!A:B,2,FALSE)","v":{"$error":"#N/A"}},null,null,null,null,null,null,null,null,null,"",{"$error":"#N/A"},""]
[null,{"$f":"VLOOKUP(A554,Adr!A:B,2,FALSE)","v":{"$error":"#N/A"}},null,null,null,null,null,null,null,null,null,"",{"$error":"#N/A"},""]
[null,{"$f":"VLOOKUP(A555,Adr!A:B,2,FALSE)","v":{"$error":"#N/A"}},null,null,null,null,null,null,null,null,null,"",{"$error":"#N/A"},""]
[null,{"$f":"VLOOKUP(A556,Adr!A:B,2,FALSE)","v":{"$error":"#N/A"}},null,null,null,null,null,null,null,null,null,"",{"$error":"#N/A"},""]
[null,{"$f":"VLOOKUP(A557,Adr!A:B,2,FALSE)","v":{"$error":"#N/A"}},null,null,null,null,null,null,null,null,null,"",{"$error":"#N/A"},""]
[null,{"$f":"VLOOKUP(A558,Adr!A:B,2,FALSE)","v":{"$error":"#N/A"}},null,null,null,null,null,null,null,null,null,"",{"$error":"#N/A"},""]
[null,{"$f":"VLOOKUP(A559,Adr!A:B,2,FALSE)","v":{"$error":"#N/A"}},null,null,null,null,null,null,null,null,null,"",{"$error":"#N/A"},""]
[null,{"$f":"VLOOKUP(A560,Adr!A:B,2,FALSE)","v":{"$error":"#N/A"}},null,null,null,null,null,null,null,null,null,"",{"$error":"#N/A"},""]
[null,{"$f":"VLOOKUP(A561,Adr!A:B,2,FALSE)","v":{"$error":"#N/A"}},null,null,null,null,null,null,null,null,null,"",{"$error":"#N/A"},""]
[null,{"$f":"VLOOKUP(A562,Adr!A:B,2,FALSE)","v":{"$error":"#N/A"}},null,null,null,null,null,null,null,null,null,"",{"$error":"#N/A"},""]
[null,{"$f":"VLOOKUP(A563,Adr!A:B,2,FALSE)","v":{"$error":"#N/A"}},null,null,null,null,null,null,null,null,null,"",{"$error":"#N/A"},""]
[null,{"$f":"VLOOKUP(A564,Adr!A:B,2,FALSE)","v":{"$error":"#N/A"}},null,null,null,null,null,null,null,null,null,"",{"$error":"#N/A"},""]
[null,{"$f":"VLOOKUP(A565,Adr!A:B,2,FALSE)","v":{"$error":"#N/A"}},null,null,null,null,null,null,null,null,null,"",{"$error":"#N/A"},""]
[null,{"$f":"VLOOKUP(A566,Adr!A:B,2,FALSE)","v":{"$error":"#N/A"}},null,null,null,null,null,null,null,null,null,"",{"$error":"#N/A"},""]
[null,{"$f":"VLOOKUP(A567,Adr!A:B,2,FALSE)","v":{"$error":"#N/A"}},null,null,null,null,null,null,null,null,null,"",{"$error":"#N/A"},""]
[null,{"$f":"VLOOKUP(A568,Adr!A:B,2,FALSE)","v":{"$error":"#N/A"}},null,null,null,null,null,null,null,null,null,"",{"$error":"#N/A"},""]
[null,{"$f":"VLOOKUP(A569,Adr!A:B,2,FALSE)","v":{"$error":"#N/A"}},null,null,null,null,null,null,null,null,null,"",{"$error":"#N/A"},""]
[null,{"$f":"VLOOKUP(A570,Adr!A:B,2,FALSE)","v":{"$error":"#N/A"}},null,null,null,null,null,null,null,null,null,"",{"$error":"#N/A"},""]
[null,{"$f":"VLOOKUP(A571,Adr!A:B,2,FALSE)","v":{"$error":"#N/A"}},null,null,null,null,null,null,null,null,null,"",{"$error":"#N/A"},""]
[null,{"$f":"VLOOKUP(A572,Adr!A:B,2,FALSE)","v":{"$error":"#N/A"}},null,null,null,null,null,null,null,null,null,"",{"$error":"#N/A"},""]
[null,{"$f":"VLOOKUP(A573,Adr!A:B,2,FALSE)","v":{"$error":"#N/A"}},null,null,null,null,null,null,null,null,null,"",{"$error":"#N/A"},""]
[null,{"$f":"VLOOKUP(A574,Adr!A:B,2,FALSE)","v":{"$error":"#N/A"}},null,null,null,null,null,null,null,null,null,"",{"$error":"#N/A"},""]
[null,{"$f":"VLOOKUP(A575,Adr!A:B,2,FALSE)","v":{"$error":"#N/A"}},null,null,null,null,null,null,null,null,null,"",{"$error":"#N/A"},""]
[null,{"$f":"VLOOKUP(A576,Adr!A:B,2,FALSE)","v":{"$error":"#N/A"}},null,null,null,null,null,null,null,null,null,"",{"$error":"#N/A"},""]
[null,{"$f":"VLOOKUP(A577,Adr!A:B,2,FALSE)","v":{"$error":"#N/A"}},null,null,null,null,null,null,null,null,null,"",{"$error":"#N/A"},""]
[null,{"$f":"VLOOKUP(A578,Adr!A:B,2,FALSE)","v":{"$error":"#N/A"}},null,null,null,null,null,null,null,null,null,{"$f":"A578&G578&H578","v":""},{"$f":"B578&F578&H578&C578","v":{"$error":"#N/A"}},""]
[null,{"$f":"VLOOKUP(A579,Adr!A:B,2,FALSE)","v":{"$error":"#N/A"}},null,null,null,null,null,null,null,null,null,"",{"$error":"#N/A"},""]
[null,{"$f":"VLOOKUP(A580,Adr!A:B,2,FALSE)","v":{"$error":"#N/A"}},null,null,null,null,null,null,null,null,null,"",{"$error":"#N/A"},""]
[null,{"$f":"VLOOKUP(A581,Adr!A:B,2,FALSE)","v":{"$error":"#N/A"}},null,null,null,null,null,null,null,null,null,"",{"$error":"#N/A"},""]
[null,{"$f":"VLOOKUP(A582,Adr!A:B,2,FALSE)","v":{"$error":"#N/A"}},null,null,null,null,null,null,null,null,null,"",{"$error":"#N/A"},""]
[null,{"$f":"VLOOKUP(A583,Adr!A:B,2,FALSE)","v":{"$error":"#N/A"}},null,null,null,null,null,null,null,null,null,"",{"$error":"#N/A"},""]
[null,{"$f":"VLOOKUP(A584,Adr!A:B,2,FALSE)","v":{"$error":"#N/A"}},null,null,null,null,null,null,null,null,null,"",{"$error":"#N/A"},""]
[null,{"$f":"VLOOKUP(A585,Adr!A:B,2,FALSE)","v":{"$error":"#N/A"}},null,null,null,null,null,null,null,null,null,"",{"$error":"#N/A"},""]
[null,{"$f":"VLOOKUP(A586,Adr!A:B,2,FALSE)","v":{"$error":"#N/A"}},null,null,null,null,null,null,null,null,null,"",{"$error":"#N/A"},""]
[null,{"$f":"VLOOKUP(A587,Adr!A:B,2,FALSE)","v":{"$error":"#N/A"}},null,null,null,null,null,null,null,null,null,"",{"$error":"#N/A"},""]
[null,{"$f":"VLOOKUP(A588,Adr!A:B,2,FALSE)","v":{"$error":"#N/A"}},null,null,null,null,null,null,null,null,null,"",{"$error":"#N/A"},""]
[null,{"$f":"VLOOKUP(A589,Adr!A:B,2,FALSE)","v":{"$error":"#N/A"}},null,null,null,null,null,null,null,null,null,"",{"$error":"#N/A"},""]
[null,{"$f":"VLOOKUP(A590,Adr!A:B,2,FALSE)","v":{"$error":"#N/A"}},null,null,null,null,null,null,null,null,null,"",{"$error":"#N/A"},""]
[null,{"$f":"VLOOKUP(A591,Adr!A:B,2,FALSE)","v":{"$error":"#N/A"}},null,null,null,null,null,null,null,null,null,"",{"$error":"#N/A"},""]
[null,{"$f":"VLOOKUP(A592,Adr!A:B,2,FALSE)","v":{"$error":"#N/A"}},null,null,null,null,null,null,null,null,null,"",{"$error":"#N/A"},""]
[null,{"$f":"VLOOKUP(A593,Adr!A:B,2,FALSE)","v":{"$error":"#N/A"}},null,null,null,null,null,null,null,null,null,"",{"$error":"#N/A"},""]
[null,{"$f":"VLOOKUP(A594,Adr!A:B,2,FALSE)","v":{"$error":"#N/A"}},null,null,null,null,null,null,null,null,null,"",{"$error":"#N/A"},""]
[null,{"$f":"VLOOKUP(A595,Adr!A:B,2,FALSE)","v":{"$error":"#N/A"}},null,null,null,null,null,null,null,null,null,"",{"$error":"#N/A"},""]
[null,{"$f":"VLOOKUP(A596,Adr!A:B,2,FALSE)","v":{"$error":"#N/A"}},null,null,null,null,null,null,null,null,null,"",{"$error":"#N/A"},""]
[null,{"$f":"VLOOKUP(A597,Adr!A:B,2,FALSE)","v":{"$error":"#N/A"}},null,null,null,null,null,null,null,null,null,"",{"$error":"#N/A"},""]
[null,{"$f":"VLOOKUP(A598,Adr!A:B,2,FALSE)","v":{"$error":"#N/A"}},null,null,null,null,null,null,null,null,null,"",{"$error":"#N/A"},{"$f":"+I598&H598","v":""}]
[null,{"$f":"VLOOKUP(A599,Adr!A:B,2,FALSE)","v":{"$error":"#N/A"}},null,null,null,null,null,null,null,null,null,"",{"$error":"#N/A"},""]
[null,{"$f":"VLOOKUP(A600,Adr!A:B,2,FALSE)","v":{"$error":"#N/A"}},null,null,null,null,null,null,null,null,null,"",{"$error":"#N/A"},""]
[null,{"$f":"VLOOKUP(A601,Adr!A:B,2,FALSE)","v":{"$error":"#N/A"}},null,null,null,null,null,null,null,null,null,"",{"$error":"#N/A"},""]
[null,{"$f":"VLOOKUP(A602,Adr!A:B,2,FALSE)","v":{"$error":"#N/A"}},null,null,null,null,null,null,null,null,null,"",{"$error":"#N/A"},""]
[null,{"$f":"VLOOKUP(A603,Adr!A:B,2,FALSE)","v":{"$error":"#N/A"}},null,null,null,null,null,null,null,null,null,"",{"$error":"#N/A"},""]
[null,{"$f":"VLOOKUP(A604,Adr!A:B,2,FALSE)","v":{"$error":"#N/A"}},null,null,null,null,null,null,null,null,null,"",{"$error":"#N/A"},""]
[null,{"$f":"VLOOKUP(A605,Adr!A:B,2,FALSE)","v":{"$error":"#N/A"}},null,null,null,null,null,null,null,null,null,"",{"$error":"#N/A"},""]
[null,{"$f":"VLOOKUP(A606,Adr!A:B,2,FALSE)","v":{"$error":"#N/A"}},null,null,null,null,null,null,null,null,null,"",{"$error":"#N/A"},""]
[null,{"$f":"VLOOKUP(A607,Adr!A:B,2,FALSE)","v":{"$error":"#N/A"}},null,null,null,null,null,null,null,null,null,"",{"$error":"#N/A"},""]
[null,{"$f":"VLOOKUP(A608,Adr!A:B,2,FALSE)","v":{"$error":"#N/A"}},null,null,null,null,null,null,null,null,null,"",{"$error":"#N/A"},""]
[null,{"$f":"VLOOKUP(A609,Adr!A:B,2,FALSE)","v":{"$error":"#N/A"}},null,null,null,null,null,null,null,null,null,"",{"$error":"#N/A"},""]
[null,{"$f":"VLOOKUP(A610,Adr!A:B,2,FALSE)","v":{"$error":"#N/A"}},null,null,null,null,null,null,null,null,null,"",{"$error":"#N/A"},""]
[null,{"$f":"VLOOKUP(A611,Adr!A:B,2,FALSE)","v":{"$error":"#N/A"}},null,null,null,null,null,null,null,null,null,"",{"$error":"#N/A"},""]
[null,{"$f":"VLOOKUP(A612,Adr!A:B,2,FALSE)","v":{"$error":"#N/A"}},null,null,null,null,null,null,null,null,null,"",{"$error":"#N/A"},""]
[null,{"$f":"VLOOKUP(A613,Adr!A:B,2,FALSE)","v":{"$error":"#N/A"}},null,null,null,null,null,null,null,null,null,"",{"$error":"#N/A"},""]
[null,{"$f":"VLOOKUP(A614,Adr!A:B,2,FALSE)","v":{"$error":"#N/A"}},null,null,null,null,null,null,null,null,null,"",{"$error":"#N/A"},""]
[null,{"$f":"VLOOKUP(A615,Adr!A:B,2,FALSE)","v":{"$error":"#N/A"}},null,null,null,null,null,null,null,null,null,"",{"$error":"#N/A"},""]
[null,{"$f":"VLOOKUP(A616,Adr!A:B,2,FALSE)","v":{"$error":"#N/A"}},null,null,null,null,null,null,null,null,null,"",{"$error":"#N/A"},""]
[null,{"$f":"VLOOKUP(A617,Adr!A:B,2,FALSE)","v":{"$error":"#N/A"}},null,null,null,null,null,null,null,null,null,"",{"$error":"#N/A"},""]
[null,{"$f":"VLOOKUP(A618,Adr!A:B,2,FALSE)","v":{"$error":"#N/A"}},null,null,null,null,null,null,null,null,null,"",{"$error":"#N/A"},""]
[null,{"$f":"VLOOKUP(A619,Adr!A:B,2,FALSE)","v":{"$error":"#N/A"}},null,null,null,null,null,null,null,null,null,"",{"$error":"#N/A"},""]
[null,{"$f":"VLOOKUP(A620,Adr!A:B,2,FALSE)","v":{"$error":"#N/A"}},null,null,null,null,null,null,null,null,null,"",{"$error":"#N/A"},""]
[null,{"$f":"VLOOKUP(A621,Adr!A:B,2,FALSE)","v":{"$error":"#N/A"}},null,null,null,null,null,null,null,null,null,"",{"$error":"#N/A"},""]
[null,{"$f":"VLOOKUP(A622,Adr!A:B,2,FALSE)","v":{"$error":"#N/A"}},null,null,null,null,null,null,null,null,null,"",{"$error":"#N/A"},""]
[null,{"$f":"VLOOKUP(A623,Adr!A:B,2,FALSE)","v":{"$error":"#N/A"}},null,null,null,null,null,null,null,null,null,"",{"$error":"#N/A"},""]
[null,{"$f":"VLOOKUP(A624,Adr!A:B,2,FALSE)","v":{"$error":"#N/A"}},null,null,null,null,null,null,null,null,null,"",{"$error":"#N/A"},""]
[null,{"$f":"VLOOKUP(A625,Adr!A:B,2,FALSE)","v":{"$error":"#N/A"}},null,null,null,null,null,null,null,null,null,"",{"$error":"#N/A"},""]
[null,{"$f":"VLOOKUP(A626,Adr!A:B,2,FALSE)","v":{"$error":"#N/A"}},null,null,null,null,null,null,null,null,null,"",{"$error":"#N/A"},""]
[null,{"$f":"VLOOKUP(A627,Adr!A:B,2,FALSE)","v":{"$error":"#N/A"}},null,null,null,null,null,null,null,null,null,"",{"$error":"#N/A"},""]
[null,{"$f":"VLOOKUP(A628,Adr!A:B,2,FALSE)","v":{"$error":"#N/A"}},null,null,null,null,null,null,null,null,null,"",{"$error":"#N/A"},""]
[null,{"$f":"VLOOKUP(A629,Adr!A:B,2,FALSE)","v":{"$error":"#N/A"}},null,null,null,null,null,null,null,null,null,"",{"$error":"#N/A"},""]
[null,{"$f":"VLOOKUP(A630,Adr!A:B,2,FALSE)","v":{"$error":"#N/A"}},null,null,null,null,null,null,null,null,null,"",{"$error":"#N/A"},""]
[null,{"$f":"VLOOKUP(A631,Adr!A:B,2,FALSE)","v":{"$error":"#N/A"}},null,null,null,null,null,null,null,null,null,"",{"$error":"#N/A"},""]
[null,{"$f":"VLOOKUP(A632,Adr!A:B,2,FALSE)","v":{"$error":"#N/A"}},null,null,null,null,null,null,null,null,null,"",{"$error":"#N/A"},""]
[null,{"$f":"VLOOKUP(A633,Adr!A:B,2,FALSE)","v":{"$error":"#N/A"}},null,null,null,null,null,null,null,null,null,"",{"$error":"#N/A"},""]
[null,{"$f":"VLOOKUP(A634,Adr!A:B,2,FALSE)","v":{"$error":"#N/A"}},null,null,null,null,null,null,null,null,null,"",{"$error":"#N/A"},""]
[null,{"$f":"VLOOKUP(A635,Adr!A:B,2,FALSE)","v":{"$error":"#N/A"}},null,null,null,null,null,null,null,null,null,"",{"$error":"#N/A"},""]
[null,{"$f":"VLOOKUP(A636,Adr!A:B,2,FALSE)","v":{"$error":"#N/A"}},null,null,null,null,null,null,null,null,null,"",{"$error":"#N/A"},""]
[null,{"$f":"VLOOKUP(A637,Adr!A:B,2,FALSE)","v":{"$error":"#N/A"}},null,null,null,null,null,null,null,null,null,"",{"$error":"#N/A"},""]
[null,{"$f":"VLOOKUP(A638,Adr!A:B,2,FALSE)","v":{"$error":"#N/A"}},null,null,null,null,null,null,null,null,null,"",{"$error":"#N/A"},""]
[null,{"$f":"VLOOKUP(A639,Adr!A:B,2,FALSE)","v":{"$error":"#N/A"}},null,null,null,null,null,null,null,null,null,"",{"$error":"#N/A"},""]
[null,{"$f":"VLOOKUP(A640,Adr!A:B,2,FALSE)","v":{"$error":"#N/A"}},null,null,null,null,null,null,null,null,null,"",{"$error":"#N/A"},""]
[null,{"$f":"VLOOKUP(A641,Adr!A:B,2,FALSE)","v":{"$error":"#N/A"}},null,null,null,null,null,null,null,null,null,"",{"$error":"#N/A"},""]
[null,{"$f":"VLOOKUP(A642,Adr!A:B,2,FALSE)","v":{"$error":"#N/A"}},null,null,null,null,null,null,null,null,null,{"$f":"A642&G642&H642","v":""},{"$f":"B642&F642&H642&C642","v":{"$error":"#N/A"}},""]
[null,{"$f":"VLOOKUP(A643,Adr!A:B,2,FALSE)","v":{"$error":"#N/A"}},null,null,null,null,null,null,null,null,null,"",{"$error":"#N/A"},""]
[null,{"$f":"VLOOKUP(A644,Adr!A:B,2,FALSE)","v":{"$error":"#N/A"}},null,null,null,null,null,null,null,null,null,"",{"$error":"#N/A"},""]
[null,{"$f":"VLOOKUP(A645,Adr!A:B,2,FALSE)","v":{"$error":"#N/A"}},null,null,null,null,null,null,null,null,null,"",{"$error":"#N/A"},""]
[null,{"$f":"VLOOKUP(A646,Adr!A:B,2,FALSE)","v":{"$error":"#N/A"}},null,null,null,null,null,null,null,null,null,"",{"$error":"#N/A"},""]
[null,{"$f":"VLOOKUP(A647,Adr!A:B,2,FALSE)","v":{"$error":"#N/A"}},null,null,null,null,null,null,null,null,null,"",{"$error":"#N/A"},""]
[null,{"$f":"VLOOKUP(A648,Adr!A:B,2,FALSE)","v":{"$error":"#N/A"}},null,null,null,null,null,null,null,null,null,"",{"$error":"#N/A"},""]
[null,{"$f":"VLOOKUP(A649,Adr!A:B,2,FALSE)","v":{"$error":"#N/A"}},null,null,null,null,null,null,null,null,null,"",{"$error":"#N/A"},""]
[null,{"$f":"VLOOKUP(A650,Adr!A:B,2,FALSE)","v":{"$error":"#N/A"}},null,null,null,null,null,null,null,null,null,"",{"$error":"#N/A"},""]
[null,{"$f":"VLOOKUP(A651,Adr!A:B,2,FALSE)","v":{"$error":"#N/A"}},null,null,null,null,null,null,null,null,null,"",{"$error":"#N/A"},""]
[null,{"$f":"VLOOKUP(A652,Adr!A:B,2,FALSE)","v":{"$error":"#N/A"}},null,null,null,null,null,null,null,null,null,"",{"$error":"#N/A"},""]
[null,{"$f":"VLOOKUP(A653,Adr!A:B,2,FALSE)","v":{"$error":"#N/A"}},null,null,null,null,null,null,null,null,null,"",{"$error":"#N/A"},""]
[null,{"$f":"VLOOKUP(A654,Adr!A:B,2,FALSE)","v":{"$error":"#N/A"}},null,null,null,null,null,null,null,null,null,"",{"$error":"#N/A"},""]
[null,{"$f":"VLOOKUP(A655,Adr!A:B,2,FALSE)","v":{"$error":"#N/A"}},null,null,null,null,null,null,null,null,null,"",{"$error":"#N/A"},""]
[null,{"$f":"VLOOKUP(A656,Adr!A:B,2,FALSE)","v":{"$error":"#N/A"}},null,null,null,null,null,null,null,null,null,"",{"$error":"#N/A"},""]
[null,{"$f":"VLOOKUP(A657,Adr!A:B,2,FALSE)","v":{"$error":"#N/A"}},null,null,null,null,null,null,null,null,null,"",{"$error":"#N/A"},""]
[null,{"$f":"VLOOKUP(A658,Adr!A:B,2,FALSE)","v":{"$error":"#N/A"}},null,null,null,null,null,null,null,null,null,"",{"$error":"#N/A"},""]
[null,{"$f":"VLOOKUP(A659,Adr!A:B,2,FALSE)","v":{"$error":"#N/A"}},null,null,null,null,null,null,null,null,null,"",{"$error":"#N/A"},""]
[null,{"$f":"VLOOKUP(A660,Adr!A:B,2,FALSE)","v":{"$error":"#N/A"}},null,null,null,null,null,null,null,null,null,"",{"$error":"#N/A"},""]
[null,{"$f":"VLOOKUP(A661,Adr!A:B,2,FALSE)","v":{"$error":"#N/A"}},null,null,null,null,null,null,null,null,null,"",{"$error":"#N/A"},""]
[null,{"$f":"VLOOKUP(A662,Adr!A:B,2,FALSE)","v":{"$error":"#N/A"}},null,null,null,null,null,null,null,null,null,"",{"$error":"#N/A"},{"$f":"+I662&H662","v":""}]
[null,{"$f":"VLOOKUP(A663,Adr!A:B,2,FALSE)","v":{"$error":"#N/A"}},null,null,null,null,null,null,null,null,null,"",{"$error":"#N/A"},""]
[null,{"$f":"VLOOKUP(A664,Adr!A:B,2,FALSE)","v":{"$error":"#N/A"}},null,null,null,null,null,null,null,null,null,"",{"$error":"#N/A"},""]
[null,{"$f":"VLOOKUP(A665,Adr!A:B,2,FALSE)","v":{"$error":"#N/A"}},null,null,null,null,null,null,null,null,null,"",{"$error":"#N/A"},""]
[null,{"$f":"VLOOKUP(A666,Adr!A:B,2,FALSE)","v":{"$error":"#N/A"}},null,null,null,null,null,null,null,null,null,"",{"$error":"#N/A"},""]
[null,{"$f":"VLOOKUP(A667,Adr!A:B,2,FALSE)","v":{"$error":"#N/A"}},null,null,null,null,null,null,null,null,null,"",{"$error":"#N/A"},""]
[null,{"$f":"VLOOKUP(A668,Adr!A:B,2,FALSE)","v":{"$error":"#N/A"}},null,null,null,null,null,null,null,null,null,"",{"$error":"#N/A"},""]
[null,{"$f":"VLOOKUP(A669,Adr!A:B,2,FALSE)","v":{"$error":"#N/A"}},null,null,null,null,null,null,null,null,null,"",{"$error":"#N/A"},""]
[null,{"$f":"VLOOKUP(A670,Adr!A:B,2,FALSE)","v":{"$error":"#N/A"}},null,null,null,null,null,null,null,null,null,"",{"$error":"#N/A"},""]
[null,{"$f":"VLOOKUP(A671,Adr!A:B,2,FALSE)","v":{"$error":"#N/A"}},null,null,null,null,null,null,null,null,null,"",{"$error":"#N/A"},""]
[null,{"$f":"VLOOKUP(A672,Adr!A:B,2,FALSE)","v":{"$error":"#N/A"}},null,null,null,null,null,null,null,null,null,"",{"$error":"#N/A"},""]
[null,{"$f":"VLOOKUP(A673,Adr!A:B,2,FALSE)","v":{"$error":"#N/A"}},null,null,null,null,null,null,null,null,null,"",{"$error":"#N/A"},""]
[null,{"$f":"VLOOKUP(A674,Adr!A:B,2,FALSE)","v":{"$error":"#N/A"}},null,null,null,null,null,null,null,null,null,"",{"$error":"#N/A"},""]
[null,{"$f":"VLOOKUP(A675,Adr!A:B,2,FALSE)","v":{"$error":"#N/A"}},null,null,null,null,null,null,null,null,null,"",{"$error":"#N/A"},""]
[null,{"$f":"VLOOKUP(A676,Adr!A:B,2,FALSE)","v":{"$error":"#N/A"}},null,null,null,null,null,null,null,null,null,"",{"$error":"#N/A"},""]
[null,{"$f":"VLOOKUP(A677,Adr!A:B,2,FALSE)","v":{"$error":"#N/A"}},null,null,null,null,null,null,null,null,null,"",{"$error":"#N/A"},""]
[null,{"$f":"VLOOKUP(A678,Adr!A:B,2,FALSE)","v":{"$error":"#N/A"}},null,null,null,null,null,null,null,null,null,"",{"$error":"#N/A"},""]
[null,{"$f":"VLOOKUP(A679,Adr!A:B,2,FALSE)","v":{"$error":"#N/A"}},null,null,null,null,null,null,null,null,null,"",{"$error":"#N/A"},""]
[null,{"$f":"VLOOKUP(A680,Adr!A:B,2,FALSE)","v":{"$error":"#N/A"}},null,null,null,null,null,null,null,null,null,"",{"$error":"#N/A"},""]
[null,{"$f":"VLOOKUP(A681,Adr!A:B,2,FALSE)","v":{"$error":"#N/A"}},null,null,null,null,null,null,null,null,null,"",{"$error":"#N/A"},""]
[null,{"$f":"VLOOKUP(A682,Adr!A:B,2,FALSE)","v":{"$error":"#N/A"}},null,null,null,null,null,null,null,null,null,"",{"$error":"#N/A"},""]
[null,{"$f":"VLOOKUP(A683,Adr!A:B,2,FALSE)","v":{"$error":"#N/A"}},null,null,null,null,null,null,null,null,null,"",{"$error":"#N/A"},""]
[null,{"$f":"VLOOKUP(A684,Adr!A:B,2,FALSE)","v":{"$error":"#N/A"}},null,null,null,null,null,null,null,null,null,"",{"$error":"#N/A"},""]
[null,{"$f":"VLOOKUP(A685,Adr!A:B,2,FALSE)","v":{"$error":"#N/A"}},null,null,null,null,null,null,null,null,null,"",{"$error":"#N/A"},""]
[null,{"$f":"VLOOKUP(A686,Adr!A:B,2,FALSE)","v":{"$error":"#N/A"}},null,null,null,null,null,null,null,null,null,"",{"$error":"#N/A"},""]
[null,{"$f":"VLOOKUP(A687,Adr!A:B,2,FALSE)","v":{"$error":"#N/A"}},null,null,null,null,null,null,null,null,null,"",{"$error":"#N/A"},""]
[null,{"$f":"VLOOKUP(A688,Adr!A:B,2,FALSE)","v":{"$error":"#N/A"}},null,null,null,null,null,null,null,null,null,"",{"$error":"#N/A"},""]
[null,{"$f":"VLOOKUP(A689,Adr!A:B,2,FALSE)","v":{"$error":"#N/A"}},null,null,null,null,null,null,null,null,null,"",{"$error":"#N/A"},""]
[null,{"$f":"VLOOKUP(A690,Adr!A:B,2,FALSE)","v":{"$error":"#N/A"}},null,null,null,null,null,null,null,null,null,"",{"$error":"#N/A"},""]
[null,{"$f":"VLOOKUP(A691,Adr!A:B,2,FALSE)","v":{"$error":"#N/A"}},null,null,null,null,null,null,null,null,null,"",{"$error":"#N/A"},""]
[null,{"$f":"VLOOKUP(A692,Adr!A:B,2,FALSE)","v":{"$error":"#N/A"}},null,null,null,null,null,null,null,null,null,"",{"$error":"#N/A"},""]
[null,{"$f":"VLOOKUP(A693,Adr!A:B,2,FALSE)","v":{"$error":"#N/A"}},null,null,null,null,null,null,null,null,null,"",{"$error":"#N/A"},""]
[null,{"$f":"VLOOKUP(A694,Adr!A:B,2,FALSE)","v":{"$error":"#N/A"}},null,null,null,null,null,null,null,null,null,"",{"$error":"#N/A"},""]
[null,{"$f":"VLOOKUP(A695,Adr!A:B,2,FALSE)","v":{"$error":"#N/A"}},null,null,null,null,null,null,null,null,null,"",{"$error":"#N/A"},""]
[null,{"$f":"VLOOKUP(A696,Adr!A:B,2,FALSE)","v":{"$error":"#N/A"}},null,null,null,null,null,null,null,null,null,"",{"$error":"#N/A"},""]
[null,{"$f":"VLOOKUP(A697,Adr!A:B,2,FALSE)","v":{"$error":"#N/A"}},null,null,null,null,null,null,null,null,null,"",{"$error":"#N/A"},""]
[null,{"$f":"VLOOKUP(A698,Adr!A:B,2,FALSE)","v":{"$error":"#N/A"}},null,null,null,null,null,null,null,null,null,"",{"$error":"#N/A"},""]
[null,{"$f":"VLOOKUP(A699,Adr!A:B,2,FALSE)","v":{"$error":"#N/A"}},null,null,null,null,null,null,null,null,null,"",{"$error":"#N/A"},""]
[null,{"$f":"VLOOKUP(A700,Adr!A:B,2,FALSE)","v":{"$error":"#N/A"}},null,null,null,null,null,null,null,null,null,"",{"$error":"#N/A"},""]
[null,{"$f":"VLOOKUP(A701,Adr!A:B,2,FALSE)","v":{"$error":"#N/A"}},null,null,null,null,null,null,null,null,null,"",{"$error":"#N/A"},""]
[null,{"$f":"VLOOKUP(A702,Adr!A:B,2,FALSE)","v":{"$error":"#N/A"}},null,null,null,null,null,null,null,null,null,"",{"$error":"#N/A"},""]
[null,{"$f":"VLOOKUP(A703,Adr!A:B,2,FALSE)","v":{"$error":"#N/A"}},null,null,null,null,null,null,null,null,null,"",{"$error":"#N/A"},""]
[null,{"$f":"VLOOKUP(A704,Adr!A:B,2,FALSE)","v":{"$error":"#N/A"}},null,null,null,null,null,null,null,null,null,"",{"$error":"#N/A"},""]
[null,{"$f":"VLOOKUP(A705,Adr!A:B,2,FALSE)","v":{"$error":"#N/A"}},null,null,null,null,null,null,null,null,null,"",{"$error":"#N/A"},""]
[null,{"$f":"VLOOKUP(A706,Adr!A:B,2,FALSE)","v":{"$error":"#N/A"}},null,null,null,null,null,null,null,null,null,{"$f":"A706&G706&H706","v":""},{"$f":"B706&F706&H706&C706","v":{"$error":"#N/A"}},""]
[null,{"$f":"VLOOKUP(A707,Adr!A:B,2,FALSE)","v":{"$error":"#N/A"}},null,null,null,null,null,null,null,null,null,"",{"$error":"#N/A"},""]
[null,{"$f":"VLOOKUP(A708,Adr!A:B,2,FALSE)","v":{"$error":"#N/A"}},null,null,null,null,null,null,null,null,null,"",{"$error":"#N/A"},""]
[null,{"$f":"VLOOKUP(A709,Adr!A:B,2,FALSE)","v":{"$error":"#N/A"}},null,null,null,null,null,null,null,null,null,"",{"$error":"#N/A"},""]
[null,{"$f":"VLOOKUP(A710,Adr!A:B,2,FALSE)","v":{"$error":"#N/A"}},null,null,null,null,null,null,null,null,null,"",{"$error":"#N/A"},""]
[null,{"$f":"VLOOKUP(A711,Adr!A:B,2,FALSE)","v":{"$error":"#N/A"}},null,null,null,null,null,null,null,null,null,"",{"$error":"#N/A"},""]
[null,{"$f":"VLOOKUP(A712,Adr!A:B,2,FALSE)","v":{"$error":"#N/A"}},null,null,null,null,null,null,null,null,null,"",{"$error":"#N/A"},""]
[null,{"$f":"VLOOKUP(A713,Adr!A:B,2,FALSE)","v":{"$error":"#N/A"}},null,null,null,null,null,null,null,null,null,"",{"$error":"#N/A"},""]
[null,{"$f":"VLOOKUP(A714,Adr!A:B,2,FALSE)","v":{"$error":"#N/A"}},null,null,null,null,null,null,null,null,null,"",{"$error":"#N/A"},""]
[null,{"$f":"VLOOKUP(A715,Adr!A:B,2,FALSE)","v":{"$error":"#N/A"}},null,null,null,null,null,null,null,null,null,"",{"$error":"#N/A"},""]
[null,{"$f":"VLOOKUP(A716,Adr!A:B,2,FALSE)","v":{"$error":"#N/A"}},null,null,null,null,null,null,null,null,null,"",{"$error":"#N/A"},""]
[null,{"$f":"VLOOKUP(A717,Adr!A:B,2,FALSE)","v":{"$error":"#N/A"}},null,null,null,null,null,null,null,null,null,"",{"$error":"#N/A"},""]
[null,{"$f":"VLOOKUP(A718,Adr!A:B,2,FALSE)","v":{"$error":"#N/A"}},null,null,null,null,null,null,null,null,null,"",{"$error":"#N/A"},""]
[null,{"$f":"VLOOKUP(A719,Adr!A:B,2,FALSE)","v":{"$error":"#N/A"}},null,null,null,null,null,null,null,null,null,"",{"$error":"#N/A"},""]
[null,{"$f":"VLOOKUP(A720,Adr!A:B,2,FALSE)","v":{"$error":"#N/A"}},null,null,null,null,null,null,null,null,null,"",{"$error":"#N/A"},""]
[null,{"$f":"VLOOKUP(A721,Adr!A:B,2,FALSE)","v":{"$error":"#N/A"}},null,null,null,null,null,null,null,null,null,"",{"$error":"#N/A"},""]
[null,{"$f":"VLOOKUP(A722,Adr!A:B,2,FALSE)","v":{"$error":"#N/A"}},null,null,null,null,null,null,null,null,null,"",{"$error":"#N/A"},""]
[null,{"$f":"VLOOKUP(A723,Adr!A:B,2,FALSE)","v":{"$error":"#N/A"}},null,null,null,null,null,null,null,null,null,"",{"$error":"#N/A"},""]
[null,{"$f":"VLOOKUP(A724,Adr!A:B,2,FALSE)","v":{"$error":"#N/A"}},null,null,null,null,null,null,null,null,null,"",{"$error":"#N/A"},""]
[null,{"$f":"VLOOKUP(A725,Adr!A:B,2,FALSE)","v":{"$error":"#N/A"}},null,null,null,null,null,null,null,null,null,"",{"$error":"#N/A"},""]
[null,{"$f":"VLOOKUP(A726,Adr!A:B,2,FALSE)","v":{"$error":"#N/A"}},null,null,null,null,null,null,null,null,null,"",{"$error":"#N/A"},{"$f":"+I726&H726","v":""}]
[null,{"$f":"VLOOKUP(A727,Adr!A:B,2,FALSE)","v":{"$error":"#N/A"}},null,null,null,null,null,null,null,null,null,"",{"$error":"#N/A"},""]
[null,{"$f":"VLOOKUP(A728,Adr!A:B,2,FALSE)","v":{"$error":"#N/A"}},null,null,null,null,null,null,null,null,null,"",{"$error":"#N/A"},""]
[null,{"$f":"VLOOKUP(A729,Adr!A:B,2,FALSE)","v":{"$error":"#N/A"}},null,null,null,null,null,null,null,null,null,"",{"$error":"#N/A"},""]
[null,{"$f":"VLOOKUP(A730,Adr!A:B,2,FALSE)","v":{"$error":"#N/A"}},null,null,null,null,null,null,null,null,null,"",{"$error":"#N/A"},""]
[null,{"$f":"VLOOKUP(A731,Adr!A:B,2,FALSE)","v":{"$error":"#N/A"}},null,null,null,null,null,null,null,null,null,"",{"$error":"#N/A"},""]
[null,{"$f":"VLOOKUP(A732,Adr!A:B,2,FALSE)","v":{"$error":"#N/A"}},null,null,null,null,null,null,null,null,null,"",{"$error":"#N/A"},""]
[null,{"$f":"VLOOKUP(A733,Adr!A:B,2,FALSE)","v":{"$error":"#N/A"}},null,null,null,null,null,null,null,null,null,"",{"$error":"#N/A"},""]
[null,{"$f":"VLOOKUP(A734,Adr!A:B,2,FALSE)","v":{"$error":"#N/A"}},null,null,null,null,null,null,null,null,null,"",{"$error":"#N/A"},""]
[null,{"$f":"VLOOKUP(A735,Adr!A:B,2,FALSE)","v":{"$error":"#N/A"}},null,null,null,null,null,null,null,null,null,"",{"$error":"#N/A"},""]
[null,{"$f":"VLOOKUP(A736,Adr!A:B,2,FALSE)","v":{"$error":"#N/A"}},null,null,null,null,null,null,null,null,null,"",{"$error":"#N/A"},""]
[null,{"$f":"VLOOKUP(A737,Adr!A:B,2,FALSE)","v":{"$error":"#N/A"}},null,null,null,null,null,null,null,null,null,"",{"$error":"#N/A"},""]
[null,{"$f":"VLOOKUP(A738,Adr!A:B,2,FALSE)","v":{"$error":"#N/A"}},null,null,null,null,null,null,null,null,null,"",{"$error":"#N/A"},""]
[null,{"$f":"VLOOKUP(A739,Adr!A:B,2,FALSE)","v":{"$error":"#N/A"}},null,null,null,null,null,null,null,null,null,"",{"$error":"#N/A"},""]
[null,{"$f":"VLOOKUP(A740,Adr!A:B,2,FALSE)","v":{"$error":"#N/A"}},null,null,null,null,null,null,null,null,null,"",{"$error":"#N/A"},""]
[null,{"$f":"VLOOKUP(A741,Adr!A:B,2,FALSE)","v":{"$error":"#N/A"}},null,null,null,null,null,null,null,null,null,"",{"$error":"#N/A"},""]
[null,{"$f":"VLOOKUP(A742,Adr!A:B,2,FALSE)","v":{"$error":"#N/A"}},null,null,null,null,null,null,null,null,null,"",{"$error":"#N/A"},""]
[null,{"$f":"VLOOKUP(A743,Adr!A:B,2,FALSE)","v":{"$error":"#N/A"}},null,null,null,null,null,null,null,null,null,"",{"$error":"#N/A"},""]
[null,{"$f":"VLOOKUP(A744,Adr!A:B,2,FALSE)","v":{"$error":"#N/A"}},null,null,null,null,null,null,null,null,null,"",{"$error":"#N/A"},""]
[null,{"$f":"VLOOKUP(A745,Adr!A:B,2,FALSE)","v":{"$error":"#N/A"}},null,null,null,null,null,null,null,null,null,"",{"$error":"#N/A"},""]
[null,{"$f":"VLOOKUP(A746,Adr!A:B,2,FALSE)","v":{"$error":"#N/A"}},null,null,null,null,null,null,null,null,null,"",{"$error":"#N/A"},""]
[null,{"$f":"VLOOKUP(A747,Adr!A:B,2,FALSE)","v":{"$error":"#N/A"}},null,null,null,null,null,null,null,null,null,"",{"$error":"#N/A"},""]
[null,{"$f":"VLOOKUP(A748,Adr!A:B,2,FALSE)","v":{"$error":"#N/A"}},null,null,null,null,null,null,null,null,null,"",{"$error":"#N/A"},""]
[null,{"$f":"VLOOKUP(A749,Adr!A:B,2,FALSE)","v":{"$error":"#N/A"}},null,null,null,null,null,null,null,null,null,"",{"$error":"#N/A"},""]
[null,{"$f":"VLOOKUP(A750,Adr!A:B,2,FALSE)","v":{"$error":"#N/A"}},null,null,null,null,null,null,null,null,null,"",{"$error":"#N/A"},""]
[null,{"$f":"VLOOKUP(A751,Adr!A:B,2,FALSE)","v":{"$error":"#N/A"}},null,null,null,null,null,null,null,null,null,"",{"$error":"#N/A"},""]
[null,{"$f":"VLOOKUP(A752,Adr!A:B,2,FALSE)","v":{"$error":"#N/A"}},null,null,null,null,null,null,null,null,null,"",{"$error":"#N/A"},""]
[null,{"$f":"VLOOKUP(A753,Adr!A:B,2,FALSE)","v":{"$error":"#N/A"}},null,null,null,null,null,null,null,null,null,"",{"$error":"#N/A"},""]
[null,{"$f":"VLOOKUP(A754,Adr!A:B,2,FALSE)","v":{"$error":"#N/A"}},null,null,null,null,null,null,null,null,null,"",{"$error":"#N/A"},""]
[null,{"$f":"VLOOKUP(A755,Adr!A:B,2,FALSE)","v":{"$error":"#N/A"}},null,null,null,null,null,null,null,null,null,"",{"$error":"#N/A"},""]
[null,{"$f":"VLOOKUP(A756,Adr!A:B,2,FALSE)","v":{"$error":"#N/A"}},null,null,null,null,null,null,null,null,null,"",{"$error":"#N/A"},""]
[null,{"$f":"VLOOKUP(A757,Adr!A:B,2,FALSE)","v":{"$error":"#N/A"}},null,null,null,null,null,null,null,null,null,"",{"$error":"#N/A"},""]
[null,{"$f":"VLOOKUP(A758,Adr!A:B,2,FALSE)","v":{"$error":"#N/A"}},null,null,null,null,null,null,null,null,null,"",{"$error":"#N/A"},""]
[null,{"$f":"VLOOKUP(A759,Adr!A:B,2,FALSE)","v":{"$error":"#N/A"}},null,null,null,null,null,null,null,null,null,"",{"$error":"#N/A"},""]
[null,{"$f":"VLOOKUP(A760,Adr!A:B,2,FALSE)","v":{"$error":"#N/A"}},null,null,null,null,null,null,null,null,null,"",{"$error":"#N/A"},""]
[null,{"$f":"VLOOKUP(A761,Adr!A:B,2,FALSE)","v":{"$error":"#N/A"}},null,null,null,null,null,null,null,null,null,"",{"$error":"#N/A"},""]
[null,{"$f":"VLOOKUP(A762,Adr!A:B,2,FALSE)","v":{"$error":"#N/A"}},null,null,null,null,null,null,null,null,null,"",{"$error":"#N/A"},""]
[null,{"$f":"VLOOKUP(A763,Adr!A:B,2,FALSE)","v":{"$error":"#N/A"}},null,null,null,null,null,null,null,null,null,"",{"$error":"#N/A"},""]
[null,{"$f":"VLOOKUP(A764,Adr!A:B,2,FALSE)","v":{"$error":"#N/A"}},null,null,null,null,null,null,null,null,null,"",{"$error":"#N/A"},""]
[null,{"$f":"VLOOKUP(A765,Adr!A:B,2,FALSE)","v":{"$error":"#N/A"}},null,null,null,null,null,null,null,null,null,"",{"$error":"#N/A"},""]
[null,{"$f":"VLOOKUP(A766,Adr!A:B,2,FALSE)","v":{"$error":"#N/A"}},null,null,null,null,null,null,null,null,null,"",{"$error":"#N/A"},""]
[null,{"$f":"VLOOKUP(A767,Adr!A:B,2,FALSE)","v":{"$error":"#N/A"}},null,null,null,null,null,null,null,null,null,"",{"$error":"#N/A"},""]
[null,{"$f":"VLOOKUP(A768,Adr!A:B,2,FALSE)","v":{"$error":"#N/A"}},null,null,null,null,null,null,null,null,null,"",{"$error":"#N/A"},""]
[null,{"$f":"VLOOKUP(A769,Adr!A:B,2,FALSE)","v":{"$error":"#N/A"}},null,null,null,null,null,null,null,null,null,"",{"$error":"#N/A"},""]
[null,{"$f":"VLOOKUP(A770,Adr!A:B,2,FALSE)","v":{"$error":"#N/A"}},null,null,null,null,null,null,null,null,null,{"$f":"A770&G770&H770","v":""},{"$f":"B770&F770&H770&C770","v":{"$error":"#N/A"}},""]
[null,{"$f":"VLOOKUP(A771,Adr!A:B,2,FALSE)","v":{"$error":"#N/A"}},null,null,null,null,null,null,null,null,null,"",{"$error":"#N/A"},""]
[null,{"$f":"VLOOKUP(A772,Adr!A:B,2,FALSE)","v":{"$error":"#N/A"}},null,null,null,null,null,null,null,null,null,"",{"$error":"#N/A"},""]
[null,{"$f":"VLOOKUP(A773,Adr!A:B,2,FALSE)","v":{"$error":"#N/A"}},null,null,null,null,null,null,null,null,null,"",{"$error":"#N/A"},""]
[null,{"$f":"VLOOKUP(A774,Adr!A:B,2,FALSE)","v":{"$error":"#N/A"}},null,null,null,null,null,null,null,null,null,"",{"$error":"#N/A"},""]
[null,{"$f":"VLOOKUP(A775,Adr!A:B,2,FALSE)","v":{"$error":"#N/A"}},null,null,null,null,null,null,null,null,null,"",{"$error":"#N/A"},""]
[null,{"$f":"VLOOKUP(A776,Adr!A:B,2,FALSE)","v":{"$error":"#N/A"}},null,null,null,null,null,null,null,null,null,"",{"$error":"#N/A"},""]
[null,{"$f":"VLOOKUP(A777,Adr!A:B,2,FALSE)","v":{"$error":"#N/A"}},null,null,null,null,null,null,null,null,null,"",{"$error":"#N/A"},""]
[null,{"$f":"VLOOKUP(A778,Adr!A:B,2,FALSE)","v":{"$error":"#N/A"}},null,null,null,null,null,null,null,null,null,"",{"$error":"#N/A"},""]
[null,{"$f":"VLOOKUP(A779,Adr!A:B,2,FALSE)","v":{"$error":"#N/A"}},null,null,null,null,null,null,null,null,null,"",{"$error":"#N/A"},""]
[null,{"$f":"VLOOKUP(A780,Adr!A:B,2,FALSE)","v":{"$error":"#N/A"}},null,null,null,null,null,null,null,null,null,"",{"$error":"#N/A"},""]
[null,{"$f":"VLOOKUP(A781,Adr!A:B,2,FALSE)","v":{"$error":"#N/A"}},null,null,null,null,null,null,null,null,null,"",{"$error":"#N/A"},""]
[null,{"$f":"VLOOKUP(A782,Adr!A:B,2,FALSE)","v":{"$error":"#N/A"}},null,null,null,null,null,null,null,null,null,"",{"$error":"#N/A"},""]
[null,{"$f":"VLOOKUP(A783,Adr!A:B,2,FALSE)","v":{"$error":"#N/A"}},null,null,null,null,null,null,null,null,null,"",{"$error":"#N/A"},""]
[null,{"$f":"VLOOKUP(A784,Adr!A:B,2,FALSE)","v":{"$error":"#N/A"}},null,null,null,null,null,null,null,null,null,"",{"$error":"#N/A"},""]
[null,{"$f":"VLOOKUP(A785,Adr!A:B,2,FALSE)","v":{"$error":"#N/A"}},null,null,null,null,null,null,null,null,null,"",{"$error":"#N/A"},""]
[null,{"$f":"VLOOKUP(A786,Adr!A:B,2,FALSE)","v":{"$error":"#N/A"}},null,null,null,null,null,null,null,null,null,"",{"$error":"#N/A"},""]
[null,{"$f":"VLOOKUP(A787,Adr!A:B,2,FALSE)","v":{"$error":"#N/A"}},null,null,null,null,null,null,null,null,null,"",{"$error":"#N/A"},""]
[null,{"$f":"VLOOKUP(A788,Adr!A:B,2,FALSE)","v":{"$error":"#N/A"}},null,null,null,null,null,null,null,null,null,"",{"$error":"#N/A"},""]
[null,{"$f":"VLOOKUP(A789,Adr!A:B,2,FALSE)","v":{"$error":"#N/A"}},null,null,null,null,null,null,null,null,null,"",{"$error":"#N/A"},""]
[null,{"$f":"VLOOKUP(A790,Adr!A:B,2,FALSE)","v":{"$error":"#N/A"}},null,null,null,null,null,null,null,null,null,"",{"$error":"#N/A"},{"$f":"+I790&H790","v":""}]
[null,{"$f":"VLOOKUP(A791,Adr!A:B,2,FALSE)","v":{"$error":"#N/A"}},null,null,null,null,null,null,null,null,null,"",{"$error":"#N/A"},""]
[null,{"$f":"VLOOKUP(A792,Adr!A:B,2,FALSE)","v":{"$error":"#N/A"}},null,null,null,null,null,null,null,null,null,"",{"$error":"#N/A"},""]
[null,{"$f":"VLOOKUP(A793,Adr!A:B,2,FALSE)","v":{"$error":"#N/A"}},null,null,null,null,null,null,null,null,null,"",{"$error":"#N/A"},""]
[null,{"$f":"VLOOKUP(A794,Adr!A:B,2,FALSE)","v":{"$error":"#N/A"}},null,null,null,null,null,null,null,null,null,"",{"$error":"#N/A"},""]
[null,{"$f":"VLOOKUP(A795,Adr!A:B,2,FALSE)","v":{"$error":"#N/A"}},null,null,null,null,null,null,null,null,null,"",{"$error":"#N/A"},""]
[null,{"$f":"VLOOKUP(A796,Adr!A:B,2,FALSE)","v":{"$error":"#N/A"}},null,null,null,null,null,null,null,null,null,"",{"$error":"#N/A"},""]
[null,{"$f":"VLOOKUP(A797,Adr!A:B,2,FALSE)","v":{"$error":"#N/A"}},null,null,null,null,null,null,null,null,null,"",{"$error":"#N/A"},""]
[null,{"$f":"VLOOKUP(A798,Adr!A:B,2,FALSE)","v":{"$error":"#N/A"}},null,null,null,null,null,null,null,null,null,"",{"$error":"#N/A"},""]
[null,{"$f":"VLOOKUP(A799,Adr!A:B,2,FALSE)","v":{"$error":"#N/A"}},null,null,null,null,null,null,null,null,null,"",{"$error":"#N/A"},""]
[null,{"$f":"VLOOKUP(A800,Adr!A:B,2,FALSE)","v":{"$error":"#N/A"}},null,null,null,null,null,null,null,null,null,"",{"$error":"#N/A"},""]
[null,{"$f":"VLOOKUP(A801,Adr!A:B,2,FALSE)","v":{"$error":"#N/A"}},null,null,null,null,null,null,null,null,null,"",{"$error":"#N/A"},""]
[null,{"$f":"VLOOKUP(A802,Adr!A:B,2,FALSE)","v":{"$error":"#N/A"}},null,null,null,null,null,null,null,null,null,"",{"$error":"#N/A"},""]
[null,{"$f":"VLOOKUP(A803,Adr!A:B,2,FALSE)","v":{"$error":"#N/A"}},null,null,null,null,null,null,null,null,null,"",{"$error":"#N/A"},""]
[null,{"$f":"VLOOKUP(A804,Adr!A:B,2,FALSE)","v":{"$error":"#N/A"}},null,null,null,null,null,null,null,null,null,"",{"$error":"#N/A"},""]
[null,{"$f":"VLOOKUP(A805,Adr!A:B,2,FALSE)","v":{"$error":"#N/A"}},null,null,null,null,null,null,null,null,null,"",{"$error":"#N/A"},""]
[null,{"$f":"VLOOKUP(A806,Adr!A:B,2,FALSE)","v":{"$error":"#N/A"}},null,null,null,null,null,null,null,null,null,"",{"$error":"#N/A"},""]
[null,{"$f":"VLOOKUP(A807,Adr!A:B,2,FALSE)","v":{"$error":"#N/A"}},null,null,null,null,null,null,null,null,null,"",{"$error":"#N/A"},""]
[null,{"$f":"VLOOKUP(A808,Adr!A:B,2,FALSE)","v":{"$error":"#N/A"}},null,null,null,null,null,null,null,null,null,"",{"$error":"#N/A"},""]
[null,{"$f":"VLOOKUP(A809,Adr!A:B,2,FALSE)","v":{"$error":"#N/A"}},null,null,null,null,null,null,null,null,null,"",{"$error":"#N/A"},""]
[null,{"$f":"VLOOKUP(A810,Adr!A:B,2,FALSE)","v":{"$error":"#N/A"}},null,null,null,null,null,null,null,null,null,"",{"$error":"#N/A"},""]
[null,{"$f":"VLOOKUP(A811,Adr!A:B,2,FALSE)","v":{"$error":"#N/A"}},null,null,null,null,null,null,null,null,null,"",{"$error":"#N/A"},""]
[null,{"$f":"VLOOKUP(A812,Adr!A:B,2,FALSE)","v":{"$error":"#N/A"}},null,null,null,null,null,null,null,null,null,"",{"$error":"#N/A"},""]
[null,{"$f":"VLOOKUP(A813,Adr!A:B,2,FALSE)","v":{"$error":"#N/A"}},null,null,null,null,null,null,null,null,null,"",{"$error":"#N/A"},""]
[null,{"$f":"VLOOKUP(A814,Adr!A:B,2,FALSE)","v":{"$error":"#N/A"}},null,null,null,null,null,null,null,null,null,"",{"$error":"#N/A"},""]
[null,{"$f":"VLOOKUP(A815,Adr!A:B,2,FALSE)","v":{"$error":"#N/A"}},null,null,null,null,null,null,null,null,null,"",{"$error":"#N/A"},""]
[null,{"$f":"VLOOKUP(A816,Adr!A:B,2,FALSE)","v":{"$error":"#N/A"}},null,null,null,null,null,null,null,null,null,"",{"$error":"#N/A"},""]
[null,{"$f":"VLOOKUP(A817,Adr!A:B,2,FALSE)","v":{"$error":"#N/A"}},null,null,null,null,null,null,null,null,null,"",{"$error":"#N/A"},""]
[null,{"$f":"VLOOKUP(A818,Adr!A:B,2,FALSE)","v":{"$error":"#N/A"}},null,null,null,null,null,null,null,null,null,"",{"$error":"#N/A"},""]
[null,{"$f":"VLOOKUP(A819,Adr!A:B,2,FALSE)","v":{"$error":"#N/A"}},null,null,null,null,null,null,null,null,null,"",{"$error":"#N/A"},""]
[null,{"$f":"VLOOKUP(A820,Adr!A:B,2,FALSE)","v":{"$error":"#N/A"}},null,null,null,null,null,null,null,null,null,"",{"$error":"#N/A"},""]
[null,{"$f":"VLOOKUP(A821,Adr!A:B,2,FALSE)","v":{"$error":"#N/A"}},null,null,null,null,null,null,null,null,null,"",{"$error":"#N/A"},""]
[null,{"$f":"VLOOKUP(A822,Adr!A:B,2,FALSE)","v":{"$error":"#N/A"}},null,null,null,null,null,null,null,null,null,"",{"$error":"#N/A"},""]

{"sheet":"Cis","index":7,"n_rows":98,"n_cols":10,"rows_kept":98,"cut":false,"hidden":true,"merged":[]}
["Šport",null,"Účel","Účel rozšírený","Režim","PPG","Transfer",null,"PPG","PPG názov"]
["aikido",null,"a","šport 23 ",1,"026 02","Príspevok uznanému športu",null,"026 01","Šport pre všetkých, školský a univerzitný  šport"]
["americký futbal",null,"b","talenty",1,"026 02","Príspevok uznanému športu",null,"026 02","Uznané športy"]
["atletika",null,"c","reprezentácia",1,"026 02","Príspevok uznanému športu",null,"026 03","Národné športové projekty"]
["automobilový šport",null,"d","administratíva",1,"026 02","Príspevok uznanému športu",null,"026 04","Športová infraštruktúra"]
["bandy hokej",null,"e","ostatné",1,"026 02","Príspevok uznanému športu",null,"026 05","Prierezové činnosti"]
["basebal",null,"f","športovci",2,"026 03","Príspevok šporovcom top tímu"]
["basketbal",null,"g","SOV",3,"026 03","Príspevok Slovenskému olympijskému výboru"]
["baskická pelota",null,"h","SPV",3,"026 03","Príspevok slovenskému paralympijskému výboru"]
["bedminton",null,"i","účasť a mládež",4,"026 03","Dotácia"]
["biatlon",null,"j","multi a ŠPV",4,"026 01","Dotácia"]
["biliard",null,"k","trasy",4,"026 01","Dotácia"]
["boby a skeleton",null,"l","kampaň",4,"026 05","Dotácia"]
["boccia",null,"m","odmeny",4,"026 03","Dotácia"]
["boule lyonnaise",null,"n"]
["bowling",null,"o"]
["box",null,"p"]
["bridž",null,"q"]
["curling",null,"r"]
["cyklistika",null,"s"]
["dáma",null,"t"]
["dračie lode",null,"u"]
["dráhový golf",null,"v"]
["fistbal",null,"w"]
["florbal",null,"x"]
["futbal",null,"y"]
["go",null,"z"]
["golf"]
["gymnastika"]
["hádzaná"]
["horolezectvo"]
["jachting"]
["jazdectvo"]
["judo"]
["ju-jitsu"]
["kanoistika"]
["karate"]
["kendo"]
["kickbox"]
["kolieskové korčuľovanie"]
["korfbal"]
["krasokorčuľovanie"]
["kriket"]
["kulturistika a fitnes"]
["ľadové kužele"]
["ľadový hokej"]
["lakros"]
["letecké športy"]
["lukostreľba"]
["lyžovanie"]
["moderný päťboj"]
["motocyklový šport"]
["netbal"]
["orientačné športy"]
["petang"]
["plavecké športy"]
["pólo"]
["potápačské športy"]
["povzbudzovanie"]
["pozemný hokej"]
["preťahovanie lanom"]
["psie záprahy"]
["raketbal"]
["rugby"]
["rybolovná technika"]
["rýchlokorčuľovanie"]
["sambo"]
["sánkovanie"]
["savate"]
["sepaktakraw"]
["silové športy"]
["skialpinizmus"]
["soft tenis"]
["softbal"]
["squash"]
["stolný tenis"]
["streľba"]
["sumo"]
["surfovanie"]
["šach"]
["šerm"]
["šípky"]
["športové lezectvo"]
["športové rybárstvo"]
["športy s lietajúcim diskom"]
["taekwondo"]
["tanečný šport"]
["tenis"]
["thajský box"]
["triatlon"]
["veslovanie"]
["vodné lyžovanie"]
["vodné záchranárstvo"]
["vodný motorizmus"]
["volejbal"]
["vzpieranie"]
["wushu"]
["zápasenie"]

{"sheet":"Avízo - výnosy","index":8,"n_rows":30,"n_cols":16,"rows_kept":30,"cut":false,"hidden":false,"merged":[[21,1,21,2],[0,0,0,2],[2,4,3,5],[11,0,11,2],[13,0,13,2],[14,1,14,2]]}
[{"$f":"Spolu!C3&\", \"&Spolu!C6","v":"Slovenský krasokorčuliarsky zväz, Záhradnícka 752/95, Bratislava, 821 08"},null,null,null,null,null,null,null,null,null,null,null,null,{"$f":"O1&\" - \"&P1","v":"a - príspevok uznaným športom"},"a","príspevok uznaným športom"]
[null,null,null,null,null,null,null,null,null,null,null,null,null,{"$f":"O2&\" - \"&P2","v":"b - príspevok Slovenskému olympijskému a športovému výboru"},"b","príspevok Slovenskému olympijskému a športovému výboru"]
[null,null,null,null,"1. VYPLŇTE ZELENÉ BUNKY\n2. VYTLAČTE, PODPÍŠTE A ODOŠLITE V LISTINNEJ PODOBE",null,null,null,null,null,null,null,null,"c - príspevok Slovenskému paralympijskému výboru","c","príspevok Slovenskému paralympijskému výboru"]
[null,null,null,null,null,null,null,null,null,null,null,null,null,"d - príspevok športovcom top tímu","d","príspevok športovcom top tímu"]
[null,null,"Ministerstvo školstva, vedy, výskumu a športu Slovenskej republiky",null,null,null,null,null,null,null,null,null,null,"e - rozvoj športov, ktoré nie sú uznanými podľa zákona č. 440/2015 Z. z.","e","rozvoj športov, ktoré nie sú uznanými podľa zákona č. 440/2015 Z. z."]
[null,null,"sekcia športu ",null,"Dátum poukázania vrátených prostriedkov:",null,null,null,null,null,null,null,null,"f - organizovanie významných a tradičných športových podujatí na území SR v roku 2020","f","organizovanie významných a tradičných športových podujatí na území SR v roku 2020"]
[null,null,"Stromová 1",null,"Suma vrátených prostriedkov (eur):",null,null,null,null,null,null,null,null,"g - projekty školského, univerzitného športu a športu pre všetkých","g","projekty školského, univerzitného športu a športu pre všetkých"]
[null,null,"813 30  Bratislava 1",null,"IBAN odosielajúceho účtu:",null,null,null,null,null,null,null,null,"h - podpora a rozvoj turistických a cykloturistických trás","h","podpora a rozvoj turistických a cykloturistických trás"]
[null,null,null,null,"Dátum odoslania AVÍZA:",null,null,null,null,null,null,null,null,"i - finančné odmeny športovcom za výsledky dosiahnuté v roku 2019 a trénerom mládeže za dosiahnuté výsledky ich športovcov v roku 2019 a za celoživotnú prácu s mládežou","i","finančné odmeny športovcom za výsledky dosiahnuté v roku 2019 a trénerom mládeže za dosiahnuté výsledky ich športovcov v roku 2019 a za celoživotnú prácu s mládežou"]
[null,null,null,null,null,null,null,null,null,null,null,null,null,"j - projekty pre popularizáciu pohybových aktivít detí, mládeže a seniorov","j","projekty pre popularizáciu pohybových aktivít detí, mládeže a seniorov"]
[null,null,null,null,null,null,null,null,null,null,null,null,null,"k - výstavba, modernizácia a rekonštrukcia športovej infraštruktúry národného významu","k","výstavba, modernizácia a rekonštrukcia športovej infraštruktúry národného významu"]
["Avízo o úhrade výnosov",null,null,null,null,null,null,null,null,null,null,null,null,"l - podpora zdravotne postihnutých športovcov","l","podpora zdravotne postihnutých športovcov"]
[null,null,null,null,null,null,null,null,null,null,null,null,null,"m - plnenie úloh verejného záujmu v športe národnými športovými organizáciami","m","plnenie úloh verejného záujmu v športe národnými športovými organizáciami"]
[{"$f":"\"Oznamujeme Vám, že dňa \"&TEXT(F6,\"dd..mm.yyyy\")&\" sme poukázali Ministerstvu školstva, vedy, výskumu a športu Slovenskej republiky výnosy z príspevku/dotácie poskytnutého/poskytnutej na úlohy v oblasti športu v roku 2024 v sume \"&TEXT(F7,\"### ### ###,00\")& \" eur. Finančné prostriedky vraciame z programu 026 Národný program rozvoja športu v SR.\"","v":"Oznamujeme Vám, že dňa 00.01.1900 sme poukázali Ministerstvu školstva, vedy, výskumu a športu Slovenskej republiky výnosy z príspevku/dotácie poskytnutého/poskytnutej na úlohy v oblasti športu v roku 2024 v sume ,00 eur. Finančné prostriedky vraciame z programu 026 Národný program rozvoja športu v SR."},null,null,null,null,null,null,null,null,null,null,null,null,"n - organizovanie významnej súťaže podľa § 55 ods. 1 písm. b)","n","organizovanie významnej súťaže podľa § 55 ods. 1 písm. b)"]
["z podprogramu:","026 02 - Uznané športy",null,null,null,null,null,null,null,null,null,null,null,"o - účasť na významnej súťaži podľa § 3 písm. h) druhého až štvrtého bodu Zákona o športe vrátane prípravy na túto súťaž","o","účasť na významnej súťaži podľa § 3 písm. h) druhého až štvrtého bodu Zákona o športe vrátane prípravy na túto súťaž"]
["z nášho účtu:",{"$f":"F8","v":0},null,null,"V prípade nejasností kontaktujte nasledovné osoby:",null,null,null,null,null,null,null,null,"p - účasť na významnej súťaži podľa § 3 písm. h) prvého bodu Zákona o športe","p","účasť na významnej súťaži podľa § 3 písm. h) prvého bodu Zákona o športe"]
["na účet:","SK68 8180 0000 0070 0006 3900",31,null,"Ing. Jaroslava Gregoríková","02 / 59374 763",null,null,null,null,null,null,null,"q - ","q"]
[null,"ŠS:",{"$f":"Spolu!C4","v":"31805540"},null,"Ing. Mária Horáková","02 / 59374 693",null,null,null,null,null,null,null,"r - ","r"]
[null,null,null,null,"Ing. Ildikó Belanová","02 / 59374 762"]
["Dátum:",{"$f":"F6","v":"00:00:00"},null,null,"Mgr. Lýdia Gojda","02 / 59374 636"]
[]
[null,"meno, priezvisko, mobil a podpis osoby oprávnenej vykonávať právne úkony\nv mene prijímateľa (v súlade so stanovami/zriaďovacou listinou)",null,null,null,null,null,null,null,null,null,null,null,{"$f":"O22&\" - \"&P22","v":"026 01 - Šport pre všetkých, školský a univerzitný šport"},"026 01","Šport pre všetkých, školský a univerzitný šport"]
[null,null,null,null,null,null,null,null,null,null,null,null,null,{"$f":"O23&\" - \"&P23","v":"026 02 - Uznané športy"},"026 02","Uznané športy"]
[null,null,null,null,null,null,null,null,null,null,null,null,null,{"$f":"O24&\" - \"&P24","v":"026 03 - Národné športové projekty"},"026 03","Národné športové projekty"]
[null,null,null,null,null,null,null,null,null,null,null,null,null,{"$f":"O25&\" - \"&P25","v":"026 04 - Športová infraštruktúra"},"026 04","Športová infraštruktúra"]
[null,null,null,null,null,null,null,null,null,null,null,null,null,{"$f":"O26&\" - \"&P26","v":"026 05 - Prierezové činnosti v športe"},"026 05","Prierezové činnosti v športe"]
[]
[null,null,null,null,null,null,null,null,null,null,null,null,null,"SK80 8180 0000 0070 0006 5236"]
[null,null,null,null,null,null,null,null,null,null,null,null,null,"SK68 8180 0000 0070 0006 3900"]
[null,null,null,null,null,null,null,null,null,null,null,null,null,"SK94 8180 0000 0070 0006 3820"]

{"sheet":"Avízo - vratka","index":9,"n_rows":30,"n_cols":16,"rows_kept":30,"cut":false,"hidden":false,"merged":[[23,1,23,2],[2,4,3,5],[0,0,0,2],[14,1,14,2],[13,1,13,2],[11,0,11,2],[12,0,12,2],[14,5,16,5]]}
[{"$f":"Spolu!C3&\", \"&Spolu!C6","v":"Slovenský krasokorčuliarsky zväz, Záhradnícka 752/95, Bratislava, 821 08"},null,null,null,null,null,null,null,null,null,null,null,null,{"$f":"O1&\" - \"&P1","v":"a - príspevok uznaným športom"},"a","príspevok uznaným športom"]
[null,null,null,null,null,null,null,null,null,null,null,null,null,{"$f":"O2&\" - \"&P2","v":"b - príspevok Slovenskému olympijskému a športovému výboru"},"b","príspevok Slovenskému olympijskému a športovému výboru"]
[null,null,null,null,"1. VYPLŇTE ZELENÉ BUNKY\n2. VYTLAČTE, PODPÍŠTE A ODOŠLITE V LISTINNEJ PODOBE",null,null,null,null,null,null,null,null,"c - príspevok Slovenskému paralympijskému výboru","c","príspevok Slovenskému paralympijskému výboru"]
[null,null,null,null,null,null,null,null,null,null,null,null,null,"d - príspevok športovcom top tímu","d","príspevok športovcom top tímu"]
[null,null,"Ministerstvo školstva, vedy, výskumu a športu Slovenskej republiky",null,null,null,null,null,null,null,null,null,null,"e - rozvoj športov, ktoré nie sú uznanými podľa zákona č. 440/2015 Z. z.","e","rozvoj športov, ktoré nie sú uznanými podľa zákona č. 440/2015 Z. z."]
[null,null,"sekcia športu ",null,"Dátum poukázania vrátených prostriedkov:",null,null,null,null,null,null,null,null,"f - organizovanie významných a tradičných športových podujatí na území SR v roku 2020","f","organizovanie významných a tradičných športových podujatí na území SR v roku 2020"]
[null,null,"Stromová 1",null,"Suma vrátených prostriedkov (eur):",null,null,null,null,null,null,null,null,"g - projekty školského, univerzitného športu a športu pre všetkých","g","projekty školského, univerzitného športu a športu pre všetkých"]
[null,null,"813 30  Bratislava 1",null,"IBAN odosielajúceho účtu:",null,null,null,null,null,null,null,null,"h - podpora a rozvoj turistických a cykloturistických trás","h","podpora a rozvoj turistických a cykloturistických trás"]
[null,null,null,null,"IBAN určeného účtu ministerstva:",null,null,null,null,null,null,null,null,"i - finančné odmeny športovcom za výsledky dosiahnuté v roku 2019 a trénerom mládeže za dosiahnuté výsledky ich športovcov v roku 2019 a za celoživotnú prácu s mládežou","i","finančné odmeny športovcom za výsledky dosiahnuté v roku 2019 a trénerom mládeže za dosiahnuté výsledky ich športovcov v roku 2019 a za celoživotnú prácu s mládežou"]
[null,null,null,null,"Dátum odoslania AVÍZA:",null,null,null,null,null,null,null,null,"j - projekty pre popularizáciu pohybových aktivít detí, mládeže a seniorov","j","projekty pre popularizáciu pohybových aktivít detí, mládeže a seniorov"]
[null,null,null,null,null,null,null,null,null,null,null,null,null,"k - výstavba, modernizácia a rekonštrukcia športovej infraštruktúry národného významu","k","výstavba, modernizácia a rekonštrukcia športovej infraštruktúry národného významu"]
["Avízo o vrátení finančných prostriedkov",null,null,null,null,"SK80 8180 0000 0070 0006 5236\n(výdavkový účet štátneho rozpočtu)\nslúži pre vrátenie nevyčerpaných finančných prostriedkov poskytnutých v r. 2024,  v termíne do 30.11.2024",null,null,null,null,null,null,null,"l - podpora zdravotne postihnutých športovcov","l","podpora zdravotne postihnutých športovcov"]
[{"$f":"\"Oznamujeme Vám, že dňa \"&TEXT(F6,\"dd..mm.yyyy\")&\" sme poukázali Ministerstvu školstva, vedy, výskumu a športu Slovenskej republiky nevyčerpané finančné prostriedky v sume \"&TEXT(F7,\"### ### ###,00\")& \" eur z príspevku/dotácie poskytnutého/poskytnutej na úlohy v oblasti športu v roku 2024. Finančné prostriedky vraciame z programu 026 Národný program rozvoja športu v SR.\"","v":"Oznamujeme Vám, že dňa 00.01.1900 sme poukázali Ministerstvu školstva, vedy, výskumu a športu Slovenskej republiky nevyčerpané finančné prostriedky v sume ,00 eur z príspevku/dotácie poskytnutého/poskytnutej na úlohy v oblasti športu v roku 2024. Finančné prostriedky vraciame z programu 026 Národný program rozvoja športu v SR."},null,null,null,null,"SK68 8180 0000 0070 0006 3900\n(depozitný účet)\nslúži pre vrátenie nevyčerpaných/nezúčtovaných finančných prostriedkov poskytnutých v r.  2024, v termíne od 01.01.2025 do 31.05.2025",null,null,null,null,null,null,null,"m - plnenie úloh verejného záujmu v športe národnými športovými organizáciami","m","plnenie úloh verejného záujmu v športe národnými športovými organizáciami"]
["z podprogramu:","026 03 - Národné športové projekty",null,null,null,"SK92 8180 0000 0070 0006 3759 (príjmový účet) slúži na vrátenie finančných prostriedkov za porušenie finančnej disciplíny",null,null,null,null,null,null,null,"n - ","n"]
["z účelu:",null,null,null,null,"SK94 8180 0000 0070 0006 3820\n(odvody nedaňových príjmov z minulých rokov)\nslúži pre vrátenie nevyčerpaných/nezúčtovaných finančných prostriedkov poskytnutých v r. 2024 a vrátených po 31.05.2025, resp. poskytnutých  v predchádzajúcich rokoch (t. j. pred r. 2024), bez rozdielu termínu ich vrátenia ",null,null,null,null,null,null,null,"o - ","o"]
["z nášho účtu:",{"$f":"F8","v":0},null,null,null,null,null,null,null,null,null,null,null,"p - ","p"]
["na účet:",{"$f":"F9","v":0},null,null,null,null,null,null,null,null,null,null,null,"q - ","q"]
[null,"VS:",31,null,null,null,null,null,null,null,null,null,null,"r - ","r"]
[null,"ŠS:",{"$f":"Spolu!C4","v":"31805540"},null,null,"V prípade nejasností kontaktujte nasledovné osoby:",null,null,null,null,null,null,null," - "]
["Dátum:",{"$f":"F6","v":"00:00:00"},null,null,null,"Ing. Jaroslava Gregoríková","02 / 59374 763"]
[null,null,null,null,null,"Ing. Mária Horáková","02 / 59374 693",null,null,null,null,null,null,{"$f":"O21&\" - \"&P21","v":"026 01 - Šport pre všetkých, školský a univerzitný šport"},"026 01","Šport pre všetkých, školský a univerzitný šport"]
[null,null,null,null,null,"Ing. Ildikó Belanová","02 / 59374 762",null,null,null,null,null,null,{"$f":"O22&\" - \"&P22","v":"026 02 - Uznané športy"},"026 02","Uznané športy"]
[null,null,null,null,null,"Mgr. Lýdia Gojda","02 / 59374 636",null,null,null,null,null,null,{"$f":"O23&\" - \"&P23","v":"026 03 - Národné športové projekty"},"026 03","Národné športové projekty"]
[null,"meno, priezvisko, mobil a podpis osoby oprávnenej vykonávať právne úkony\nv mene prijímateľa (v súlade so stanovami/zriaďovacou listinou)",null,null,null,null,null,null,null,null,null,null,null,{"$f":"O24&\" - \"&P24","v":"026 04 - Športová infraštruktúra"},"026 04","Športová infraštruktúra"]
[null,null,null,null,null,null,null,null,null,null,null,null,null,{"$f":"O25&\" - \"&P25","v":"026 05 - Prierezové činnosti v športe"},"026 05","Prierezové činnosti v športe"]
[]
[null,null,null,null,null,null,null,null,null,null,null,null,null,"SK80 8180 0000 0070 0006 5236"]
[null,null,null,null,null,null,null,null,null,null,null,null,null,"SK68 8180 0000 0070 0006 3900"]
[null,null,null,null,null,null,null,null,null,null,null,null,null,"SK94 8180 0000 0070 0006 3759"]
[null,null,null,null,null,null,null,null,null,null,null,null,null,"SK94 8180 0000 0070 0006 3820"]

{"sheet":"Skratky","index":10,"n_rows":21,"n_cols":2,"rows_kept":21,"cut":false,"hidden":false,"merged":[[1,0,1,1]]}
["Zoznam akceptovaných skratiek"]
["Pri vyúčtovaní môžete používať nasledovné skratky. Ak potrebujete, definujte ďalšie."]
["Skratka","Vysvetlenie"]
["MS","majstrovstvá sveta"]
["ME","majstrovstvá Európy"]
["SP","svetový pohár"]
["EP","európsky pohár"]
["MSR","majstrovstvá Slovenska"]
["VV","výkonný výbor"]
["ŠH","športová hala"]
["PHM","pohonné hmoty"]
["VC","veľká cena"]
["VZ","valné zhromaždenie"]
["EČV","evidenčné číslo vozidla"]
["OA","osobný automobil"]
["BUS","autobus"]
["LOD","loď"]
["LET","lietadlo"]
["VLAK","vlak"]
["ÚTM","útvar talentovanej mládeže"]
["CTM","centrum talentovanej mládeže"]